Workbook

Sheet Introduction
B2: Introduction
B4: =TEXT!C10 -> Introduktion til værktøjet
B6: =TEXT!C198 -> Installation: Modellen kan ikke åbnes direkte fra nettet eller email. I stedet skal modellen gemmes lokalt på en PC (fx på skrivebordet) eller på et lokalt netværksdrev. Ellers er det ikke muligt at acceptere de makroer, som er nødvendige for at få modellen til at virke. Dette værktøj er udviklet for yderligere at undersøge omkostningerne ved at etablere et fælles CO2 infrastrukturnetværk i forskellige scenarier. Værktøjet lader brugere vælge en række forskellige scenarier, antagelser, infrastruktur karakteristika og udledere med henblik på at skabe et bedre indblik i omkostningerne forbundet med forskellige scenarier. Hvordan virker det? Værktøjet har to faner med inputs '1.1 Interface' og '1.2 Assumptions' der indeholder forskellige valgmuligheder og input celler der kan ændres af brugeren. Disse to faner er de eneste redigerbare faner i værktøjet. Baseret på det valgte scenarie i de to input faner, vil fanen '2.1 Results' vise resultaterne. Denne indeholder en opsummering af hele infrastrukturnetværket inklusiv CAPEX, OPEX, omsætning, NPV og levelized cost og viser data i grafer. Under graferne vil nutidsværdien af hvert infrastruktur element blive præsenteret, opdelt i omsætning, CAPEX og OPEX. Kapitel 3 'Calculations' indeholder de nødvendige beregninger for at modellere det specificerede scenarie. I fanen '3.1 Elements' fremgår de tekniske specifikationer på kompressorstationerne rørledningerne. Kapitel 4 ' Building blocks' indeholder de forskellige omkostningerskurver der anvendes til at udregne omkostninger ved de forskellige elementer. De fleste omkostninger er baseret på kurver estimeret af Rambøll, og modellen vil dynamisk udvælge den rette omkostningskurve baseret på scenariet udvalgt af brugeren. Hvad er inkluderet? Værktøjet antager at CO2 er leveret til netværket ved udlederens hegn, renset ved 30 bar - omkostningerne inden dette punkt er ikke inkluderet i beregningerne. I scenarie (case) 1-4, med retning mod Havnsø, er omkostningerne til rørledninger og kompressorstationer inkluderet, og driftsomkostninger til permanent lagring af CO2 da denne er udregnet som en omkostning per ton. I scenarie (case) 5-6, med retning mod CMP, er omkostningerne til rørledninger og kompressorstationer ligeledes inkluderet, men også omkostningerne til fordråbning, mellemlager, havnefaciliteter samt udskibning er inkluderet. Værktøjet tillader også inkludering af import af CO2. Dette kan ske ved skib via Prøvestenen eller rørledning via Avedøre. Omkostninger forbundet med transport af CO2 til C4 netværket er ikke inkluderet, men omkostningerne relateret til konditionering er inkluderet. Sprog kan vælges i '1.1 Interface' Disclaimer: Grundet den tidlige fase, vil tallene præsenteret i dette værktøj være behæftet med stor usikkerhed. Resultaterne skal tolkes som indikationer, der kan anvendes til at belyse dynamikken mellem omkostninger og udformning af netværket, og ikke som et præcist omkostningsestimatet. | R6: Tool Version control
R7: Version | S7: Date | T7: Comments
R8: 1.0 | S8: 21/12/2023 | T8: First draft model
R9: 2.0 | S9: 09/02/2024 | T9: Updated draft version based on feedback from C4
R10: 3.0 | S10: 21/02/2024 | T10: Including socioeconomic costs and minor changes in cost estimates
R11: 4.0 | S11: 14/03/2024 | T11: Changes to the one-pager and socioeconomic calculations
R12: 5.0 | S12: 26/03/2024 | T12: Corrections to translations and trucking costs
R13: 6.0 | S13: 18/04/2024 | T13: Changes to Avedøre CO2 amounts
B38: Index
E41: 1. Input
E43: 1.1 Interface
E44: 1.2 Assumptions
E46: 2. Output
E48: 2.1 Results
E49: 2.2 Model
E50: 2.3 Map
E52: 3. Calculations
E54: 3.1 Elements
E55: 3.2 Scenarios
E56: 3.3 Emitters
E57: 3.4 0-scenario
E59: 4. Building blocks
E61: 4.1 Pipeline
E62: 4.2 Compression
E63: 4.3 Liquefaction
E64: 4.4 Permanent storage
E65: 4.5 Harbour
E66: 4.6 Ships
E67: 4.7 Intermediate storage
E68: 4.8 Trucking
E69: 4.9 Conditioning
E70: 4.10 Booster station

Sheet 1. Input ->
A1: Cover page
A2: 1. Input

Sheet 1.1 Interface
B2: Interface
B4: =TEXT!C19 -> Scenarie vælger
B6: =TEXT!C201 -> Scenarievælgeren lader brugeren vælge mellem 6 primære scenarier, og yderligere tilpasse en række specifikke parametre til brugerens behov. Menuen er dynamisk, hvilket betyder at kun de relevante input parametre i det givne scenarie er tilgængelige i nedenstående. Ikke relevante inputs er markeret grå. Udover de primære valgmuligheder i scenarievælgeren, er der i sektionen nedenfor "Udledere" mulighed for at til- og fravælge udledere, tilføje nye udledere, samt ændre på deres mængder. I 1. Nøgle karakteristika defineres den overordnede struktur for infrastuktur netværket hvor flowretning og lokation af kompressorstation(er) bestemmes, som derved vil have en påvirkning på typen af rørledning (høj/lav tryk) samt størrelsen på rørledningerne. De 6 scenarier (cases) er: Case 1: Centraliseret kompressor med retning mod Havnsø. Central kompressorstation placeret ved Høje Taastrup så alle rørledninger øst for denne er i gas fase og alle rørledninger vest for denne er dense fase. En yderligere kompressorstation er placeret ved ARGO for at lade dem tilkoble rørledningen i dense fase. Case 2: Centraliseret kompressor med retning mod Havnsø. Central central kompressorstation placeret ved Avedøre rørledningen fra Kræftværkshalvøen til Avedøre er gas fase og alle andre rørledninger er dense fase. Yderligere kompressorstationer vil være placeret ved ARGO og Vestforbrænding for at lade dem tilkoble rørledningen i dense fase. Case 3: Centraliseret kompressor med retning mod Havnsø. Central kompressorstation placeret inden tæt ved starten af den sidste rørledning mod Havnsø (tæt ved ARGO) så alle rørledninger er gas fase med undtagelse af den sidste lange rørledning til Havnsø som er dense fase. Case 4: Decentraliseret kompressorer med retning mod Havnsø. Fire kompressorstationer placeret ved ARGO, Vestforbrænding, Avedøreværket og Kraftværkshalvøen så alle rørledninger er dense fase. Case 5: Ingen kompressor med retning mod CMP. Uden kompressorstationer, så alle rørledninger vil være gas fase. Dette scenarie har ingen forbindelse til Havnsø men vil inkludere de fornødne faciliteter til udskibning af CO2 fra CMP. Case 6: Decentraliseret kompressorer med retning mod CMP. Fire kompressorstationer placeret ved ARGO, Vestforbrænding og Kræftværkshalvøen så alle rørledninger vil være dense fase. Dette scenarie har ingen forbindelse til Havnsø men vil inkludere de fornødne faciliteter til udskibning af CO2 fra CMP.
B7: =TEXT!C20 -> De to nedenstående knapper giver brugeren mulighed for at nulstille alt eller vælge et scenarie. 'Nulstil' vil nulstille alle inputs og 'Vælg scenarie' giver brugeren mulighed for at vælge ét af de prædefinerede scenarier
E8: =TEXT!C21 -> Vælg et prædefineret scenarie og klik 'Vælg scenarie' (ændrer ikke på antagelsesarket)
E9: Scenario 4
E10: =INDEX(LISTS!C34:C38,MATCH(E9,LISTS!B34:B38,0)) -> Gas fase rørledning fra alle udledere mod CMP for udskibning til offshore lagring. Mulighed for at tilføje yderligere CO2 mængder med lastbil. Ingen rørinfrastruktur i dette scenarie.
C12: =TEXT!C22 -> Valgmulighed | E12: =TEXT!C23 -> Hjælpetekst | F12: =TEXT!C24 -> Enhed | G12: =TEXT!C25 -> Input | I12: =TEXT!C26 -> Kommentar
C14: 0. | D14: =TEXT!C27 -> Vælg sprog | E14: =TEXT!C207 -> Ændrer sprog i valgmulighederne og resultat siden | G14: Dansk | I14: =IF(G14="English","Changes language in '1. Input' and '2. Output'","Ændrer sprog i '1. Input' og '2. Output'") -> Ændrer sprog i '1. Input' og '2. Output'
C16: 1. | D16: =TEXT!C28 -> Nøgle karakteristika
C18: 1.1 | D18: =TEXT!C29 -> Scenarie vælger | E18: =TEXT!C208 -> Bestemmer lokationen for kompressor stationerne og retningen af flowet i netværket - se de 6 cases til højre | G18: Case 5 | I18: =INDEX(LISTS!C15:C20,MATCH(G18,LISTS!B15:B20,0)) -> Ingen kompression med retning mod CMP - alle lavtryksrør
C21: 2. | D21: =TEXT!C30 -> Import | E21: =TEXT!C209 -> Vælg om der skal tillades import af CO2 i netværket eller ej. Hvis tilladt, vælg da om import skal ske via skib til Prøvestenen, via rørledning til Avedøre eller en kombination af de to
C23: 2.0.1 | D23: =TEXT!C31 -> Inkluder import af CO2 | G23: No | I23: =IF(OR(G18="Case 5",G18="Case 6"),TEXT!C269,"") -> Ingen import når der udskibes fra CMP
C25: 2.0.2 | D25: =TEXT!C32 -> Import type | G25: Ship | I25: =IF(OR(G18="Case 5",G18="Case 6"),"",IF(G23="No","",IF(G25="Pipeline",IF(OR(G18="Case 2",G18="Case 4"),TEXT!C270,TEXT!C271),IF(G18="Case 4",TEXT!C272,TEXT!C273)))) ->  | L25: =OR($I$25="Ship import only applicable in case 4",$I$25="Import via skib kun muligt i case 4") -> FALSE
C27: 2.1 | D27: =TEXT!C33 -> Import fra rørledning
C29: 2.1.1 | D29: =TEXT!C40 -> Antaget CO2 import peak load | E29: =TEXT!C210 -> Anvendes til at dimensionere netværkets rørledninger | F29: =TEXT!C41 -> tons/time | G29: 200
C31: 2.1.2 | D31: =TEXT!C42 -> Antaget CO2 import mængder | E31: =TEXT!C211 -> Anvendes til at beregne samlede CO2 mængder | F31: =TEXT!C43 -> tons/år | G31: 1000000
C33: 2.1.3 | D33: =TEXT!C34 -> Årlige antal timer med import | E33: =TEXT!C212 -> Input til energiforbruget af booster station | F33: =TEXT!C35 -> timer/år | G33: 7000
C35: 2.1.4 | D35: =TEXT!C44 -> Import start år | E35: =TEXT!C213 -> Første år for CO2 import via rørledning | G35: 2026
C37: 2.1.5 | D37: =TEXT!C45 -> Import slut år | E37: =TEXT!C214 -> Sidste år for CO2 import via rørledning | G37: 2050
C39: 2.2 | D39: =TEXT!C36 -> Import fra skib
C41: 2.2.1 | D41: =TEXT!C37 -> Skib import type | E41: =TEXT!C215 -> Bestemmer trykket når CO2 modtages | G41: Medium pressure
C43: 2.2.2 | D43: =TEXT!C38 -> Konditionering fra skib til rørledning | E43: =TEXT!C216 -> Mulighed for at inkludere en reserve pumpe for konditionering | G43: Without spare
C45: 2.2.3 | D45: =TEXT!C39 -> Kapacitet per skib | E45: =TEXT!C217 -> Mellemlager er udregnet som 1,5 * kapacitet per skib | F45: tons | G45: 7000 | I45: =IF(OR(OR(G18="Case 5",G18="Case 6"),G25="Pipeline"),"","= "&TEXT(ROUND(G45*1000/INDEX('1.2 Assumptions'!E70:E72,MATCH(G41,'1.2 Assumptions'!B70:B72,0)),0),"0.000")&TEXT!C274) -> 
C47: 2.2.4 | D47: =TEXT!C42 -> Antaget CO2 import mængder | E47: =TEXT!C218 -> Anvendes til at beregne samlede CO2 mængder | F47: =TEXT!C43 -> tons/år | G47: 500000
C49: 2.2.5 | D49: =TEXT!C44 -> Import start år | E49: =TEXT!C219 -> Første år for CO2 import via skib | G49: 2026
C51: 2.2.6 | D51: =TEXT!C45 -> Import slut år | E51: =TEXT!C220 -> Sidste år for CO2 import via skib | G51: 2050
C53: 3. | D53: =TEXT!C46 -> Kompression
C55: 3.1 | D55: =TEXT!C47 -> Energiintegration | E55: =TEXT!C221 -> "No heat integration 1" --> påvirker kompressionsstadiet - luftkølere anvendes "No heat integration 2" --> påvirker kompressionsstadiet - lukket kredsløb CM (20% wt. MEG aq. Sol.) "Integration with DH" --> lukket kredsløb CM (20% wt. MEG aq. Sol.),luftkølere, og DH-CM HEX | G55: Integration with DH | I55: =IF(ISBLANK(G55),TEXT!C276,IF(G18="Case 5",TEXT!C275,IF(AND(G55="Integration with DH",ISBLANK(G122)),TEXT!C277,""))) -> Ingen kompression
C57: 3.2 | D57: =TEXT!C48 -> Redundans | E57: =TEXT!C222 -> Mulighed for at inkludere et reserve kompressionsanlæg | G57: Spare compression train | I57: =IF(ISBLANK(G57),"Please select an option","") -> 
C59: 3.3 | D59: =TEXT!C49 -> Varmeudnyttelse | E59: =TEXT!C223 -> Andel af varme genereret der går til fjernvarme | F59: % | G59: 0.8 | I59: =IF(G18="Case 5","",IF(G55<>"Integration with DH",TEXT!C278,"")) -> 
C61: 4. | D61: =TEXT!C50 -> Fordråbning
C63: 4.1 | D63: =TEXT!C51 -> Tryk ved fordråbning | E63: =TEXT!C224 -> Tryksætning af flydende CO2. 7 barg svarer til skibe med lavt tryk, 15 barg svarer til skibe med mellem tryk og 40 barg svarer til skibe med højt tryk | G63: 15 barg | I63: =IF(OR($G$18="Case 5",$G$18="Case 6",),TEXT!C279,TEXT!C280) -> Påvirker skibsstørrelsen
C65: 4.2 | D65: =TEXT!C52 -> Redundans | E65: =TEXT!C225 -> Mulighed for at inkludere et reserve kompressionsanlæg | G65: Spare compression train
C67: 4.3 | D67: =TEXT!C53 -> Energiintegration | E67: =TEXT!C226 -> Muligfor for at vælge om kompressor er integreret med fjernvarme | G67: Integration with DH
C69: 4.4 | D69: =TEXT!C54 -> Varmeudnyttelse | E69: =TEXT!C227 -> Andel af varme genereret der går til fjernvarme | G69: 0.8 | I69: =IF(OR($G$18="Case 5",$G$18="Case 6",),IF(G67<>"Integration with DH",TEXT!C281,""),"") -> 
C71: 5. | D71: =TEXT!C55 -> Permanent lagring
C73: 5.1 | D73: =TEXT!C56 -> Indsprøjtningshastighed | E73: =TEXT!C228 -> Påvirker enhedsomkostningen for lagring - antag en værdi mellem 1 og 5 | F73: Mtpa | G73: 3 | I73: =IF(NOT(ISBLANK(G75)),TEXT!C282,IF(OR($G$18="Case 5",$G$18="Case 6"),TEXT!C283,TEXT!C284)) -> Offshore lagring - typisk indsprøjtningshastighed mellem 1 og 5
C75: 5.2 | D75: =TEXT!C57 -> Bruger input - lagringsomkostning | E75: =TEXT!C229 -> Indsæt en lagringsomkostning per ton hvis du ønsker at overskrive den estimerede lagringsomkostning | F75: DKK/ton | I75: =TEXT!C285&ROUND('4.4 Permanent storage'!D16,2)&TEXT!C286 -> Overskriver omkostningsestimat på 153,45 kr./ton hvis værdi indsættes
C77: 6. | D77: =TEXT!C58 -> Havnefaciliteter
C79: 6.1 | D79: =TEXT!C59 -> Antal af fortøjningspladser | E79: =TEXT!C230 -> Specificer antal af kajer for at estimere havne omkostningerne | G79: 1 | I79: =IF(OR($G$18="Case 5",$G$18="Case 6",),TEXT!C287,TEXT!C288) -> Antager at hver fortøjningsplads kan modtage et skib ad gangen
C81: 6.2 | D81: =TEXT!C60 -> Antagelse om fortøjningspladser | E81: =TEXT!D231 -> Are the berths retrofitted or build from scratch | G81: Existing berths
C84: 7. | D84: =TEXT!C61 -> Udskibning (eksport)
C86: 7.1 | D86: =TEXT!C62 -> Årlige driftstimer per skib | E86: =TEXT!C232 -> Anvendes til at beregne brændstof forbrug per skib | F86: =TEXT!C63 -> timer/år | G86: 8400 | I86: =IF(NOT(OR($G$18="Case 5",$G$18="Case 6",)),TEXT!C289,IF(G86>8760,TEXT!C290,"")) -> 
C88: 7.2 | D88: =TEXT!C64 -> Kapacitet per skib | E88: =TEXT!C233 -> Anvendes til at beregne hvor mange skibe der skal bruges | F88: tons | G88: 13000 | I88: =IF(OR(I86="No shipping",I86="Ingen udskibning"),"","= "&TEXT(ROUND(G88*1000/INDEX('1.2 Assumptions'!E70:E72,MATCH(G63,'1.2 Assumptions'!C70:C72,0)),0),"0.000")&TEXT!C291) -> = 12.253 m3 - Mellem/højt tryk op til 10kt, lavt tryk op til 50kt
C90: 7.3 | D90: =TEXT!C65 -> Forventet levetid på skibe | E90: =TEXT!C234 -> De totale omkostninger er fordelt jævnt ud over levetiden op skibet - det betyder at en kortere levetid vil føre til højere årlige omkostninger | F90: =TEXT!C66 -> År | G90: 40
C92: 7.4 | D92: =TEXT!C67 -> Tid for tur-retur sejlads | E92: =TEXT!C235 -> Anvendes til at beregne cyklusser per år | F92: =TEXT!C68 -> timer/tur | G92: 100 | I92: =IF(OR(I86="No shipping",I86="Ingen udskibning"),"",TEXT!C292) -> Rundtur til Greensand tager omkring 97-103 timer og Bifrost tager 100-134 timer
C94: 7.5 | D94: =TEXT!C69 -> Ekstra skibskapacitet | E94: =TEXT!C236 -> Specifier hvad der skal være af minimum ekstra kapacitet på skibe - dette sikrer at antallet af skibe altid vil blive beregnet ud fra hvad buffer kapaciteten skal være | F94: % | G94: 0.1
C96: 7.6 | D96: =TEXT!C70 -> Pris for marinediesel | E96: =TEXT!C237 -> Anvendes til at beregne omkostninger til brændstof | F96: DKK/MWh | G96: 274.9
C98: 8. | D98: =TEXT!C71 -> Mellemlager
C100: 8.1 | D100: =TEXT!C72 -> Mellemlager til udskibning af CO2
C102: 8.1.1 | D102: =TEXT!C73 -> Lastning fra mellemlager til skib | E102: =TEXT!C238 -> Mulighed for at inludere en reservepumpe | G102: With spare | I102: =IF(OR($G$18="Case 5",$G$18="Case 6",),IF(ISBLANK(G102),TEXT!C293,TEXT!C295),TEXT!C294) -> Antager 3 pumper per kajplads
C104: 8.1.2 | D104: =TEXT!C74 -> Ekstra mellemlagerkapacitet | E104: =TEXT!C239 -> Specificer minimum buffer kapacitet - påvirker udregnede lagerdage | F104: % | G104: 1
C106: 8.1.3 | D106: =TEXT!C75 -> Bruger input - lagerdage | E106: =TEXT!C240 -> Mulighed for at overskrive lagerdage - påvirker den total lagerkapacitet | F106: =TEXT!C76 -> dage | I106: =IF(NOT(OR($G$18="Case 5",$G$18="Case 6")),"",TEXT!C296&ROUND('4.7 Intermediate storage'!F52,2)&TEXT!C297) -> Overskriver lagerdage på 2,9 dage hvis værdi indsættes
C108: 8.2 | D108: =TEXT!C77 -> Mellemlager til CO2 import med skib
C110: 8.2.1 | D110: =TEXT!C78 -> Inkluder mellemlager til skib import | E110: =TEXT!C241 -> Mulighed for at tilvælge mellemlager for skibsimport - hvis fravalgt, er kun kontionering inkluderet | G110: No
C112: 8.2.2 | D112: =TEXT!C79 -> Lagerdage | E112: =TEXT!C242 -> Påvirker lagerkapaciteten - total kapacitet er udregnet som skibsstørrelse x lagerdage | F112: =TEXT!C76 -> dage | G112: 1.5
C114: 8.3 | D114: =TEXT!C80 -> Mellemlager til lastbil
C116: 8.3.1 | D116: =TEXT!C81 -> Lagerdage | E116: =TEXT!C243 -> Påvirker lagerkapaciteten - total kapacitet er udregnet som peak load x lagerdage | F116: =TEXT!C76 -> dage | G116: 2.5
C118: 8.3.2 | D118: =TEXT!C82 -> Konditionering fra lastbil til rørledning | E118: =TEXT!C244 -> Mulighed for at inkludere en reserve pumpe for konditionering | G118: Without spare
C120: 9. | D120: =TEXT!C83 -> Forsyning
C122: 9.1 | D122: =TEXT!C84 -> Fjernvarmepris | E122: =TEXT!C245 -> Antagede fjernvarmepris anvendt til at udregne omsætning fra fjernvarme integration | F122: DKK/MWh | G122: 210 | I122: =IF(IF(OR(G18="Case 1",G18="Case 2",G18="Case 3",G18="Case 4"),IF(G55="Integration with DH",FALSE,TRUE),IF(G18="Case 5",IF(G67="Integration with DH",FALSE,TRUE),NOT(OR(G55="Integration with DH",G67="Integration with DH")))),TEXT!C298,"") -> 
C124: 9.2 | D124: =TEXT!C85 -> Elpris forudsætning | E124: =TEXT!C246 -> To valgmuligheder for at inkludere omkostninger til el - fixed price antager den samme elpris hvert år (indsat nedenfor), eller annual price forecast der tillader brugeren at anvende et årligt elpris forecast (indsat i '1.2 Assumptions') | G124: Annual price forecast | I124: =IF(G124="Fixed price",TEXT!C299,TEXT!C300) -> Anvender pris estimat indsat i '1.2 Assumptions'
C126: 9.3 | D126: =TEXT!C86 -> Elpris | E126: =TEXT!D247 -> If fixed electricity price is selected, input the assumed electricity price | F126: DKK/MWh | G126: 607 | I126: =IF(G124="Annual price forecast",TEXT!C301,"") -> Juster pris estimat i '1.2 Assumptions'
B130: =TEXT!C90 -> Udledere
B132: =TEXT!C204 -> Nedenstående tabel giver brugeren mulighed for at til- og fravælge udledere samt at tilføje op til 10 nye udledere i netværket. For hver udleder skal der indtastes peakload, fanget CO2 mængder per year samt start- og slutår for tilkobling til netværket. Kolonnen 'Inkluderet' giver brugeren mulighed for at vælge hvilke udledere der skal inkluderes i beregningerne. Peak load anvendes til at dimensionere de forskellige elementer i netværket, og de årlige CO2 mængder anvendes til beregne hvor meget CO2 der går igennem de forskellige sektioner. For at tilføje nye udledere til netværket vælges "Yes" i kolonnen 'Inkluderet' hvorefter de nødvendige informationer indtastes. Der skal ligeledes vælges et tilkoblingspunkt for at indikere hvor i netværket udlederen vil indføre sit CO2. Skal kun inkludere udledere i Danmark. Udenlandske udledere skal inkluderes i 'import' valgmuligheden.
B135: =TEXT!C92 -> Inkluderede udledere | E135: =TEXT!C248 -> Til-/fravælg de forskellige udledere | F135: =TEXT!C249 -> Antaget peak load for hver udleder - anvendes til at dimensionere de forskellige infrastruktur elementer | G135: =TEXT!C250 -> Totale årlige mængder af CO2 indsat i netværket fra hver udleder | I135: =TEXT!C251 -> Udregnet - årlige CO2 mængder delt med peak load | J135: =TEXT!C252 -> Første år for CO2 indførsel til netværk | K135: =TEXT!C253 -> Sidste år for CO2 indførsel til netværk | L135: =TEXT!C254 -> Hvis yderligere udledere er inkluderet, specifier lastbil distancen til tilkoblingspunktet | M135: =TEXT!C255 -> Specificer til hvilket tilkoblingspunkt udlederen vil levere CO2 | N135: =TEXT!C256 -> Anvendes til beregning af transportomkostninger i alternativ scenariet for case 1-4 | O135: =TEXT!C257 -> Anvendes til beregning af transportomkostninger i alternativ scenariet for case 5-6
C136: ID | D136: =TEXT!C91 -> Udleder | E136: =TEXT!C94 -> Inkluderet | F136: =TEXT!C97 -> Peak load [tons/time] | G136: =TEXT!C98 -> Fanget CO2 [tons/år] | I136: =TEXT!C99 -> Full load timer | J136: =TEXT!C100 -> Start år | K136: =TEXT!C101 -> Slut år | L136: =TEXT!C95 -> Afstand til tilkoblingspunkt | M136: =TEXT!C96 -> Tilkoblingspunkt | N136: =TEXT!C104 -> Distance til Havnsø [km] | O136: =TEXT!C105 -> Distance til CMP [km] | P136: =TEXT!C102 -> Kommentar
C137: E1 | D137: Biofos | E137: Yes | F137: 16.7 | G137: 11514 | I137: =IFERROR(G137/F137,"") -> 689.4610778 | J137: 2026 | K137: 2050 | L137: =TEXT!C103 -> Kun relevant for "andre" udledere | N137: 102 | O137: 13 | Q137: =IF(I137="","",IF(I137>8766,"Full load hours cannot exceed 8760","")) -> 
C138: E2 | D138: Amagerværket (HOFOR) | E138: Yes | F138: 176 | G138: 820000 | I138: 4659.090909 | J138: 2026 | K138: 2050 | N138: 99 | O138: 10 | Q138: =IF(I138="","",IF(I138>8766,"Full load hours cannot exceed 8760","")) -> 
C139: E3 | D139: Amager Bakke (ARC) | E139: Yes | F139: 76.5 | G139: 500000 | I139: 6535.947712 | J139: 2026 | K139: 2050 | N139: 99 | O139: 10
C140: E4 | D140: Avedøre (Ørsted) | E140: Yes | F140: 25 | G140: 150000 | I140: 6000 | J140: 2026 | K140: 2050 | N140: 91 | O140: 21
C141: E5 | D141: Vestforbrænding | E141: Yes | F141: 76.5 | G141: 505656 | I141: 6609.882353 | J141: 2026 | K141: 2050 | N141: 86 | O141: 17
C142: E6 | D142: ARGO | E142: Yes | F142: 41.7 | G142: 350000 | I142: 8393.285372 | J142: 2026 | K142: 2050 | N142: 64 | O142: 43
C143: E7 | E143: No | J143: 2026 | K143: 2050 | Q143: =IF(OR(M143="",E143="No"),"",IF(IFERROR(MATCH(M143,LISTS!$B$24:$B$27,0),0)>0,"","Connection point not available in the selected case")) -> 
C144: E8 | E144: No | J144: 2026 | K144: 2050 | Q144: =IF(OR(M144="",E144="No"),"",IF(IFERROR(MATCH(M144,LISTS!$B$24:$B$27,0),0)>0,"","Connection point not available in the selected case")) -> 
C145: E9 | E145: No | J145: 2026 | K145: 2050 | Q145: =IF(OR(M145="",E145="No"),"",IF(IFERROR(MATCH(M145,LISTS!$B$24:$B$27,0),0)>0,"","Connection point not available in the selected case")) -> 
C146: E10 | E146: No | J146: 2026 | K146: 2050 | Q146: =IF(OR(M146="",E146="No"),"",IF(IFERROR(MATCH(M146,LISTS!$B$24:$B$27,0),0)>0,"","Connection point not available in the selected case")) -> 
C147: E11 | E147: No | J147: 2026 | K147: 2050 | Q147: =IF(OR(M147="",E147="No"),"",IF(IFERROR(MATCH(M147,LISTS!$B$24:$B$27,0),0)>0,"","Connection point not available in the selected case")) -> 
C148: E12 | E148: No | J148: 2026 | K148: 2050 | Q148: =IF(OR(M148="",E148="No"),"",IF(IFERROR(MATCH(M148,LISTS!$B$24:$B$27,0),0)>0,"","Connection point not available in the selected case")) -> 
C149: E13 | E149: No | J149: 2026 | K149: 2050 | Q149: =IF(OR(M149="",E149="No"),"",IF(IFERROR(MATCH(M149,LISTS!$B$24:$B$27,0),0)>0,"","Connection point not available in the selected case")) -> 
C150: E14 | E150: No | J150: 2026 | K150: 2050 | Q150: =IF(OR(M150="",E150="No"),"",IF(IFERROR(MATCH(M150,LISTS!$B$24:$B$27,0),0)>0,"","Connection point not available in the selected case")) -> 
C151: E15 | E151: No | J151: 2026 | K151: 2050 | Q151: =IF(OR(M151="",E151="No"),"",IF(IFERROR(MATCH(M151,LISTS!$B$24:$B$27,0),0)>0,"","Connection point not available in the selected case")) -> 
C152: E16 | E152: No | J152: 2026 | K152: 2050 | Q152: =IF(OR(M152="",E152="No"),"",IF(IFERROR(MATCH(M152,LISTS!$B$24:$B$27,0),0)>0,"","Connection point not available in the selected case")) -> 
B154: =TEXT!C93 -> Yderligere kapacitet
B156: =TEXT!C258 -> Denne sektion giver brugeren mulighed for at øge kapaciteten på udvalgte punkter i netværket. Som default vil der altid være ekstra kapacitet i rørledningerne (da der anvendes standard størrelser), men ved at indsætte en værdi i "Min. yderligere peak load kapacitet', sikres det at der altid er en minimum ekstra kapacitet fra punktet til slutdestinationen
C157: =TEXT!C109 -> Punkt for kapacitetsforøgelse | E157: =TEXT!C110 -> Min. yderligere peak load kapacitet [t/time]
C158: A | D158: ARGO | E158: 0 | F158: =IF('4.1 Pipeline'!$M$8="OK","","Peak load capacity exceeds estimated pipeline sizing") -> 
C159: B | D159: Vestforbrænding | E159: 0 | F159: =IF('4.1 Pipeline'!$M$8="OK","","Peak load capacity exceeds estimated pipeline sizing") -> 
C160: C | D160: Avedøre | E160: 0 | F160: =IF('4.1 Pipeline'!$M$8="OK","","Peak load capacity exceeds estimated pipeline sizing") -> 
C161: D | D161: Kræftværkshalvøen | E161: 0 | F161: =IF('4.1 Pipeline'!$M$8="OK","","Peak load capacity exceeds estimated pipeline sizing") -> 
C164: =TEXT!C111 -> Sektioner | E164: =TEXT!C112 -> Kapacitet [t/time] | F164: =TEXT!C113 -> Flow rate [t/time] | G164: =TEXT!C114 -> Ledig kapacitet [% af fuld]
C165: ='4.1 Pipeline'!B10 -> S1 | D165: ='4.1 Pipeline'!C10 -> Kræftværkshalvøen - Avedøreværket | E165: ='4.1 Pipeline'!F10 -> 144.7051963 | F165: ='3.3 Emitters'!F64 -> 143.2 | G165: =IFERROR(1-F165/E165,"") -> 0.01040181253
C166: ='4.1 Pipeline'!B11 -> S2 | D166: ='4.1 Pipeline'!C11 -> Avedøreværket - Intersection | E166: ='4.1 Pipeline'!F11 -> 156.1698878 | F166: ='3.3 Emitters'!F65 -> 118.2 | G166: =IFERROR(1-F166/E166,"") -> 0.2431319401
C167: ='4.1 Pipeline'!B12 -> S3 | D167: ='4.1 Pipeline'!C12 -> Vestforbrænding - Intersection | E167: ='4.1 Pipeline'!F12 -> 142.6325649 | F167: ='3.3 Emitters'!F66 -> 76.5 | G167: 0.4636568439
C168: ='4.1 Pipeline'!B13 -> S4 | D168: ='4.1 Pipeline'!C13 -> Intersection - Compressorstation | E168: ='4.1 Pipeline'!F13 -> 41.91682992 | F168: ='3.3 Emitters'!F67 -> 41.7 | G168: 0.005172860673
C169: ='4.1 Pipeline'!B14 -> S5 | D169: ='4.1 Pipeline'!C14 -> Compressorstation - ARGO | E169: ='4.1 Pipeline'!F14 -> 43.85593114 | F169: ='3.3 Emitters'!F68 -> 41.7 | G169: 0.04915939716
C170: ='4.1 Pipeline'!B15 -> S6 | D170: ='4.1 Pipeline'!C15 -> ARGO - Intersection | E170: ='4.1 Pipeline'!F15 -> 43.85593114 | F170: ='3.3 Emitters'!F69 -> 41.7 | G170: 0.04915939716
C171: ='4.1 Pipeline'!B16 -> S7 | D171: ='4.1 Pipeline'!C16 -> Intersection - Havnsø | E171: ='4.1 Pipeline'!F16 -> 0 | F171: ='3.3 Emitters'!F70 -> 0

Sheet 1.2 Assumptions
B2: =TEXT!C118 -> Antagelser
B5: # | C5: Input | D5: =TEXT!C119 -> Enhed | E5: =TEXT!C120 -> Værdi | G5: =TEXT!C121 -> Default værdi | H5: =TEXT!C122 -> Kommentar
B7: 1. | C7: =TEXT!C123 -> Generelle antagelser
B9: 1.1 | C9: =TEXT!C124 -> Diskonteringsrente | D9: p.a. | E9: 0.055 | G9: 0.055
B11: 1.2 | C11: =TEXT!C125 -> Inflationsrate | D11: p.a. | E11: 0.02 | G11: 0.02
B13: 2. | C13: =TEXT!C126 -> Konvertering
B15: 2.1 | C15: EUR/DKK | D15: EUR/DKK | E15: 7.45 | G15: 7.45
B17: 3.2 | C17: Tons/hour to kg/s | D17: (t/h)/(kg/s) | E17: =1*1000/60/60 -> 0.2777777778 | G17: 0.2777777778
B19: 3. | C19: =TEXT!C127 -> Faste OPEX antagelser
B21: 3.1 | C21: =TEXT!C128 -> Rørledning omkostninger | D21: =TEXT!C134 -> % af CAPEX | E21: 0.02 | G21: 0.02 | H21: Maintenance costs
B23: 3.2 | C23: =TEXT!C129 -> Kompressor omkostninger | D23: =TEXT!C134 -> % af CAPEX | E23: 0.05 | G23: 0.05 | H23: Maintenance costs
B25: 3.3 | C25: =TEXT!C130 -> Fordråbning omkostninger | D25: =TEXT!C134 -> % af CAPEX | E25: 0.05 | G25: 0.05 | H25: Maintenance costs
B27: 3.4 | C27: =TEXT!C131 -> Mellemlager omkostninger | D27: =TEXT!C134 -> % af CAPEX | E27: 0.025 | G27: 0.025 | H27: Maintenance costs
B29: 3.5 | C29: =TEXT!C132 -> Konditionering omkostninger | D29: =TEXT!C134 -> % af CAPEX | E29: 0.05 | G29: 0.05 | H29: Maintenance costs
B31: 3.6 | C31: =TEXT!C133 -> Booster station omkostninger | D31: =TEXT!C134 -> % af CAPEX | E31: 0.05 | G31: 0.05 | H31: Maintenance costs
B33: 4. | C33: =TEXT!C135 -> Elpris forecast
C35: Source: Energistyrelsen - Klimastatus og fremskrivning 2023 (KF23): KF23 dataark - El og fjernvarme: | G35: LINK
C37: =TEXT!C136 -> År | D37: =TEXT!C137 -> Enhed | E37: =TEXT!C138 -> Pris
C38: 2025 | D38: DKK/MWh | E38: 682.43 | G38: 682.43
C39: 2026 | D39: DKK/MWh | E39: 682.43 | G39: 682.43
C40: 2027 | D40: DKK/MWh | E40: 483.11 | G40: 483.11
C41: 2028 | D41: DKK/MWh | E41: 483.11 | G41: 483.11
C42: 2029 | D42: DKK/MWh | E42: 483.11 | G42: 483.11
C43: 2030 | D43: DKK/MWh | E43: 287.55 | G43: 287.55
C44: 2031 | D44: DKK/MWh | E44: 287.55 | G44: 287.55
C45: 2032 | D45: DKK/MWh | E45: 287.55 | G45: 287.55
C46: 2033 | D46: DKK/MWh | E46: 287.55 | G46: 287.55
C47: 2034 | D47: DKK/MWh | E47: 287.55 | G47: 287.55
C48: 2035 | D48: DKK/MWh | E48: 321.31 | G48: 321.31
C49: 2036 | D49: DKK/MWh | E49: 321.31 | G49: 321.31
C50: 2037 | D50: DKK/MWh | E50: 321.31 | G50: 321.31
C51: 2038 | D51: DKK/MWh | E51: 321.31 | G51: 321.31
C52: 2039 | D52: DKK/MWh | E52: 321.31 | G52: 321.31
C53: 2040 | D53: DKK/MWh | E53: 321.31 | G53: 321.31
C54: 2041 | D54: DKK/MWh | E54: 321.31 | G54: 321.31
C55: 2042 | D55: DKK/MWh | E55: 321.31 | G55: 321.31
C56: 2043 | D56: DKK/MWh | E56: 321.31 | G56: 321.31
C57: 2044 | D57: DKK/MWh | E57: 321.31 | G57: 321.31
C58: 2045 | D58: DKK/MWh | E58: 321.31 | G58: 321.31
C59: 2046 | D59: DKK/MWh | E59: 321.31 | G59: 321.31
C60: 2047 | D60: DKK/MWh | E60: 321.31 | G60: 321.31
C61: 2048 | D61: DKK/MWh | E61: 321.31 | G61: 321.31
C62: 2049 | D62: DKK/MWh | E62: 321.31 | G62: 321.31
C63: 2050 | D63: DKK/MWh | E63: 321.31 | G63: 321.31
B66: 5. | C66: =TEXT!C139 -> Andre konverteringer
B68: 5.1 | C68: =TEXT!C140 -> Densitet af CO2
B70: Low pressure | C70: 7 barg | D70: kg/m3 | E70: 1141 | G70: 1141 | H70: @saturation temperature
B71: Medium pressure | C71: 15 barg | D71: kg/m3 | E71: 1061 | G71: 1061 | H71: @saturation temperature
B72: High pressure | C72: 40 barg | D72: kg/m3 | E72: 887.15 | G72: 887.15 | H72: @saturation temperature
B75: 6. | C75: =TEXT!C141 -> CO2-priser
C77: Source: Finansministeriets nøgletalskatalog
C79: =TEXT!C136 -> År | D79: =TEXT!C137 -> Enhed | E79: =TEXT!C138 -> Pris
C80: 2025 | D80: DKK/ton | E80: 841
C81: 2026 | D81: DKK/ton | E81: 968
C82: 2027 | D82: DKK/ton | E82: 1118
C83: 2028 | D83: DKK/ton | E83: 1293
C84: 2029 | D84: DKK/ton | E84: 1496
C85: 2030 | D85: DKK/ton | E85: 1730
C86: 2031 | D86: DKK/ton | E86: 1802
C87: 2032 | D87: DKK/ton | E87: 1878
C88: 2033 | D88: DKK/ton | E88: 1958
C89: 2034 | D89: DKK/ton | E89: 2043
C90: 2035 | D90: DKK/ton | E90: 2133
C91: 2036 | D91: DKK/ton | E91: 2228
C92: 2037 | D92: DKK/ton | E92: 2329
C93: 2038 | D93: DKK/ton | E93: 2436
C94: 2039 | D94: DKK/ton | E94: 2550
C95: 2040 | D95: DKK/ton | E95: 2670
C96: 2041 | D96: DKK/ton | E96: 2798
C97: 2042 | D97: DKK/ton | E97: 2933
C98: 2043 | D98: DKK/ton | E98: 3077
C99: 2044 | D99: DKK/ton | E99: 3229
C100: 2045 | D100: DKK/ton | E100: 3392
C101: 2046 | D101: DKK/ton | E101: 3563
C102: 2047 | D102: DKK/ton | E102: 3746
C103: 2048 | D103: DKK/ton | E103: 3939
C104: 2049 | D104: DKK/ton | E104: 4145
C105: 2050 | D105: DKK/ton | E105: 4363
B107: 7. | C107: =TEXT!C142 -> Samfundsøkonomisk diskonteringsrate
C109: Source: Finansministeriets nøgletalskatalog
B111: 7.1 | C111: =TEXT!C143 -> 35-årige diskonteringsrate | D111: p.a. | E111: 0.035 | G111: 0.035
C113: =TEXT!C136 -> År | D113: =TEXT!C137 -> Enhed | E113: =TEXT!C120 -> Værdi
C114: 2025 | D114: Akk. diskontering | E114: =(1+$E$111) -> 1.035
C115: 2026 | D115: Akk. diskontering | E115: =(1+$E$111)*E114 -> 1.071225
C116: 2027 | D116: Akk. diskontering | E116: =(1+$E$111)*E115 -> 1.108717875
C117: 2028 | D117: Akk. diskontering | E117: =(1+$E$111)*E116 -> 1.147523001
C118: 2029 | D118: Akk. diskontering | E118: 1.187686306
C119: 2030 | D119: Akk. diskontering | E119: 1.229255326
C120: 2031 | D120: Akk. diskontering | E120: 1.272279263
C121: 2032 | D121: Akk. diskontering | E121: 1.316809037
C122: 2033 | D122: Akk. diskontering | E122: 1.362897353
C123: 2034 | D123: Akk. diskontering | E123: 1.410598761
C124: 2035 | D124: Akk. diskontering | E124: 1.459969717
C125: 2036 | D125: Akk. diskontering | E125: 1.511068657
C126: 2037 | D126: Akk. diskontering | E126: 1.56395606
C127: 2038 | D127: Akk. diskontering | E127: 1.618694522
C128: 2039 | D128: Akk. diskontering | E128: 1.675348831
C129: 2040 | D129: Akk. diskontering | E129: 1.73398604
C130: 2041 | D130: Akk. diskontering | E130: 1.794675551
C131: 2042 | D131: Akk. diskontering | E131: 1.857489196
C132: 2043 | D132: Akk. diskontering | E132: 1.922501317
C133: 2044 | D133: Akk. diskontering | E133: 1.989788863
C134: 2045 | D134: Akk. diskontering | E134: 2.059431474
C135: 2046 | D135: Akk. diskontering | E135: 2.131511575
C136: 2047 | D136: Akk. diskontering | E136: 2.20611448
C137: 2048 | D137: Akk. diskontering | E137: 2.283328487
C138: 2049 | D138: Akk. diskontering | E138: 2.363244984
C139: 2050 | D139: Akk. diskontering | E139: 2.445958559

Sheet TEXT (hidden)
B2: Text
B4: Language selected | D4: ='1.1 Interface'!G14 -> Dansk | E4: =IF(D4="English",1,2) -> 2
B6: 1.1 Interface
B8: # | C8: Selected word | D8: English | E8: Dansk
C10: =INDEX(D10:E10,1,$E$4) -> Introduktion til værktøjet | D10: Introduction to the tool | E10: Introduktion til værktøjet
B12: knap 1 | C12: =INDEX(D12:E12,1,$E$4) -> Nulstil | D12: Clear all | E12: Nulstil
B13: knap 2 | C13: =INDEX(D13:E13,1,$E$4) -> Vælg scenarie | D13: Select scenario | E13: Vælg scenarie
B14: map knap | C14: =INDEX(D14:E14,1,$E$4) -> Opdater kort | D14: Update map | E14: Opdater kort
B15: Knap 3 | C15: =INDEX(D15:E15,1,$E$4) -> Opdater | D15: Update | E15: Opdater
B17: Scenario selector
C19: =INDEX(D19:E19,1,$E$4) -> Scenarie vælger | D19: Scenario selector | E19: Scenarie vælger
C20: =INDEX(D20:E20,1,$E$4) -> De to nedenstående knapper giver brugeren mulighed for at nulstille alt eller vælge et scenarie. 'Nulstil' vil nulstille alle inputs og 'Vælg scenarie' giver brugeren mulighed for at vælge ét af de prædefinerede scenarier | D20: The two buttons below allow the user to 'clear all' or 'select scenario'. 'Clear all' will set all inputs to the default value. 'Select scenario' will allow the user the select one of the predefined scenarios. | E20: De to nedenstående knapper giver brugeren mulighed for at nulstille alt eller vælge et scenarie. 'Nulstil' vil nulstille alle inputs og 'Vælg scenarie' giver brugeren mulighed for at vælge ét af de prædefinerede scenarier
C21: =INDEX(D21:E21,1,$E$4) -> Vælg et prædefineret scenarie og klik 'Vælg scenarie' (ændrer ikke på antagelsesarket) | D21: Select predefined scenario below and press 'select scenario' (doesn't change the assumption sheet) | E21: Vælg et prædefineret scenarie og klik 'Vælg scenarie' (ændrer ikke på antagelsesarket)
C22: =INDEX(D22:E22,1,$E$4) -> Valgmulighed | D22: Options | E22: Valgmulighed
C23: =INDEX(D23:E23,1,$E$4) -> Hjælpetekst | D23: Helping text | E23: Hjælpetekst
C24: =INDEX(D24:E24,1,$E$4) -> Enhed | D24: Unit | E24: Enhed
C25: =INDEX(D25:E25,1,$E$4) -> Input | D25: Input | E25: Input
C26: =INDEX(D26:E26,1,$E$4) -> Kommentar | D26: Comment | E26: Kommentar
B27: 0. | C27: =INDEX(D27:E27,1,$E$4) -> Vælg sprog | D27: Select language | E27: Vælg sprog
B28: 1. | C28: =INDEX(D28:E28,1,$E$4) -> Nøgle karakteristika | D28: Key characteristics | E28: Nøgle karakteristika
B29: 1.1 | C29: =INDEX(D29:E29,1,$E$4) -> Scenarie vælger | D29: Case selector | E29: Scenarie vælger
B30: 2. | C30: =INDEX(D30:E30,1,$E$4) -> Import | D30: Import | E30: Import
B31: 2.0.1 | C31: =INDEX(D31:E31,1,$E$4) -> Inkluder import af CO2 | D31: Include import of CO2 | E31: Inkluder import af CO2
B32: 2.0.2 | C32: =INDEX(D32:E32,1,$E$4) -> Import type | D32: Import type | E32: Import type
B33: 2.1 | C33: =INDEX(D33:E33,1,$E$4) -> Import fra rørledning | D33: Import by pipeline | E33: Import fra rørledning
B34: 2.1.3 | C34: =INDEX(D34:E34,1,$E$4) -> Årlige antal timer med import | D34: Importing hours per year | E34: Årlige antal timer med import
C35: =INDEX(D35:E35,1,$E$4) -> timer/år | D35: hours/year | E35: timer/år
B36: 2.2 | C36: =INDEX(D36:E36,1,$E$4) -> Import fra skib | D36: Import by ship | E36: Import fra skib
B37: 2.2.1 | C37: =INDEX(D37:E37,1,$E$4) -> Skib import type | D37: Ship import type | E37: Skib import type
B38: 2.2.2 | C38: =INDEX(D38:E38,1,$E$4) -> Konditionering fra skib til rørledning | D38: Conditioning from ship to pipeline transportation | E38: Konditionering fra skib til rørledning
B39: 2.2.3 | C39: =INDEX(D39:E39,1,$E$4) -> Kapacitet per skib | D39: Capacity per ship | E39: Kapacitet per skib
C40: =INDEX(D40:E40,1,$E$4) -> Antaget CO2 import peak load | D40: Assumed CO2 import peak load | E40: Antaget CO2 import peak load
C41: =INDEX(D41:E41,1,$E$4) -> tons/time | D41: tons/hour | E41: tons/time
C42: =INDEX(D42:E42,1,$E$4) -> Antaget CO2 import mængder | D42: Assumed CO2 import amount | E42: Antaget CO2 import mængder
C43: =INDEX(D43:E43,1,$E$4) -> tons/år | D43: tons/year | E43: tons/år
C44: =INDEX(D44:E44,1,$E$4) -> Import start år | D44: Import start year | E44: Import start år
C45: =INDEX(D45:E45,1,$E$4) -> Import slut år | D45: Import end year | E45: Import slut år
B46: 3. | C46: =INDEX(D46:E46,1,$E$4) -> Kompression | D46: Compression | E46: Kompression
B47: 3.1 | C47: =INDEX(D47:E47,1,$E$4) -> Energiintegration | D47: Energy integration option | E47: Energiintegration
B48: 3.2 | C48: =INDEX(D48:E48,1,$E$4) -> Redundans | D48: Redundancy | E48: Redundans
B49: 3.3 | C49: =INDEX(D49:E49,1,$E$4) -> Varmeudnyttelse | D49: Heat utilization | E49: Varmeudnyttelse
B50: 4. | C50: =INDEX(D50:E50,1,$E$4) -> Fordråbning | D50: Liquefaction | E50: Fordråbning
B51: 4.1 | C51: =INDEX(D51:E51,1,$E$4) -> Tryk ved fordråbning | D51: Liquefaction pressure | E51: Tryk ved fordråbning
B52: 4.2 | C52: =INDEX(D52:E52,1,$E$4) -> Redundans | D52: Redundancy | E52: Redundans
B53: 4.3 | C53: =INDEX(D53:E53,1,$E$4) -> Energiintegration | D53: Energy integration option | E53: Energiintegration
B54: 4.4 | C54: =INDEX(D54:E54,1,$E$4) -> Varmeudnyttelse | D54: Heat utilization | E54: Varmeudnyttelse
B55: 5. | C55: =INDEX(D55:E55,1,$E$4) -> Permanent lagring | D55: Permanent storage | E55: Permanent lagring
B56: 5.1 | C56: =INDEX(D56:E56,1,$E$4) -> Indsprøjtningshastighed | D56: Injection rate | E56: Indsprøjtningshastighed
B57: 5.2 | C57: =INDEX(D57:E57,1,$E$4) -> Bruger input - lagringsomkostning | D57: User input - storage cost | E57: Bruger input - lagringsomkostning
B58: 6. | C58: =INDEX(D58:E58,1,$E$4) -> Havnefaciliteter | D58: Harbour facilities | E58: Havnefaciliteter
B59: 6.1 | C59: =INDEX(D59:E59,1,$E$4) -> Antal af fortøjningspladser | D59: Number of berths | E59: Antal af fortøjningspladser
B60: 6.2 | C60: =INDEX(D60:E60,1,$E$4) -> Antagelse om fortøjningspladser | D60: Current berth assumption | E60: Antagelse om fortøjningspladser
B61: 7. | C61: =INDEX(D61:E61,1,$E$4) -> Udskibning (eksport) | D61: Shipping (export) | E61: Udskibning (eksport)
B62: 7.1 | C62: =INDEX(D62:E62,1,$E$4) -> Årlige driftstimer per skib | D62: Ship operating hours per ship | E62: Årlige driftstimer per skib
C63: =INDEX(D63:E63,1,$E$4) -> timer/år | D63: hours/year | E63: timer/år
B64: 7.2 | C64: =INDEX(D64:E64,1,$E$4) -> Kapacitet per skib | D64: Capacity per ship | E64: Kapacitet per skib
B65: 7.3 | C65: =INDEX(D65:E65,1,$E$4) -> Forventet levetid på skibe | D65: Expected lifetime of ships | E65: Forventet levetid på skibe
C66: =INDEX(D66:E66,1,$E$4) -> År | D66: Years | E66: År
B67: 7.4 | C67: =INDEX(D67:E67,1,$E$4) -> Tid for tur-retur sejlads | D67: Time per roundtrip | E67: Tid for tur-retur sejlads
C68: =INDEX(D68:E68,1,$E$4) -> timer/tur | D68: hours/trip | E68: timer/tur
B69: 7.5 | C69: =INDEX(D69:E69,1,$E$4) -> Ekstra skibskapacitet | D69: Buffer ship capacity | E69: Ekstra skibskapacitet
B70: 7.6 | C70: =INDEX(D70:E70,1,$E$4) -> Pris for marinediesel | D70: Price of marine diesel oil | E70: Pris for marinediesel
B71: 8. | C71: =INDEX(D71:E71,1,$E$4) -> Mellemlager | D71: Intermediate storage | E71: Mellemlager
B72: 8.1 | C72: =INDEX(D72:E72,1,$E$4) -> Mellemlager til udskibning af CO2 | D72: Intermediate storage for ship export | E72: Mellemlager til udskibning af CO2
B73: 8.1.1 | C73: =INDEX(D73:E73,1,$E$4) -> Lastning fra mellemlager til skib | D73: Loading from storage to ship | E73: Lastning fra mellemlager til skib
B74: 8.1.2 | C74: =INDEX(D74:E74,1,$E$4) -> Ekstra mellemlagerkapacitet | D74: Buffer storage capacity | E74: Ekstra mellemlagerkapacitet
B75: 8.1.3 | C75: =INDEX(D75:E75,1,$E$4) -> Bruger input - lagerdage | D75: User input - storage days | E75: Bruger input - lagerdage
C76: =INDEX(D76:E76,1,$E$4) -> dage | D76: days | E76: dage
B77: 8.2 | C77: =INDEX(D77:E77,1,$E$4) -> Mellemlager til CO2 import med skib | D77: Intermediate storage for ship import | E77: Mellemlager til CO2 import med skib
B78: 8.2.1 | C78: =INDEX(D78:E78,1,$E$4) -> Inkluder mellemlager til skib import | D78: Include intermediate storage for ship import | E78: Inkluder mellemlager til skib import
B79: 8.2.2 | C79: =INDEX(D79:E79,1,$E$4) -> Lagerdage | D79: Storage days | E79: Lagerdage
B80: 8.3 | C80: =INDEX(D80:E80,1,$E$4) -> Mellemlager til lastbil | D80: Intermediate storage for trucking | E80: Mellemlager til lastbil
B81: 8.3.1 | C81: =INDEX(D81:E81,1,$E$4) -> Lagerdage | D81: Storage days | E81: Lagerdage
B82: 8.3.2 | C82: =INDEX(D82:E82,1,$E$4) -> Konditionering fra lastbil til rørledning | D82: Conditioning from truck to pipeline | E82: Konditionering fra lastbil til rørledning
B83: 9. | C83: =INDEX(D83:E83,1,$E$4) -> Forsyning | D83: Utilities | E83: Forsyning
B84: 9.1 | C84: =INDEX(D84:E84,1,$E$4) -> Fjernvarmepris | D84: District heating price | E84: Fjernvarmepris
B85: 9.2 | C85: =INDEX(D85:E85,1,$E$4) -> Elpris forudsætning | D85: Electricity price assumption | E85: Elpris forudsætning
B86: 9.3 | C86: =INDEX(D86:E86,1,$E$4) -> Elpris | D86: Electricity price | E86: Elpris
B88: Emitters
C90: =INDEX(D90:E90,1,$E$4) -> Udledere | D90: Emitters | E90: Udledere
C91: =INDEX(D91:E91,1,$E$4) -> Udleder | D91: Emitter | E91: Udleder
C92: =INDEX(D92:E92,1,$E$4) -> Inkluderede udledere | D92: Included emitters | E92: Inkluderede udledere
C93: =INDEX(D93:E93,1,$E$4) -> Yderligere kapacitet | D93: Additional capacity | E93: Yderligere kapacitet
C94: =INDEX(D94:E94,1,$E$4) -> Inkluderet | D94: Applicable | E94: Inkluderet
C95: =INDEX(D95:E95,1,$E$4) -> Afstand til tilkoblingspunkt | D95: Truck distance from connection point [km] | E95: Afstand til tilkoblingspunkt
C96: =INDEX(D96:E96,1,$E$4) -> Tilkoblingspunkt | D96: Connection point | E96: Tilkoblingspunkt
C97: =INDEX(D97:E97,1,$E$4) -> Peak load [tons/time] | D97: Peak load [t/h] | E97: Peak load [tons/time]
C98: =INDEX(D98:E98,1,$E$4) -> Fanget CO2 [tons/år] | D98: Captured CO2 [tons/year] | E98: Fanget CO2 [tons/år]
C99: =INDEX(D99:E99,1,$E$4) -> Full load timer | D99: Full load hours | E99: Full load timer
C100: =INDEX(D100:E100,1,$E$4) -> Start år | D100: Start year | E100: Start år
C101: =INDEX(D101:E101,1,$E$4) -> Slut år | D101: End year | E101: Slut år
C102: =INDEX(D102:E102,1,$E$4) -> Kommentar | D102: Comment | E102: Kommentar
C103: =INDEX(D103:E103,1,$E$4) -> Kun relevant for "andre" udledere | D103: Only relevant for "other" emitters | E103: Kun relevant for "andre" udledere
C104: =INDEX(D104:E104,1,$E$4) -> Distance til Havnsø [km] | D104: Distance to Havnsø [km] | E104: Distance til Havnsø [km]
C105: =INDEX(D105:E105,1,$E$4) -> Distance til CMP [km] | D105: Distance to CMP [km] | E105: Distance til CMP [km]
B107: Sections
C109: =INDEX(D109:E109,1,$E$4) -> Punkt for kapacitetsforøgelse | D109: Point of capacity increase | E109: Punkt for kapacitetsforøgelse
C110: =INDEX(D110:E110,1,$E$4) -> Min. yderligere peak load kapacitet [t/time] | D110: Min. Additional peak load capacity [t/h] | E110: Min. yderligere peak load kapacitet [t/time]
C111: =INDEX(D111:E111,1,$E$4) -> Sektioner | D111: Sections | E111: Sektioner
C112: =INDEX(D112:E112,1,$E$4) -> Kapacitet [t/time] | D112: Capacity [t/h] | E112: Kapacitet [t/time]
C113: =INDEX(D113:E113,1,$E$4) -> Flow rate [t/time] | D113: Flow rate [t/h] | E113: Flow rate [t/time]
C114: =INDEX(D114:E114,1,$E$4) -> Ledig kapacitet [% af fuld] | D114: Free capacity [% of full] | E114: Ledig kapacitet [% af fuld]
B116: 1.2 Assumptions
C118: =INDEX(D118:E118,1,$E$4) -> Antagelser | D118: Assumptions | E118: Antagelser
C119: =INDEX(D119:E119,1,$E$4) -> Enhed | D119: Unit | E119: Enhed
C120: =INDEX(D120:E120,1,$E$4) -> Værdi | D120: Value | E120: Værdi
C121: =INDEX(D121:E121,1,$E$4) -> Default værdi | D121: Default value | E121: Default værdi
C122: =INDEX(D122:E122,1,$E$4) -> Kommentar | D122: Comment | E122: Kommentar
C123: =INDEX(D123:E123,1,$E$4) -> Generelle antagelser | D123: General assumptions | E123: Generelle antagelser
C124: =INDEX(D124:E124,1,$E$4) -> Diskonteringsrente | D124: Discount rate | E124: Diskonteringsrente
C125: =INDEX(D125:E125,1,$E$4) -> Inflationsrate | D125: Inflation rate | E125: Inflationsrate
C126: =INDEX(D126:E126,1,$E$4) -> Konvertering | D126: Conversion | E126: Konvertering
C127: =INDEX(D127:E127,1,$E$4) -> Faste OPEX antagelser | D127: Fixed OPEX assumptions | E127: Faste OPEX antagelser
C128: =INDEX(D128:E128,1,$E$4) -> Rørledning omkostninger | D128: Pipeline costs | E128: Rørledning omkostninger
C129: =INDEX(D129:E129,1,$E$4) -> Kompressor omkostninger | D129: Compressor costs | E129: Kompressor omkostninger
C130: =INDEX(D130:E130,1,$E$4) -> Fordråbning omkostninger | D130: Liquefaction costs | E130: Fordråbning omkostninger
C131: =INDEX(D131:E131,1,$E$4) -> Mellemlager omkostninger | D131: Intermediate storage costs | E131: Mellemlager omkostninger
C132: =INDEX(D132:E132,1,$E$4) -> Konditionering omkostninger | D132: Conditioning costs | E132: Konditionering omkostninger
C133: =INDEX(D133:E133,1,$E$4) -> Booster station omkostninger | D133: Booster station costs | E133: Booster station omkostninger
C134: =INDEX(D134:E134,1,$E$4) -> % af CAPEX | D134: % of CAPEX | E134: % af CAPEX
C135: =INDEX(D135:E135,1,$E$4) -> Elpris forecast | D135: Electricity price forecast | E135: Elpris forecast
C136: =INDEX(D136:E136,1,$E$4) -> År | D136: Year | E136: År
C137: =INDEX(D137:E137,1,$E$4) -> Enhed | D137: Unit | E137: Enhed
C138: =INDEX(D138:E138,1,$E$4) -> Pris | D138: Price | E138: Pris
C139: =INDEX(D139:E139,1,$E$4) -> Andre konverteringer | D139: Other conversions | E139: Andre konverteringer
C140: =INDEX(D140:E140,1,$E$4) -> Densitet af CO2 | D140: Density of CO2 | E140: Densitet af CO2
C141: =INDEX(D141:E141,1,$E$4) -> CO2-priser | D141: CO2-prices | E141: CO2-priser
C142: =INDEX(D142:E142,1,$E$4) -> Samfundsøkonomisk diskonteringsrate | D142: Socioeconomic discount rate | E142: Samfundsøkonomisk diskonteringsrate
C143: =INDEX(D143:E143,1,$E$4) -> 35-årige diskonteringsrate | D143: 35-year discountrate | E143: 35-årige diskonteringsrate
B145: 2.1 Results
B147: Opsummering
B148: A | C148: =INDEX(D148:E148,1,$E$4) -> Opsummering | D148: Summary | E148: Opsummering
C149: =INDEX(D149:E149,1,$E$4) -> Infrastruktur karakteristika | D149: Infrastructure characteristics | E149: Infrastruktur karakteristika
C150: =INDEX(D150:E150,1,$E$4) -> Flowretning | D150: Flow direction | E150: Flowretning
C151: =INDEX(D151:E151,1,$E$4) -> Til havnsø for lagring | D151: To Havnsø for storage | E151: Til havnsø for lagring
C152: =INDEX(D152:E152,1,$E$4) -> Til CMP for eksport | D152: To CMP for export | E152: Til CMP for eksport
C153: =INDEX(D153:E153,1,$E$4) -> og | D153: and | E153: og
C154: =INDEX(D154:E154,1,$E$4) -> Ingen kompressorstationer | D154: No compressor stations | E154: Ingen kompressorstationer
C155: =INDEX(D155:E155,1,$E$4) -> Placering af kompressorstation(er) | D155: Compressor station location(s) | E155: Placering af kompressorstation(er)
C156: =INDEX(D156:E156,1,$E$4) -> Scenarie | D156: Scenario | E156: Scenarie
C157: =INDEX(D157:E157,1,$E$4) -> Nøgletal* | D157: Key figures* | E157: Nøgletal*
C158: =INDEX(D158:E158,1,$E$4) -> CO2 transporteret | D158: CO2 transported | E158: CO2 transporteret
C159: =INDEX(D159:E159,1,$E$4) -> Tons totalt | D159: Tons in total | E159: Tons totalt
C160: =INDEX(D160:E160,1,$E$4) -> Totale omkostninger (nutidsværdi) | D160: Total cost (present value) | E160: Totale omkostninger (nutidsværdi)
C161: =INDEX(D161:E161,1,$E$4) -> Enhedsomkostning ved CO2 transport | D161: Levelized cost of CO2 transport | E161: Enhedsomkostning ved CO2 transport
C162: =INDEX(D162:E162,1,$E$4) -> Tarif (2024-priser) | D162: Taiff (2024-prices) | E162: Tarif (2024-priser)
C163: =INDEX(D163:E163,1,$E$4) -> Enhedsomkostningen ved CO2 transport viser den gennemsnitlige årlige price per ton (inflationsjusteret) for at have en nettonutidsværdi på 0. Tariffen er den gennemsnitlige årlige pris per ton i 2024 priser - så prisen skal inflateres årligt for at opnå en nettonutidsværdi på 0. | D163: The levelized cost shows the average annual price per ton (inflation adjusted) to have a NPV of 0. The tariff is the annual average price per ton in 2024 prices - so that the price needs to be inflated annually to set the NPV to 0. | E163: Enhedsomkostningen ved CO2 transport viser den gennemsnitlige årlige price per ton (inflationsjusteret) for at have en nettonutidsværdi på 0. Tariffen er den gennemsnitlige årlige pris per ton i 2024 priser - så prisen skal inflateres årligt for at opnå en nettonutidsværdi på 0.
C164: =INDEX(D164:E164,1,$E$4) -> Importerede CO2-mængder | D164: Imported amounts of CO2 | E164: Importerede CO2-mængder
C165: =INDEX(D165:E165,1,$E$4) -> Målbar samfundsøkonomisk netto-besparelse | D165: Measurable socioeconomic net saving | E165: Målbar samfundsøkonomisk netto-besparelse
C166: =INDEX(D166:E166,1,$E$4) -> Besparelse sammenligned med 0-scenariet | D166: Saving compared to the 0-scenario | E166: Besparelse sammenligned med 0-scenariet
C167: =INDEX(D167:E167,1,$E$4) -> DKK/år | D167: DKK/year | E167: DKK/år
C168: =INDEX(D168:E168,1,$E$4) -> Levelized cost besparelse på | D168: Levelized cost saving of | E168: Levelized cost besparelse på
B169: B | C169: =INDEX(D169:E169,1,$E$4) -> Sensitiviteter | D169: Sensitivites | E169: Sensitiviteter
B170: C | C170: =INDEX(D170:E170,1,$E$4) -> Tarif estimering | D170: Tariff estimation | E170: Tarif estimering
B171: D | C171: =INDEX(D171:E171,1,$E$4) -> Konsolideret | D171: Consolidated | E171: Konsolideret
C172: =INDEX(D172:E172,1,$E$4) -> Alle værdier er inflationsjusterede og i nutidsværdi (2024) | D172: All values are inflation adjusted and in present value (2024) | E172: Alle værdier er inflationsjusterede og i nutidsværdi (2024)
C173: =INDEX(D173:E173,1,$E$4) -> CO2 udledere | D173: CO2 emitters | E173: CO2 udledere
C174: =INDEX(D174:E174,1,$E$4) -> *Bemærk venligst, at analysen i denne rapport primært fokuserer på omkostninger til rørledninger, kompression og forflødning. For de resterende omkostningselementer støtter analysen på eksisterende omkostningsestimater baseret på deskresearch. Det er vigtigt at anerkende, at disse estimater kan være forbundet med en højere grad af usikkerhed på grund af deres metode. | D174: *Please note that the analysis within this report primarily emphasizes pipeline, compression, and liquefaction costs. For the remaining cost elements, the assessments rely on existing cost estimates sourced through desktop research. It's important to acknowledge that these estimates may carry a higher degree of uncertainty due to the nature of their derivation. | E174: *Bemærk venligst, at analysen i denne rapport primært fokuserer på omkostninger til rørledninger, kompression og forflødning. For de resterende omkostningselementer støtter analysen på eksisterende omkostningsestimater baseret på deskresearch. Det er vigtigt at anerkende, at disse estimater kan være forbundet med en højere grad af usikkerhed på grund af deres metode.
B176: Grafer
C177: =INDEX(D177:E177,1,$E$4) -> Rørledning | D177: Pipeline | E177: Rørledning
C178: =INDEX(D178:E178,1,$E$4) -> Kompression | D178: Compression | E178: Kompression
C179: =INDEX(D179:E179,1,$E$4) -> Fordråbning | D179: Liquefaction | E179: Fordråbning
C180: =INDEX(D180:E180,1,$E$4) -> Permanent lagring | D180: Permanent storage | E180: Permanent lagring
C181: =INDEX(D181:E181,1,$E$4) -> Havnefaciliteter | D181: Harbour facilities | E181: Havnefaciliteter
C182: =INDEX(D182:E182,1,$E$4) -> Skibstransport | D182: Shipping | E182: Skibstransport
C183: =INDEX(D183:E183,1,$E$4) -> Mellemlager | D183: Intermediate storage | E183: Mellemlager
C184: =INDEX(D184:E184,1,$E$4) -> Konditionering | D184: Conditioning | E184: Konditionering
C185: =INDEX(D185:E185,1,$E$4) -> Lastbiltransport | D185: Trucking | E185: Lastbiltransport
C186: =INDEX(D186:E186,1,$E$4) -> Årlige CO2-mængder | D186: Annual CO2 amounts | E186: Årlige CO2-mængder
C187: =INDEX(D187:E187,1,$E$4) -> Indtægt fra integration af fjernvarme (nominelle værdier) | D187: Revenue from DH integration (nominal values) | E187: Indtægt fra integration af fjernvarme (nominelle værdier)
C188: =INDEX(D188:E188,1,$E$4) -> CAPEX (nominelle værdier)* | D188: CAPEX (nominal values)* | E188: CAPEX (nominelle værdier)*
C189: =INDEX(D189:E189,1,$E$4) -> OPEX (nominelle værdier)* | D189: OPEX (nominal values)* | E189: OPEX (nominelle værdier)*
C190: =INDEX(D190:E190,1,$E$4) -> Fordråbning | D190: Liquefaction | E190: Fordråbning
C191: =INDEX(D191:E191,1,$E$4) -> Kompressorstation ved | D191: Compressorstation at | E191: Kompressorstation ved
C192: =INDEX(D192:E192,1,$E$4) -> Nivelleret omkostnings split (DKK/Ton)* | D192: Levelized cost split (DKK/ton)* | E192: Nivelleret omkostnings split (DKK/Ton)*
C193: =INDEX(D193:E193,1,$E$4) -> CAPEX og OPEX split (DKK/ton)* | D193: CAPEX and OPEX split (DKK/ton)* | E193: CAPEX og OPEX split (DKK/ton)*
B195: Helping texts
B197: Introduction
C198: =INDEX(D198:E198,1,$E$4) -> Installation: Modellen kan ikke åbnes direkte fra nettet eller email. I stedet skal modellen gemmes lokalt på en PC (fx på skrivebordet) eller på et lokalt netværksdrev. Ellers er det ikke muligt at acceptere de makroer, som er nødvendige for at få modellen til at virke. Dette værktøj er udviklet for yderligere at undersøge omkostningerne ved at etablere et fælles CO2 infrastrukturnetværk i forskellige scenarier. Værktøjet lader brugere vælge en række forskellige scenarier, antagelser, infrastruktur karakteristika og udledere med henblik på at skabe et bedre indblik i omkostningerne forbundet med forskellige scenarier. Hvordan virker det? Værktøjet har to faner med inputs '1.1 Interface' og '1.2 Assumptions' der indeholder forskellige valgmuligheder og input celler der kan ændres af brugeren. Disse to faner er de eneste redigerbare faner i værktøjet. Baseret på det valgte scenarie i de to input faner, vil fanen '2.1 Results' vise resultaterne. Denne indeholder en opsummering af hele infrastrukturnetværket inklusiv CAPEX, OPEX, omsætning, NPV og levelized cost og viser data i grafer. Under graferne vil nutidsværdien af hvert infrastruktur element blive præsenteret, opdelt i omsætning, CAPEX og OPEX. Kapitel 3 'Calculations' indeholder de nødvendige beregninger for at modellere det specificerede scenarie. I fanen '3.1 Elements' fremgår de tekniske specifikationer på kompressorstationerne rørledningerne. Kapitel 4 ' Building blocks' indeholder de forskellige omkostningerskurver der anvendes til at udregne omkostninger ved de forskellige elementer. De fleste omkostninger er baseret på kurver estimeret af Rambøll, og modellen vil dynamisk udvælge den rette omkostningskurve baseret på scenariet udvalgt af brugeren. Hvad er inkluderet? Værktøjet antager at CO2 er leveret til netværket ved udlederens hegn, renset ved 30 bar - omkostningerne inden dette punkt er ikke inkluderet i beregningerne. I scenarie (case) 1-4, med retning mod Havnsø, er omkostningerne til rørledninger og kompressorstationer inkluderet, og driftsomkostninger til permanent lagring af CO2 da denne er udregnet som en omkostning per ton. I scenarie (case) 5-6, med retning mod CMP, er omkostningerne til rørledninger og kompressorstationer ligeledes inkluderet, men også omkostningerne til fordråbning, mellemlager, havnefaciliteter samt udskibning er inkluderet. Værktøjet tillader også inkludering af import af CO2. Dette kan ske ved skib via Prøvestenen eller rørledning via Avedøre. Omkostninger forbundet med transport af CO2 til C4 netværket er ikke inkluderet, men omkostningerne relateret til konditionering er inkluderet. Sprog kan vælges i '1.1 Interface' Disclaimer: Grundet den tidlige fase, vil tallene præsenteret i dette værktøj være behæftet med stor usikkerhed. Resultaterne skal tolkes som indikationer, der kan anvendes til at belyse dynamikken mellem omkostninger og udformning af netværket, og ikke som et præcist omkostningsestimatet. | D198: Installation: The model can't be opened directly from the web or email. Instead, save the model locally on the PC (e.g. on the desktop) or on a local networkdrive. It is not possible to accept the macros required to make the model work. This tool is developed to further investigate the costs associated with building a common CO2 infrastructure network in different scenarios. The tool allows the user to select different cases, assumptions, infrastructure characteristics and emitters to get an idea of the costs for the specified scenario. How it works The tool has two input sheets '1.1 Interface' and '1.2 Assumptions' that includes toggles and input cells that needs to be specified by the user. These two sheets are the only editable sheets in the tool. Based on the selected scenario in the input sheets, sheet '2.1 Results' will show the results from the selected scenario. It includes a summary of the entire infrastructure network including CAPEX, OPEX, revenue, NPV and levelized costs, and presents the data in graphs. Below the graphs, NPV of each line item in the infrastructure network is presented, split into revenue, CAPEX and OPEX. Chapter 3 'Calculations' include some of the back-end calculation necessary to model the scenario. In sheet '3.1 Elements', the technical specifications of the compressorstations and pipelines are presented. Chapter 4 'Building blocks' contains the different cost estimates used to calculate the cost of each line item. Most costs are based on cost equations that are estimated by Ramboll, and the tool will dynamically choose the right equation based on the characteristics chosen by the user in '1.1 Interface' What is included? The tool assumes that CO2 is delivered to the infrastructure at the fence of the emitter, purified at 30 bar - costs before reaching that point are not included. In case 1-4 (direction towards Havnsø) the costs from pipeline and compression are included, and the permanent storage costs are included as OPEX as it is calculated as a cost per ton of CO2 stored. In case 5-6 (direction towards CMP) the costs from pipeline and compression are included, but also costs from liquefaction, intermediate storage, harbour facilities and shipping are included. The scenario tool further allows import of CO2 at Prøvestenen by ship and/or by pipeline at Avedøre. The costs associated with transporting the CO2 to the C4 pipeline are not included, but costs for conditioning the CO2 when imported by ship are included (only relevant in case 4). Language can be selected in '1.1 Interface' Disclaimer: Due to the early phase, the numbers presented in the tool will include a high degree of uncertainty. The results should be interpretated as indications used to highlight the dynamics between the costs and the characteristics of the network, and not as a precise cost estimate. | E198: Installation: Modellen kan ikke åbnes direkte fra nettet eller email. I stedet skal modellen gemmes lokalt på en PC (fx på skrivebordet) eller på et lokalt netværksdrev. Ellers er det ikke muligt at acceptere de makroer, som er nødvendige for at få modellen til at virke. Dette værktøj er udviklet for yderligere at undersøge omkostningerne ved at etablere et fælles CO2 infrastrukturnetværk i forskellige scenarier. Værktøjet lader brugere vælge en række forskellige scenarier, antagelser, infrastruktur karakteristika og udledere med henblik på at skabe et bedre indblik i omkostningerne forbundet med forskellige scenarier. Hvordan virker det? Værktøjet har to faner med inputs '1.1 Interface' og '1.2 Assumptions' der indeholder forskellige valgmuligheder og input celler der kan ændres af brugeren. Disse to faner er de eneste redigerbare faner i værktøjet. Baseret på det valgte scenarie i de to input faner, vil fanen '2.1 Results' vise resultaterne. Denne indeholder en opsummering af hele infrastrukturnetværket inklusiv CAPEX, OPEX, omsætning, NPV og levelized cost og viser data i grafer. Under graferne vil nutidsværdien af hvert infrastruktur element blive præsenteret, opdelt i omsætning, CAPEX og OPEX. Kapitel 3 'Calculations' indeholder de nødvendige beregninger for at modellere det specificerede scenarie. I fanen '3.1 Elements' fremgår de tekniske specifikationer på kompressorstationerne rørledningerne. Kapitel 4 ' Building blocks' indeholder de forskellige omkostningerskurver der anvendes til at udregne omkostninger ved de forskellige elementer. De fleste omkostninger er baseret på kurver estimeret af Rambøll, og modellen vil dynamisk udvælge den rette omkostningskurve baseret på scenariet udvalgt af brugeren. Hvad er inkluderet? Værktøjet antager at CO2 er leveret til netværket ved udlederens hegn, renset ved 30 bar - omkostningerne inden dette punkt er ikke inkluderet i beregningerne. I scenarie (case) 1-4, med retning mod Havnsø, er omkostningerne til rørledninger og kompressorstationer inkluderet, og driftsomkostninger til permanent lagring af CO2 da denne er udregnet som en omkostning per ton. I scenarie (case) 5-6, med retning mod CMP, er omkostningerne til rørledninger og kompressorstationer ligeledes inkluderet, men også omkostningerne til fordråbning, mellemlager, havnefaciliteter samt udskibning er inkluderet. Værktøjet tillader også inkludering af import af CO2. Dette kan ske ved skib via Prøvestenen eller rørledning via Avedøre. Omkostninger forbundet med transport af CO2 til C4 netværket er ikke inkluderet, men omkostningerne relateret til konditionering er inkluderet. Sprog kan vælges i '1.1 Interface' Disclaimer: Grundet den tidlige fase, vil tallene præsenteret i dette værktøj være behæftet med stor usikkerhed. Resultaterne skal tolkes som indikationer, der kan anvendes til at belyse dynamikken mellem omkostninger og udformning af netværket, og ikke som et præcist omkostningsestimatet.
B200: 1.1 Scenario selector
C201: =INDEX(D201:E201,1,$E$4) -> Scenarievælgeren lader brugeren vælge mellem 6 primære scenarier, og yderligere tilpasse en række specifikke parametre til brugerens behov. Menuen er dynamisk, hvilket betyder at kun de relevante input parametre i det givne scenarie er tilgængelige i nedenstående. Ikke relevante inputs er markeret grå. Udover de primære valgmuligheder i scenarievælgeren, er der i sektionen nedenfor "Udledere" mulighed for at til- og fravælge udledere, tilføje nye udledere, samt ændre på deres mængder. I 1. Nøgle karakteristika defineres den overordnede struktur for infrastuktur netværket hvor flowretning og lokation af kompressorstation(er) bestemmes, som derved vil have en påvirkning på typen af rørledning (høj/lav tryk) samt størrelsen på rørledningerne. De 6 scenarier (cases) er: Case 1: Centraliseret kompressor med retning mod Havnsø. Central kompressorstation placeret ved Høje Taastrup så alle rørledninger øst for denne er i gas fase og alle rørledninger vest for denne er dense fase. En yderligere kompressorstation er placeret ved ARGO for at lade dem tilkoble rørledningen i dense fase. Case 2: Centraliseret kompressor med retning mod Havnsø. Central central kompressorstation placeret ved Avedøre rørledningen fra Kræftværkshalvøen til Avedøre er gas fase og alle andre rørledninger er dense fase. Yderligere kompressorstationer vil være placeret ved ARGO og Vestforbrænding for at lade dem tilkoble rørledningen i dense fase. Case 3: Centraliseret kompressor med retning mod Havnsø. Central kompressorstation placeret inden tæt ved starten af den sidste rørledning mod Havnsø (tæt ved ARGO) så alle rørledninger er gas fase med undtagelse af den sidste lange rørledning til Havnsø som er dense fase. Case 4: Decentraliseret kompressorer med retning mod Havnsø. Fire kompressorstationer placeret ved ARGO, Vestforbrænding, Avedøreværket og Kraftværkshalvøen så alle rørledninger er dense fase. Case 5: Ingen kompressor med retning mod CMP. Uden kompressorstationer, så alle rørledninger vil være gas fase. Dette scenarie har ingen forbindelse til Havnsø men vil inkludere de fornødne faciliteter til udskibning af CO2 fra CMP. Case 6: Decentraliseret kompressorer med retning mod CMP. Fire kompressorstationer placeret ved ARGO, Vestforbrænding og Kræftværkshalvøen så alle rørledninger vil være dense fase. Dette scenarie har ingen forbindelse til Havnsø men vil inkludere de fornødne faciliteter til udskibning af CO2 fra CMP. | D201: The scenario selector allows the user the select one of the 6 main cases, and further tailor the specifics to the need of the user. The interface below is dynamic, so the inputs that are needed in each case are available to select. The inputs that are not relevant in the case selected are grey. In addition to the key characteristics chosen in the scenario selector, an additional section below "Emitters" allow the user to change the emitters included and their CO2 volumes. The 1. Key characteristics selector define the overall typology of the infrastructure network and will directly affect the flow direction and the location of the compressorstation(s), and thus have an indirect effect on the type of pipelines (gas/dense phase), the pipeline sizing etc. The 6 cases are: Case 1: Centralized compression with direction towards Havnsø. Central compressorstation located at Høje Taastrup such that all pipelines East of that is gas phase, and all pipelines West of that is dense phase. An additional compressorstation is located a ARGO to allow them to enter the dense phase pipeline. Case 2: Centralized compression with direction towards Havnsø. Central compressorstation located at Avedøre such that the pipeline from Kræftværkshalvøen to Avedøre is gas phase, while the other pipelines are dense phase. Additional compressorstations would be located at ARGO and Vestforbrænding to allow them to enter the dense phase pipeline Case 3: Centralized compression with direction towards Havnsø. Central compressorstation located on the last pipeline section to Havnsø (close to ARGO) such that all pipelines are gas phase, exept the long pipeline to Havnsø. Case 4: Decentralized compression with direction towards Havnsø. Four compressionstations are located at ARGO, Vestforbænding, Avedøreværket and Kræftværkshalvøen such that all pipelines are dense phase. Case 5: No compression with direction towards CMP. With no compressorstations, all pipelines are gas phase. This scenario has no connection to Havnsø, but includes facilities needed to ship out the CO2 from CMP. Case 6: Decentralized compression with direction towards CMP. Four compressionstations are located at ARGO, Vestforbænding, Avedøreværket and Kræftværkshalvøen such that all pipelines are dense phase. This scenario has no connection to Havnsø, but includes facilities needed to ship out the CO2 from CMP. | E201: Scenarievælgeren lader brugeren vælge mellem 6 primære scenarier, og yderligere tilpasse en række specifikke parametre til brugerens behov. Menuen er dynamisk, hvilket betyder at kun de relevante input parametre i det givne scenarie er tilgængelige i nedenstående. Ikke relevante inputs er markeret grå. Udover de primære valgmuligheder i scenarievælgeren, er der i sektionen nedenfor "Udledere" mulighed for at til- og fravælge udledere, tilføje nye udledere, samt ændre på deres mængder. I 1. Nøgle karakteristika defineres den overordnede struktur for infrastuktur netværket hvor flowretning og lokation af kompressorstation(er) bestemmes, som derved vil have en påvirkning på typen af rørledning (høj/lav tryk) samt størrelsen på rørledningerne. De 6 scenarier (cases) er: Case 1: Centraliseret kompressor med retning mod Havnsø. Central kompressorstation placeret ved Høje Taastrup så alle rørledninger øst for denne er i gas fase og alle rørledninger vest for denne er dense fase. En yderligere kompressorstation er placeret ved ARGO for at lade dem tilkoble rørledningen i dense fase. Case 2: Centraliseret kompressor med retning mod Havnsø. Central central kompressorstation placeret ved Avedøre rørledningen fra Kræftværkshalvøen til Avedøre er gas fase og alle andre rørledninger er dense fase. Yderligere kompressorstationer vil være placeret ved ARGO og Vestforbrænding for at lade dem tilkoble rørledningen i dense fase. Case 3: Centraliseret kompressor med retning mod Havnsø. Central kompressorstation placeret inden tæt ved starten af den sidste rørledning mod Havnsø (tæt ved ARGO) så alle rørledninger er gas fase med undtagelse af den sidste lange rørledning til Havnsø som er dense fase. Case 4: Decentraliseret kompressorer med retning mod Havnsø. Fire kompressorstationer placeret ved ARGO, Vestforbrænding, Avedøreværket og Kraftværkshalvøen så alle rørledninger er dense fase. Case 5: Ingen kompressor med retning mod CMP. Uden kompressorstationer, så alle rørledninger vil være gas fase. Dette scenarie har ingen forbindelse til Havnsø men vil inkludere de fornødne faciliteter til udskibning af CO2 fra CMP. Case 6: Decentraliseret kompressorer med retning mod CMP. Fire kompressorstationer placeret ved ARGO, Vestforbrænding og Kræftværkshalvøen så alle rørledninger vil være dense fase. Dette scenarie har ingen forbindelse til Havnsø men vil inkludere de fornødne faciliteter til udskibning af CO2 fra CMP.
B203: 1.1 Emitters
C204: =INDEX(D204:E204,1,$E$4) -> Nedenstående tabel giver brugeren mulighed for at til- og fravælge udledere samt at tilføje op til 10 nye udledere i netværket. For hver udleder skal der indtastes peakload, fanget CO2 mængder per year samt start- og slutår for tilkobling til netværket. Kolonnen 'Inkluderet' giver brugeren mulighed for at vælge hvilke udledere der skal inkluderes i beregningerne. Peak load anvendes til at dimensionere de forskellige elementer i netværket, og de årlige CO2 mængder anvendes til beregne hvor meget CO2 der går igennem de forskellige sektioner. For at tilføje nye udledere til netværket vælges "Yes" i kolonnen 'Inkluderet' hvorefter de nødvendige informationer indtastes. Der skal ligeledes vælges et tilkoblingspunkt for at indikere hvor i netværket udlederen vil indføre sit CO2. Skal kun inkludere udledere i Danmark. Udenlandske udledere skal inkluderes i 'import' valgmuligheden. | D204: The below table allows the user to select emitters and add up to 10 new emitters in the network. Each emitter has inputs on the peak load, captured CO2 per year and start/end year of CO2 volumes to the network. The column 'applicable' allow the user to select what emitters are included in the calculations. The peak load is used to dimension the different elements in the network and the capture CO2 per year is used to calculate the annual CO2 volumes that go thorugh the network. To add a new emitter to the network, select 'Yes' in the 'Applicable' column and fill out the information in the table. Further, a connection point must be selected to indicate at what point in the network the emitter is inserting their CO2. Should only include emitters in Denmark. Foreign emitters should be included in the import option. | E204: Nedenstående tabel giver brugeren mulighed for at til- og fravælge udledere samt at tilføje op til 10 nye udledere i netværket. For hver udleder skal der indtastes peakload, fanget CO2 mængder per year samt start- og slutår for tilkobling til netværket. Kolonnen 'Inkluderet' giver brugeren mulighed for at vælge hvilke udledere der skal inkluderes i beregningerne. Peak load anvendes til at dimensionere de forskellige elementer i netværket, og de årlige CO2 mængder anvendes til beregne hvor meget CO2 der går igennem de forskellige sektioner. For at tilføje nye udledere til netværket vælges "Yes" i kolonnen 'Inkluderet' hvorefter de nødvendige informationer indtastes. Der skal ligeledes vælges et tilkoblingspunkt for at indikere hvor i netværket udlederen vil indføre sit CO2. Skal kun inkludere udledere i Danmark. Udenlandske udledere skal inkluderes i 'import' valgmuligheden.
B205: Interface options
B207: 0. | C207: =INDEX(D207:E207,1,$E$4) -> Ændrer sprog i valgmulighederne og resultat siden | D207: Changes language for the options and the result page | E207: Ændrer sprog i valgmulighederne og resultat siden
B208: 1.1 | C208: =INDEX(D208:E208,1,$E$4) -> Bestemmer lokationen for kompressor stationerne og retningen af flowet i netværket - se de 6 cases til højre | D208: Determines the location of the compressor stations and the direction of the flow in the network - view the 6 cases to the right | E208: Bestemmer lokationen for kompressor stationerne og retningen af flowet i netværket - se de 6 cases til højre
B209: 2. | C209: =INDEX(D209:E209,1,$E$4) -> Vælg om der skal tillades import af CO2 i netværket eller ej. Hvis tilladt, vælg da om import skal ske via skib til Prøvestenen, via rørledning til Avedøre eller en kombination af de to | D209: Choose whether to allow import of CO2 in the network or not. If allowed, choose if the import is by ship to Prøvestenen, by pipeline to Avedøre or a combination of the two | E209: Vælg om der skal tillades import af CO2 i netværket eller ej. Hvis tilladt, vælg da om import skal ske via skib til Prøvestenen, via rørledning til Avedøre eller en kombination af de to
B210: 2.1.1 | C210: =INDEX(D210:E210,1,$E$4) -> Anvendes til at dimensionere netværkets rørledninger | D210: Used for dimensioning the network pipelines | E210: Anvendes til at dimensionere netværkets rørledninger
B211: 2.1.2 | C211: =INDEX(D211:E211,1,$E$4) -> Anvendes til at beregne samlede CO2 mængder | D211: Used for calculating total CO2 amounts | E211: Anvendes til at beregne samlede CO2 mængder
B212: 2.1.3 | C212: =INDEX(D212:E212,1,$E$4) -> Input til energiforbruget af booster station | D212: Input to power consumption of booster station | E212: Input til energiforbruget af booster station
B213: 2.1.4 | C213: =INDEX(D213:E213,1,$E$4) -> Første år for CO2 import via rørledning | D213: First year of CO2 import by pipeline | E213: Første år for CO2 import via rørledning
B214: 2.1.5 | C214: =INDEX(D214:E214,1,$E$4) -> Sidste år for CO2 import via rørledning | D214: Last year of CO2 import by pipeline | E214: Sidste år for CO2 import via rørledning
B215: 2.2.1 | C215: =INDEX(D215:E215,1,$E$4) -> Bestemmer trykket når CO2 modtages | D215: Determines the pressure when receiving the CO2 | E215: Bestemmer trykket når CO2 modtages
B216: 2.2.2 | C216: =INDEX(D216:E216,1,$E$4) -> Mulighed for at inkludere en reserve pumpe for konditionering | D216: Option to include a spare pump for conditioning | E216: Mulighed for at inkludere en reserve pumpe for konditionering
B217: 2.2.3 | C217: =INDEX(D217:E217,1,$E$4) -> Mellemlager er udregnet som 1,5 * kapacitet per skib | D217: Intermediate storage capacity is 1,5 * capacity per ship | E217: Mellemlager er udregnet som 1,5 * kapacitet per skib
B218: 2.2.4 | C218: =INDEX(D218:E218,1,$E$4) -> Anvendes til at beregne samlede CO2 mængder | D218: Used for calculating total CO2 amounts | E218: Anvendes til at beregne samlede CO2 mængder
B219: 2.2.5 | C219: =INDEX(D219:E219,1,$E$4) -> Første år for CO2 import via skib | D219: First year of CO2 import by ship | E219: Første år for CO2 import via skib
B220: 2.2.6 | C220: =INDEX(D220:E220,1,$E$4) -> Sidste år for CO2 import via skib | D220: Last year of CO2 import by ship | E220: Sidste år for CO2 import via skib
B221: 3.1 | C221: =INDEX(D221:E221,1,$E$4) -> "No heat integration 1" --> påvirker kompressionsstadiet - luftkølere anvendes "No heat integration 2" --> påvirker kompressionsstadiet - lukket kredsløb CM (20% wt. MEG aq. Sol.) "Integration with DH" --> lukket kredsløb CM (20% wt. MEG aq. Sol.),luftkølere, og DH-CM HEX | D221: "No heat integration 1" --> Affecting the compression stage - air coolers are used "No heat integration 2" --> Affecting the compression stage - Closed loop CM (20% wt. MEG aq. Sol.) "Integration with DH" --> Closed loop CM (20% wt. MEG aq. Sol.), air coolers, and DH-CM HEX | E221: "No heat integration 1" --> påvirker kompressionsstadiet - luftkølere anvendes "No heat integration 2" --> påvirker kompressionsstadiet - lukket kredsløb CM (20% wt. MEG aq. Sol.) "Integration with DH" --> lukket kredsløb CM (20% wt. MEG aq. Sol.),luftkølere, og DH-CM HEX
B222: 3.2 | C222: =INDEX(D222:E222,1,$E$4) -> Mulighed for at inkludere et reserve kompressionsanlæg | D222: Option to include a spare compression train for compression | E222: Mulighed for at inkludere et reserve kompressionsanlæg
... 105 more rows

Sheet LISTS (hidden)
A4: Language | B4: Pipeline pressure | C4: Cases | D4: Allow import | E4: Import type | F4: Ship import type | G4: Conditioning from ship to pipeline transportation | H4: Compression options | I4: Liquefaction pressure | J4: Redundancy | K4: Cost estimate baseline | L4: Number of berths | M4: Current berth facilities | N4: Loading from storage to ship | O4: Energy integration option - liquefaction | P4: Electricity price forecast
A5: English | B5: High | C5: Case 1 | D5: Yes | E5: Pipeline | F5: Low pressure | G5: With spare pump | H5: No heat integration 1 | I5: 7 barg | J5: Spare compression train | K5: Onshore | L5: 1 | M5: New berths | N5: No spare | O5: No heat integration | P5: Fixed price
A6: Dansk | B6: Low | C6: Case 2 | D6: No | E6: Ship | F6: Medium pressure | G6: Without spare | H6: No heat integration 2 | I6: 15 barg | J6: No spare | K6: Nearshore | L6: 2 | M6: Existing berths | N6: With spare | O6: Integration with DH | P6: Annual price forecast
B7: Other | C7: Case 3 | E7: Both | F7: High pressure | H7: Integration with DH | I7: 40 barg | K7: Offshore | L7: 3
C8: Case 4 | L8: 4
C9: Case 5
C10: Case 6
B14: Case descriptions | C14: ='1.1 Interface'!G14 -> Dansk | D14: Dansk | E14: English
B15: Case 1 | C15: =INDEX(D15:E15,MATCH($C$14,$D$14:$E$14,0)) -> Centraliseret kompressorstation ved Høje Taastrup med retning mod Havnsø | D15: Centraliseret kompressorstation ved Høje Taastrup med retning mod Havnsø | E15: Centralized compressor station located at Høje Taastrup with direction towards Havnsø | L15: centralized compression with direction towards Havnsø. Central compressorstation located at Høje Taastrup such that all pipelines East of that is gas phase, and all pipelines West of that is dense phase. An additional compressorstation is located a ARGO to allow them to enter the dense phase pipeline.
B16: Case 2 | C16: =INDEX(D16:E16,MATCH($C$14,$D$14:$E$14,0)) -> Centraliseret kompressorstation ved Avedøre med retning mod Havnsø | D16: Centraliseret kompressorstation ved Avedøre med retning mod Havnsø | E16: Centralized compressor station located at Avedøre with direction towards Havnsø | L16: centralized compression with direction towards Havnsø. Central compressorstation located at Avedøre such that the pipeline from Kræftværkshalvøen to Avedøre is gas phase, while the other pipelines are dense phase. Additional compressorstations would be located at ARGO and Vestforbrænding to allow them to enter the dense phase pipeline
B17: Case 3 | C17: Centraliseret kompressorstation ved ARGO med retning mod Havnsø | D17: Centraliseret kompressorstation ved ARGO med retning mod Havnsø | E17: Centralized compressor station located at ARGO with direction towards Havnsø | L17: centralized compression with direction towards Havnsø. Central compressorstation located on the last pipeline section to Havnsø (close to ARGO) such that all pipelines are gas phase, exept the long pipeline to Havnsø.
B18: Case 4 | C18: Decentraliserede kompressorstationer med retning mod Havnsø | D18: Decentraliserede kompressorstationer med retning mod Havnsø | E18: Decentralized compression with direction towards Havnsø | L18: decentralized compression with direction towards Havnsø. Four compressionstations are located at ARGO, Vestforbænding, Avedøreværket and Kræftværkshalvøen such that all pipelines are dense phase.
B19: Case 5 | C19: Ingen kompression med retning mod CMP - alle lavtryksrør | D19: Ingen kompression med retning mod CMP - alle lavtryksrør | E19: No compression with direction towards CMP - all gas phase | L19: no compression with direction towards CMP. With no compressorstations, all pipelines are gas phase. This scenario has no connection to Havnsø, but includes facilities needed to ship out the CO2 from CMP.
B20: Case 6 | C20: Decentraliserede kompressorstationer med retning mod CMP - alle højtryksrør | D20: Decentraliserede kompressorstationer med retning mod CMP - alle højtryksrør | E20: Decentralized compression with direction towards CMP - all dense phase | L20: decentralized compression with direction towards CMP. Four compressionstations are located at ARGO, Vestforbænding, Avedøreværket and Kræftværkshalvøen such that all pipelines are dense phase. This scenario has no connection to Havnsø, but includes facilities needed to ship out the CO2 from CMP.
B22: ='1.1 Interface'!G18 -> Case 5
B23: Connection points | D23: Case 1 | E23: Case 2 | F23: Case 3 | G23: Case 4 | H23: Case 5 | I23: Case 6 | K23: All | L23: Case 1-4 | M23: Case 5-6 | Q23: Centralized compressor station located at Høje Taastrup with direction towards Havnsø
B24: =IF(INDEX(D24:I24,MATCH($B$22,D$23:I$23,0))=0,"",INDEX(D24:I24,MATCH($B$22,D$23:I$23,0))) -> CMP | D24: ARGO | E24: ARGO | F24: Intersection at ARGO | G24: ARGO | H24: CMP | I24: CMP | K24: ARGO | L24: ARGO | M24: CMP | Q24: Centralized compressor station located at Avedøre with direction towards Havnsø
B25: =IF(INDEX(D25:I25,MATCH($B$22,D$23:I$23,0))=0,"",INDEX(D25:I25,MATCH($B$22,D$23:I$23,0))) ->  | D25: Høje Taastrup | E25: Vestforbrænding | G25: Vestforbrænding | I25: Vestforbrænding | K25: Høje Taastrup | L25: Høje Taastrup | M25: Vestforbrænding | Q25: Centralized compressor station located at West of ARGO with direction towards Havnsø
E26: Avedøre | G26: Avedøre | I26: ARGO | K26: Vestforbrænding | L26: Vestforbrænding | M26: ARGO | Q26: Decentralized compression with direction towards Havnsø
G27: Kræftværkshalvøen | I27: Avedøre | K27: Avedøre | L27: Avedøre | M27: Avedøre | Q27: No compression with direction towards CMP - all gas phase
K28: Intersection at ARGO | L28: Intersection at ARGO | Q28: Decentralized compression with direction towards CMP - all dense phase
K29: Kræftværkshalvøen | L29: Kræftværkshalvøen
K30: CMP
C32: ='1.1 Interface'!G14 -> Dansk
B33: Scenario | C33: Scenario description | D33: Dansk | E33: English
B34: Scenario 1 | C34: =INDEX(D34:E34,MATCH($C$32,$D$33:$E$33,0)) -> Fordråbning ved CMP af CO2 mængderne fra AMV, AMB og Biofos. Mulighed for at tilføje yderligere CO2 mængder med lastbil. Ingen rørinfrastruktur i dette scenarie. | D34: Fordråbning ved CMP af CO2 mængderne fra AMV, AMB og Biofos. Mulighed for at tilføje yderligere CO2 mængder med lastbil. Ingen rørinfrastruktur i dette scenarie. | E34: Liquefaction at CMP of the emission flowrates from AMV, AMB and Biofos. An option with additional truck import from smaller emitters could also be tested. No pipeline infrastructure will be considered in this case.
B35: Scenario 2 | C35: =INDEX(D35:E35,MATCH($C$32,$D$33:$E$33,0)) -> CO2 transport fra Avedøre, VF og ARGO til Havnsø via højtryks-rørledning (decentraliseret kompressor). Mulighed for at inkludere CO2 import via rørledning ved Avedøre. | D35: CO2 transport fra Avedøre, VF og ARGO til Havnsø via højtryks-rørledning (decentraliseret kompressor). Mulighed for at inkludere CO2 import via rørledning ved Avedøre. | E35: CO2 transfer from Avedøre, VF, and ARGO to Havnsø via pipeline in dense phase (decentralized compression). An option considering CO2 import by pipeline in Avedøre can also be considered.
B36: Scenario 3A | C36: Centraliseret kompressorstation ved Høje Taastrup med retning mod Havnsø. Alle udledere tilkobler på samme tid. | D36: Centraliseret kompressorstation ved Høje Taastrup med retning mod Havnsø. Alle udledere tilkobler på samme tid. | E36: Centralized compression at Høje Taastrup and transfer of CO2 towards Havnsø. All emitters connect to the network at the same time
B37: Scenario 3B | C37: Centraliseret kompressorstation ved Høje Taastrup med retning mod Havnsø. HOFOR, Avedøreværket og Vestforbrænding tilkobler sig i år 1, og de resterende tilkobler sig 10 år senere (for at illusterere effekten ved senere tilkobling) | D37: Centraliseret kompressorstation ved Høje Taastrup med retning mod Havnsø. HOFOR, Avedøreværket og Vestforbrænding tilkobler sig i år 1, og de resterende tilkobler sig 10 år senere (for at illusterere effekten ved senere tilkobling) | E37: Centralized compression at Høje Taastrup and transfer of CO2 towards Havnsø. HOFOR, Avedøreværket and Vestforbrænding connecting initially and then the remaining connecting 10 years later (as an illustration of the implications of some emitters connecting later)
B38: Scenario 4 | C38: Gas fase rørledning fra alle udledere mod CMP for udskibning til offshore lagring. Mulighed for at tilføje yderligere CO2 mængder med lastbil. Ingen rørinfrastruktur i dette scenarie. | D38: Gas fase rørledning fra alle udledere mod CMP for udskibning til offshore lagring. Mulighed for at tilføje yderligere CO2 mængder med lastbil. Ingen rørinfrastruktur i dette scenarie. | E38: Gas phase pipelines from all emitters towards CMP for shipping. An option with additional truck import from smaller emitters could also be tested.

Sheet 2. Output ->
A1: Cover page
A2: 2. Output

Sheet 2.1 Results
B2: Results
B4: A. | C4: =TEXT!C148 -> Opsummering
B6: =TEXT!C148 -> Opsummering
C8: =TEXT!C150 -> Flowretning | E8: =IF(OR('1.1 Interface'!$G$18="Case 5",'1.1 Interface'!$G$18="Case 6"),TEXT!C152,TEXT!C151) -> Til CMP for eksport
C9: =TEXT!C155 -> Placering af kompressorstation(er) | E9: ='3.1 Elements'!D18 -> Ingen kompressorstationer
C10: =TEXT!C156 -> Scenarie | E10: ='1.1 Interface'!G18 -> Case 5
B12: =TEXT!C157 -> Nøgletal*
C14: =TEXT!C158 -> CO2 transporteret | E14: ='3.3 Emitters'!F49 -> 58429250 | F14: =TEXT!C159 -> Tons totalt
C15: =TEXT!C160 -> Totale omkostninger (nutidsværdi) | E15: =K85+K100+K151 -> 1.42340225e+10 | F15: DKK | G15: =TEXT!C163 -> Enhedsomkostningen ved CO2 transport viser den gennemsnitlige årlige price per ton (inflationsjusteret) for at have en nettonutidsværdi på 0. Tariffen er den gennemsnitlige årlige pris per ton i 2024 priser - så prisen skal inflateres årligt for at opnå en nettonutidsværdi på 0.
C16: =TEXT!C161 -> Enhedsomkostning ved CO2 transport | E16: ='2.2 Model'!K45 -> 478.997981 | F16: DKK/ton
C17: =TEXT!C162 -> Tarif (2024-priser) | E17: =E75 -> 379.3603795 | F17: DKK/ton
C18: =TEXT!C164 -> Importerede CO2-mængder | E18: =SUM('3.3 Emitters'!F31:F32) -> 0 | F18: Tons
C19: =TEXT!C165 -> Målbar samfundsøkonomisk netto-besparelse | E19: ='3.4 0-scenario'!I269 -> 1909825541 | F19: DKK | G19: =TEXT!C165 -> Målbar samfundsøkonomisk netto-besparelse
B22: =TEXT!C173 -> CO2 udledere
B43: =TEXT!C174 -> *Bemærk venligst, at analysen i denne rapport primært fokuserer på omkostninger til rørledninger, kompression og forflødning. For de resterende omkostningselementer støtter analysen på eksisterende omkostningsestimater baseret på deskresearch. Det er vigtigt at anerkende, at disse estimater kan være forbundet med en højere grad af usikkerhed på grund af deres metode.
B44: B. | C44: =TEXT!C169 -> Sensitiviteter
B48: =E15 -> 1.42340225e+10
B49: WACC | D49: NPV [DKK] | F49: WACC | G49: Levelized cost [DKK/ton] | J49: 0.055 | K49: WACC | M49: NPV [DKK] | O49: WACC | P49: Levelized cost [DKK/ton]
D50: =#REF! ->  | G50: =#REF! ->  | M50: =E15 -> 1.42340225e+10 | P50: =E16 -> 478.997981
C51: =C52-0.005 -> 0.03 | D51: 1.853317093e+10 | F51: =F52-0.005 -> 0.03 | G51: 469.0502473 | L51: 0.03 | M51: 1.42340225e+10 | O51: 0.03 | P51: 478.997981
C52: 0.035 | D52: 1.752072927e+10 | F52: 0.035 | G52: 470.7660183 | L52: 0.035 | M52: 1.42340225e+10 | O52: 0.035 | P52: 478.997981
C53: 0.04 | D53: 1.659235177e+10 | F53: 0.04 | G53: 472.6200337 | L53: 0.04 | M53: 1.42340225e+10 | O53: 0.04 | P53: 478.997981
C54: 0.045 | D54: 1.573985123e+10 | F54: 0.045 | G54: 474.6111241 | L54: 0.045 | M54: 1.42340225e+10 | O54: 0.045 | P54: 478.997981
C55: =C56-0.005 -> 0.05 | D55: 1.495591873e+10 | F55: =F56-0.005 -> 0.05 | G55: 476.7377401 | L55: 0.05 | M55: 1.42340225e+10 | O55: 0.05 | P55: 478.997981
C56: 0.055 | D56: 1.42340225e+10 | F56: 0.055 | G56: 478.997981 | L56: 0.055 | M56: 1.42340225e+10 | O56: 0.055 | P56: 478.997981
C57: =C56+0.005 -> 0.06 | D57: 1.356831921e+10 | F57: =F56+0.005 -> 0.06 | G57: 481.3896245 | L57: 0.06 | M57: 1.42340225e+10 | O57: 0.06 | P57: 478.997981
C58: =C57+0.005 -> 0.065 | D58: 1.295357592e+10 | F58: =F57+0.005 -> 0.065 | G58: 483.9101591 | L58: 0.065 | M58: 1.42340225e+10 | O58: 0.065 | P58: 478.997981
C59: 0.07 | D59: 1.238510138e+10 | F59: 0.07 | G59: 486.5568155 | L59: 0.07 | M59: 1.42340225e+10 | O59: 0.07 | P59: 478.997981
C60: 0.075 | D60: 1.18586856e+10 | F60: 0.075 | G60: 489.3265995 | L60: 0.075 | M60: 1.42340225e+10 | O60: 0.075 | P60: 478.997981
C61: 0.08 | D61: 1.137054648e+10 | F61: 0.08 | G61: 492.2163234 | L61: 0.08 | M61: 1.42340225e+10 | O61: 0.08 | P61: 478.997981
C64: Item | E64: Unit | G64: Comment | I64: Source | K64: Total sum | M64: 2025 | N64: 2026 | O64: 2027 | P64: 2028 | Q64: 2029 | R64: 2030 | S64: 2031 | T64: 2032 | U64: 2033 | V64: 2034 | W64: 2035 | X64: 2036 | Y64: 2037 | Z64: 2038 | AA64: 2039 | AB64: 2040 | AC64: 2041 | AD64: 2042 | AE64: 2043 | AF64: 2044 | AG64: 2045 | AH64: 2046 | AI64: 2047 | AJ64: 2048 | AK64: 2049 | AL64: 2050
C66: Index
D68: Inflation index | E68: Index | G68: =TEXT('1.2 Assumptions'!E11,"0,0%")&" inflation rate" -> 2,0% inflation rate | I68: Assumptions | M68: =(1+'1.2 Assumptions'!$E$11)^(M$64-$M$64+1) -> 1.02 | N68: =(1+'1.2 Assumptions'!$E$11)^(N$64-$M$64+1) -> 1.0404 | O68: =(1+'1.2 Assumptions'!$E$11)^(O$64-$M$64+1) -> 1.061208 | P68: =(1+'1.2 Assumptions'!$E$11)^(P$64-$M$64+1) -> 1.08243216 | Q68: =(1+'1.2 Assumptions'!$E$11)^(Q$64-$M$64+1) -> 1.104080803 | R68: =(1+'1.2 Assumptions'!$E$11)^(R$64-$M$64+1) -> 1.126162419 | S68: =(1+'1.2 Assumptions'!$E$11)^(S$64-$M$64+1) -> 1.148685668 | T68: =(1+'1.2 Assumptions'!$E$11)^(T$64-$M$64+1) -> 1.171659381 | U68: =(1+'1.2 Assumptions'!$E$11)^(U$64-$M$64+1) -> 1.195092569 | V68: =(1+'1.2 Assumptions'!$E$11)^(V$64-$M$64+1) -> 1.21899442 | W68: =(1+'1.2 Assumptions'!$E$11)^(W$64-$M$64+1) -> 1.243374308 | X68: =(1+'1.2 Assumptions'!$E$11)^(X$64-$M$64+1) -> 1.268241795 | Y68: =(1+'1.2 Assumptions'!$E$11)^(Y$64-$M$64+1) -> 1.29360663 | Z68: =(1+'1.2 Assumptions'!$E$11)^(Z$64-$M$64+1) -> 1.319478763 | AA68: =(1+'1.2 Assumptions'!$E$11)^(AA$64-$M$64+1) -> 1.345868338 | AB68: =(1+'1.2 Assumptions'!$E$11)^(AB$64-$M$64+1) -> 1.372785705 | AC68: =(1+'1.2 Assumptions'!$E$11)^(AC$64-$M$64+1) -> 1.400241419 | AD68: =(1+'1.2 Assumptions'!$E$11)^(AD$64-$M$64+1) -> 1.428246248 | AE68: =(1+'1.2 Assumptions'!$E$11)^(AE$64-$M$64+1) -> 1.456811173 | AF68: =(1+'1.2 Assumptions'!$E$11)^(AF$64-$M$64+1) -> 1.485947396 | AG68: =(1+'1.2 Assumptions'!$E$11)^(AG$64-$M$64+1) -> 1.515666344 | AH68: =(1+'1.2 Assumptions'!$E$11)^(AH$64-$M$64+1) -> 1.545979671 | AI68: =(1+'1.2 Assumptions'!$E$11)^(AI$64-$M$64+1) -> 1.576899264 | AJ68: =(1+'1.2 Assumptions'!$E$11)^(AJ$64-$M$64+1) -> 1.608437249 | AK68: =(1+'1.2 Assumptions'!$E$11)^(AK$64-$M$64+1) -> 1.640605994 | AL68: =(1+'1.2 Assumptions'!$E$11)^(AL$64-$M$64+1) -> 1.673418114
D69: Discounted CF index | E69: Index | G69: =TEXT('1.2 Assumptions'!E9,"0,0%")&" discount rate" -> 5,5% discount rate | I69: Assumptions | M69: =(1+'1.2 Assumptions'!$E$9)^(M$64-$M$64+1) -> 1.055 | N69: =(1+'1.2 Assumptions'!$E$9)^(N$64-$M$64+1) -> 1.113025 | O69: =(1+'1.2 Assumptions'!$E$9)^(O$64-$M$64+1) -> 1.174241375 | P69: =(1+'1.2 Assumptions'!$E$9)^(P$64-$M$64+1) -> 1.238824651 | Q69: =(1+'1.2 Assumptions'!$E$9)^(Q$64-$M$64+1) -> 1.306960006 | R69: =(1+'1.2 Assumptions'!$E$9)^(R$64-$M$64+1) -> 1.378842807 | S69: =(1+'1.2 Assumptions'!$E$9)^(S$64-$M$64+1) -> 1.454679161 | T69: =(1+'1.2 Assumptions'!$E$9)^(T$64-$M$64+1) -> 1.534686515 | U69: =(1+'1.2 Assumptions'!$E$9)^(U$64-$M$64+1) -> 1.619094273 | V69: =(1+'1.2 Assumptions'!$E$9)^(V$64-$M$64+1) -> 1.708144458 | W69: =(1+'1.2 Assumptions'!$E$9)^(W$64-$M$64+1) -> 1.802092404 | X69: =(1+'1.2 Assumptions'!$E$9)^(X$64-$M$64+1) -> 1.901207486 | Y69: =(1+'1.2 Assumptions'!$E$9)^(Y$64-$M$64+1) -> 2.005773897 | Z69: =(1+'1.2 Assumptions'!$E$9)^(Z$64-$M$64+1) -> 2.116091462 | AA69: =(1+'1.2 Assumptions'!$E$9)^(AA$64-$M$64+1) -> 2.232476492 | AB69: =(1+'1.2 Assumptions'!$E$9)^(AB$64-$M$64+1) -> 2.355262699 | AC69: =(1+'1.2 Assumptions'!$E$9)^(AC$64-$M$64+1) -> 2.484802148 | AD69: =(1+'1.2 Assumptions'!$E$9)^(AD$64-$M$64+1) -> 2.621466266 | AE69: =(1+'1.2 Assumptions'!$E$9)^(AE$64-$M$64+1) -> 2.765646911 | AF69: =(1+'1.2 Assumptions'!$E$9)^(AF$64-$M$64+1) -> 2.917757491 | AG69: =(1+'1.2 Assumptions'!$E$9)^(AG$64-$M$64+1) -> 3.078234153 | AH69: =(1+'1.2 Assumptions'!$E$9)^(AH$64-$M$64+1) -> 3.247537031 | AI69: =(1+'1.2 Assumptions'!$E$9)^(AI$64-$M$64+1) -> 3.426151568 | AJ69: =(1+'1.2 Assumptions'!$E$9)^(AJ$64-$M$64+1) -> 3.614589904 | AK69: =(1+'1.2 Assumptions'!$E$9)^(AK$64-$M$64+1) -> 3.813392349 | AL69: =(1+'1.2 Assumptions'!$E$9)^(AL$64-$M$64+1) -> 4.023128928
B71: C. | C71: =TEXT!C170 -> Tarif estimering
B73: Tariff
C75: Real tariff | E75: 379.3603795 | F75: DKK/ton | K75: =SUM(M75:AL75) -> 2.216574245e+10 | M75: ='3.3 Emitters'!H49*$E$75 -> 0 | N75: ='3.3 Emitters'!I49*$E$75 -> 886629698.1 | O75: ='3.3 Emitters'!J49*$E$75 -> 886629698.1 | P75: ='3.3 Emitters'!K49*$E$75 -> 886629698.1 | Q75: ='3.3 Emitters'!L49*$E$75 -> 886629698.1 | R75: ='3.3 Emitters'!M49*$E$75 -> 886629698.1 | S75: ='3.3 Emitters'!N49*$E$75 -> 886629698.1 | T75: ='3.3 Emitters'!O49*$E$75 -> 886629698.1 | U75: ='3.3 Emitters'!P49*$E$75 -> 886629698.1 | V75: ='3.3 Emitters'!Q49*$E$75 -> 886629698.1 | W75: ='3.3 Emitters'!R49*$E$75 -> 886629698.1 | X75: ='3.3 Emitters'!S49*$E$75 -> 886629698.1 | Y75: ='3.3 Emitters'!T49*$E$75 -> 886629698.1 | Z75: ='3.3 Emitters'!U49*$E$75 -> 886629698.1 | AA75: ='3.3 Emitters'!V49*$E$75 -> 886629698.1 | AB75: ='3.3 Emitters'!W49*$E$75 -> 886629698.1 | AC75: ='3.3 Emitters'!X49*$E$75 -> 886629698.1 | AD75: ='3.3 Emitters'!Y49*$E$75 -> 886629698.1 | AE75: ='3.3 Emitters'!Z49*$E$75 -> 886629698.1 | AF75: ='3.3 Emitters'!AA49*$E$75 -> 886629698.1 | AG75: ='3.3 Emitters'!AB49*$E$75 -> 886629698.1 | AH75: ='3.3 Emitters'!AC49*$E$75 -> 886629698.1 | AI75: ='3.3 Emitters'!AD49*$E$75 -> 886629698.1 | AJ75: ='3.3 Emitters'!AE49*$E$75 -> 886629698.1 | AK75: ='3.3 Emitters'!AF49*$E$75 -> 886629698.1 | AL75: ='3.3 Emitters'!AG49*$E$75 -> 886629698.1
C76: Nominal tariff | K76: =SUM(M76:AL76) -> 2.954633518e+10 | M76: =M75*M68 -> 0 | N76: =N75*N68 -> 922449537.9 | O76: =O75*O68 -> 940898528.7 | P76: =P75*P68 -> 959716499.3 | Q76: 978910829.2 | R76: 998489045.8 | S76: 1018458827 | T76: 1038828003 | U76: 1059604563 | V76: 1080796655 | W76: 1102412588 | X76: 1124460839 | Y76: 1146950056 | Z76: 1169889057 | AA76: 1193286839 | AB76: 1217152575 | AC76: 1241495627 | AD76: 1266325539 | AE76: 1291652050 | AF76: 1317485091 | AG76: 1343834793 | AH76: 1370711489 | AI76: 1398125719 | AJ76: 1426088233 | AK76: 1454609998 | AL76: 1483702198
C77: PV of tariff | K77: 1.42340225e+10 | M77: =M76/M69 -> 0 | N77: =N76/N69 -> 828777015.7 | O77: =O76/O69 -> 801282043.6 | P77: =P76/P69 -> 774699227 | Q77: 748998304.8 | R77: 724150019.8 | S77: 700126085.5 | T77: 676899153.7 | U77: 654442783.7 | V77: 632731411.7 | W77: 611740322.3 | X77: 591445619.6 | Y77: 571824201 | Z77: 552853729.8 | AA77: 534512610.8 | AB77: 516779965 | AC77: 499635606 | AD77: 483060017.1 | AE77: 467034329.4 | AF77: 451540299.5 | AG77: 436560289.5 | AH77: 422077246.8 | AI77: 408074684.1 | AJ77: 394536661.4 | AK77: 381447767.4 | AL77: 368793102.1
C79: NPV including tariff | K79: =K77-E15 -> 0
B81: D. | C81: =TEXT!C171 -> Konsolideret | E81: =TEXT!C172 -> Alle værdier er inflationsjusterede og i nutidsværdi (2024)
B83: 1. | C83: Revenue
B85: Total revenue | E85: DKK | K85: =SUM(M85:AL85) -> -980730973.4 | M85: =M87+M94 -> 0 | N85: =N87+N94 -> -57103133.67 | O85: =O87+O94 -> -55208716.92 | P85: -53377148.11 | Q85: -51606342.25 | R85: -49894283.5 | S85: -48239022.91 | T85: -46638676.18 | U85: -45091421.52 | V85: -43595497.58 | W85: -42149201.45 | X85: -40750886.71 | Y85: -39398961.56 | Z85: -38091887.01 | AA85: -36828175.12 | AB85: -35606387.32 | AC85: -34425132.76 | AD85: -33283066.74 | AE85: -32178889.17 | AF85: -31111343.09 | AG85: -30079213.22 | AH85: -29081324.63 | AI85: -28116541.35 | AJ85: -27183765.1 | AK85: -26281934.03 | AL85: -25410021.52
C87: District heating from compression | E87: DKK | I87: Calculated, sum of below | K87: =SUM(M87:AL87) -> 0 | M87: =SUM(M89:M92) -> 0 | N87: =SUM(N89:N92) -> 0 | O87: 0 | P87: 0 | Q87: 0 | R87: 0 | S87: 0 | T87: 0 | U87: 0 | V87: 0 | W87: 0 | X87: 0 | Y87: 0 | Z87: 0 | AA87: 0 | AB87: 0 | AC87: 0 | AD87: 0 | AE87: 0 | AF87: 0 | AG87: 0 | AH87: 0 | AI87: 0 | AJ87: 0 | AK87: 0 | AL87: 0
C89: ='2.2 Model'!C118 ->  | D89: ='2.2 Model'!D118 ->  | E89: ='2.2 Model'!E118 ->  | G89: ='2.2 Model'!G118 ->  | I89: ='2.2 Model'!I118 ->  | K89: =SUM(M89:AL89) -> 0 | M89: ='2.2 Model'!M118*M$68/M$69 -> 0 | N89: ='2.2 Model'!N118*N$68/N$69 -> 0 | O89: ='2.2 Model'!O118*O$68/O$69 -> 0 | P89: ='2.2 Model'!P118*P$68/P$69 -> 0 | Q89: ='2.2 Model'!Q118*Q$68/Q$69 -> 0 | R89: ='2.2 Model'!R118*R$68/R$69 -> 0 | S89: ='2.2 Model'!S118*S$68/S$69 -> 0 | T89: ='2.2 Model'!T118*T$68/T$69 -> 0 | U89: ='2.2 Model'!U118*U$68/U$69 -> 0 | V89: ='2.2 Model'!V118*V$68/V$69 -> 0 | W89: ='2.2 Model'!W118*W$68/W$69 -> 0 | X89: ='2.2 Model'!X118*X$68/X$69 -> 0 | Y89: ='2.2 Model'!Y118*Y$68/Y$69 -> 0 | Z89: ='2.2 Model'!Z118*Z$68/Z$69 -> 0 | AA89: ='2.2 Model'!AA118*AA$68/AA$69 -> 0 | AB89: ='2.2 Model'!AB118*AB$68/AB$69 -> 0 | AC89: ='2.2 Model'!AC118*AC$68/AC$69 -> 0 | AD89: ='2.2 Model'!AD118*AD$68/AD$69 -> 0 | AE89: ='2.2 Model'!AE118*AE$68/AE$69 -> 0 | AF89: ='2.2 Model'!AF118*AF$68/AF$69 -> 0 | AG89: ='2.2 Model'!AG118*AG$68/AG$69 -> 0 | AH89: ='2.2 Model'!AH118*AH$68/AH$69 -> 0 | AI89: ='2.2 Model'!AI118*AI$68/AI$69 -> 0 | AJ89: ='2.2 Model'!AJ118*AJ$68/AJ$69 -> 0 | AK89: ='2.2 Model'!AK118*AK$68/AK$69 -> 0 | AL89: ='2.2 Model'!AL118*AL$68/AL$69 -> 0
C90: ='2.2 Model'!C119 ->  | D90: ='2.2 Model'!D119 ->  | E90: ='2.2 Model'!E119 ->  | G90: ='2.2 Model'!G119 ->  | I90: ='2.2 Model'!I119 ->  | K90: =SUM(M90:AL90) -> 0 | M90: ='2.2 Model'!M119*M$68/M$69 -> 0 | N90: ='2.2 Model'!N119*N$68/N$69 -> 0 | O90: ='2.2 Model'!O119*O$68/O$69 -> 0 | P90: ='2.2 Model'!P119*P$68/P$69 -> 0 | Q90: ='2.2 Model'!Q119*Q$68/Q$69 -> 0 | R90: ='2.2 Model'!R119*R$68/R$69 -> 0 | S90: ='2.2 Model'!S119*S$68/S$69 -> 0 | T90: ='2.2 Model'!T119*T$68/T$69 -> 0 | U90: ='2.2 Model'!U119*U$68/U$69 -> 0 | V90: ='2.2 Model'!V119*V$68/V$69 -> 0 | W90: ='2.2 Model'!W119*W$68/W$69 -> 0 | X90: ='2.2 Model'!X119*X$68/X$69 -> 0 | Y90: ='2.2 Model'!Y119*Y$68/Y$69 -> 0 | Z90: ='2.2 Model'!Z119*Z$68/Z$69 -> 0 | AA90: ='2.2 Model'!AA119*AA$68/AA$69 -> 0 | AB90: ='2.2 Model'!AB119*AB$68/AB$69 -> 0 | AC90: ='2.2 Model'!AC119*AC$68/AC$69 -> 0 | AD90: ='2.2 Model'!AD119*AD$68/AD$69 -> 0 | AE90: ='2.2 Model'!AE119*AE$68/AE$69 -> 0 | AF90: ='2.2 Model'!AF119*AF$68/AF$69 -> 0 | AG90: ='2.2 Model'!AG119*AG$68/AG$69 -> 0 | AH90: ='2.2 Model'!AH119*AH$68/AH$69 -> 0 | AI90: ='2.2 Model'!AI119*AI$68/AI$69 -> 0 | AJ90: ='2.2 Model'!AJ119*AJ$68/AJ$69 -> 0 | AK90: ='2.2 Model'!AK119*AK$68/AK$69 -> 0 | AL90: ='2.2 Model'!AL119*AL$68/AL$69 -> 0
C91: ='2.2 Model'!C120 ->  | D91: ='2.2 Model'!D120 ->  | E91: ='2.2 Model'!E120 ->  | G91: ='2.2 Model'!G120 ->  | I91: ='2.2 Model'!I120 ->  | K91: =SUM(M91:AL91) -> 0 | M91: ='2.2 Model'!M120*M$68/M$69 -> 0 | N91: ='2.2 Model'!N120*N$68/N$69 -> 0 | O91: ='2.2 Model'!O120*O$68/O$69 -> 0 | P91: ='2.2 Model'!P120*P$68/P$69 -> 0 | Q91: ='2.2 Model'!Q120*Q$68/Q$69 -> 0 | R91: ='2.2 Model'!R120*R$68/R$69 -> 0 | S91: ='2.2 Model'!S120*S$68/S$69 -> 0 | T91: ='2.2 Model'!T120*T$68/T$69 -> 0 | U91: ='2.2 Model'!U120*U$68/U$69 -> 0 | V91: ='2.2 Model'!V120*V$68/V$69 -> 0 | W91: ='2.2 Model'!W120*W$68/W$69 -> 0 | X91: ='2.2 Model'!X120*X$68/X$69 -> 0 | Y91: ='2.2 Model'!Y120*Y$68/Y$69 -> 0 | Z91: ='2.2 Model'!Z120*Z$68/Z$69 -> 0 | AA91: ='2.2 Model'!AA120*AA$68/AA$69 -> 0 | AB91: ='2.2 Model'!AB120*AB$68/AB$69 -> 0 | AC91: ='2.2 Model'!AC120*AC$68/AC$69 -> 0 | AD91: ='2.2 Model'!AD120*AD$68/AD$69 -> 0 | AE91: ='2.2 Model'!AE120*AE$68/AE$69 -> 0 | AF91: ='2.2 Model'!AF120*AF$68/AF$69 -> 0 | AG91: ='2.2 Model'!AG120*AG$68/AG$69 -> 0 | AH91: ='2.2 Model'!AH120*AH$68/AH$69 -> 0 | AI91: ='2.2 Model'!AI120*AI$68/AI$69 -> 0 | AJ91: ='2.2 Model'!AJ120*AJ$68/AJ$69 -> 0 | AK91: ='2.2 Model'!AK120*AK$68/AK$69 -> 0 | AL91: ='2.2 Model'!AL120*AL$68/AL$69 -> 0
C92: ='2.2 Model'!C121 ->  | D92: ='2.2 Model'!D121 ->  | E92: ='2.2 Model'!E121 ->  | G92: ='2.2 Model'!G121 ->  | I92: ='2.2 Model'!I121 ->  | K92: 0 | M92: ='2.2 Model'!M121*M$68/M$69 -> 0 | N92: ='2.2 Model'!N121*N$68/N$69 -> 0 | O92: ='2.2 Model'!O121*O$68/O$69 -> 0 | P92: ='2.2 Model'!P121*P$68/P$69 -> 0 | Q92: ='2.2 Model'!Q121*Q$68/Q$69 -> 0 | R92: ='2.2 Model'!R121*R$68/R$69 -> 0 | S92: ='2.2 Model'!S121*S$68/S$69 -> 0 | T92: ='2.2 Model'!T121*T$68/T$69 -> 0 | U92: ='2.2 Model'!U121*U$68/U$69 -> 0 | V92: ='2.2 Model'!V121*V$68/V$69 -> 0 | W92: ='2.2 Model'!W121*W$68/W$69 -> 0 | X92: ='2.2 Model'!X121*X$68/X$69 -> 0 | Y92: ='2.2 Model'!Y121*Y$68/Y$69 -> 0 | Z92: ='2.2 Model'!Z121*Z$68/Z$69 -> 0 | AA92: ='2.2 Model'!AA121*AA$68/AA$69 -> 0 | AB92: ='2.2 Model'!AB121*AB$68/AB$69 -> 0 | AC92: ='2.2 Model'!AC121*AC$68/AC$69 -> 0 | AD92: ='2.2 Model'!AD121*AD$68/AD$69 -> 0 | AE92: ='2.2 Model'!AE121*AE$68/AE$69 -> 0 | AF92: ='2.2 Model'!AF121*AF$68/AF$69 -> 0 | AG92: ='2.2 Model'!AG121*AG$68/AG$69 -> 0 | AH92: ='2.2 Model'!AH121*AH$68/AH$69 -> 0 | AI92: ='2.2 Model'!AI121*AI$68/AI$69 -> 0 | AJ92: ='2.2 Model'!AJ121*AJ$68/AJ$69 -> 0 | AK92: ='2.2 Model'!AK121*AK$68/AK$69 -> 0 | AL92: ='2.2 Model'!AL121*AL$68/AL$69 -> 0
C94: District heating from liqufaction | E94: DKK | I94: Calculated, sum of below | K94: =SUM(M94:AL94) -> -980730973.4 | M94: =SUM(M96) -> 0 | N94: =SUM(N96) -> -57103133.67 | O94: =SUM(O96) -> -55208716.92 | P94: -53377148.11 | Q94: -51606342.25 | R94: -49894283.5 | S94: -48239022.91 | T94: -46638676.18 | U94: -45091421.52 | V94: -43595497.58 | W94: -42149201.45 | X94: -40750886.71 | Y94: -39398961.56 | Z94: -38091887.01 | AA94: -36828175.12 | AB94: -35606387.32 | AC94: -34425132.76 | AD94: -33283066.74 | AE94: -32178889.17 | AF94: -31111343.09 | AG94: -30079213.22 | AH94: -29081324.63 | AI94: -28116541.35 | AJ94: -27183765.1 | AK94: -26281934.03 | AL94: -25410021.52
D96: ='2.2 Model'!D125 -> Liquefaction | E96: ='2.2 Model'!E125 -> DKK | G96: ='2.2 Model'!G125 -> Cooling duty at 64,16 MW with 80% heat utilization | I96: ='2.2 Model'!I125 -> Calculated | K96: =SUM(M96:AL96) -> -980730973.4 | M96: ='2.2 Model'!M125 -> 0 | N96: ='2.2 Model'!N125*N$68/N$69 -> -57103133.67 | O96: ='2.2 Model'!O125*O$68/O$69 -> -55208716.92 | P96: ='2.2 Model'!P125*P$68/P$69 -> -53377148.11 | Q96: ='2.2 Model'!Q125*Q$68/Q$69 -> -51606342.25 | R96: ='2.2 Model'!R125*R$68/R$69 -> -49894283.5 | S96: ='2.2 Model'!S125*S$68/S$69 -> -48239022.91 | T96: ='2.2 Model'!T125*T$68/T$69 -> -46638676.18 | U96: ='2.2 Model'!U125*U$68/U$69 -> -45091421.52 | V96: ='2.2 Model'!V125*V$68/V$69 -> -43595497.58 | W96: ='2.2 Model'!W125*W$68/W$69 -> -42149201.45 | X96: ='2.2 Model'!X125*X$68/X$69 -> -40750886.71 | Y96: ='2.2 Model'!Y125*Y$68/Y$69 -> -39398961.56 | Z96: ='2.2 Model'!Z125*Z$68/Z$69 -> -38091887.01 | AA96: ='2.2 Model'!AA125*AA$68/AA$69 -> -36828175.12 | AB96: ='2.2 Model'!AB125*AB$68/AB$69 -> -35606387.32 | AC96: ='2.2 Model'!AC125*AC$68/AC$69 -> -34425132.76 | AD96: ='2.2 Model'!AD125*AD$68/AD$69 -> -33283066.74 | AE96: ='2.2 Model'!AE125*AE$68/AE$69 -> -32178889.17 | AF96: ='2.2 Model'!AF125*AF$68/AF$69 -> -31111343.09 | AG96: ='2.2 Model'!AG125*AG$68/AG$69 -> -30079213.22 | AH96: ='2.2 Model'!AH125*AH$68/AH$69 -> -29081324.63 | AI96: ='2.2 Model'!AI125*AI$68/AI$69 -> -28116541.35 | AJ96: ='2.2 Model'!AJ125*AJ$68/AJ$69 -> -27183765.1 | AK96: ='2.2 Model'!AK125*AK$68/AK$69 -> -26281934.03 | AL96: ='2.2 Model'!AL125*AL$68/AL$69 -> -25410021.52
B98: 2. | C98: CAPEX
B100: Total CAPEX | E100: DKK | K100: =SUM(M100:AL100) -> 2472364409 | M100: =M102+M112+M119+M123+M127+M137+M145 -> 2472364409 | N100: =N102+N112+N119+N123+N127+N137+N145 -> 0 | O100: 0 | P100: 0 | Q100: 0 | R100: 0 | S100: 0 | T100: 0 | U100: 0 | V100: 0 | W100: 0 | X100: 0 | Y100: 0 | Z100: 0 | AA100: 0 | AB100: 0 | AC100: 0 | AD100: 0 | AE100: 0 | AF100: 0 | AG100: 0 | AH100: 0 | AI100: 0 | AJ100: 0 | AK100: 0 | AL100: 0
C102: Pipeline | E102: DKK | I102: Calculated, sum of below | K102: =SUM(M102:AL102) -> 739453175.2 | M102: =SUM(M104:M110) -> 739453175.2 | N102: =SUM(N104:N110) -> 0 | O102: 0 | P102: 0 | Q102: 0 | R102: 0 | S102: 0 | T102: 0 | U102: 0 | V102: 0 | W102: 0 | X102: 0 | Y102: 0 | Z102: 0 | AA102: 0 | AB102: 0 | AC102: 0 | AD102: 0 | AE102: 0 | AF102: 0 | AG102: 0 | AH102: 0 | AI102: 0 | AJ102: 0 | AK102: 0 | AL102: 0
C104: ='2.2 Model'!C134 -> S1 | D104: ='2.2 Model'!D134 -> Kræftværkshalvøen - Avedøreværket | E104: ='2.2 Model'!E134 -> DKK | G104: ='2.2 Model'!G134 -> Gas phase | I104: ='2.2 Model'!I134 -> Elements | K104: =SUM(M104:AL104) -> 309882253.5 | M104: ='2.2 Model'!M134*M$68/M$69 -> 309882253.5 | N104: ='2.2 Model'!N134*N$68/N$69 -> 0 | O104: ='2.2 Model'!O134*O$68/O$69 -> 0 | P104: ='2.2 Model'!P134*P$68/P$69 -> 0 | Q104: ='2.2 Model'!Q134*Q$68/Q$69 -> 0 | R104: ='2.2 Model'!R134*R$68/R$69 -> 0 | S104: ='2.2 Model'!S134*S$68/S$69 -> 0 | T104: ='2.2 Model'!T134*T$68/T$69 -> 0 | U104: ='2.2 Model'!U134*U$68/U$69 -> 0 | V104: ='2.2 Model'!V134*V$68/V$69 -> 0 | W104: ='2.2 Model'!W134*W$68/W$69 -> 0 | X104: ='2.2 Model'!X134*X$68/X$69 -> 0 | Y104: ='2.2 Model'!Y134*Y$68/Y$69 -> 0 | Z104: ='2.2 Model'!Z134*Z$68/Z$69 -> 0 | AA104: ='2.2 Model'!AA134*AA$68/AA$69 -> 0 | AB104: ='2.2 Model'!AB134*AB$68/AB$69 -> 0 | AC104: ='2.2 Model'!AC134*AC$68/AC$69 -> 0 | AD104: ='2.2 Model'!AD134*AD$68/AD$69 -> 0 | AE104: ='2.2 Model'!AE134*AE$68/AE$69 -> 0 | AF104: ='2.2 Model'!AF134*AF$68/AF$69 -> 0 | AG104: ='2.2 Model'!AG134*AG$68/AG$69 -> 0 | AH104: ='2.2 Model'!AH134*AH$68/AH$69 -> 0 | AI104: ='2.2 Model'!AI134*AI$68/AI$69 -> 0 | AJ104: ='2.2 Model'!AJ134*AJ$68/AJ$69 -> 0 | AK104: ='2.2 Model'!AK134*AK$68/AK$69 -> 0 | AL104: ='2.2 Model'!AL134*AL$68/AL$69 -> 0
C105: ='2.2 Model'!C135 -> S2 | D105: ='2.2 Model'!D135 -> Avedøreværket - Intersection | E105: ='2.2 Model'!E135 -> DKK | G105: ='2.2 Model'!G135 -> Gas phase | I105: ='2.2 Model'!I135 -> Elements | K105: =SUM(M105:AL105) -> 151282764.7 | M105: ='2.2 Model'!M135*M$68/M$69 -> 151282764.7 | N105: ='2.2 Model'!N135*N$68/N$69 -> 0 | O105: ='2.2 Model'!O135*O$68/O$69 -> 0 | P105: ='2.2 Model'!P135*P$68/P$69 -> 0 | Q105: ='2.2 Model'!Q135*Q$68/Q$69 -> 0 | R105: ='2.2 Model'!R135*R$68/R$69 -> 0 | S105: ='2.2 Model'!S135*S$68/S$69 -> 0 | T105: ='2.2 Model'!T135*T$68/T$69 -> 0 | U105: ='2.2 Model'!U135*U$68/U$69 -> 0 | V105: ='2.2 Model'!V135*V$68/V$69 -> 0 | W105: ='2.2 Model'!W135*W$68/W$69 -> 0 | X105: ='2.2 Model'!X135*X$68/X$69 -> 0 | Y105: ='2.2 Model'!Y135*Y$68/Y$69 -> 0 | Z105: ='2.2 Model'!Z135*Z$68/Z$69 -> 0 | AA105: ='2.2 Model'!AA135*AA$68/AA$69 -> 0 | AB105: ='2.2 Model'!AB135*AB$68/AB$69 -> 0 | AC105: ='2.2 Model'!AC135*AC$68/AC$69 -> 0 | AD105: ='2.2 Model'!AD135*AD$68/AD$69 -> 0 | AE105: ='2.2 Model'!AE135*AE$68/AE$69 -> 0 | AF105: ='2.2 Model'!AF135*AF$68/AF$69 -> 0 | AG105: ='2.2 Model'!AG135*AG$68/AG$69 -> 0 | AH105: ='2.2 Model'!AH135*AH$68/AH$69 -> 0 | AI105: ='2.2 Model'!AI135*AI$68/AI$69 -> 0 | AJ105: ='2.2 Model'!AJ135*AJ$68/AJ$69 -> 0 | AK105: ='2.2 Model'!AK135*AK$68/AK$69 -> 0 | AL105: ='2.2 Model'!AL135*AL$68/AL$69 -> 0
C106: ='2.2 Model'!C136 -> S3 | D106: ='2.2 Model'!D136 -> Vestforbrænding - Intersection | E106: ='2.2 Model'!E136 -> DKK | G106: ='2.2 Model'!G136 -> Gas phase | I106: ='2.2 Model'!I136 -> Elements | K106: 65969327.63 | M106: ='2.2 Model'!M136*M$68/M$69 -> 65969327.63 | N106: ='2.2 Model'!N136*N$68/N$69 -> 0 | O106: ='2.2 Model'!O136*O$68/O$69 -> 0 | P106: ='2.2 Model'!P136*P$68/P$69 -> 0 | Q106: ='2.2 Model'!Q136*Q$68/Q$69 -> 0 | R106: ='2.2 Model'!R136*R$68/R$69 -> 0 | S106: ='2.2 Model'!S136*S$68/S$69 -> 0 | T106: ='2.2 Model'!T136*T$68/T$69 -> 0 | U106: ='2.2 Model'!U136*U$68/U$69 -> 0 | V106: ='2.2 Model'!V136*V$68/V$69 -> 0 | W106: ='2.2 Model'!W136*W$68/W$69 -> 0 | X106: ='2.2 Model'!X136*X$68/X$69 -> 0 | Y106: ='2.2 Model'!Y136*Y$68/Y$69 -> 0 | Z106: ='2.2 Model'!Z136*Z$68/Z$69 -> 0 | AA106: ='2.2 Model'!AA136*AA$68/AA$69 -> 0 | AB106: ='2.2 Model'!AB136*AB$68/AB$69 -> 0 | AC106: ='2.2 Model'!AC136*AC$68/AC$69 -> 0 | AD106: ='2.2 Model'!AD136*AD$68/AD$69 -> 0 | AE106: ='2.2 Model'!AE136*AE$68/AE$69 -> 0 | AF106: ='2.2 Model'!AF136*AF$68/AF$69 -> 0 | AG106: ='2.2 Model'!AG136*AG$68/AG$69 -> 0 | AH106: ='2.2 Model'!AH136*AH$68/AH$69 -> 0 | AI106: ='2.2 Model'!AI136*AI$68/AI$69 -> 0 | AJ106: ='2.2 Model'!AJ136*AJ$68/AJ$69 -> 0 | AK106: ='2.2 Model'!AK136*AK$68/AK$69 -> 0 | AL106: ='2.2 Model'!AL136*AL$68/AL$69 -> 0
C107: ='2.2 Model'!C137 -> S4 | D107: ='2.2 Model'!D137 -> Intersection - Compressorstation | E107: ='2.2 Model'!E137 -> DKK | G107: ='2.2 Model'!G137 -> Gas phase | I107: ='2.2 Model'!I137 -> Elements | K107: 59335444.67 | M107: ='2.2 Model'!M137*M$68/M$69 -> 59335444.67 | N107: ='2.2 Model'!N137*N$68/N$69 -> 0 | O107: ='2.2 Model'!O137*O$68/O$69 -> 0 | P107: ='2.2 Model'!P137*P$68/P$69 -> 0 | Q107: ='2.2 Model'!Q137*Q$68/Q$69 -> 0 | R107: ='2.2 Model'!R137*R$68/R$69 -> 0 | S107: ='2.2 Model'!S137*S$68/S$69 -> 0 | T107: ='2.2 Model'!T137*T$68/T$69 -> 0 | U107: ='2.2 Model'!U137*U$68/U$69 -> 0 | V107: ='2.2 Model'!V137*V$68/V$69 -> 0 | W107: ='2.2 Model'!W137*W$68/W$69 -> 0 | X107: ='2.2 Model'!X137*X$68/X$69 -> 0 | Y107: ='2.2 Model'!Y137*Y$68/Y$69 -> 0 | Z107: ='2.2 Model'!Z137*Z$68/Z$69 -> 0 | AA107: ='2.2 Model'!AA137*AA$68/AA$69 -> 0 | AB107: ='2.2 Model'!AB137*AB$68/AB$69 -> 0 | AC107: ='2.2 Model'!AC137*AC$68/AC$69 -> 0 | AD107: ='2.2 Model'!AD137*AD$68/AD$69 -> 0 | AE107: ='2.2 Model'!AE137*AE$68/AE$69 -> 0 | AF107: ='2.2 Model'!AF137*AF$68/AF$69 -> 0 | AG107: ='2.2 Model'!AG137*AG$68/AG$69 -> 0 | AH107: ='2.2 Model'!AH137*AH$68/AH$69 -> 0 | AI107: ='2.2 Model'!AI137*AI$68/AI$69 -> 0 | AJ107: ='2.2 Model'!AJ137*AJ$68/AJ$69 -> 0 | AK107: ='2.2 Model'!AK137*AK$68/AK$69 -> 0 | AL107: ='2.2 Model'!AL137*AL$68/AL$69 -> 0
C108: ='2.2 Model'!C138 -> S5 | D108: ='2.2 Model'!D138 -> Compressorstation - ARGO | E108: ='2.2 Model'!E138 -> DKK | G108: ='2.2 Model'!G138 -> Gas phase | I108: ='2.2 Model'!I138 -> Elements | K108: 119275133.4 | M108: ='2.2 Model'!M138*M$68/M$69 -> 119275133.4 | N108: ='2.2 Model'!N138*N$68/N$69 -> 0 | O108: ='2.2 Model'!O138*O$68/O$69 -> 0 | P108: ='2.2 Model'!P138*P$68/P$69 -> 0 | Q108: ='2.2 Model'!Q138*Q$68/Q$69 -> 0 | R108: ='2.2 Model'!R138*R$68/R$69 -> 0 | S108: ='2.2 Model'!S138*S$68/S$69 -> 0 | T108: ='2.2 Model'!T138*T$68/T$69 -> 0 | U108: ='2.2 Model'!U138*U$68/U$69 -> 0 | V108: ='2.2 Model'!V138*V$68/V$69 -> 0 | W108: ='2.2 Model'!W138*W$68/W$69 -> 0 | X108: ='2.2 Model'!X138*X$68/X$69 -> 0 | Y108: ='2.2 Model'!Y138*Y$68/Y$69 -> 0 | Z108: ='2.2 Model'!Z138*Z$68/Z$69 -> 0 | AA108: ='2.2 Model'!AA138*AA$68/AA$69 -> 0 | AB108: ='2.2 Model'!AB138*AB$68/AB$69 -> 0 | AC108: ='2.2 Model'!AC138*AC$68/AC$69 -> 0 | AD108: ='2.2 Model'!AD138*AD$68/AD$69 -> 0 | AE108: ='2.2 Model'!AE138*AE$68/AE$69 -> 0 | AF108: ='2.2 Model'!AF138*AF$68/AF$69 -> 0 | AG108: ='2.2 Model'!AG138*AG$68/AG$69 -> 0 | AH108: ='2.2 Model'!AH138*AH$68/AH$69 -> 0 | AI108: ='2.2 Model'!AI138*AI$68/AI$69 -> 0 | AJ108: ='2.2 Model'!AJ138*AJ$68/AJ$69 -> 0 | AK108: ='2.2 Model'!AK138*AK$68/AK$69 -> 0 | AL108: ='2.2 Model'!AL138*AL$68/AL$69 -> 0
C109: ='2.2 Model'!C139 -> S6 | D109: ='2.2 Model'!D139 -> ARGO - Intersection | E109: ='2.2 Model'!E139 -> DKK | G109: ='2.2 Model'!G139 -> Gas phase | I109: ='2.2 Model'!I139 -> Elements | K109: 33708251.24 | M109: ='2.2 Model'!M139*M$68/M$69 -> 33708251.24 | N109: ='2.2 Model'!N139*N$68/N$69 -> 0 | O109: ='2.2 Model'!O139*O$68/O$69 -> 0 | P109: ='2.2 Model'!P139*P$68/P$69 -> 0 | Q109: ='2.2 Model'!Q139*Q$68/Q$69 -> 0 | R109: ='2.2 Model'!R139*R$68/R$69 -> 0 | S109: ='2.2 Model'!S139*S$68/S$69 -> 0 | T109: ='2.2 Model'!T139*T$68/T$69 -> 0 | U109: ='2.2 Model'!U139*U$68/U$69 -> 0 | V109: ='2.2 Model'!V139*V$68/V$69 -> 0 | W109: ='2.2 Model'!W139*W$68/W$69 -> 0 | X109: ='2.2 Model'!X139*X$68/X$69 -> 0 | Y109: ='2.2 Model'!Y139*Y$68/Y$69 -> 0 | Z109: ='2.2 Model'!Z139*Z$68/Z$69 -> 0 | AA109: ='2.2 Model'!AA139*AA$68/AA$69 -> 0 | AB109: ='2.2 Model'!AB139*AB$68/AB$69 -> 0 | AC109: ='2.2 Model'!AC139*AC$68/AC$69 -> 0 | AD109: ='2.2 Model'!AD139*AD$68/AD$69 -> 0 | AE109: ='2.2 Model'!AE139*AE$68/AE$69 -> 0 | AF109: ='2.2 Model'!AF139*AF$68/AF$69 -> 0 | AG109: ='2.2 Model'!AG139*AG$68/AG$69 -> 0 | AH109: ='2.2 Model'!AH139*AH$68/AH$69 -> 0 | AI109: ='2.2 Model'!AI139*AI$68/AI$69 -> 0 | AJ109: ='2.2 Model'!AJ139*AJ$68/AJ$69 -> 0 | AK109: ='2.2 Model'!AK139*AK$68/AK$69 -> 0 | AL109: ='2.2 Model'!AL139*AL$68/AL$69 -> 0
C110: ='2.2 Model'!C140 -> S7 | D110: ='2.2 Model'!D140 -> Intersection - Havnsø | E110: ='2.2 Model'!E140 -> DKK | G110: ='2.2 Model'!G140 -> Not relevant | I110: ='2.2 Model'!I140 -> Elements | K110: 0 | M110: ='2.2 Model'!M140*M$68/M$69 -> 0 | N110: ='2.2 Model'!N140*N$68/N$69 -> 0 | O110: ='2.2 Model'!O140*O$68/O$69 -> 0 | P110: ='2.2 Model'!P140*P$68/P$69 -> 0 | Q110: ='2.2 Model'!Q140*Q$68/Q$69 -> 0 | R110: ='2.2 Model'!R140*R$68/R$69 -> 0 | S110: ='2.2 Model'!S140*S$68/S$69 -> 0 | T110: ='2.2 Model'!T140*T$68/T$69 -> 0 | U110: ='2.2 Model'!U140*U$68/U$69 -> 0 | V110: ='2.2 Model'!V140*V$68/V$69 -> 0 | W110: ='2.2 Model'!W140*W$68/W$69 -> 0 | X110: ='2.2 Model'!X140*X$68/X$69 -> 0 | Y110: ='2.2 Model'!Y140*Y$68/Y$69 -> 0 | Z110: ='2.2 Model'!Z140*Z$68/Z$69 -> 0 | AA110: ='2.2 Model'!AA140*AA$68/AA$69 -> 0 | AB110: ='2.2 Model'!AB140*AB$68/AB$69 -> 0 | AC110: ='2.2 Model'!AC140*AC$68/AC$69 -> 0 | AD110: ='2.2 Model'!AD140*AD$68/AD$69 -> 0 | AE110: ='2.2 Model'!AE140*AE$68/AE$69 -> 0 | AF110: ='2.2 Model'!AF140*AF$68/AF$69 -> 0 | AG110: ='2.2 Model'!AG140*AG$68/AG$69 -> 0 | AH110: ='2.2 Model'!AH140*AH$68/AH$69 -> 0 | AI110: ='2.2 Model'!AI140*AI$68/AI$69 -> 0 | AJ110: ='2.2 Model'!AJ140*AJ$68/AJ$69 -> 0 | AK110: ='2.2 Model'!AK140*AK$68/AK$69 -> 0 | AL110: ='2.2 Model'!AL140*AL$68/AL$69 -> 0
C112: Compression | E112: DKK | I112: Calculated, sum of below | K112: =SUM(M112:AL112) -> 0 | M112: =SUM(M114:M117) -> 0 | N112: =SUM(N114:N117) -> 0 | O112: 0 | P112: 0 | Q112: 0 | R112: 0 | S112: 0 | T112: 0 | U112: 0 | V112: 0 | W112: 0 | X112: 0 | Y112: 0 | Z112: 0 | AA112: 0 | AB112: 0 | AC112: 0 | AD112: 0 | AE112: 0 | AF112: 0 | AG112: 0 | AH112: 0 | AI112: 0 | AJ112: 0 | AK112: 0 | AL112: 0
C114: ='2.2 Model'!C144 ->  | D114: ='2.2 Model'!D144 ->  | E114: ='2.2 Model'!E144 ->  | G114: ='2.2 Model'!G144 ->  | I114: ='2.2 Model'!I144 ->  | K114: =SUM(M114:AL114) -> 0 | M114: ='2.2 Model'!M144*M$68/M$69 -> 0 | N114: ='2.2 Model'!N144*N$68/N$69 -> 0 | O114: ='2.2 Model'!O144*O$68/O$69 -> 0 | P114: ='2.2 Model'!P144*P$68/P$69 -> 0 | Q114: ='2.2 Model'!Q144*Q$68/Q$69 -> 0 | R114: ='2.2 Model'!R144*R$68/R$69 -> 0 | S114: ='2.2 Model'!S144*S$68/S$69 -> 0 | T114: ='2.2 Model'!T144*T$68/T$69 -> 0 | U114: ='2.2 Model'!U144*U$68/U$69 -> 0 | V114: ='2.2 Model'!V144*V$68/V$69 -> 0 | W114: ='2.2 Model'!W144*W$68/W$69 -> 0 | X114: ='2.2 Model'!X144*X$68/X$69 -> 0 | Y114: ='2.2 Model'!Y144*Y$68/Y$69 -> 0 | Z114: ='2.2 Model'!Z144*Z$68/Z$69 -> 0 | AA114: ='2.2 Model'!AA144*AA$68/AA$69 -> 0 | AB114: ='2.2 Model'!AB144*AB$68/AB$69 -> 0 | AC114: ='2.2 Model'!AC144*AC$68/AC$69 -> 0 | AD114: ='2.2 Model'!AD144*AD$68/AD$69 -> 0 | AE114: ='2.2 Model'!AE144*AE$68/AE$69 -> 0 | AF114: ='2.2 Model'!AF144*AF$68/AF$69 -> 0 | AG114: ='2.2 Model'!AG144*AG$68/AG$69 -> 0 | AH114: ='2.2 Model'!AH144*AH$68/AH$69 -> 0 | AI114: ='2.2 Model'!AI144*AI$68/AI$69 -> 0 | AJ114: ='2.2 Model'!AJ144*AJ$68/AJ$69 -> 0 | AK114: ='2.2 Model'!AK144*AK$68/AK$69 -> 0 | AL114: ='2.2 Model'!AL144*AL$68/AL$69 -> 0
C115: ='2.2 Model'!C145 ->  | D115: ='2.2 Model'!D145 ->  | E115: ='2.2 Model'!E145 ->  | G115: ='2.2 Model'!G145 ->  | I115: ='2.2 Model'!I145 ->  | K115: =SUM(M115:AL115) -> 0 | M115: ='2.2 Model'!M145*M$68/M$69 -> 0 | N115: ='2.2 Model'!N145*N$68/N$69 -> 0 | O115: ='2.2 Model'!O145*O$68/O$69 -> 0 | P115: ='2.2 Model'!P145*P$68/P$69 -> 0 | Q115: ='2.2 Model'!Q145*Q$68/Q$69 -> 0 | R115: ='2.2 Model'!R145*R$68/R$69 -> 0 | S115: ='2.2 Model'!S145*S$68/S$69 -> 0 | T115: ='2.2 Model'!T145*T$68/T$69 -> 0 | U115: ='2.2 Model'!U145*U$68/U$69 -> 0 | V115: ='2.2 Model'!V145*V$68/V$69 -> 0 | W115: ='2.2 Model'!W145*W$68/W$69 -> 0 | X115: ='2.2 Model'!X145*X$68/X$69 -> 0 | Y115: ='2.2 Model'!Y145*Y$68/Y$69 -> 0 | Z115: ='2.2 Model'!Z145*Z$68/Z$69 -> 0 | AA115: ='2.2 Model'!AA145*AA$68/AA$69 -> 0 | AB115: ='2.2 Model'!AB145*AB$68/AB$69 -> 0 | AC115: ='2.2 Model'!AC145*AC$68/AC$69 -> 0 | AD115: ='2.2 Model'!AD145*AD$68/AD$69 -> 0 | AE115: ='2.2 Model'!AE145*AE$68/AE$69 -> 0 | AF115: ='2.2 Model'!AF145*AF$68/AF$69 -> 0 | AG115: ='2.2 Model'!AG145*AG$68/AG$69 -> 0 | AH115: ='2.2 Model'!AH145*AH$68/AH$69 -> 0 | AI115: ='2.2 Model'!AI145*AI$68/AI$69 -> 0 | AJ115: ='2.2 Model'!AJ145*AJ$68/AJ$69 -> 0 | AK115: ='2.2 Model'!AK145*AK$68/AK$69 -> 0 | AL115: ='2.2 Model'!AL145*AL$68/AL$69 -> 0
C116: ='2.2 Model'!C146 ->  | D116: ='2.2 Model'!D146 ->  | E116: ='2.2 Model'!E146 ->  | G116: ='2.2 Model'!G146 ->  | I116: ='2.2 Model'!I146 ->  | K116: 0 | M116: ='2.2 Model'!M146*M$68/M$69 -> 0 | N116: ='2.2 Model'!N146*N$68/N$69 -> 0 | O116: ='2.2 Model'!O146*O$68/O$69 -> 0 | P116: ='2.2 Model'!P146*P$68/P$69 -> 0 | Q116: ='2.2 Model'!Q146*Q$68/Q$69 -> 0 | R116: ='2.2 Model'!R146*R$68/R$69 -> 0 | S116: ='2.2 Model'!S146*S$68/S$69 -> 0 | T116: ='2.2 Model'!T146*T$68/T$69 -> 0 | U116: ='2.2 Model'!U146*U$68/U$69 -> 0 | V116: ='2.2 Model'!V146*V$68/V$69 -> 0 | W116: ='2.2 Model'!W146*W$68/W$69 -> 0 | X116: ='2.2 Model'!X146*X$68/X$69 -> 0 | Y116: ='2.2 Model'!Y146*Y$68/Y$69 -> 0 | Z116: ='2.2 Model'!Z146*Z$68/Z$69 -> 0 | AA116: ='2.2 Model'!AA146*AA$68/AA$69 -> 0 | AB116: ='2.2 Model'!AB146*AB$68/AB$69 -> 0 | AC116: ='2.2 Model'!AC146*AC$68/AC$69 -> 0 | AD116: ='2.2 Model'!AD146*AD$68/AD$69 -> 0 | AE116: ='2.2 Model'!AE146*AE$68/AE$69 -> 0 | AF116: ='2.2 Model'!AF146*AF$68/AF$69 -> 0 | AG116: ='2.2 Model'!AG146*AG$68/AG$69 -> 0 | AH116: ='2.2 Model'!AH146*AH$68/AH$69 -> 0 | AI116: ='2.2 Model'!AI146*AI$68/AI$69 -> 0 | AJ116: ='2.2 Model'!AJ146*AJ$68/AJ$69 -> 0 | AK116: ='2.2 Model'!AK146*AK$68/AK$69 -> 0 | AL116: ='2.2 Model'!AL146*AL$68/AL$69 -> 0
C117: ='2.2 Model'!C147 ->  | D117: ='2.2 Model'!D147 ->  | E117: ='2.2 Model'!E147 ->  | G117: ='2.2 Model'!G147 ->  | I117: ='2.2 Model'!I147 ->  | K117: 0 | M117: ='2.2 Model'!M147*M$68/M$69 -> 0 | N117: ='2.2 Model'!N147*N$68/N$69 -> 0 | O117: ='2.2 Model'!O147*O$68/O$69 -> 0 | P117: ='2.2 Model'!P147*P$68/P$69 -> 0 | Q117: ='2.2 Model'!Q147*Q$68/Q$69 -> 0 | R117: ='2.2 Model'!R147*R$68/R$69 -> 0 | S117: ='2.2 Model'!S147*S$68/S$69 -> 0 | T117: ='2.2 Model'!T147*T$68/T$69 -> 0 | U117: ='2.2 Model'!U147*U$68/U$69 -> 0 | V117: ='2.2 Model'!V147*V$68/V$69 -> 0 | W117: ='2.2 Model'!W147*W$68/W$69 -> 0 | X117: ='2.2 Model'!X147*X$68/X$69 -> 0 | Y117: ='2.2 Model'!Y147*Y$68/Y$69 -> 0 | Z117: ='2.2 Model'!Z147*Z$68/Z$69 -> 0 | AA117: ='2.2 Model'!AA147*AA$68/AA$69 -> 0 | AB117: ='2.2 Model'!AB147*AB$68/AB$69 -> 0 | AC117: ='2.2 Model'!AC147*AC$68/AC$69 -> 0 | AD117: ='2.2 Model'!AD147*AD$68/AD$69 -> 0 | AE117: ='2.2 Model'!AE147*AE$68/AE$69 -> 0 | AF117: ='2.2 Model'!AF147*AF$68/AF$69 -> 0 | AG117: ='2.2 Model'!AG147*AG$68/AG$69 -> 0 | AH117: ='2.2 Model'!AH147*AH$68/AH$69 -> 0 | AI117: ='2.2 Model'!AI147*AI$68/AI$69 -> 0 | AJ117: ='2.2 Model'!AJ147*AJ$68/AJ$69 -> 0 | AK117: ='2.2 Model'!AK147*AK$68/AK$69 -> 0 | AL117: ='2.2 Model'!AL147*AL$68/AL$69 -> 0
C119: Liquefaction | E119: DKK | I119: Calculated, sum of below | K119: =SUM(M119:AL119) -> 975805103.7 | M119: =SUM(M121) -> 975805103.7 | N119: =SUM(N121) -> 0 | O119: 0 | P119: 0 | Q119: 0 | R119: 0 | S119: 0 | T119: 0 | U119: 0 | V119: 0 | W119: 0 | X119: 0 | Y119: 0 | Z119: 0 | AA119: 0 | AB119: 0 | AC119: 0 | AD119: 0 | AE119: 0 | AF119: 0 | AG119: 0 | AH119: 0 | AI119: 0 | AJ119: 0 | AK119: 0 | AL119: 0
D121: ='2.2 Model'!D151 -> Liquefaction plant | E121: ='2.2 Model'!E151 -> DKK | G121: ='2.2 Model'!G151 -> Capacity at 412,4 t/h to 15 barg with spare compression train | I121: ='2.2 Model'!I151 -> Elements | K121: =SUM(M121:AL121) -> 975805103.7 | M121: ='2.2 Model'!M151*M$68/M$69 -> 975805103.7 | N121: ='2.2 Model'!N151*N$68/N$69 -> 0 | O121: ='2.2 Model'!O151*O$68/O$69 -> 0 | P121: ='2.2 Model'!P151*P$68/P$69 -> 0 | Q121: ='2.2 Model'!Q151*Q$68/Q$69 -> 0 | R121: ='2.2 Model'!R151*R$68/R$69 -> 0 | S121: ='2.2 Model'!S151*S$68/S$69 -> 0 | T121: ='2.2 Model'!T151*T$68/T$69 -> 0 | U121: ='2.2 Model'!U151*U$68/U$69 -> 0 | V121: ='2.2 Model'!V151*V$68/V$69 -> 0 | W121: ='2.2 Model'!W151*W$68/W$69 -> 0 | X121: ='2.2 Model'!X151*X$68/X$69 -> 0 | Y121: ='2.2 Model'!Y151*Y$68/Y$69 -> 0 | Z121: ='2.2 Model'!Z151*Z$68/Z$69 -> 0 | AA121: ='2.2 Model'!AA151*AA$68/AA$69 -> 0 | AB121: ='2.2 Model'!AB151*AB$68/AB$69 -> 0 | AC121: ='2.2 Model'!AC151*AC$68/AC$69 -> 0 | AD121: ='2.2 Model'!AD151*AD$68/AD$69 -> 0 | AE121: ='2.2 Model'!AE151*AE$68/AE$69 -> 0 | AF121: ='2.2 Model'!AF151*AF$68/AF$69 -> 0 | AG121: ='2.2 Model'!AG151*AG$68/AG$69 -> 0 | AH121: ='2.2 Model'!AH151*AH$68/AH$69 -> 0 | AI121: ='2.2 Model'!AI151*AI$68/AI$69 -> 0 | AJ121: ='2.2 Model'!AJ151*AJ$68/AJ$69 -> 0 | AK121: ='2.2 Model'!AK151*AK$68/AK$69 -> 0 | AL121: ='2.2 Model'!AL151*AL$68/AL$69 -> 0
C123: Harbour facilities | E123: DKK | I123: Calculated, sum of below | K123: =SUM(M123:AL123) -> 43008363.25 | M123: =SUM(M125) -> 43008363.25 | N123: =SUM(N125) -> 0 | O123: 0 | P123: 0 | Q123: 0 | R123: 0 | S123: 0 | T123: 0 | U123: 0 | V123: 0 | W123: 0 | X123: 0 | Y123: 0 | Z123: 0 | AA123: 0 | AB123: 0 | AC123: 0 | AD123: 0 | AE123: 0 | AF123: 0 | AG123: 0 | AH123: 0 | AI123: 0 | AJ123: 0 | AK123: 0 | AL123: 0
D125: ='2.2 Model'!D155 -> Harbour facilities | E125: ='2.2 Model'!E155 -> DKK | G125: ='2.2 Model'!G155 -> Based on 1 existing berths | K125: =SUM(M125:AL125) -> 43008363.25 | M125: ='2.2 Model'!M155*M$68/M$69 -> 43008363.25 | N125: ='2.2 Model'!N155*N$68/N$69 -> 0 | O125: ='2.2 Model'!O155*O$68/O$69 -> 0 | P125: ='2.2 Model'!P155*P$68/P$69 -> 0 | Q125: ='2.2 Model'!Q155*Q$68/Q$69 -> 0 | R125: ='2.2 Model'!R155*R$68/R$69 -> 0 | S125: ='2.2 Model'!S155*S$68/S$69 -> 0 | T125: ='2.2 Model'!T155*T$68/T$69 -> 0 | U125: ='2.2 Model'!U155*U$68/U$69 -> 0 | V125: ='2.2 Model'!V155*V$68/V$69 -> 0 | W125: ='2.2 Model'!W155*W$68/W$69 -> 0 | X125: ='2.2 Model'!X155*X$68/X$69 -> 0 | Y125: ='2.2 Model'!Y155*Y$68/Y$69 -> 0 | Z125: ='2.2 Model'!Z155*Z$68/Z$69 -> 0 | AA125: ='2.2 Model'!AA155*AA$68/AA$69 -> 0 | AB125: ='2.2 Model'!AB155*AB$68/AB$69 -> 0 | AC125: ='2.2 Model'!AC155*AC$68/AC$69 -> 0 | AD125: ='2.2 Model'!AD155*AD$68/AD$69 -> 0 | AE125: ='2.2 Model'!AE155*AE$68/AE$69 -> 0 | AF125: ='2.2 Model'!AF155*AF$68/AF$69 -> 0 | AG125: ='2.2 Model'!AG155*AG$68/AG$69 -> 0 | AH125: ='2.2 Model'!AH155*AH$68/AH$69 -> 0 | AI125: ='2.2 Model'!AI155*AI$68/AI$69 -> 0 | AJ125: ='2.2 Model'!AJ155*AJ$68/AJ$69 -> 0 | AK125: ='2.2 Model'!AK155*AK$68/AK$69 -> 0 | AL125: ='2.2 Model'!AL155*AL$68/AL$69 -> 0
C127: Intermediate storage | E127: DKK | I127: Calculated, sum of below | K127: =SUM(M127:AL127) -> 714097766.8 | M127: =SUM(M129:M135) -> 714097766.8 | N127: =SUM(N129:N135) -> 0 | O127: =SUM(O129:O135) -> 0 | P127: 0 | Q127: 0 | R127: 0 | S127: 0 | T127: 0 | U127: 0 | V127: 0 | W127: 0 | X127: 0 | Y127: 0 | Z127: 0 | AA127: 0 | AB127: 0 | AC127: 0 | AD127: 0 | AE127: 0 | AF127: 0 | AG127: 0 | AH127: 0 | AI127: 0 | AJ127: 0 | AK127: 0 | AL127: 0
D129: ='2.2 Model'!D160 -> Storage tanks for export | E129: ='2.2 Model'!E160 -> DKK | G129: ='2.2 Model'!G160 -> 13 storage tanks of 2.388 tons each at 22 barg design pressure | K129: =SUM(M129:AL129) -> 704275878.3 | M129: ='2.2 Model'!M160*M$68/M$69 -> 704275878.3 | N129: ='2.2 Model'!N160*N$68/N$69 -> 0 | O129: ='2.2 Model'!O160*O$68/O$69 -> 0 | P129: ='2.2 Model'!P160*P$68/P$69 -> 0 | Q129: ='2.2 Model'!Q160*Q$68/Q$69 -> 0 | R129: ='2.2 Model'!R160*R$68/R$69 -> 0 | S129: ='2.2 Model'!S160*S$68/S$69 -> 0 | T129: ='2.2 Model'!T160*T$68/T$69 -> 0 | U129: ='2.2 Model'!U160*U$68/U$69 -> 0 | V129: ='2.2 Model'!V160*V$68/V$69 -> 0 | W129: ='2.2 Model'!W160*W$68/W$69 -> 0 | X129: ='2.2 Model'!X160*X$68/X$69 -> 0 | Y129: ='2.2 Model'!Y160*Y$68/Y$69 -> 0 | Z129: ='2.2 Model'!Z160*Z$68/Z$69 -> 0 | AA129: ='2.2 Model'!AA160*AA$68/AA$69 -> 0 | AB129: ='2.2 Model'!AB160*AB$68/AB$69 -> 0 | AC129: ='2.2 Model'!AC160*AC$68/AC$69 -> 0 | AD129: ='2.2 Model'!AD160*AD$68/AD$69 -> 0 | AE129: ='2.2 Model'!AE160*AE$68/AE$69 -> 0 | AF129: ='2.2 Model'!AF160*AF$68/AF$69 -> 0 | AG129: ='2.2 Model'!AG160*AG$68/AG$69 -> 0 | AH129: ='2.2 Model'!AH160*AH$68/AH$69 -> 0 | AI129: ='2.2 Model'!AI160*AI$68/AI$69 -> 0 | AJ129: ='2.2 Model'!AJ160*AJ$68/AJ$69 -> 0 | AK129: ='2.2 Model'!AK160*AK$68/AK$69 -> 0 | AL129: ='2.2 Model'!AL160*AL$68/AL$69 -> 0
D130: ='2.2 Model'!D161 -> Ship loading pumps for export | E130: ='2.2 Model'!E161 -> DKK | G130: ='2.2 Model'!G161 -> 3 loading pumps | K130: 9821888.522 | M130: ='2.2 Model'!M161*M$68/M$69 -> 9821888.522 | N130: ='2.2 Model'!N161*N$68/N$69 -> 0 | O130: ='2.2 Model'!O161*O$68/O$69 -> 0 | P130: ='2.2 Model'!P161*P$68/P$69 -> 0 | Q130: ='2.2 Model'!Q161*Q$68/Q$69 -> 0 | R130: ='2.2 Model'!R161*R$68/R$69 -> 0 | S130: ='2.2 Model'!S161*S$68/S$69 -> 0 | T130: ='2.2 Model'!T161*T$68/T$69 -> 0 | U130: ='2.2 Model'!U161*U$68/U$69 -> 0 | V130: ='2.2 Model'!V161*V$68/V$69 -> 0 | W130: ='2.2 Model'!W161*W$68/W$69 -> 0 | X130: ='2.2 Model'!X161*X$68/X$69 -> 0 | Y130: ='2.2 Model'!Y161*Y$68/Y$69 -> 0 | Z130: ='2.2 Model'!Z161*Z$68/Z$69 -> 0 | AA130: ='2.2 Model'!AA161*AA$68/AA$69 -> 0 | AB130: ='2.2 Model'!AB161*AB$68/AB$69 -> 0 | AC130: ='2.2 Model'!AC161*AC$68/AC$69 -> 0 | AD130: ='2.2 Model'!AD161*AD$68/AD$69 -> 0 | AE130: ='2.2 Model'!AE161*AE$68/AE$69 -> 0 | AF130: ='2.2 Model'!AF161*AF$68/AF$69 -> 0 | AG130: ='2.2 Model'!AG161*AG$68/AG$69 -> 0 | AH130: ='2.2 Model'!AH161*AH$68/AH$69 -> 0 | AI130: ='2.2 Model'!AI161*AI$68/AI$69 -> 0 | AJ130: ='2.2 Model'!AJ161*AJ$68/AJ$69 -> 0 | AK130: ='2.2 Model'!AK161*AK$68/AK$69 -> 0 | AL130: ='2.2 Model'!AL161*AL$68/AL$69 -> 0
D131: ='2.2 Model'!D164 -> Storage tanks for import | E131: ='2.2 Model'!E164 ->  | G131: ='2.2 Model'!G164 -> No intermediate storage | K131: 0 | M131: ='2.2 Model'!M164*M$68/M$69 -> 0 | N131: ='2.2 Model'!N164*N$68/N$69 -> 0 | O131: ='2.2 Model'!O164*O$68/O$69 -> 0 | P131: ='2.2 Model'!P164*P$68/P$69 -> 0 | Q131: ='2.2 Model'!Q164*Q$68/Q$69 -> 0 | R131: ='2.2 Model'!R164*R$68/R$69 -> 0 | S131: ='2.2 Model'!S164*S$68/S$69 -> 0 | T131: ='2.2 Model'!T164*T$68/T$69 -> 0 | U131: ='2.2 Model'!U164*U$68/U$69 -> 0 | V131: ='2.2 Model'!V164*V$68/V$69 -> 0 | W131: ='2.2 Model'!W164*W$68/W$69 -> 0 | X131: ='2.2 Model'!X164*X$68/X$69 -> 0 | Y131: ='2.2 Model'!Y164*Y$68/Y$69 -> 0 | Z131: ='2.2 Model'!Z164*Z$68/Z$69 -> 0 | AA131: ='2.2 Model'!AA164*AA$68/AA$69 -> 0 | AB131: ='2.2 Model'!AB164*AB$68/AB$69 -> 0 | AC131: ='2.2 Model'!AC164*AC$68/AC$69 -> 0 | AD131: ='2.2 Model'!AD164*AD$68/AD$69 -> 0 | AE131: ='2.2 Model'!AE164*AE$68/AE$69 -> 0 | AF131: ='2.2 Model'!AF164*AF$68/AF$69 -> 0 | AG131: ='2.2 Model'!AG164*AG$68/AG$69 -> 0 | AH131: ='2.2 Model'!AH164*AH$68/AH$69 -> 0 | AI131: ='2.2 Model'!AI164*AI$68/AI$69 -> 0 | AJ131: ='2.2 Model'!AJ164*AJ$68/AJ$69 -> 0 | AK131: ='2.2 Model'!AK164*AK$68/AK$69 -> 0 | AL131: ='2.2 Model'!AL164*AL$68/AL$69 -> 0
D132: ='2.2 Model'!D167 ->  | E132: ='2.2 Model'!E167 ->  | G132: ='2.2 Model'!G167 ->  | K132: 0 | M132: ='2.2 Model'!M167*M$68/M$69 -> 0 | N132: ='2.2 Model'!N167*N$68/N$69 -> 0 | O132: ='2.2 Model'!O167*O$68/O$69 -> 0 | P132: ='2.2 Model'!P167*P$68/P$69 -> 0 | Q132: ='2.2 Model'!Q167*Q$68/Q$69 -> 0 | R132: ='2.2 Model'!R167*R$68/R$69 -> 0 | S132: ='2.2 Model'!S167*S$68/S$69 -> 0 | T132: ='2.2 Model'!T167*T$68/T$69 -> 0 | U132: ='2.2 Model'!U167*U$68/U$69 -> 0 | V132: ='2.2 Model'!V167*V$68/V$69 -> 0 | W132: ='2.2 Model'!W167*W$68/W$69 -> 0 | X132: ='2.2 Model'!X167*X$68/X$69 -> 0 | Y132: ='2.2 Model'!Y167*Y$68/Y$69 -> 0 | Z132: ='2.2 Model'!Z167*Z$68/Z$69 -> 0 | AA132: ='2.2 Model'!AA167*AA$68/AA$69 -> 0 | AB132: ='2.2 Model'!AB167*AB$68/AB$69 -> 0 | AC132: ='2.2 Model'!AC167*AC$68/AC$69 -> 0 | AD132: ='2.2 Model'!AD167*AD$68/AD$69 -> 0 | AE132: ='2.2 Model'!AE167*AE$68/AE$69 -> 0 | AF132: ='2.2 Model'!AF167*AF$68/AF$69 -> 0 | AG132: ='2.2 Model'!AG167*AG$68/AG$69 -> 0 | AH132: ='2.2 Model'!AH167*AH$68/AH$69 -> 0 | AI132: ='2.2 Model'!AI167*AI$68/AI$69 -> 0 | AJ132: ='2.2 Model'!AJ167*AJ$68/AJ$69 -> 0 | AK132: ='2.2 Model'!AK167*AK$68/AK$69 -> 0 | AL132: ='2.2 Model'!AL167*AL$68/AL$69 -> 0
D133: ='2.2 Model'!D168 ->  | E133: ='2.2 Model'!E168 ->  | G133: ='2.2 Model'!G168 ->  | K133: 0 | M133: ='2.2 Model'!M168*M$68/M$69 -> 0 | N133: ='2.2 Model'!N168*N$68/N$69 -> 0 | O133: ='2.2 Model'!O168*O$68/O$69 -> 0 | P133: ='2.2 Model'!P168*P$68/P$69 -> 0 | Q133: ='2.2 Model'!Q168*Q$68/Q$69 -> 0 | R133: ='2.2 Model'!R168*R$68/R$69 -> 0 | S133: ='2.2 Model'!S168*S$68/S$69 -> 0 | T133: ='2.2 Model'!T168*T$68/T$69 -> 0 | U133: ='2.2 Model'!U168*U$68/U$69 -> 0 | V133: ='2.2 Model'!V168*V$68/V$69 -> 0 | W133: ='2.2 Model'!W168*W$68/W$69 -> 0 | X133: ='2.2 Model'!X168*X$68/X$69 -> 0 | Y133: ='2.2 Model'!Y168*Y$68/Y$69 -> 0 | Z133: ='2.2 Model'!Z168*Z$68/Z$69 -> 0 | AA133: ='2.2 Model'!AA168*AA$68/AA$69 -> 0 | AB133: ='2.2 Model'!AB168*AB$68/AB$69 -> 0 | AC133: ='2.2 Model'!AC168*AC$68/AC$69 -> 0 | AD133: ='2.2 Model'!AD168*AD$68/AD$69 -> 0 | AE133: ='2.2 Model'!AE168*AE$68/AE$69 -> 0 | AF133: ='2.2 Model'!AF168*AF$68/AF$69 -> 0 | AG133: ='2.2 Model'!AG168*AG$68/AG$69 -> 0 | AH133: ='2.2 Model'!AH168*AH$68/AH$69 -> 0 | AI133: ='2.2 Model'!AI168*AI$68/AI$69 -> 0 | AJ133: ='2.2 Model'!AJ168*AJ$68/AJ$69 -> 0 | AK133: ='2.2 Model'!AK168*AK$68/AK$69 -> 0 | AL133: ='2.2 Model'!AL168*AL$68/AL$69 -> 0
D134: ='2.2 Model'!D169 ->  | E134: ='2.2 Model'!E169 ->  | G134: ='2.2 Model'!G169 ->  | K134: 0 | M134: ='2.2 Model'!M169*M$68/M$69 -> 0 | N134: ='2.2 Model'!N169*N$68/N$69 -> 0 | O134: ='2.2 Model'!O169*O$68/O$69 -> 0 | P134: ='2.2 Model'!P169*P$68/P$69 -> 0 | Q134: ='2.2 Model'!Q169*Q$68/Q$69 -> 0 | R134: ='2.2 Model'!R169*R$68/R$69 -> 0 | S134: ='2.2 Model'!S169*S$68/S$69 -> 0 | T134: ='2.2 Model'!T169*T$68/T$69 -> 0 | U134: ='2.2 Model'!U169*U$68/U$69 -> 0 | V134: ='2.2 Model'!V169*V$68/V$69 -> 0 | W134: ='2.2 Model'!W169*W$68/W$69 -> 0 | X134: ='2.2 Model'!X169*X$68/X$69 -> 0 | Y134: ='2.2 Model'!Y169*Y$68/Y$69 -> 0 | Z134: ='2.2 Model'!Z169*Z$68/Z$69 -> 0 | AA134: ='2.2 Model'!AA169*AA$68/AA$69 -> 0 | AB134: ='2.2 Model'!AB169*AB$68/AB$69 -> 0 | AC134: ='2.2 Model'!AC169*AC$68/AC$69 -> 0 | AD134: ='2.2 Model'!AD169*AD$68/AD$69 -> 0 | AE134: ='2.2 Model'!AE169*AE$68/AE$69 -> 0 | AF134: ='2.2 Model'!AF169*AF$68/AF$69 -> 0 | AG134: ='2.2 Model'!AG169*AG$68/AG$69 -> 0 | AH134: ='2.2 Model'!AH169*AH$68/AH$69 -> 0 | AI134: ='2.2 Model'!AI169*AI$68/AI$69 -> 0 | AJ134: ='2.2 Model'!AJ169*AJ$68/AJ$69 -> 0 | AK134: ='2.2 Model'!AK169*AK$68/AK$69 -> 0 | AL134: ='2.2 Model'!AL169*AL$68/AL$69 -> 0
D135: ='2.2 Model'!D170 ->  | E135: ='2.2 Model'!E170 ->  | G135: ='2.2 Model'!G170 ->  | K135: 0 | M135: ='2.2 Model'!M170*M$68/M$69 -> 0 | N135: ='2.2 Model'!N170*N$68/N$69 -> 0 | O135: ='2.2 Model'!O170*O$68/O$69 -> 0 | P135: ='2.2 Model'!P170*P$68/P$69 -> 0 | Q135: ='2.2 Model'!Q170*Q$68/Q$69 -> 0 | R135: ='2.2 Model'!R170*R$68/R$69 -> 0 | S135: ='2.2 Model'!S170*S$68/S$69 -> 0 | T135: ='2.2 Model'!T170*T$68/T$69 -> 0 | U135: ='2.2 Model'!U170*U$68/U$69 -> 0 | V135: ='2.2 Model'!V170*V$68/V$69 -> 0 | W135: ='2.2 Model'!W170*W$68/W$69 -> 0 | X135: ='2.2 Model'!X170*X$68/X$69 -> 0 | Y135: ='2.2 Model'!Y170*Y$68/Y$69 -> 0 | Z135: ='2.2 Model'!Z170*Z$68/Z$69 -> 0 | AA135: ='2.2 Model'!AA170*AA$68/AA$69 -> 0 | AB135: ='2.2 Model'!AB170*AB$68/AB$69 -> 0 | AC135: ='2.2 Model'!AC170*AC$68/AC$69 -> 0 | AD135: ='2.2 Model'!AD170*AD$68/AD$69 -> 0 | AE135: ='2.2 Model'!AE170*AE$68/AE$69 -> 0 | AF135: ='2.2 Model'!AF170*AF$68/AF$69 -> 0 | AG135: ='2.2 Model'!AG170*AG$68/AG$69 -> 0 | AH135: ='2.2 Model'!AH170*AH$68/AH$69 -> 0 | AI135: ='2.2 Model'!AI170*AI$68/AI$69 -> 0 | AJ135: ='2.2 Model'!AJ170*AJ$68/AJ$69 -> 0 | AK135: ='2.2 Model'!AK170*AK$68/AK$69 -> 0 | AL135: ='2.2 Model'!AL170*AL$68/AL$69 -> 0
C137: Conditioning | E137: DKK | I137: Calculated, sum of below | K137: =SUM(M137:AL137) -> 0 | M137: =SUM(M139:M143) -> 0 | N137: =SUM(N139:N143) -> 0 | O137: 0 | P137: 0 | Q137: 0 | R137: 0 | S137: 0 | T137: 0 | U137: 0 | V137: 0 | W137: 0 | X137: 0 | Y137: 0 | Z137: 0 | AA137: 0 | AB137: 0 | AC137: 0 | AD137: 0 | AE137: 0 | AF137: 0 | AG137: 0 | AH137: 0 | AI137: 0 | AJ137: 0 | AK137: 0 | AL137: 0
D139: ='2.2 Model'!D175 -> Conditioning facility for ship import | E139: ='2.2 Model'!E175 -> DKK | G139: ='2.2 Model'!G175 -> No conditioning | K139: =SUM(M139:AL139) -> 0 | M139: ='2.2 Model'!M175*M$68/M$69 -> 0 | N139: ='2.2 Model'!N175*N$68/N$69 -> 0 | O139: ='2.2 Model'!O175*O$68/O$69 -> 0 | P139: ='2.2 Model'!P175*P$68/P$69 -> 0 | Q139: ='2.2 Model'!Q175*Q$68/Q$69 -> 0 | R139: ='2.2 Model'!R175*R$68/R$69 -> 0 | S139: ='2.2 Model'!S175*S$68/S$69 -> 0 | T139: ='2.2 Model'!T175*T$68/T$69 -> 0 | U139: ='2.2 Model'!U175*U$68/U$69 -> 0 | V139: ='2.2 Model'!V175*V$68/V$69 -> 0 | W139: ='2.2 Model'!W175*W$68/W$69 -> 0 | X139: ='2.2 Model'!X175*X$68/X$69 -> 0 | Y139: ='2.2 Model'!Y175*Y$68/Y$69 -> 0 | Z139: ='2.2 Model'!Z175*Z$68/Z$69 -> 0 | AA139: ='2.2 Model'!AA175*AA$68/AA$69 -> 0 | AB139: ='2.2 Model'!AB175*AB$68/AB$69 -> 0 | AC139: ='2.2 Model'!AC175*AC$68/AC$69 -> 0 | AD139: ='2.2 Model'!AD175*AD$68/AD$69 -> 0 | AE139: ='2.2 Model'!AE175*AE$68/AE$69 -> 0 | AF139: ='2.2 Model'!AF175*AF$68/AF$69 -> 0 | AG139: ='2.2 Model'!AG175*AG$68/AG$69 -> 0 | AH139: ='2.2 Model'!AH175*AH$68/AH$69 -> 0 | AI139: ='2.2 Model'!AI175*AI$68/AI$69 -> 0 | AJ139: ='2.2 Model'!AJ175*AJ$68/AJ$69 -> 0 | AK139: ='2.2 Model'!AK175*AK$68/AK$69 -> 0 | AL139: ='2.2 Model'!AL175*AL$68/AL$69 -> 0
D140: ='2.2 Model'!D178 ->  | E140: ='2.2 Model'!E178 ->  | G140: ='2.2 Model'!G178 ->  | K140: =SUM(M140:AL140) -> 0 | M140: ='2.2 Model'!M178*M$68/M$69 -> 0 | N140: ='2.2 Model'!N178*N$68/N$69 -> 0 | O140: ='2.2 Model'!O178*O$68/O$69 -> 0 | P140: ='2.2 Model'!P178*P$68/P$69 -> 0 | Q140: ='2.2 Model'!Q178*Q$68/Q$69 -> 0 | R140: ='2.2 Model'!R178*R$68/R$69 -> 0 | S140: ='2.2 Model'!S178*S$68/S$69 -> 0 | T140: ='2.2 Model'!T178*T$68/T$69 -> 0 | U140: ='2.2 Model'!U178*U$68/U$69 -> 0 | V140: ='2.2 Model'!V178*V$68/V$69 -> 0 | W140: ='2.2 Model'!W178*W$68/W$69 -> 0 | X140: ='2.2 Model'!X178*X$68/X$69 -> 0 | Y140: ='2.2 Model'!Y178*Y$68/Y$69 -> 0 | Z140: ='2.2 Model'!Z178*Z$68/Z$69 -> 0 | AA140: ='2.2 Model'!AA178*AA$68/AA$69 -> 0 | AB140: ='2.2 Model'!AB178*AB$68/AB$69 -> 0 | AC140: ='2.2 Model'!AC178*AC$68/AC$69 -> 0 | AD140: ='2.2 Model'!AD178*AD$68/AD$69 -> 0 | AE140: ='2.2 Model'!AE178*AE$68/AE$69 -> 0 | AF140: ='2.2 Model'!AF178*AF$68/AF$69 -> 0 | AG140: ='2.2 Model'!AG178*AG$68/AG$69 -> 0 | AH140: ='2.2 Model'!AH178*AH$68/AH$69 -> 0 | AI140: ='2.2 Model'!AI178*AI$68/AI$69 -> 0 | AJ140: ='2.2 Model'!AJ178*AJ$68/AJ$69 -> 0 | AK140: ='2.2 Model'!AK178*AK$68/AK$69 -> 0 | AL140: ='2.2 Model'!AL178*AL$68/AL$69 -> 0
D141: ='2.2 Model'!D179 ->  | E141: ='2.2 Model'!E179 ->  | G141: ='2.2 Model'!G179 ->  | K141: 0 | M141: ='2.2 Model'!M179*M$68/M$69 -> 0 | N141: ='2.2 Model'!N179*N$68/N$69 -> 0 | O141: ='2.2 Model'!O179*O$68/O$69 -> 0 | P141: ='2.2 Model'!P179*P$68/P$69 -> 0 | Q141: ='2.2 Model'!Q179*Q$68/Q$69 -> 0 | R141: ='2.2 Model'!R179*R$68/R$69 -> 0 | S141: ='2.2 Model'!S179*S$68/S$69 -> 0 | T141: ='2.2 Model'!T179*T$68/T$69 -> 0 | U141: ='2.2 Model'!U179*U$68/U$69 -> 0 | V141: ='2.2 Model'!V179*V$68/V$69 -> 0 | W141: ='2.2 Model'!W179*W$68/W$69 -> 0 | X141: ='2.2 Model'!X179*X$68/X$69 -> 0 | Y141: ='2.2 Model'!Y179*Y$68/Y$69 -> 0 | Z141: ='2.2 Model'!Z179*Z$68/Z$69 -> 0 | AA141: ='2.2 Model'!AA179*AA$68/AA$69 -> 0 | AB141: ='2.2 Model'!AB179*AB$68/AB$69 -> 0 | AC141: ='2.2 Model'!AC179*AC$68/AC$69 -> 0 | AD141: ='2.2 Model'!AD179*AD$68/AD$69 -> 0 | AE141: ='2.2 Model'!AE179*AE$68/AE$69 -> 0 | AF141: ='2.2 Model'!AF179*AF$68/AF$69 -> 0 | AG141: ='2.2 Model'!AG179*AG$68/AG$69 -> 0 | AH141: ='2.2 Model'!AH179*AH$68/AH$69 -> 0 | AI141: ='2.2 Model'!AI179*AI$68/AI$69 -> 0 | AJ141: ='2.2 Model'!AJ179*AJ$68/AJ$69 -> 0 | AK141: ='2.2 Model'!AK179*AK$68/AK$69 -> 0 | AL141: ='2.2 Model'!AL179*AL$68/AL$69 -> 0
D142: ='2.2 Model'!D180 ->  | E142: ='2.2 Model'!E180 ->  | G142: ='2.2 Model'!G180 ->  | K142: 0 | M142: ='2.2 Model'!M180*M$68/M$69 -> 0 | N142: ='2.2 Model'!N180*N$68/N$69 -> 0 | O142: ='2.2 Model'!O180*O$68/O$69 -> 0 | P142: ='2.2 Model'!P180*P$68/P$69 -> 0 | Q142: ='2.2 Model'!Q180*Q$68/Q$69 -> 0 | R142: ='2.2 Model'!R180*R$68/R$69 -> 0 | S142: ='2.2 Model'!S180*S$68/S$69 -> 0 | T142: ='2.2 Model'!T180*T$68/T$69 -> 0 | U142: ='2.2 Model'!U180*U$68/U$69 -> 0 | V142: ='2.2 Model'!V180*V$68/V$69 -> 0 | W142: ='2.2 Model'!W180*W$68/W$69 -> 0 | X142: ='2.2 Model'!X180*X$68/X$69 -> 0 | Y142: ='2.2 Model'!Y180*Y$68/Y$69 -> 0 | Z142: ='2.2 Model'!Z180*Z$68/Z$69 -> 0 | AA142: ='2.2 Model'!AA180*AA$68/AA$69 -> 0 | AB142: ='2.2 Model'!AB180*AB$68/AB$69 -> 0 | AC142: ='2.2 Model'!AC180*AC$68/AC$69 -> 0 | AD142: ='2.2 Model'!AD180*AD$68/AD$69 -> 0 | AE142: ='2.2 Model'!AE180*AE$68/AE$69 -> 0 | AF142: ='2.2 Model'!AF180*AF$68/AF$69 -> 0 | AG142: ='2.2 Model'!AG180*AG$68/AG$69 -> 0 | AH142: ='2.2 Model'!AH180*AH$68/AH$69 -> 0 | AI142: ='2.2 Model'!AI180*AI$68/AI$69 -> 0 | AJ142: ='2.2 Model'!AJ180*AJ$68/AJ$69 -> 0 | AK142: ='2.2 Model'!AK180*AK$68/AK$69 -> 0 | AL142: ='2.2 Model'!AL180*AL$68/AL$69 -> 0
D143: ='2.2 Model'!D181 ->  | E143: ='2.2 Model'!E181 ->  | G143: ='2.2 Model'!G181 ->  | K143: 0 | M143: ='2.2 Model'!M181*M$68/M$69 -> 0 | N143: ='2.2 Model'!N181*N$68/N$69 -> 0 | O143: ='2.2 Model'!O181*O$68/O$69 -> 0 | P143: ='2.2 Model'!P181*P$68/P$69 -> 0 | Q143: ='2.2 Model'!Q181*Q$68/Q$69 -> 0 | R143: ='2.2 Model'!R181*R$68/R$69 -> 0 | S143: ='2.2 Model'!S181*S$68/S$69 -> 0 | T143: ='2.2 Model'!T181*T$68/T$69 -> 0 | U143: ='2.2 Model'!U181*U$68/U$69 -> 0 | V143: ='2.2 Model'!V181*V$68/V$69 -> 0 | W143: ='2.2 Model'!W181*W$68/W$69 -> 0 | X143: ='2.2 Model'!X181*X$68/X$69 -> 0 | Y143: ='2.2 Model'!Y181*Y$68/Y$69 -> 0 | Z143: ='2.2 Model'!Z181*Z$68/Z$69 -> 0 | AA143: ='2.2 Model'!AA181*AA$68/AA$69 -> 0 | AB143: ='2.2 Model'!AB181*AB$68/AB$69 -> 0 | AC143: ='2.2 Model'!AC181*AC$68/AC$69 -> 0 | AD143: ='2.2 Model'!AD181*AD$68/AD$69 -> 0 | AE143: ='2.2 Model'!AE181*AE$68/AE$69 -> 0 | AF143: ='2.2 Model'!AF181*AF$68/AF$69 -> 0 | AG143: ='2.2 Model'!AG181*AG$68/AG$69 -> 0 | AH143: ='2.2 Model'!AH181*AH$68/AH$69 -> 0 | AI143: ='2.2 Model'!AI181*AI$68/AI$69 -> 0 | AJ143: ='2.2 Model'!AJ181*AJ$68/AJ$69 -> 0 | AK143: ='2.2 Model'!AK181*AK$68/AK$69 -> 0 | AL143: ='2.2 Model'!AL181*AL$68/AL$69 -> 0
C145: Booster station | E145: DKK | I145: Calculated, sum of below | K145: =SUM(M145:AL145) -> 0 | M145: =SUM(M147) -> 0 | N145: =SUM(N147) -> 0 | O145: =SUM(O147) -> 0 | P145: 0 | Q145: 0 | R145: 0 | S145: 0 | T145: 0 | U145: 0 | V145: 0 | W145: 0 | X145: 0 | Y145: 0 | Z145: 0 | AA145: 0 | AB145: 0 | AC145: 0 | AD145: 0 | AE145: 0 | AF145: 0 | AG145: 0 | AH145: 0 | AI145: 0 | AJ145: 0 | AK145: 0 | AL145: 0
D147: ='2.2 Model'!D185 -> Booster station facility | E147: ='2.2 Model'!E185 -> DKK | G147: ='2.2 Model'!G185 -> No import by pipeline | K147: =SUM(M147:AL147) -> 0 | M147: ='2.2 Model'!M185*M$68/M$69 -> 0 | N147: ='2.2 Model'!N185*N$68/N$69 -> 0 | O147: ='2.2 Model'!O185*O$68/O$69 -> 0 | P147: ='2.2 Model'!P185*P$68/P$69 -> 0 | Q147: ='2.2 Model'!Q185*Q$68/Q$69 -> 0 | R147: ='2.2 Model'!R185*R$68/R$69 -> 0 | S147: ='2.2 Model'!S185*S$68/S$69 -> 0 | T147: ='2.2 Model'!T185*T$68/T$69 -> 0 | U147: ='2.2 Model'!U185*U$68/U$69 -> 0 | V147: ='2.2 Model'!V185*V$68/V$69 -> 0 | W147: ='2.2 Model'!W185*W$68/W$69 -> 0 | X147: ='2.2 Model'!X185*X$68/X$69 -> 0 | Y147: ='2.2 Model'!Y185*Y$68/Y$69 -> 0 | Z147: ='2.2 Model'!Z185*Z$68/Z$69 -> 0 | AA147: ='2.2 Model'!AA185*AA$68/AA$69 -> 0 | AB147: ='2.2 Model'!AB185*AB$68/AB$69 -> 0 | AC147: ='2.2 Model'!AC185*AC$68/AC$69 -> 0 | AD147: ='2.2 Model'!AD185*AD$68/AD$69 -> 0 | AE147: ='2.2 Model'!AE185*AE$68/AE$69 -> 0 | AF147: ='2.2 Model'!AF185*AF$68/AF$69 -> 0 | AG147: ='2.2 Model'!AG185*AG$68/AG$69 -> 0 | AH147: ='2.2 Model'!AH185*AH$68/AH$69 -> 0 | AI147: ='2.2 Model'!AI185*AI$68/AI$69 -> 0 | AJ147: ='2.2 Model'!AJ185*AJ$68/AJ$69 -> 0 | AK147: ='2.2 Model'!AK185*AK$68/AK$69 -> 0 | AL147: ='2.2 Model'!AL185*AL$68/AL$69 -> 0
B149: 3. | C149: OPEX
B151: Total OPEX | E151: DKK | K151: =SUM(M151:AL151) -> 1.274238906e+10 | M151: =M153+M163+M170+M175+M196+M200+M206+M217+M230+M243 -> 0 | N151: =N153+N163+N170+N175+N196+N200+N206+N217+N230+N243 -> 777272728.3 | O151: =O153+O163+O170+O175+O196+O200+O206+O217+O230+O243 -> 728841921.3 | P151: 704662331.5 | Q151: 681284908.2 | R151: 638604358.5 | S151: 617418431.9 | T151: 596935356 | U151: 577131813.4 | V151: 557985260.3 | W151: 542402070 | X151: 527852674.6 | Y151: 510340974.5 | Z151: 493410231.3 | AA151: 477041171.5 | AB151: 461215161.1 | AC151: 445914184.1 | AD151: 431120822.6 | AE151: 416818236.1 | AF151: 402990142.9 | AG151: 389620801.7 | AH151: 376896489 | AI151: 364392814 | AJ151: 352303952.8 | AK151: 340616144 | AL151: 329316082.3
C153: Pipeline | E153: DKK | G153: Maintenance | I153: Calculated, sum of below | K153: =SUM(M153:AL153) -> 245571710.6 | M153: =SUM(M155:M161) -> 0 | N153: =SUM(N155:N161) -> 14298431.07 | O153: =SUM(O155:O161) -> 13824075.53 | P153: 13365456.91 | Q153: 12922053.13 | R153: 12493359.42 | S153: 12078887.78 | T153: 11678166.39 | U153: 11290739.07 | V153: 10916164.79 | W153: 10554017.14 | X153: 10203883.87 | Y153: 9865366.394 | Z153: 9538079.357 | AA153: 9221650.184 | AB153: 8915718.662 | AC153: 8619936.526 | AD153: 8333967.068 | AE153: 8057484.748 | AF153: 7790174.827 | AG153: 7531733.008 | AH153: 7281865.089 | AI153: 7040286.626 | AJ153: 6806722.615 | AK153: 6580907.173 | AL153: 6362583.238
C155: ='2.2 Model'!C195 -> S1 | D155: ='2.2 Model'!D195 -> Kræftværkshalvøen - Avedøreværket | E155: ='2.2 Model'!E195 -> DKK | G155: ='2.2 Model'!G195 -> Assumes 2,00% of CAPEX anually | I155: ='2.2 Model'!I195 -> Calculated | K155: =SUM(M155:AL155) -> 102911607.7 | M155: ='2.2 Model'!M195*M$68/M$69 -> 0 | N155: ='2.2 Model'!N195*N$68/N$69 -> 5992035.993 | O155: ='2.2 Model'!O195*O$68/O$69 -> 5793248.069 | P155: ='2.2 Model'!P195*P$68/P$69 -> 5601055.005 | Q155: ='2.2 Model'!Q195*Q$68/Q$69 -> 5415238.014 | R155: ='2.2 Model'!R195*R$68/R$69 -> 5235585.568 | S155: ='2.2 Model'!S195*S$68/S$69 -> 5061893.156 | T155: ='2.2 Model'!T195*T$68/T$69 -> 4893963.051 | U155: ='2.2 Model'!U195*U$68/U$69 -> 4731604.088 | V155: ='2.2 Model'!V195*V$68/V$69 -> 4574631.44 | W155: ='2.2 Model'!W195*W$68/W$69 -> 4422866.416 | X155: ='2.2 Model'!X195*X$68/X$69 -> 4276136.251 | Y155: ='2.2 Model'!Y195*Y$68/Y$69 -> 4134273.91 | Z155: ='2.2 Model'!Z195*Z$68/Z$69 -> 3997117.904 | AA155: ='2.2 Model'!AA195*AA$68/AA$69 -> 3864512.097 | AB155: ='2.2 Model'!AB195*AB$68/AB$69 -> 3736305.534 | AC155: ='2.2 Model'!AC195*AC$68/AC$69 -> 3612352.27 | AD155: ='2.2 Model'!AD195*AD$68/AD$69 -> 3492511.2 | AE155: ='2.2 Model'!AE195*AE$68/AE$69 -> 3376645.899 | AF155: ='2.2 Model'!AF195*AF$68/AF$69 -> 3264624.471 | AG155: ='2.2 Model'!AG195*AG$68/AG$69 -> 3156319.394 | AH155: ='2.2 Model'!AH195*AH$68/AH$69 -> 3051607.376 | AI155: ='2.2 Model'!AI195*AI$68/AI$69 -> 2950369.217 | AJ155: ='2.2 Model'!AJ195*AJ$68/AJ$69 -> 2852489.669 | AK155: ='2.2 Model'!AK195*AK$68/AK$69 -> 2757857.311 | AL155: ='2.2 Model'!AL195*AL$68/AL$69 -> 2666364.414
C156: ='2.2 Model'!C196 -> S2 | D156: ='2.2 Model'!D196 -> Avedøreværket - Intersection | E156: ='2.2 Model'!E196 -> DKK | G156: ='2.2 Model'!G196 -> Assumes 2,00% of CAPEX anually | I156: ='2.2 Model'!I196 -> Calculated | K156: =SUM(M156:AL156) -> 50240865.23 | M156: ='2.2 Model'!M196*M$68/M$69 -> 0 | N156: ='2.2 Model'!N196*N$68/N$69 -> 2925278.105 | O156: ='2.2 Model'!O196*O$68/O$69 -> 2828230.964 | P156: ='2.2 Model'!P196*P$68/P$69 -> 2734403.396 | Q156: ='2.2 Model'!Q196*Q$68/Q$69 -> 2643688.592 | R156: ='2.2 Model'!R196*R$68/R$69 -> 2555983.283 | S156: ='2.2 Model'!S196*S$68/S$69 -> 2471187.629 | T156: ='2.2 Model'!T196*T$68/T$69 -> 2389205.101 | U156: ='2.2 Model'!U196*U$68/U$69 -> 2309942.373 | V156: ='2.2 Model'!V196*V$68/V$69 -> 2233309.213 | W156: ='2.2 Model'!W196*W$68/W$69 -> 2159218.386 | X156: ='2.2 Model'!X196*X$68/X$69 -> 2087585.549 | Y156: ='2.2 Model'!Y196*Y$68/Y$69 -> 2018329.156 | Z156: ='2.2 Model'!Z196*Z$68/Z$69 -> 1951370.369 | AA156: ='2.2 Model'!AA196*AA$68/AA$69 -> 1886632.964 | AB156: ='2.2 Model'!AB196*AB$68/AB$69 -> 1824043.244 | AC156: ='2.2 Model'!AC196*AC$68/AC$69 -> 1763529.961 | AD156: ='2.2 Model'!AD196*AD$68/AD$69 -> 1705024.228 | AE156: ='2.2 Model'!AE196*AE$68/AE$69 -> 1648459.443 | AF156: ='2.2 Model'!AF196*AF$68/AF$69 -> 1593771.215 | AG156: ='2.2 Model'!AG196*AG$68/AG$69 -> 1540897.289 | AH156: ='2.2 Model'!AH196*AH$68/AH$69 -> 1489777.473 | AI156: ='2.2 Model'!AI196*AI$68/AI$69 -> 1440353.576 | AJ156: ='2.2 Model'!AJ196*AJ$68/AJ$69 -> 1392569.334 | AK156: ='2.2 Model'!AK196*AK$68/AK$69 -> 1346370.352 | AL156: ='2.2 Model'!AL196*AL$68/AL$69 -> 1301704.037
C157: ='2.2 Model'!C197 -> S3 | D157: ='2.2 Model'!D197 -> Vestforbrænding - Intersection | E157: ='2.2 Model'!E197 -> DKK | G157: ='2.2 Model'!G197 -> Assumes 2,00% of CAPEX anually | I157: ='2.2 Model'!I197 -> Calculated | K157: 21908352.25 | M157: ='2.2 Model'!M197*M$68/M$69 -> 0 | N157: ='2.2 Model'!N197*N$68/N$69 -> 1275615.435 | O157: ='2.2 Model'!O197*O$68/O$69 -> 1233296.439 | P157: ='2.2 Model'!P197*P$68/P$69 -> 1192381.392 | Q157: ='2.2 Model'!Q197*Q$68/Q$69 -> 1152823.715 | R157: ='2.2 Model'!R197*R$68/R$69 -> 1114578.379 | S157: ='2.2 Model'!S197*S$68/S$69 -> 1077601.845 | T157: ='2.2 Model'!T197*T$68/T$69 -> 1041852.02 | U157: ='2.2 Model'!U197*U$68/U$69 -> 1007288.209 | V157: ='2.2 Model'!V197*V$68/V$69 -> 973871.065 | W157: ='2.2 Model'!W197*W$68/W$69 -> 941562.5462 | X157: ='2.2 Model'!X197*X$68/X$69 -> 910325.8741 | Y157: ='2.2 Model'!Y197*Y$68/Y$69 -> 880125.4896 | Z157: ='2.2 Model'!Z197*Z$68/Z$69 -> 850927.0137 | AA157: ='2.2 Model'!AA197*AA$68/AA$69 -> 822697.2075 | AB157: ='2.2 Model'!AB197*AB$68/AB$69 -> 795403.9353 | AC157: ='2.2 Model'!AC197*AC$68/AC$69 -> 769016.127 | AD157: ='2.2 Model'!AD197*AD$68/AD$69 -> 743503.7436 | AE157: ='2.2 Model'!AE197*AE$68/AE$69 -> 718837.7426 | AF157: ='2.2 Model'!AF197*AF$68/AF$69 -> 694990.045 | AG157: ='2.2 Model'!AG197*AG$68/AG$69 -> 671933.5032 | AH157: ='2.2 Model'!AH197*AH$68/AH$69 -> 649641.8704 | AI157: ='2.2 Model'!AI197*AI$68/AI$69 -> 628089.7705 | AJ157: ='2.2 Model'!AJ197*AJ$68/AJ$69 -> 607252.6691 | AK157: ='2.2 Model'!AK197*AK$68/AK$69 -> 587106.8459 | AL157: ='2.2 Model'!AL197*AL$68/AL$69 -> 567629.3676
C158: ='2.2 Model'!C198 -> S4 | D158: ='2.2 Model'!D198 -> Intersection - Compressorstation | E158: ='2.2 Model'!E198 -> DKK | G158: ='2.2 Model'!G198 -> Assumes 2,00% of CAPEX anually | I158: ='2.2 Model'!I198 -> Calculated | K158: 19705245.9 | M158: ='2.2 Model'!M198*M$68/M$69 -> 0 | N158: ='2.2 Model'!N198*N$68/N$69 -> 1147339.404 | O158: ='2.2 Model'!O198*O$68/O$69 -> 1109276.011 | P158: ='2.2 Model'!P198*P$68/P$69 -> 1072475.385 | Q158: ='2.2 Model'!Q198*Q$68/Q$69 -> 1036895.633 | R158: ='2.2 Model'!R198*R$68/R$69 -> 1002496.252 | S158: ='2.2 Model'!S198*S$68/S$69 -> 969238.0826 | T158: ='2.2 Model'!T198*T$68/T$69 -> 937083.2647 | U158: ='2.2 Model'!U198*U$68/U$69 -> 905995.1943 | V158: ='2.2 Model'!V198*V$68/V$69 -> 875938.4817 | W158: ='2.2 Model'!W198*W$68/W$69 -> 846878.9112 | X158: ='2.2 Model'!X198*X$68/X$69 -> 818783.4023 | Y158: ='2.2 Model'!Y198*Y$68/Y$69 -> 791619.9719 | Z158: ='2.2 Model'!Z198*Z$68/Z$69 -> 765357.698 | AA158: ='2.2 Model'!AA198*AA$68/AA$69 -> 739966.6843 | AB158: ='2.2 Model'!AB198*AB$68/AB$69 -> 715418.0265 | AC158: ='2.2 Model'!AC198*AC$68/AC$69 -> 691683.7792 | AD158: ='2.2 Model'!AD198*AD$68/AD$69 -> 668736.924 | AE158: ='2.2 Model'!AE198*AE$68/AE$69 -> 646551.3388 | AF158: ='2.2 Model'!AF198*AF$68/AF$69 -> 625101.7683 | AG158: ='2.2 Model'!AG198*AG$68/AG$69 -> 604363.795 | AH158: ='2.2 Model'!AH198*AH$68/AH$69 -> 584313.8112 | AI158: ='2.2 Model'!AI198*AI$68/AI$69 -> 564928.9929 | AJ158: ='2.2 Model'!AJ198*AJ$68/AJ$69 -> 546187.2727 | AK158: ='2.2 Model'!AK198*AK$68/AK$69 -> 528067.3158 | AL158: ='2.2 Model'!AL198*AL$68/AL$69 -> 510548.4949
C159: ='2.2 Model'!C199 -> S5 | D159: ='2.2 Model'!D199 -> Compressorstation - ARGO | E159: ='2.2 Model'!E199 -> DKK | G159: ='2.2 Model'!G199 -> Assumes 2,00% of CAPEX anually | I159: ='2.2 Model'!I199 -> Calculated | K159: 39611160.67 | M159: ='2.2 Model'!M199*M$68/M$69 -> 0 | N159: ='2.2 Model'!N199*N$68/N$69 -> 2306362.768 | O159: ='2.2 Model'!O199*O$68/O$69 -> 2229848.364 | P159: ='2.2 Model'!P199*P$68/P$69 -> 2155872.352 | Q159: ='2.2 Model'!Q199*Q$68/Q$69 -> 2084350.52 | R159: ='2.2 Model'!R199*R$68/R$69 -> 2015201.451 | S159: ='2.2 Model'!S199*S$68/S$69 -> 1948346.426 | T159: ='2.2 Model'!T199*T$68/T$69 -> 1883709.341 | U159: ='2.2 Model'!U199*U$68/U$69 -> 1821216.614 | V159: ='2.2 Model'!V199*V$68/V$69 -> 1760797.106 | W159: ='2.2 Model'!W199*W$68/W$69 -> 1702382.036 | X159: ='2.2 Model'!X199*X$68/X$69 -> 1645904.907 | Y159: ='2.2 Model'!Y199*Y$68/Y$69 -> 1591301.426 | Z159: ='2.2 Model'!Z199*Z$68/Z$69 -> 1538509.436 | AA159: ='2.2 Model'!AA199*AA$68/AA$69 -> 1487468.838 | AB159: ='2.2 Model'!AB199*AB$68/AB$69 -> 1438121.531 | AC159: ='2.2 Model'!AC199*AC$68/AC$69 -> 1390411.338 | AD159: ='2.2 Model'!AD199*AD$68/AD$69 -> 1344283.948 | AE159: ='2.2 Model'!AE199*AE$68/AE$69 -> 1299686.85 | AF159: ='2.2 Model'!AF199*AF$68/AF$69 -> 1256569.277 | AG159: ='2.2 Model'!AG199*AG$68/AG$69 -> 1214882.144 | AH159: ='2.2 Model'!AH199*AH$68/AH$69 -> 1174577.997 | AI159: ='2.2 Model'!AI199*AI$68/AI$69 -> 1135610.955 | AJ159: ='2.2 Model'!AJ199*AJ$68/AJ$69 -> 1097936.658 | AK159: ='2.2 Model'!AK199*AK$68/AK$69 -> 1061512.219 | AL159: ='2.2 Model'!AL199*AL$68/AL$69 -> 1026296.174
C160: ='2.2 Model'!C200 -> S6 | D160: ='2.2 Model'!D200 -> ARGO - Intersection | E160: ='2.2 Model'!E200 -> DKK | G160: ='2.2 Model'!G200 -> Assumes 2,00% of CAPEX anually | I160: ='2.2 Model'!I200 -> Calculated | K160: 11194478.83 | M160: ='2.2 Model'!M200*M$68/M$69 -> 0 | N160: ='2.2 Model'!N200*N$68/N$69 -> 651799.3605 | O160: ='2.2 Model'!O200*O$68/O$69 -> 630175.685 | P160: ='2.2 Model'!P200*P$68/P$69 -> 609269.3827 | Q160: ='2.2 Model'!Q200*Q$68/Q$69 -> 589056.6543 | R160: ='2.2 Model'!R200*R$68/R$69 -> 569514.4905 | S160: ='2.2 Model'!S200*S$68/S$69 -> 550620.6448 | T160: ='2.2 Model'!T200*T$68/T$69 -> 532353.6092 | U160: ='2.2 Model'!U200*U$68/U$69 -> 514692.589 | V160: ='2.2 Model'!V200*V$68/V$69 -> 497617.4794 | W160: ='2.2 Model'!W200*W$68/W$69 -> 481108.8426 | X160: ='2.2 Model'!X200*X$68/X$69 -> 465147.8858 | Y160: ='2.2 Model'!Y200*Y$68/Y$69 -> 449716.4393 | Z160: ='2.2 Model'!Z200*Z$68/Z$69 -> 434796.9366 | AA160: ='2.2 Model'!AA200*AA$68/AA$69 -> 420372.3937 | AB160: ='2.2 Model'!AB200*AB$68/AB$69 -> 406426.3901 | AC160: ='2.2 Model'!AC200*AC$68/AC$69 -> 392943.0501 | AD160: ='2.2 Model'!AD200*AD$68/AD$69 -> 379907.0248 | AE160: ='2.2 Model'!AE200*AE$68/AE$69 -> 367303.4742 | AF160: ='2.2 Model'!AF200*AF$68/AF$69 -> 355118.0509 | AG160: ='2.2 Model'!AG200*AG$68/AG$69 -> 343336.8833 | AH160: ='2.2 Model'!AH200*AH$68/AH$69 -> 331946.5602 | AI160: ='2.2 Model'!AI200*AI$68/AI$69 -> 320934.1151 | AJ160: ='2.2 Model'!AJ200*AJ$68/AJ$69 -> 310287.0117 | AK160: ='2.2 Model'!AK200*AK$68/AK$69 -> 299993.1298 | AL160: ='2.2 Model'!AL200*AL$68/AL$69 -> 290040.7511
C161: ='2.2 Model'!C201 -> S7 | D161: ='2.2 Model'!D201 -> Intersection - Havnsø | E161: ='2.2 Model'!E201 -> DKK | G161: ='2.2 Model'!G201 -> Assumes 2,00% of CAPEX anually | I161: ='2.2 Model'!I201 -> Calculated | K161: 0 | M161: ='2.2 Model'!M201*M$68/M$69 -> 0 | N161: ='2.2 Model'!N201*N$68/N$69 -> 0 | O161: ='2.2 Model'!O201*O$68/O$69 -> 0 | P161: ='2.2 Model'!P201*P$68/P$69 -> 0 | Q161: ='2.2 Model'!Q201*Q$68/Q$69 -> 0 | R161: ='2.2 Model'!R201*R$68/R$69 -> 0 | S161: ='2.2 Model'!S201*S$68/S$69 -> 0 | T161: ='2.2 Model'!T201*T$68/T$69 -> 0 | U161: ='2.2 Model'!U201*U$68/U$69 -> 0 | V161: ='2.2 Model'!V201*V$68/V$69 -> 0 | W161: ='2.2 Model'!W201*W$68/W$69 -> 0 | X161: ='2.2 Model'!X201*X$68/X$69 -> 0 | Y161: ='2.2 Model'!Y201*Y$68/Y$69 -> 0 | Z161: ='2.2 Model'!Z201*Z$68/Z$69 -> 0 | AA161: ='2.2 Model'!AA201*AA$68/AA$69 -> 0 | AB161: ='2.2 Model'!AB201*AB$68/AB$69 -> 0 | AC161: ='2.2 Model'!AC201*AC$68/AC$69 -> 0 | AD161: ='2.2 Model'!AD201*AD$68/AD$69 -> 0 | AE161: ='2.2 Model'!AE201*AE$68/AE$69 -> 0 | AF161: ='2.2 Model'!AF201*AF$68/AF$69 -> 0 | AG161: ='2.2 Model'!AG201*AG$68/AG$69 -> 0 | AH161: ='2.2 Model'!AH201*AH$68/AH$69 -> 0 | AI161: ='2.2 Model'!AI201*AI$68/AI$69 -> 0 | AJ161: ='2.2 Model'!AJ201*AJ$68/AJ$69 -> 0 | AK161: ='2.2 Model'!AK201*AK$68/AK$69 -> 0 | AL161: ='2.2 Model'!AL201*AL$68/AL$69 -> 0
C163: Compression | E163: DKK | G163: Maintenance and electricity | I163: Calculated, sum of below | K163: =SUM(M163:AL163) -> 0 | M163: =SUM(M165:M168) -> 0 | N163: =SUM(N165:N168) -> 0 | O163: 0 | P163: 0 | Q163: 0 | R163: 0 | S163: 0 | T163: 0 | U163: 0 | V163: 0 | W163: 0 | X163: 0 | Y163: 0 | Z163: 0 | AA163: 0 | AB163: 0 | AC163: 0 | AD163: 0 | AE163: 0 | AF163: 0 | AG163: 0 | AH163: 0 | AI163: 0 | AJ163: 0 | AK163: 0 | AL163: 0
C165: ='2.2 Model'!C206 ->  | D165: ='2.2 Model'!D206 ->  | E165: ='2.2 Model'!E206 ->  | G165: ='2.2 Model'!G212 ->  | K165: =SUM(M165:AL165) -> 0 | M165: =('2.2 Model'!M206+'2.2 Model'!M212)*M$68/M$69 -> 0 | N165: =('2.2 Model'!N206+'2.2 Model'!N212)*N$68/N$69 -> 0 | O165: =('2.2 Model'!O206+'2.2 Model'!O212)*O$68/O$69 -> 0 | P165: =('2.2 Model'!P206+'2.2 Model'!P212)*P$68/P$69 -> 0 | Q165: =('2.2 Model'!Q206+'2.2 Model'!Q212)*Q$68/Q$69 -> 0 | R165: =('2.2 Model'!R206+'2.2 Model'!R212)*R$68/R$69 -> 0 | S165: =('2.2 Model'!S206+'2.2 Model'!S212)*S$68/S$69 -> 0 | T165: =('2.2 Model'!T206+'2.2 Model'!T212)*T$68/T$69 -> 0 | U165: =('2.2 Model'!U206+'2.2 Model'!U212)*U$68/U$69 -> 0 | V165: =('2.2 Model'!V206+'2.2 Model'!V212)*V$68/V$69 -> 0 | W165: =('2.2 Model'!W206+'2.2 Model'!W212)*W$68/W$69 -> 0 | X165: =('2.2 Model'!X206+'2.2 Model'!X212)*X$68/X$69 -> 0 | Y165: =('2.2 Model'!Y206+'2.2 Model'!Y212)*Y$68/Y$69 -> 0 | Z165: =('2.2 Model'!Z206+'2.2 Model'!Z212)*Z$68/Z$69 -> 0 | AA165: =('2.2 Model'!AA206+'2.2 Model'!AA212)*AA$68/AA$69 -> 0 | AB165: =('2.2 Model'!AB206+'2.2 Model'!AB212)*AB$68/AB$69 -> 0 | AC165: =('2.2 Model'!AC206+'2.2 Model'!AC212)*AC$68/AC$69 -> 0 | AD165: =('2.2 Model'!AD206+'2.2 Model'!AD212)*AD$68/AD$69 -> 0 | AE165: =('2.2 Model'!AE206+'2.2 Model'!AE212)*AE$68/AE$69 -> 0 | AF165: =('2.2 Model'!AF206+'2.2 Model'!AF212)*AF$68/AF$69 -> 0 | AG165: =('2.2 Model'!AG206+'2.2 Model'!AG212)*AG$68/AG$69 -> 0 | AH165: =('2.2 Model'!AH206+'2.2 Model'!AH212)*AH$68/AH$69 -> 0 | AI165: =('2.2 Model'!AI206+'2.2 Model'!AI212)*AI$68/AI$69 -> 0 | AJ165: =('2.2 Model'!AJ206+'2.2 Model'!AJ212)*AJ$68/AJ$69 -> 0 | AK165: =('2.2 Model'!AK206+'2.2 Model'!AK212)*AK$68/AK$69 -> 0 | AL165: =('2.2 Model'!AL206+'2.2 Model'!AL212)*AL$68/AL$69 -> 0
C166: ='2.2 Model'!C207 ->  | D166: ='2.2 Model'!D207 ->  | E166: ='2.2 Model'!E207 ->  | G166: ='2.2 Model'!G213 ->  | K166: =SUM(M166:AL166) -> 0 | M166: =('2.2 Model'!M207+'2.2 Model'!M213)*M$68/M$69 -> 0 | N166: =('2.2 Model'!N207+'2.2 Model'!N213)*N$68/N$69 -> 0 | O166: =('2.2 Model'!O207+'2.2 Model'!O213)*O$68/O$69 -> 0 | P166: =('2.2 Model'!P207+'2.2 Model'!P213)*P$68/P$69 -> 0 | Q166: =('2.2 Model'!Q207+'2.2 Model'!Q213)*Q$68/Q$69 -> 0 | R166: =('2.2 Model'!R207+'2.2 Model'!R213)*R$68/R$69 -> 0 | S166: =('2.2 Model'!S207+'2.2 Model'!S213)*S$68/S$69 -> 0 | T166: =('2.2 Model'!T207+'2.2 Model'!T213)*T$68/T$69 -> 0 | U166: =('2.2 Model'!U207+'2.2 Model'!U213)*U$68/U$69 -> 0 | V166: =('2.2 Model'!V207+'2.2 Model'!V213)*V$68/V$69 -> 0 | W166: =('2.2 Model'!W207+'2.2 Model'!W213)*W$68/W$69 -> 0 | X166: =('2.2 Model'!X207+'2.2 Model'!X213)*X$68/X$69 -> 0 | Y166: =('2.2 Model'!Y207+'2.2 Model'!Y213)*Y$68/Y$69 -> 0 | Z166: =('2.2 Model'!Z207+'2.2 Model'!Z213)*Z$68/Z$69 -> 0 | AA166: =('2.2 Model'!AA207+'2.2 Model'!AA213)*AA$68/AA$69 -> 0 | AB166: =('2.2 Model'!AB207+'2.2 Model'!AB213)*AB$68/AB$69 -> 0 | AC166: =('2.2 Model'!AC207+'2.2 Model'!AC213)*AC$68/AC$69 -> 0 | AD166: =('2.2 Model'!AD207+'2.2 Model'!AD213)*AD$68/AD$69 -> 0 | AE166: =('2.2 Model'!AE207+'2.2 Model'!AE213)*AE$68/AE$69 -> 0 | AF166: =('2.2 Model'!AF207+'2.2 Model'!AF213)*AF$68/AF$69 -> 0 | AG166: =('2.2 Model'!AG207+'2.2 Model'!AG213)*AG$68/AG$69 -> 0 | AH166: =('2.2 Model'!AH207+'2.2 Model'!AH213)*AH$68/AH$69 -> 0 | AI166: =('2.2 Model'!AI207+'2.2 Model'!AI213)*AI$68/AI$69 -> 0 | AJ166: =('2.2 Model'!AJ207+'2.2 Model'!AJ213)*AJ$68/AJ$69 -> 0 | AK166: =('2.2 Model'!AK207+'2.2 Model'!AK213)*AK$68/AK$69 -> 0 | AL166: =('2.2 Model'!AL207+'2.2 Model'!AL213)*AL$68/AL$69 -> 0
C167: ='2.2 Model'!C208 ->  | D167: ='2.2 Model'!D208 ->  | E167: ='2.2 Model'!E208 ->  | G167: ='2.2 Model'!G214 ->  | K167: 0 | M167: =('2.2 Model'!M208+'2.2 Model'!M214)*M$68/M$69 -> 0 | N167: =('2.2 Model'!N208+'2.2 Model'!N214)*N$68/N$69 -> 0 | O167: =('2.2 Model'!O208+'2.2 Model'!O214)*O$68/O$69 -> 0 | P167: =('2.2 Model'!P208+'2.2 Model'!P214)*P$68/P$69 -> 0 | Q167: =('2.2 Model'!Q208+'2.2 Model'!Q214)*Q$68/Q$69 -> 0 | R167: =('2.2 Model'!R208+'2.2 Model'!R214)*R$68/R$69 -> 0 | S167: =('2.2 Model'!S208+'2.2 Model'!S214)*S$68/S$69 -> 0 | T167: =('2.2 Model'!T208+'2.2 Model'!T214)*T$68/T$69 -> 0 | U167: =('2.2 Model'!U208+'2.2 Model'!U214)*U$68/U$69 -> 0 | V167: =('2.2 Model'!V208+'2.2 Model'!V214)*V$68/V$69 -> 0 | W167: =('2.2 Model'!W208+'2.2 Model'!W214)*W$68/W$69 -> 0 | X167: =('2.2 Model'!X208+'2.2 Model'!X214)*X$68/X$69 -> 0 | Y167: =('2.2 Model'!Y208+'2.2 Model'!Y214)*Y$68/Y$69 -> 0 | Z167: =('2.2 Model'!Z208+'2.2 Model'!Z214)*Z$68/Z$69 -> 0 | AA167: =('2.2 Model'!AA208+'2.2 Model'!AA214)*AA$68/AA$69 -> 0 | AB167: =('2.2 Model'!AB208+'2.2 Model'!AB214)*AB$68/AB$69 -> 0 | AC167: =('2.2 Model'!AC208+'2.2 Model'!AC214)*AC$68/AC$69 -> 0 | AD167: =('2.2 Model'!AD208+'2.2 Model'!AD214)*AD$68/AD$69 -> 0 | AE167: =('2.2 Model'!AE208+'2.2 Model'!AE214)*AE$68/AE$69 -> 0 | AF167: =('2.2 Model'!AF208+'2.2 Model'!AF214)*AF$68/AF$69 -> 0 | AG167: =('2.2 Model'!AG208+'2.2 Model'!AG214)*AG$68/AG$69 -> 0 | AH167: =('2.2 Model'!AH208+'2.2 Model'!AH214)*AH$68/AH$69 -> 0 | AI167: =('2.2 Model'!AI208+'2.2 Model'!AI214)*AI$68/AI$69 -> 0 | AJ167: =('2.2 Model'!AJ208+'2.2 Model'!AJ214)*AJ$68/AJ$69 -> 0 | AK167: =('2.2 Model'!AK208+'2.2 Model'!AK214)*AK$68/AK$69 -> 0 | AL167: =('2.2 Model'!AL208+'2.2 Model'!AL214)*AL$68/AL$69 -> 0
C168: ='2.2 Model'!C209 ->  | D168: ='2.2 Model'!D209 ->  | E168: ='2.2 Model'!E209 ->  | G168: ='2.2 Model'!G215 ->  | K168: 0 | M168: =('2.2 Model'!M209+'2.2 Model'!M215)*M$68/M$69 -> 0 | N168: =('2.2 Model'!N209+'2.2 Model'!N215)*N$68/N$69 -> 0 | O168: =('2.2 Model'!O209+'2.2 Model'!O215)*O$68/O$69 -> 0 | P168: =('2.2 Model'!P209+'2.2 Model'!P215)*P$68/P$69 -> 0 | Q168: =('2.2 Model'!Q209+'2.2 Model'!Q215)*Q$68/Q$69 -> 0 | R168: =('2.2 Model'!R209+'2.2 Model'!R215)*R$68/R$69 -> 0 | S168: =('2.2 Model'!S209+'2.2 Model'!S215)*S$68/S$69 -> 0 | T168: =('2.2 Model'!T209+'2.2 Model'!T215)*T$68/T$69 -> 0 | U168: =('2.2 Model'!U209+'2.2 Model'!U215)*U$68/U$69 -> 0 | V168: =('2.2 Model'!V209+'2.2 Model'!V215)*V$68/V$69 -> 0 | W168: =('2.2 Model'!W209+'2.2 Model'!W215)*W$68/W$69 -> 0 | X168: =('2.2 Model'!X209+'2.2 Model'!X215)*X$68/X$69 -> 0 | Y168: =('2.2 Model'!Y209+'2.2 Model'!Y215)*Y$68/Y$69 -> 0 | Z168: =('2.2 Model'!Z209+'2.2 Model'!Z215)*Z$68/Z$69 -> 0 | AA168: =('2.2 Model'!AA209+'2.2 Model'!AA215)*AA$68/AA$69 -> 0 | AB168: =('2.2 Model'!AB209+'2.2 Model'!AB215)*AB$68/AB$69 -> 0 | AC168: =('2.2 Model'!AC209+'2.2 Model'!AC215)*AC$68/AC$69 -> 0 | AD168: =('2.2 Model'!AD209+'2.2 Model'!AD215)*AD$68/AD$69 -> 0 | AE168: =('2.2 Model'!AE209+'2.2 Model'!AE215)*AE$68/AE$69 -> 0 | AF168: =('2.2 Model'!AF209+'2.2 Model'!AF215)*AF$68/AF$69 -> 0 | AG168: =('2.2 Model'!AG209+'2.2 Model'!AG215)*AG$68/AG$69 -> 0 | AH168: =('2.2 Model'!AH209+'2.2 Model'!AH215)*AH$68/AH$69 -> 0 | AI168: =('2.2 Model'!AI209+'2.2 Model'!AI215)*AI$68/AI$69 -> 0 | AJ168: =('2.2 Model'!AJ209+'2.2 Model'!AJ215)*AJ$68/AJ$69 -> 0 | AK168: =('2.2 Model'!AK209+'2.2 Model'!AK215)*AK$68/AK$69 -> 0 | AL168: =('2.2 Model'!AL209+'2.2 Model'!AL215)*AL$68/AL$69 -> 0
C170: Liquefaction | E170: DKK | G170: Maintenance | I170: Calculated, sum of below | K170: =SUM(M170:AL170) -> 1535520390 | M170: =SUM(M172:M173) -> 0 | N170: =SUM(N172:N173) -> 127070742.2 | O170: 100292871.2 | P170: 96965619.58 | Q170: 93748750.68 | R170: 70632855.74 | S170: 68289585.64 | T170: 66024054.36 | U170: 63833682.89 | V170: 61715977.77 | W170: 62586061.01 | X170: 60509746.19 | Y170: 58502313.85 | Z170: 56561478.8 | AA170: 54685031.63 | AB170: 52870836.27 | AC170: 51116827.48 | AD170: 49421008.56 | AE170: 47781449.04 | AF170: 46196282.48 | AG170: 44663704.39 | AH170: 43181970.12 | AI170: 41749392.91 | AJ170: 40364341.96 | AK170: 39025240.57 | AL170: 37730564.34
D172: ='2.2 Model'!D219 -> Liquefaction maintenance | E172: ='2.2 Model'!E219 -> DKK | G172: ='2.2 Model'!G219 -> Assumes 5,00% of CAPEX anually | I172: ='2.2 Model'!I219 -> Calculated | K172: =SUM(M172:AL172) -> 810159914.7 | M172: ='2.2 Model'!M219*M$68/M$69 -> 0 | N172: ='2.2 Model'!N219*N$68/N$69 -> 47171621.13 | O172: ='2.2 Model'!O219*O$68/O$69 -> 45606685.83 | P172: ='2.2 Model'!P219*P$68/P$69 -> 44093667.81 | Q172: ='2.2 Model'!Q219*Q$68/Q$69 -> 42630844.71 | R172: ='2.2 Model'!R219*R$68/R$69 -> 41216551.28 | S172: ='2.2 Model'!S219*S$68/S$69 -> 39849177.55 | T172: ='2.2 Model'!T219*T$68/T$69 -> 38527166.92 | U172: ='2.2 Model'!U219*U$68/U$69 -> 37249014.46 | V172: ='2.2 Model'!V219*V$68/V$69 -> 36013265.16 | W172: ='2.2 Model'!W219*W$68/W$69 -> 34818512.29 | X172: ='2.2 Model'!X219*X$68/X$69 -> 33663395.77 | Y172: ='2.2 Model'!Y219*Y$68/Y$69 -> 32546600.65 | Z172: ='2.2 Model'!Z219*Z$68/Z$69 -> 31466855.6 | AA172: ='2.2 Model'!AA219*AA$68/AA$69 -> 30422931.48 | AB172: ='2.2 Model'!AB219*AB$68/AB$69 -> 29413639.92 | AC172: ='2.2 Model'!AC219*AC$68/AC$69 -> 28437831.96 | AD172: ='2.2 Model'!AD219*AD$68/AD$69 -> 27494396.78 | AE172: ='2.2 Model'!AE219*AE$68/AE$69 -> 26582260.39 | AF172: ='2.2 Model'!AF219*AF$68/AF$69 -> 25700384.45 | AG172: ='2.2 Model'!AG219*AG$68/AG$69 -> 24847765.06 | AH172: ='2.2 Model'!AH219*AH$68/AH$69 -> 24023431.63 | AI172: ='2.2 Model'!AI219*AI$68/AI$69 -> 23226445.74 | AJ172: ='2.2 Model'!AJ219*AJ$68/AJ$69 -> 22455900.15 | AK172: ='2.2 Model'!AK219*AK$68/AK$69 -> 21710917.68 | AL172: ='2.2 Model'!AL219*AL$68/AL$69 -> 20990650.27
D173: ='2.2 Model'!D220 -> Liquefaction electricity consumption | E173: ='2.2 Model'!E220 -> DKK | G173: ='2.2 Model'!G220 -> Compression power at 22,1 MW | I173: ='2.2 Model'!I220 -> Calculated | K173: =SUM(M173:AL173) -> 725360475 | M173: ='2.2 Model'!M220*M$68/M$69 -> 0 | N173: ='2.2 Model'!N220*N$68/N$69 -> 79899121.03 | O173: ='2.2 Model'!O220*O$68/O$69 -> 54686185.4 | P173: ='2.2 Model'!P220*P$68/P$69 -> 52871951.76 | Q173: ='2.2 Model'!Q220*Q$68/Q$69 -> 51117905.97 | R173: ='2.2 Model'!R220*R$68/R$69 -> 29416304.45 | S173: ='2.2 Model'!S220*S$68/S$69 -> 28440408.09 | T173: ='2.2 Model'!T220*T$68/T$69 -> 27496887.45 | U173: ='2.2 Model'!U220*U$68/U$69 -> 26584668.43 | V173: ='2.2 Model'!V220*V$68/V$69 -> 25702712.61 | W173: ='2.2 Model'!W220*W$68/W$69 -> 27767548.72 | X173: ='2.2 Model'!X220*X$68/X$69 -> 26846350.42 | Y173: ='2.2 Model'!Y220*Y$68/Y$69 -> 25955713.2 | Z173: ='2.2 Model'!Z220*Z$68/Z$69 -> 25094623.19 | AA173: ='2.2 Model'!AA220*AA$68/AA$69 -> 24262100.15 | AB173: ='2.2 Model'!AB220*AB$68/AB$69 -> 23457196.35 | AC173: ='2.2 Model'!AC220*AC$68/AC$69 -> 22678995.53 | AD173: ='2.2 Model'!AD220*AD$68/AD$69 -> 21926611.79 | AE173: ='2.2 Model'!AE220*AE$68/AE$69 -> 21199188.65 | AF173: ='2.2 Model'!AF220*AF$68/AF$69 -> 20495898.03 | AG173: ='2.2 Model'!AG220*AG$68/AG$69 -> 19815939.33 | AH173: ='2.2 Model'!AH220*AH$68/AH$69 -> 19158538.5 | AI173: ='2.2 Model'!AI220*AI$68/AI$69 -> 18522947.17 | AJ173: ='2.2 Model'!AJ220*AJ$68/AJ$69 -> 17908441.81 | AK173: ='2.2 Model'!AK220*AK$68/AK$69 -> 17314322.89 | AL173: ='2.2 Model'!AL220*AL$68/AL$69 -> 16739914.08
C175: Permanent storage | E175: DKK | G175: Maintenance | I175: Calculated, sum of below | K175: =SUM(M175:AL175) -> 5757473148 | M175: =SUM(M177:M194) -> 0 | N175: =SUM(N177:N194) -> 335229301.1 | O175: 324107949.9 | P175: 313355553.4 | Q175: 302959871.6 | R175: 292909070.1 | S175: 283191707.6 | T175: 273796722.1 | U175: 264713418.5 | V175: 255931456.7 | W175: 247440839.7 | X175: 239231901.9 | Y175: 231295298.5 | Z175: 223621994.8 | AA175: 216203255.6 | AB175: 209030635.7 | AC175: 202095970.1 | AD175: 195391364.5 | AE175: 188909186.5 | AF175: 182642057.1 | AG175: 176582841.9 | AH175: 170724643.4 | AI175: 165060792.6 | AJ175: 159584842.2 | AK175: 154290558.3 | AL175: 149171914.2
C177: ='2.2 Model'!C224 -> I1 | D177: ='2.2 Model'!D224 -> Import by pipeline | E177: ='2.2 Model'!E224 ->  | I177: ='2.2 Model'!I224 ->  | K177: =SUM(M177:AL177) -> 0 | M177: ='2.2 Model'!M224*M$68/M$69 -> 0 | N177: ='2.2 Model'!N224*N$68/N$69 -> 0 | O177: ='2.2 Model'!O224*O$68/O$69 -> 0 | P177: ='2.2 Model'!P224*P$68/P$69 -> 0 | Q177: ='2.2 Model'!Q224*Q$68/Q$69 -> 0 | R177: ='2.2 Model'!R224*R$68/R$69 -> 0 | S177: ='2.2 Model'!S224*S$68/S$69 -> 0 | T177: ='2.2 Model'!T224*T$68/T$69 -> 0 | U177: ='2.2 Model'!U224*U$68/U$69 -> 0 | V177: ='2.2 Model'!V224*V$68/V$69 -> 0 | W177: ='2.2 Model'!W224*W$68/W$69 -> 0 | X177: ='2.2 Model'!X224*X$68/X$69 -> 0 | Y177: ='2.2 Model'!Y224*Y$68/Y$69 -> 0 | Z177: ='2.2 Model'!Z224*Z$68/Z$69 -> 0 | AA177: ='2.2 Model'!AA224*AA$68/AA$69 -> 0 | AB177: ='2.2 Model'!AB224*AB$68/AB$69 -> 0 | AC177: ='2.2 Model'!AC224*AC$68/AC$69 -> 0 | AD177: ='2.2 Model'!AD224*AD$68/AD$69 -> 0 | AE177: ='2.2 Model'!AE224*AE$68/AE$69 -> 0 | AF177: ='2.2 Model'!AF224*AF$68/AF$69 -> 0 | AG177: ='2.2 Model'!AG224*AG$68/AG$69 -> 0 | AH177: ='2.2 Model'!AH224*AH$68/AH$69 -> 0 | AI177: ='2.2 Model'!AI224*AI$68/AI$69 -> 0 | AJ177: ='2.2 Model'!AJ224*AJ$68/AJ$69 -> 0 | AK177: ='2.2 Model'!AK224*AK$68/AK$69 -> 0 | AL177: ='2.2 Model'!AL224*AL$68/AL$69 -> 0
C178: ='2.2 Model'!C225 -> I2 | D178: ='2.2 Model'!D225 -> Import by ship | E178: ='2.2 Model'!E225 ->  | I178: ='2.2 Model'!I225 ->  | K178: =SUM(M178:AL178) -> 0 | M178: ='2.2 Model'!M225*M$68/M$69 -> 0 | N178: ='2.2 Model'!N225*N$68/N$69 -> 0 | O178: ='2.2 Model'!O225*O$68/O$69 -> 0 | P178: ='2.2 Model'!P225*P$68/P$69 -> 0 | Q178: ='2.2 Model'!Q225*Q$68/Q$69 -> 0 | R178: ='2.2 Model'!R225*R$68/R$69 -> 0 | S178: ='2.2 Model'!S225*S$68/S$69 -> 0 | T178: ='2.2 Model'!T225*T$68/T$69 -> 0 | U178: ='2.2 Model'!U225*U$68/U$69 -> 0 | V178: ='2.2 Model'!V225*V$68/V$69 -> 0 | W178: ='2.2 Model'!W225*W$68/W$69 -> 0 | X178: ='2.2 Model'!X225*X$68/X$69 -> 0 | Y178: ='2.2 Model'!Y225*Y$68/Y$69 -> 0 | Z178: ='2.2 Model'!Z225*Z$68/Z$69 -> 0 | AA178: ='2.2 Model'!AA225*AA$68/AA$69 -> 0 | AB178: ='2.2 Model'!AB225*AB$68/AB$69 -> 0 | AC178: ='2.2 Model'!AC225*AC$68/AC$69 -> 0 | AD178: ='2.2 Model'!AD225*AD$68/AD$69 -> 0 | AE178: ='2.2 Model'!AE225*AE$68/AE$69 -> 0 | AF178: ='2.2 Model'!AF225*AF$68/AF$69 -> 0 | AG178: ='2.2 Model'!AG225*AG$68/AG$69 -> 0 | AH178: ='2.2 Model'!AH225*AH$68/AH$69 -> 0 | AI178: ='2.2 Model'!AI225*AI$68/AI$69 -> 0 | AJ178: ='2.2 Model'!AJ225*AJ$68/AJ$69 -> 0 | AK178: ='2.2 Model'!AK225*AK$68/AK$69 -> 0 | AL178: ='2.2 Model'!AL225*AL$68/AL$69 -> 0
C179: ='2.2 Model'!C226 -> E1 | D179: ='2.2 Model'!D226 -> Biofos | E179: ='2.2 Model'!E226 -> DKK | I179: ='2.2 Model'!I226 -> Calculated | K179: =SUM(M179:AL179) -> 28364023.94 | M179: ='2.2 Model'!M226*M$68/M$69 -> 0 | N179: ='2.2 Model'!N226*N$68/N$69 -> 1651497.398 | O179: ='2.2 Model'!O226*O$68/O$69 -> 1596708.384 | P179: ='2.2 Model'!P226*P$68/P$69 -> 1543737.016 | Q179: ='2.2 Model'!Q226*Q$68/Q$69 -> 1492522.992 | R179: ='2.2 Model'!R226*R$68/R$69 -> 1443008.011 | S179: ='2.2 Model'!S226*S$68/S$69 -> 1395135.708 | T179: ='2.2 Model'!T226*T$68/T$69 -> 1348851.585 | U179: ='2.2 Model'!U226*U$68/U$69 -> 1304102.954 | V179: ='2.2 Model'!V226*V$68/V$69 -> 1260838.875 | W179: ='2.2 Model'!W226*W$68/W$69 -> 1219010.097 | X179: ='2.2 Model'!X226*X$68/X$69 -> 1178569.004 | Y179: ='2.2 Model'!Y226*Y$68/Y$69 -> 1139469.558 | Z179: ='2.2 Model'!Z226*Z$68/Z$69 -> 1101667.25 | AA179: ='2.2 Model'!AA226*AA$68/AA$69 -> 1065119.048 | AB179: ='2.2 Model'!AB226*AB$68/AB$69 -> 1029783.345 | AC179: ='2.2 Model'!AC226*AC$68/AC$69 -> 995619.9163 | AD179: ='2.2 Model'!AD226*AD$68/AD$69 -> 962589.8717 | AE179: ='2.2 Model'!AE226*AE$68/AE$69 -> 930655.6105 | AF179: ='2.2 Model'!AF226*AF$68/AF$69 -> 899780.7798 | AG179: ='2.2 Model'!AG226*AG$68/AG$69 -> 869930.2326 | AH179: ='2.2 Model'!AH226*AH$68/AH$69 -> 841069.988 | AI179: ='2.2 Model'!AI226*AI$68/AI$69 -> 813167.1921 | AJ179: ='2.2 Model'!AJ226*AJ$68/AJ$69 -> 786190.0815 | AK179: ='2.2 Model'!AK226*AK$68/AK$69 -> 760107.9461 | AL179: ='2.2 Model'!AL226*AL$68/AL$69 -> 734891.0948
C180: ='2.2 Model'!C227 -> E2 | D180: ='2.2 Model'!D227 -> Amagerværket (HOFOR) | E180: ='2.2 Model'!E227 -> DKK | I180: ='2.2 Model'!I227 -> Calculated | K180: 2020019075 | M180: ='2.2 Model'!M227*M$68/M$69 -> 0 | N180: ='2.2 Model'!N227*N$68/N$69 -> 117615760.5 | O180: ='2.2 Model'!O227*O$68/O$69 -> 113713815.8 | P180: ='2.2 Model'!P227*P$68/P$69 -> 109941319.6 | Q180: ='2.2 Model'!Q227*Q$68/Q$69 -> 106293977.2 | R180: ='2.2 Model'!R227*R$68/R$69 -> 102767636.7 | S180: ='2.2 Model'!S227*S$68/S$69 -> 99358283.84 | T180: ='2.2 Model'!T227*T$68/T$69 -> 96062037.46 | U180: ='2.2 Model'!U227*U$68/U$69 -> 92875145.22 | V180: ='2.2 Model'!V227*V$68/V$69 -> 89793979.27 | W180: ='2.2 Model'!W227*W$68/W$69 -> 86815032.09 | X180: ='2.2 Model'!X227*X$68/X$69 -> 83934912.54 | Y180: ='2.2 Model'!Y227*Y$68/Y$69 -> 81150341.98 | Z180: ='2.2 Model'!Z227*Z$68/Z$69 -> 78458150.54 | AA180: ='2.2 Model'!AA227*AA$68/AA$69 -> 75855273.51 | AB180: ='2.2 Model'!AB227*AB$68/AB$69 -> 73338747.85 | AC180: ='2.2 Model'!AC227*AC$68/AC$69 -> 70905708.82 | AD180: ='2.2 Model'!AD227*AD$68/AD$69 -> 68553386.73 | AE180: ='2.2 Model'!AE227*AE$68/AE$69 -> 66279103.75 | AF180: ='2.2 Model'!AF227*AF$68/AF$69 -> 64080270.93 | AG180: ='2.2 Model'!AG227*AG$68/AG$69 -> 61954385.16 | AH180: ='2.2 Model'!AH227*AH$68/AH$69 -> 59899026.41 | AI180: ='2.2 Model'!AI227*AI$68/AI$69 -> 57911854.92 | AJ180: ='2.2 Model'!AJ227*AJ$68/AJ$69 -> 55990608.55 | AK180: ='2.2 Model'!AK227*AK$68/AK$69 -> 54133100.21 | AL180: ='2.2 Model'!AL227*AL$68/AL$69 -> 52337215.37
C181: ='2.2 Model'!C228 -> E3 | D181: ='2.2 Model'!D228 -> Amager Bakke (ARC) | E181: ='2.2 Model'!E228 -> DKK | I181: ='2.2 Model'!I228 -> Calculated | K181: 1231718948 | M181: ='2.2 Model'!M228*M$68/M$69 -> 0 | N181: ='2.2 Model'!N228*N$68/N$69 -> 71716927.12 | O181: ='2.2 Model'!O228*O$68/O$69 -> 69337692.57 | P181: ='2.2 Model'!P228*P$68/P$69 -> 67037389.97 | Q181: ='2.2 Model'!Q228*Q$68/Q$69 -> 64813400.73 | R181: ='2.2 Model'!R228*R$68/R$69 -> 62663193.12 | S181: ='2.2 Model'!S228*S$68/S$69 -> 60584319.42 | T181: ='2.2 Model'!T228*T$68/T$69 -> 58574413.09 | U181: ='2.2 Model'!U228*U$68/U$69 -> 56631186.11 | V181: ='2.2 Model'!V228*V$68/V$69 -> 54752426.38 | W181: ='2.2 Model'!W228*W$68/W$69 -> 52935995.18 | X181: ='2.2 Model'!X228*X$68/X$69 -> 51179824.72 | Y181: ='2.2 Model'!Y228*Y$68/Y$69 -> 49481915.84 | Z181: ='2.2 Model'!Z228*Z$68/Z$69 -> 47840335.7 | AA181: ='2.2 Model'!AA228*AA$68/AA$69 -> 46253215.55 | AB181: ='2.2 Model'!AB228*AB$68/AB$69 -> 44718748.69 | AC181: ='2.2 Model'!AC228*AC$68/AC$69 -> 43235188.3 | AD181: ='2.2 Model'!AD228*AD$68/AD$69 -> 41800845.56 | AE181: ='2.2 Model'!AE228*AE$68/AE$69 -> 40414087.65 | AF181: ='2.2 Model'!AF228*AF$68/AF$69 -> 39073335.93 | AG181: ='2.2 Model'!AG228*AG$68/AG$69 -> 37777064.12 | AH181: ='2.2 Model'!AH228*AH$68/AH$69 -> 36523796.59 | AI181: ='2.2 Model'!AI228*AI$68/AI$69 -> 35312106.66 | AJ181: ='2.2 Model'!AJ228*AJ$68/AJ$69 -> 34140614.97 | AK181: ='2.2 Model'!AK228*AK$68/AK$69 -> 33007987.93 | AL181: ='2.2 Model'!AL228*AL$68/AL$69 -> 31912936.2
C182: ='2.2 Model'!C229 -> E4 | D182: ='2.2 Model'!D229 -> Avedøre (Ørsted) | E182: ='2.2 Model'!E229 -> DKK | I182: ='2.2 Model'!I229 -> Calculated | K182: 369515684.4 | M182: ='2.2 Model'!M229*M$68/M$69 -> 0 | N182: ='2.2 Model'!N229*N$68/N$69 -> 21515078.13 | O182: ='2.2 Model'!O229*O$68/O$69 -> 20801307.77 | P182: ='2.2 Model'!P229*P$68/P$69 -> 20111216.99 | Q182: ='2.2 Model'!Q229*Q$68/Q$69 -> 19444020.22 | R182: ='2.2 Model'!R229*R$68/R$69 -> 18798957.94 | S182: ='2.2 Model'!S229*S$68/S$69 -> 18175295.83 | T182: ='2.2 Model'!T229*T$68/T$69 -> 17572323.93 | U182: ='2.2 Model'!U229*U$68/U$69 -> 16989355.83 | V182: ='2.2 Model'!V229*V$68/V$69 -> 16425727.91 | W182: ='2.2 Model'!W229*W$68/W$69 -> 15880798.55 | X182: ='2.2 Model'!X229*X$68/X$69 -> 15353947.42 | Y182: ='2.2 Model'!Y229*Y$68/Y$69 -> 14844574.75 | Z182: ='2.2 Model'!Z229*Z$68/Z$69 -> 14352100.71 | AA182: ='2.2 Model'!AA229*AA$68/AA$69 -> 13875964.67 | AB182: ='2.2 Model'!AB229*AB$68/AB$69 -> 13415624.61 | AC182: ='2.2 Model'!AC229*AC$68/AC$69 -> 12970556.49 | AD182: ='2.2 Model'!AD229*AD$68/AD$69 -> 12540253.67 | AE182: ='2.2 Model'!AE229*AE$68/AE$69 -> 12124226.3 | AF182: ='2.2 Model'!AF229*AF$68/AF$69 -> 11722000.78 | AG182: ='2.2 Model'!AG229*AG$68/AG$69 -> 11333119.24 | AH182: ='2.2 Model'!AH229*AH$68/AH$69 -> 10957138.98 | AI182: ='2.2 Model'!AI229*AI$68/AI$69 -> 10593632 | AJ182: ='2.2 Model'!AJ229*AJ$68/AJ$69 -> 10242184.49 | AK182: ='2.2 Model'!AK229*AK$68/AK$69 -> 9902396.38 | AL182: ='2.2 Model'!AL229*AL$68/AL$69 -> 9573880.86
C183: ='2.2 Model'!C230 -> E5 | D183: ='2.2 Model'!D230 -> Vestforbrænding | E183: ='2.2 Model'!E230 -> DKK | I183: ='2.2 Model'!I230 -> Calculated | K183: 1245652153 | M183: ='2.2 Model'!M230*M$68/M$69 -> 0 | N183: ='2.2 Model'!N230*N$68/N$69 -> 72528189 | O183: ='2.2 Model'!O230*O$68/O$69 -> 70122040.55 | P183: ='2.2 Model'!P230*P$68/P$69 -> 67795716.93 | Q183: ='2.2 Model'!Q230*Q$68/Q$69 -> 65546569.92 | R183: ='2.2 Model'!R230*R$68/R$69 -> 63372039.16 | S183: ='2.2 Model'!S230*S$68/S$69 -> 61269649.24 | T183: ='2.2 Model'!T230*T$68/T$69 -> 59237006.85 | U183: ='2.2 Model'!U230*U$68/U$69 -> 57271798.09 | V183: ='2.2 Model'!V230*V$68/V$69 -> 55371785.83 | W183: ='2.2 Model'!W230*W$68/W$69 -> 53534807.15 | X183: ='2.2 Model'!X230*X$68/X$69 -> 51758770.9 | Y183: ='2.2 Model'!Y230*Y$68/Y$69 -> 50041655.27 | Z183: ='2.2 Model'!Z230*Z$68/Z$69 -> 48381505.57 | AA183: ='2.2 Model'!AA230*AA$68/AA$69 -> 46776431.93 | AB183: ='2.2 Model'!AB230*AB$68/AB$69 -> 45224607.17 | AC183: ='2.2 Model'!AC230*AC$68/AC$69 -> 43724264.75 | AD183: ='2.2 Model'!AD230*AD$68/AD$69 -> 42273696.73 | AE183: ='2.2 Model'!AE230*AE$68/AE$69 -> 40871251.81 | AF183: ='2.2 Model'!AF230*AF$68/AF$69 -> 39515333.51 | AG183: ='2.2 Model'!AG230*AG$68/AG$69 -> 38204398.27 | AH183: ='2.2 Model'!AH230*AH$68/AH$69 -> 36936953.78 | AI183: ='2.2 Model'!AI230*AI$68/AI$69 -> 35711557.21 | AJ183: ='2.2 Model'!AJ230*AJ$68/AJ$69 -> 34526813.61 | AK183: ='2.2 Model'!AK230*AK$68/AK$69 -> 33381374.29 | AL183: ='2.2 Model'!AL230*AL$68/AL$69 -> 32273935.33
C184: ='2.2 Model'!C231 -> E6 | D184: ='2.2 Model'!D231 -> ARGO | E184: ='2.2 Model'!E231 -> DKK | I184: ='2.2 Model'!I231 -> Calculated | K184: 862203263.7 | M184: ='2.2 Model'!M231*M$68/M$69 -> 0 | N184: ='2.2 Model'!N231*N$68/N$69 -> 50201848.98 | O184: ='2.2 Model'!O231*O$68/O$69 -> 48536384.8 | P184: ='2.2 Model'!P231*P$68/P$69 -> 46926172.98 | Q184: ='2.2 Model'!Q231*Q$68/Q$69 -> 45369380.51 | R184: ='2.2 Model'!R231*R$68/R$69 -> 43864235.19 | S184: ='2.2 Model'!S231*S$68/S$69 -> 42409023.59 | T184: ='2.2 Model'!T231*T$68/T$69 -> 41002089.16 | U184: ='2.2 Model'!U231*U$68/U$69 -> 39641830.28 | V184: ='2.2 Model'!V231*V$68/V$69 -> 38326698.47 | W184: ='2.2 Model'!W231*W$68/W$69 -> 37055196.62 | X184: ='2.2 Model'!X231*X$68/X$69 -> 35825877.3 | Y184: ='2.2 Model'!Y231*Y$68/Y$69 -> 34637341.09 | Z184: ='2.2 Model'!Z231*Z$68/Z$69 -> 33488234.99 | AA184: ='2.2 Model'!AA231*AA$68/AA$69 -> 32377250.89 | AB184: ='2.2 Model'!AB231*AB$68/AB$69 -> 31303124.08 | AC184: ='2.2 Model'!AC231*AC$68/AC$69 -> 30264631.81 | AD184: ='2.2 Model'!AD231*AD$68/AD$69 -> 29260591.9 | AE184: ='2.2 Model'!AE231*AE$68/AE$69 -> 28289861.36 | AF184: ='2.2 Model'!AF231*AF$68/AF$69 -> 27351335.15 | AG184: ='2.2 Model'!AG231*AG$68/AG$69 -> 26443944.89 | AH184: ='2.2 Model'!AH231*AH$68/AH$69 -> 25566657.62 | AI184: ='2.2 Model'!AI231*AI$68/AI$69 -> 24718474.66 | AJ184: ='2.2 Model'!AJ231*AJ$68/AJ$69 -> 23898430.48 | AK184: ='2.2 Model'!AK231*AK$68/AK$69 -> 23105591.55 | AL184: ='2.2 Model'!AL231*AL$68/AL$69 -> 22339055.34
C185: ='2.2 Model'!C232 ->  | D185: ='2.2 Model'!D232 ->  | E185: ='2.2 Model'!E232 ->  | I185: ='2.2 Model'!I232 ->  | K185: 0 | M185: ='2.2 Model'!M232*M$68/M$69 -> 0 | N185: ='2.2 Model'!N232*N$68/N$69 -> 0 | O185: ='2.2 Model'!O232*O$68/O$69 -> 0 | P185: ='2.2 Model'!P232*P$68/P$69 -> 0 | Q185: ='2.2 Model'!Q232*Q$68/Q$69 -> 0 | R185: ='2.2 Model'!R232*R$68/R$69 -> 0 | S185: ='2.2 Model'!S232*S$68/S$69 -> 0 | T185: ='2.2 Model'!T232*T$68/T$69 -> 0 | U185: ='2.2 Model'!U232*U$68/U$69 -> 0 | V185: ='2.2 Model'!V232*V$68/V$69 -> 0 | W185: ='2.2 Model'!W232*W$68/W$69 -> 0 | X185: ='2.2 Model'!X232*X$68/X$69 -> 0 | Y185: ='2.2 Model'!Y232*Y$68/Y$69 -> 0 | Z185: ='2.2 Model'!Z232*Z$68/Z$69 -> 0 | AA185: ='2.2 Model'!AA232*AA$68/AA$69 -> 0 | AB185: ='2.2 Model'!AB232*AB$68/AB$69 -> 0 | AC185: ='2.2 Model'!AC232*AC$68/AC$69 -> 0 | AD185: ='2.2 Model'!AD232*AD$68/AD$69 -> 0 | AE185: ='2.2 Model'!AE232*AE$68/AE$69 -> 0 | AF185: ='2.2 Model'!AF232*AF$68/AF$69 -> 0 | AG185: ='2.2 Model'!AG232*AG$68/AG$69 -> 0 | AH185: ='2.2 Model'!AH232*AH$68/AH$69 -> 0 | AI185: ='2.2 Model'!AI232*AI$68/AI$69 -> 0 | AJ185: ='2.2 Model'!AJ232*AJ$68/AJ$69 -> 0 | AK185: ='2.2 Model'!AK232*AK$68/AK$69 -> 0 | AL185: ='2.2 Model'!AL232*AL$68/AL$69 -> 0
C186: ='2.2 Model'!C233 ->  | D186: ='2.2 Model'!D233 ->  | E186: ='2.2 Model'!E233 ->  | I186: ='2.2 Model'!I233 ->  | K186: 0 | M186: ='2.2 Model'!M233*M$68/M$69 -> 0 | N186: ='2.2 Model'!N233*N$68/N$69 -> 0 | O186: ='2.2 Model'!O233*O$68/O$69 -> 0 | P186: ='2.2 Model'!P233*P$68/P$69 -> 0 | Q186: ='2.2 Model'!Q233*Q$68/Q$69 -> 0 | R186: ='2.2 Model'!R233*R$68/R$69 -> 0 | S186: ='2.2 Model'!S233*S$68/S$69 -> 0 | T186: ='2.2 Model'!T233*T$68/T$69 -> 0 | U186: ='2.2 Model'!U233*U$68/U$69 -> 0 | V186: ='2.2 Model'!V233*V$68/V$69 -> 0 | W186: ='2.2 Model'!W233*W$68/W$69 -> 0 | X186: ='2.2 Model'!X233*X$68/X$69 -> 0 | Y186: ='2.2 Model'!Y233*Y$68/Y$69 -> 0 | Z186: ='2.2 Model'!Z233*Z$68/Z$69 -> 0 | AA186: ='2.2 Model'!AA233*AA$68/AA$69 -> 0 | AB186: ='2.2 Model'!AB233*AB$68/AB$69 -> 0 | AC186: ='2.2 Model'!AC233*AC$68/AC$69 -> 0 | AD186: ='2.2 Model'!AD233*AD$68/AD$69 -> 0 | AE186: ='2.2 Model'!AE233*AE$68/AE$69 -> 0 | AF186: ='2.2 Model'!AF233*AF$68/AF$69 -> 0 | AG186: ='2.2 Model'!AG233*AG$68/AG$69 -> 0 | AH186: ='2.2 Model'!AH233*AH$68/AH$69 -> 0 | AI186: ='2.2 Model'!AI233*AI$68/AI$69 -> 0 | AJ186: ='2.2 Model'!AJ233*AJ$68/AJ$69 -> 0 | AK186: ='2.2 Model'!AK233*AK$68/AK$69 -> 0 | AL186: ='2.2 Model'!AL233*AL$68/AL$69 -> 0
C187: ='2.2 Model'!C234 ->  | D187: ='2.2 Model'!D234 ->  | E187: ='2.2 Model'!E234 ->  | I187: ='2.2 Model'!I234 ->  | K187: 0 | M187: ='2.2 Model'!M234*M$68/M$69 -> 0 | N187: ='2.2 Model'!N234*N$68/N$69 -> 0 | O187: ='2.2 Model'!O234*O$68/O$69 -> 0 | P187: ='2.2 Model'!P234*P$68/P$69 -> 0 | Q187: ='2.2 Model'!Q234*Q$68/Q$69 -> 0 | R187: ='2.2 Model'!R234*R$68/R$69 -> 0 | S187: ='2.2 Model'!S234*S$68/S$69 -> 0 | T187: ='2.2 Model'!T234*T$68/T$69 -> 0 | U187: ='2.2 Model'!U234*U$68/U$69 -> 0 | V187: ='2.2 Model'!V234*V$68/V$69 -> 0 | W187: ='2.2 Model'!W234*W$68/W$69 -> 0 | X187: ='2.2 Model'!X234*X$68/X$69 -> 0 | Y187: ='2.2 Model'!Y234*Y$68/Y$69 -> 0 | Z187: ='2.2 Model'!Z234*Z$68/Z$69 -> 0 | AA187: ='2.2 Model'!AA234*AA$68/AA$69 -> 0 | AB187: ='2.2 Model'!AB234*AB$68/AB$69 -> 0 | AC187: ='2.2 Model'!AC234*AC$68/AC$69 -> 0 | AD187: ='2.2 Model'!AD234*AD$68/AD$69 -> 0 | AE187: ='2.2 Model'!AE234*AE$68/AE$69 -> 0 | AF187: ='2.2 Model'!AF234*AF$68/AF$69 -> 0 | AG187: ='2.2 Model'!AG234*AG$68/AG$69 -> 0 | AH187: ='2.2 Model'!AH234*AH$68/AH$69 -> 0 | AI187: ='2.2 Model'!AI234*AI$68/AI$69 -> 0 | AJ187: ='2.2 Model'!AJ234*AJ$68/AJ$69 -> 0 | AK187: ='2.2 Model'!AK234*AK$68/AK$69 -> 0 | AL187: ='2.2 Model'!AL234*AL$68/AL$69 -> 0
C188: ='2.2 Model'!C235 ->  | D188: ='2.2 Model'!D235 ->  | E188: ='2.2 Model'!E235 ->  | I188: ='2.2 Model'!I235 ->  | K188: 0 | M188: ='2.2 Model'!M235*M$68/M$69 -> 0 | N188: ='2.2 Model'!N235*N$68/N$69 -> 0 | O188: ='2.2 Model'!O235*O$68/O$69 -> 0 | P188: ='2.2 Model'!P235*P$68/P$69 -> 0 | Q188: ='2.2 Model'!Q235*Q$68/Q$69 -> 0 | R188: ='2.2 Model'!R235*R$68/R$69 -> 0 | S188: ='2.2 Model'!S235*S$68/S$69 -> 0 | T188: ='2.2 Model'!T235*T$68/T$69 -> 0 | U188: ='2.2 Model'!U235*U$68/U$69 -> 0 | V188: ='2.2 Model'!V235*V$68/V$69 -> 0 | W188: ='2.2 Model'!W235*W$68/W$69 -> 0 | X188: ='2.2 Model'!X235*X$68/X$69 -> 0 | Y188: ='2.2 Model'!Y235*Y$68/Y$69 -> 0 | Z188: ='2.2 Model'!Z235*Z$68/Z$69 -> 0 | AA188: ='2.2 Model'!AA235*AA$68/AA$69 -> 0 | AB188: ='2.2 Model'!AB235*AB$68/AB$69 -> 0 | AC188: ='2.2 Model'!AC235*AC$68/AC$69 -> 0 | AD188: ='2.2 Model'!AD235*AD$68/AD$69 -> 0 | AE188: ='2.2 Model'!AE235*AE$68/AE$69 -> 0 | AF188: ='2.2 Model'!AF235*AF$68/AF$69 -> 0 | AG188: ='2.2 Model'!AG235*AG$68/AG$69 -> 0 | AH188: ='2.2 Model'!AH235*AH$68/AH$69 -> 0 | AI188: ='2.2 Model'!AI235*AI$68/AI$69 -> 0 | AJ188: ='2.2 Model'!AJ235*AJ$68/AJ$69 -> 0 | AK188: ='2.2 Model'!AK235*AK$68/AK$69 -> 0 | AL188: ='2.2 Model'!AL235*AL$68/AL$69 -> 0
C189: ='2.2 Model'!C236 ->  | D189: ='2.2 Model'!D236 ->  | E189: ='2.2 Model'!E236 ->  | I189: ='2.2 Model'!I236 ->  | K189: 0 | M189: ='2.2 Model'!M236*M$68/M$69 -> 0 | N189: ='2.2 Model'!N236*N$68/N$69 -> 0 | O189: ='2.2 Model'!O236*O$68/O$69 -> 0 | P189: ='2.2 Model'!P236*P$68/P$69 -> 0 | Q189: ='2.2 Model'!Q236*Q$68/Q$69 -> 0 | R189: ='2.2 Model'!R236*R$68/R$69 -> 0 | S189: ='2.2 Model'!S236*S$68/S$69 -> 0 | T189: ='2.2 Model'!T236*T$68/T$69 -> 0 | U189: ='2.2 Model'!U236*U$68/U$69 -> 0 | V189: ='2.2 Model'!V236*V$68/V$69 -> 0 | W189: ='2.2 Model'!W236*W$68/W$69 -> 0 | X189: ='2.2 Model'!X236*X$68/X$69 -> 0 | Y189: ='2.2 Model'!Y236*Y$68/Y$69 -> 0 | Z189: ='2.2 Model'!Z236*Z$68/Z$69 -> 0 | AA189: ='2.2 Model'!AA236*AA$68/AA$69 -> 0 | AB189: ='2.2 Model'!AB236*AB$68/AB$69 -> 0 | AC189: ='2.2 Model'!AC236*AC$68/AC$69 -> 0 | AD189: ='2.2 Model'!AD236*AD$68/AD$69 -> 0 | AE189: ='2.2 Model'!AE236*AE$68/AE$69 -> 0 | AF189: ='2.2 Model'!AF236*AF$68/AF$69 -> 0 | AG189: ='2.2 Model'!AG236*AG$68/AG$69 -> 0 | AH189: ='2.2 Model'!AH236*AH$68/AH$69 -> 0 | AI189: ='2.2 Model'!AI236*AI$68/AI$69 -> 0 | AJ189: ='2.2 Model'!AJ236*AJ$68/AJ$69 -> 0 | AK189: ='2.2 Model'!AK236*AK$68/AK$69 -> 0 | AL189: ='2.2 Model'!AL236*AL$68/AL$69 -> 0
C190: ='2.2 Model'!C237 ->  | D190: ='2.2 Model'!D237 ->  | E190: ='2.2 Model'!E237 ->  | I190: ='2.2 Model'!I237 ->  | K190: 0 | M190: ='2.2 Model'!M237*M$68/M$69 -> 0 | N190: ='2.2 Model'!N237*N$68/N$69 -> 0 | O190: ='2.2 Model'!O237*O$68/O$69 -> 0 | P190: ='2.2 Model'!P237*P$68/P$69 -> 0 | Q190: ='2.2 Model'!Q237*Q$68/Q$69 -> 0 | R190: ='2.2 Model'!R237*R$68/R$69 -> 0 | S190: ='2.2 Model'!S237*S$68/S$69 -> 0 | T190: ='2.2 Model'!T237*T$68/T$69 -> 0 | U190: ='2.2 Model'!U237*U$68/U$69 -> 0 | V190: ='2.2 Model'!V237*V$68/V$69 -> 0 | W190: ='2.2 Model'!W237*W$68/W$69 -> 0 | X190: ='2.2 Model'!X237*X$68/X$69 -> 0 | Y190: ='2.2 Model'!Y237*Y$68/Y$69 -> 0 | Z190: ='2.2 Model'!Z237*Z$68/Z$69 -> 0 | AA190: ='2.2 Model'!AA237*AA$68/AA$69 -> 0 | AB190: ='2.2 Model'!AB237*AB$68/AB$69 -> 0 | AC190: ='2.2 Model'!AC237*AC$68/AC$69 -> 0 | AD190: ='2.2 Model'!AD237*AD$68/AD$69 -> 0 | AE190: ='2.2 Model'!AE237*AE$68/AE$69 -> 0 | AF190: ='2.2 Model'!AF237*AF$68/AF$69 -> 0 | AG190: ='2.2 Model'!AG237*AG$68/AG$69 -> 0 | AH190: ='2.2 Model'!AH237*AH$68/AH$69 -> 0 | AI190: ='2.2 Model'!AI237*AI$68/AI$69 -> 0 | AJ190: ='2.2 Model'!AJ237*AJ$68/AJ$69 -> 0 | AK190: ='2.2 Model'!AK237*AK$68/AK$69 -> 0 | AL190: ='2.2 Model'!AL237*AL$68/AL$69 -> 0
C191: ='2.2 Model'!C238 ->  | D191: ='2.2 Model'!D238 ->  | E191: ='2.2 Model'!E238 ->  | I191: ='2.2 Model'!I238 ->  | K191: 0 | M191: ='2.2 Model'!M238*M$68/M$69 -> 0 | N191: ='2.2 Model'!N238*N$68/N$69 -> 0 | O191: ='2.2 Model'!O238*O$68/O$69 -> 0 | P191: ='2.2 Model'!P238*P$68/P$69 -> 0 | Q191: ='2.2 Model'!Q238*Q$68/Q$69 -> 0 | R191: ='2.2 Model'!R238*R$68/R$69 -> 0 | S191: ='2.2 Model'!S238*S$68/S$69 -> 0 | T191: ='2.2 Model'!T238*T$68/T$69 -> 0 | U191: ='2.2 Model'!U238*U$68/U$69 -> 0 | V191: ='2.2 Model'!V238*V$68/V$69 -> 0 | W191: ='2.2 Model'!W238*W$68/W$69 -> 0 | X191: ='2.2 Model'!X238*X$68/X$69 -> 0 | Y191: ='2.2 Model'!Y238*Y$68/Y$69 -> 0 | Z191: ='2.2 Model'!Z238*Z$68/Z$69 -> 0 | AA191: ='2.2 Model'!AA238*AA$68/AA$69 -> 0 | AB191: ='2.2 Model'!AB238*AB$68/AB$69 -> 0 | AC191: ='2.2 Model'!AC238*AC$68/AC$69 -> 0 | AD191: ='2.2 Model'!AD238*AD$68/AD$69 -> 0 | AE191: ='2.2 Model'!AE238*AE$68/AE$69 -> 0 | AF191: ='2.2 Model'!AF238*AF$68/AF$69 -> 0 | AG191: ='2.2 Model'!AG238*AG$68/AG$69 -> 0 | AH191: ='2.2 Model'!AH238*AH$68/AH$69 -> 0 | AI191: ='2.2 Model'!AI238*AI$68/AI$69 -> 0 | AJ191: ='2.2 Model'!AJ238*AJ$68/AJ$69 -> 0 | AK191: ='2.2 Model'!AK238*AK$68/AK$69 -> 0 | AL191: ='2.2 Model'!AL238*AL$68/AL$69 -> 0
C192: ='2.2 Model'!C239 ->  | D192: ='2.2 Model'!D239 ->  | E192: ='2.2 Model'!E239 ->  | I192: ='2.2 Model'!I239 ->  | K192: 0 | M192: ='2.2 Model'!M239*M$68/M$69 -> 0 | N192: ='2.2 Model'!N239*N$68/N$69 -> 0 | O192: ='2.2 Model'!O239*O$68/O$69 -> 0 | P192: ='2.2 Model'!P239*P$68/P$69 -> 0 | Q192: ='2.2 Model'!Q239*Q$68/Q$69 -> 0 | R192: ='2.2 Model'!R239*R$68/R$69 -> 0 | S192: ='2.2 Model'!S239*S$68/S$69 -> 0 | T192: ='2.2 Model'!T239*T$68/T$69 -> 0 | U192: ='2.2 Model'!U239*U$68/U$69 -> 0 | V192: ='2.2 Model'!V239*V$68/V$69 -> 0 | W192: ='2.2 Model'!W239*W$68/W$69 -> 0 | X192: ='2.2 Model'!X239*X$68/X$69 -> 0 | Y192: ='2.2 Model'!Y239*Y$68/Y$69 -> 0 | Z192: ='2.2 Model'!Z239*Z$68/Z$69 -> 0 | AA192: ='2.2 Model'!AA239*AA$68/AA$69 -> 0 | AB192: ='2.2 Model'!AB239*AB$68/AB$69 -> 0 | AC192: ='2.2 Model'!AC239*AC$68/AC$69 -> 0 | AD192: ='2.2 Model'!AD239*AD$68/AD$69 -> 0 | AE192: ='2.2 Model'!AE239*AE$68/AE$69 -> 0 | AF192: ='2.2 Model'!AF239*AF$68/AF$69 -> 0 | AG192: ='2.2 Model'!AG239*AG$68/AG$69 -> 0 | AH192: ='2.2 Model'!AH239*AH$68/AH$69 -> 0 | AI192: ='2.2 Model'!AI239*AI$68/AI$69 -> 0 | AJ192: ='2.2 Model'!AJ239*AJ$68/AJ$69 -> 0 | AK192: ='2.2 Model'!AK239*AK$68/AK$69 -> 0 | AL192: ='2.2 Model'!AL239*AL$68/AL$69 -> 0
C193: ='2.2 Model'!C240 ->  | D193: ='2.2 Model'!D240 ->  | E193: ='2.2 Model'!E240 ->  | I193: ='2.2 Model'!I240 ->  | K193: 0 | M193: ='2.2 Model'!M240*M$68/M$69 -> 0 | N193: ='2.2 Model'!N240*N$68/N$69 -> 0 | O193: ='2.2 Model'!O240*O$68/O$69 -> 0 | P193: ='2.2 Model'!P240*P$68/P$69 -> 0 | Q193: ='2.2 Model'!Q240*Q$68/Q$69 -> 0 | R193: ='2.2 Model'!R240*R$68/R$69 -> 0 | S193: ='2.2 Model'!S240*S$68/S$69 -> 0 | T193: ='2.2 Model'!T240*T$68/T$69 -> 0 | U193: ='2.2 Model'!U240*U$68/U$69 -> 0 | V193: ='2.2 Model'!V240*V$68/V$69 -> 0 | W193: ='2.2 Model'!W240*W$68/W$69 -> 0 | X193: ='2.2 Model'!X240*X$68/X$69 -> 0 | Y193: ='2.2 Model'!Y240*Y$68/Y$69 -> 0 | Z193: ='2.2 Model'!Z240*Z$68/Z$69 -> 0 | AA193: ='2.2 Model'!AA240*AA$68/AA$69 -> 0 | AB193: ='2.2 Model'!AB240*AB$68/AB$69 -> 0 | AC193: ='2.2 Model'!AC240*AC$68/AC$69 -> 0 | AD193: ='2.2 Model'!AD240*AD$68/AD$69 -> 0 | AE193: ='2.2 Model'!AE240*AE$68/AE$69 -> 0 | AF193: ='2.2 Model'!AF240*AF$68/AF$69 -> 0 | AG193: ='2.2 Model'!AG240*AG$68/AG$69 -> 0 | AH193: ='2.2 Model'!AH240*AH$68/AH$69 -> 0 | AI193: ='2.2 Model'!AI240*AI$68/AI$69 -> 0 | AJ193: ='2.2 Model'!AJ240*AJ$68/AJ$69 -> 0 | AK193: ='2.2 Model'!AK240*AK$68/AK$69 -> 0 | AL193: ='2.2 Model'!AL240*AL$68/AL$69 -> 0
C194: ='2.2 Model'!C241 ->  | D194: ='2.2 Model'!D241 ->  | E194: ='2.2 Model'!E241 ->  | I194: ='2.2 Model'!I241 ->  | K194: =SUM(M194:AL194) -> 0 | M194: ='2.2 Model'!M241*M$68/M$69 -> 0 | N194: ='2.2 Model'!N241*N$68/N$69 -> 0 | O194: ='2.2 Model'!O241*O$68/O$69 -> 0 | P194: ='2.2 Model'!P241*P$68/P$69 -> 0 | Q194: ='2.2 Model'!Q241*Q$68/Q$69 -> 0 | R194: ='2.2 Model'!R241*R$68/R$69 -> 0 | S194: ='2.2 Model'!S241*S$68/S$69 -> 0 | T194: ='2.2 Model'!T241*T$68/T$69 -> 0 | U194: ='2.2 Model'!U241*U$68/U$69 -> 0 | V194: ='2.2 Model'!V241*V$68/V$69 -> 0 | W194: ='2.2 Model'!W241*W$68/W$69 -> 0 | X194: ='2.2 Model'!X241*X$68/X$69 -> 0 | Y194: ='2.2 Model'!Y241*Y$68/Y$69 -> 0 | Z194: ='2.2 Model'!Z241*Z$68/Z$69 -> 0 | AA194: ='2.2 Model'!AA241*AA$68/AA$69 -> 0 | AB194: ='2.2 Model'!AB241*AB$68/AB$69 -> 0 | AC194: ='2.2 Model'!AC241*AC$68/AC$69 -> 0 | AD194: ='2.2 Model'!AD241*AD$68/AD$69 -> 0 | AE194: ='2.2 Model'!AE241*AE$68/AE$69 -> 0 | AF194: ='2.2 Model'!AF241*AF$68/AF$69 -> 0 | AG194: ='2.2 Model'!AG241*AG$68/AG$69 -> 0 | AH194: ='2.2 Model'!AH241*AH$68/AH$69 -> 0 | AI194: ='2.2 Model'!AI241*AI$68/AI$69 -> 0 | AJ194: ='2.2 Model'!AJ241*AJ$68/AJ$69 -> 0 | AK194: ='2.2 Model'!AK241*AK$68/AK$69 -> 0 | AL194: ='2.2 Model'!AL241*AL$68/AL$69 -> 0
C196: Harbour facilities | E196: DKK | G196: Maintenance | I196: Calculated, sum of below | K196: =SUM(M196:AL196) -> 352666462.6 | M196: =SUM(M198) -> 0 | N196: =SUM(N198) -> 18077944.24 | O196: 17478202.02 | P196: 16898356.45 | Q196: 16337747.47 | R196: 15795736.89 | S196: 15271707.7 | T196: 14765063.37 | U196: 14275227.15 | V196: 13801641.41 | W196: 13343767.05 | X196: 16346068.93 | Y196: 15803782.28 | Z196: 15279486.19 | AA196: 14772583.8 | AB196: 14282498.08 | AC196: 13808671.13 | AD196: 13350563.56 | AE196: 12907653.87 | AF196: 12479437.86 | AG196: 12065428.07 | AH196: 11866649.07 | AI196: 11472968.77 | AJ196: 11092348.95 | AK196: 10724356.33 | AL196: 10368572
D198: ='2.2 Model'!D246 -> Harbour facilities | E198: ='2.2 Model'!E246 -> DKK | G198: ='2.2 Model'!G246 -> Based on 1 existing berths | I198: ='2.2 Model'!I246 -> Calculated | K198: =SUM(M198:AL198) -> 352666462.6 | M198: ='2.2 Model'!M246*M$68/M$69 -> 0 | N198: ='2.2 Model'!N246*N$68/N$69 -> 18077944.24 | O198: ='2.2 Model'!O246*O$68/O$69 -> 17478202.02 | P198: ='2.2 Model'!P246*P$68/P$69 -> 16898356.45 | Q198: ='2.2 Model'!Q246*Q$68/Q$69 -> 16337747.47 | R198: ='2.2 Model'!R246*R$68/R$69 -> 15795736.89 | S198: ='2.2 Model'!S246*S$68/S$69 -> 15271707.7 | T198: ='2.2 Model'!T246*T$68/T$69 -> 14765063.37 | U198: ='2.2 Model'!U246*U$68/U$69 -> 14275227.15 | V198: ='2.2 Model'!V246*V$68/V$69 -> 13801641.41 | W198: ='2.2 Model'!W246*W$68/W$69 -> 13343767.05 | X198: ='2.2 Model'!X246*X$68/X$69 -> 16346068.93 | Y198: ='2.2 Model'!Y246*Y$68/Y$69 -> 15803782.28 | Z198: ='2.2 Model'!Z246*Z$68/Z$69 -> 15279486.19 | AA198: ='2.2 Model'!AA246*AA$68/AA$69 -> 14772583.8 | AB198: ='2.2 Model'!AB246*AB$68/AB$69 -> 14282498.08 | AC198: ='2.2 Model'!AC246*AC$68/AC$69 -> 13808671.13 | AD198: ='2.2 Model'!AD246*AD$68/AD$69 -> 13350563.56 | AE198: ='2.2 Model'!AE246*AE$68/AE$69 -> 12907653.87 | AF198: ='2.2 Model'!AF246*AF$68/AF$69 -> 12479437.86 | AG198: ='2.2 Model'!AG246*AG$68/AG$69 -> 12065428.07 | AH198: ='2.2 Model'!AH246*AH$68/AH$69 -> 11866649.07 | AI198: ='2.2 Model'!AI246*AI$68/AI$69 -> 11472968.77 | AJ198: ='2.2 Model'!AJ246*AJ$68/AJ$69 -> 11092348.95 | AK198: ='2.2 Model'!AK246*AK$68/AK$69 -> 10724356.33 | AL198: ='2.2 Model'!AL246*AL$68/AL$69 -> 10368572
C200: Shipping | E200: DKK | G200: Maintenance | I200: Calculated, sum of below | K200: =SUM(M200:AL200) -> 4552073939 | M200: =SUM(M202:M204) -> 0 | N200: =SUM(N202:N204) -> 265044842.7 | O200: 256251885.9 | P200: 247750638.5 | Q200: 239531423 | R200: 231584882.9 | S200: 223901972.1 | T200: 216473944.6 | U200: 209292344.5 | V200: 202348996.6 | W200: 195635996.7 | X200: 189145703 | Y200: 182870727 | Z200: 176803925.7 | AA200: 170938392.6 | AB200: 165267450.7 | AC200: 159784644.2 | AD200: 154483731.9 | AE200: 149358679.2 | AF200: 144403651.9 | AG200: 139613009.4 | AH200: 134981298.2 | AI200: 130503245.6 | AJ200: 126173754.1 | AK200: 121987894.9 | AL200: 117940903.2
D202: ='2.2 Model'!D250 -> Ship fixed OPEX | E202: ='2.2 Model'!E250 -> DKK | G202: ='2.2 Model'!G250 -> 3 medium pressure ship(s) with 13.000 tons capacity | I202: ='2.2 Model'!I250 -> Calculated | K202: =SUM(M202:AL202) -> 2742560323 | M202: ='2.2 Model'!M250*M$68/M$69 -> 0 | N202: ='2.2 Model'!N250*N$68/N$69 -> 159685778.2 | O202: ='2.2 Model'!O250*O$68/O$69 -> 154388145.8 | P202: ='2.2 Model'!P250*P$68/P$69 -> 149266264.1 | Q202: ='2.2 Model'!Q250*Q$68/Q$69 -> 144314302.8 | R202: ='2.2 Model'!R250*R$68/R$69 -> 139526624.5 | S202: ='2.2 Model'!S250*S$68/S$69 -> 134897779.1 | T202: ='2.2 Model'!T250*T$68/T$69 -> 130422497.4 | U202: ='2.2 Model'!U250*U$68/U$69 -> 126095684.6 | V202: ='2.2 Model'!V250*V$68/V$69 -> 121912415.5 | W202: ='2.2 Model'!W250*W$68/W$69 -> 117867927.8 | X202: ='2.2 Model'!X250*X$68/X$69 -> 113957617.4 | Y202: ='2.2 Model'!Y250*Y$68/Y$69 -> 110177032.9 | Z202: ='2.2 Model'!Z250*Z$68/Z$69 -> 106521870.7 | AA202: ='2.2 Model'!AA250*AA$68/AA$69 -> 102987969.8 | AB202: ='2.2 Model'!AB250*AB$68/AB$69 -> 99571307.25 | AC202: ='2.2 Model'!AC250*AC$68/AC$69 -> 96267993.74 | AD202: ='2.2 Model'!AD250*AD$68/AD$69 -> 93074268.83 | AE202: ='2.2 Model'!AE250*AE$68/AE$69 -> 89986496.88 | AF202: ='2.2 Model'!AF250*AF$68/AF$69 -> 87001162.86 | AG202: ='2.2 Model'!AG250*AG$68/AG$69 -> 84114868.35 | AH202: ='2.2 Model'!AH250*AH$68/AH$69 -> 81324327.7 | AI202: ='2.2 Model'!AI250*AI$68/AI$69 -> 78626364.22 | AJ202: ='2.2 Model'!AJ250*AJ$68/AJ$69 -> 76017906.64 | AK202: ='2.2 Model'!AK250*AK$68/AK$69 -> 73495985.56 | AL202: ='2.2 Model'!AL250*AL$68/AL$69 -> 71057730.12
D203: ='2.2 Model'!D251 -> Harbour fees | E203: ='2.2 Model'!E251 -> DKK | G203: ='2.2 Model'!G251 -> 3 ship(s) with 84 cycles per year | I203: ='2.2 Model'!I251 -> Calculated | K203: =SUM(M203:AL203) -> 537268299.8 | M203: ='2.2 Model'!M251*M$68/M$69 -> 0 | N203: ='2.2 Model'!N251*N$68/N$69 -> 31282486.61 | O203: ='2.2 Model'!O251*O$68/O$69 -> 30244679 | P203: ='2.2 Model'!P251*P$68/P$69 -> 29241301.02 | Q203: ='2.2 Model'!Q251*Q$68/Q$69 -> 28271210.47 | R203: ='2.2 Model'!R251*R$68/R$69 -> 27333303.01 | S203: ='2.2 Model'!S251*S$68/S$69 -> 26426510.97 | T203: ='2.2 Model'!T251*T$68/T$69 -> 25549802.07 | U203: ='2.2 Model'!U251*U$68/U$69 -> 24702178.31 | V203: ='2.2 Model'!V251*V$68/V$69 -> 23882674.76 | W203: ='2.2 Model'!W251*W$68/W$69 -> 23090358.54 | X203: ='2.2 Model'!X251*X$68/X$69 -> 22324327.69 | Y203: ='2.2 Model'!Y251*Y$68/Y$69 -> 21583710.18 | Z203: ='2.2 Model'!Z251*Z$68/Z$69 -> 20867662.92 | AA203: ='2.2 Model'!AA251*AA$68/AA$69 -> 20175370.79 | AB203: ='2.2 Model'!AB251*AB$68/AB$69 -> 19506045.69 | AC203: ='2.2 Model'!AC251*AC$68/AC$69 -> 18858925.69 | AD203: ='2.2 Model'!AD251*AD$68/AD$69 -> 18233274.13 | AE203: ='2.2 Model'!AE251*AE$68/AE$69 -> 17628378.78 | AF203: ='2.2 Model'!AF251*AF$68/AF$69 -> 17043551.05 | AG203: ='2.2 Model'!AG251*AG$68/AG$69 -> 16478125.18 | AH203: ='2.2 Model'!AH251*AH$68/AH$69 -> 15931457.52 | AI203: ='2.2 Model'!AI251*AI$68/AI$69 -> 15402925.76 | AJ203: ='2.2 Model'!AJ251*AJ$68/AJ$69 -> 14891928.22 | AK203: ='2.2 Model'!AK251*AK$68/AK$69 -> 14397883.21 | AL203: ='2.2 Model'!AL251*AL$68/AL$69 -> 13920228.31
D204: ='2.2 Model'!D252 -> Fuel cost | E204: ='2.2 Model'!E252 -> DKK | G204: ='2.2 Model'!G252 -> 350 operating days | I204: ='2.2 Model'!I252 -> Calculated | K204: 1272245316 | M204: ='2.2 Model'!M252*M$68/M$69 -> 0 | N204: ='2.2 Model'!N252*N$68/N$69 -> 74076577.92 | O204: ='2.2 Model'!O252*O$68/O$69 -> 71619061.11 | P204: ='2.2 Model'!P252*P$68/P$69 -> 69243073.3 | Q204: ='2.2 Model'!Q252*Q$68/Q$69 -> 66945909.73 | R204: ='2.2 Model'!R252*R$68/R$69 -> 64724955.38 | S204: ='2.2 Model'!S252*S$68/S$69 -> 62577681.98 | T204: ='2.2 Model'!T252*T$68/T$69 -> 60501645.14 | U204: ='2.2 Model'!U252*U$68/U$69 -> 58494481.56 | V204: ='2.2 Model'!V252*V$68/V$69 -> 56553906.34 | W204: ='2.2 Model'!W252*W$68/W$69 -> 54677710.39 | X204: ='2.2 Model'!X252*X$68/X$69 -> 52863757.92 | Y204: ='2.2 Model'!Y252*Y$68/Y$69 -> 51109983.96 | Z204: ='2.2 Model'!Z252*Z$68/Z$69 -> 49414392.07 | AA204: ='2.2 Model'!AA252*AA$68/AA$69 -> 47775052.05 | AB204: ='2.2 Model'!AB252*AB$68/AB$69 -> 46190097.72 | AC204: ='2.2 Model'!AC252*AC$68/AC$69 -> 44657724.81 | AD204: ='2.2 Model'!AD252*AD$68/AD$69 -> 43176188.91 | AE204: ='2.2 Model'!AE252*AE$68/AE$69 -> 41743803.5 | AF204: ='2.2 Model'!AF252*AF$68/AF$69 -> 40358937.98 | AG204: ='2.2 Model'!AG252*AG$68/AG$69 -> 39020015.87 | AH204: ='2.2 Model'!AH252*AH$68/AH$69 -> 37725512.97 | AI204: ='2.2 Model'!AI252*AI$68/AI$69 -> 36473955.67 | AJ204: ='2.2 Model'!AJ252*AJ$68/AJ$69 -> 35263919.22 | AK204: ='2.2 Model'!AK252*AK$68/AK$69 -> 34094026.17 | AL204: ='2.2 Model'!AL252*AL$68/AL$69 -> 32962944.73
C206: Intermediate storage | E206: DKK | G206: Maintenance | I206: Calculated, sum of below | K206: =SUM(M206:AL206) -> 299083412.3 | M206: =SUM(M208:M215) -> 0 | N206: =SUM(N208:N215) -> 17551467 | O206: 16886936.82 | P206: 16326706.69 | Q206: 15785062.39 | R206: 15188453.44 | S206: 14684571.1 | T206: 14197405.24 | U206: 13726401.27 | V206: 13271023.03 | W206: 12841388.42 | X206: 12415370.79 | Y206: 12003486.45 | Z206: 11605266.52 | AA206: 11220257.68 | AB206: 10848021.64 | AC206: 10488134.67 | AD206: 10140187.08 | AE206: 9803782.765 | AF206: 9478538.787 | AG206: 9164084.893 | AH206: 8860063.119 | AI206: 8566127.376 | AJ206: 8281943.056 | AK206: 8007186.651 | AL206: 7741545.388
D208: ='2.2 Model'!D257 -> Storage tanks for export | E208: ='2.2 Model'!E257 -> DKK | G208: ='2.2 Model'!G257 -> Assumes 2,50% of CAPEX anually | I208: ='2.2 Model'!I257 -> Calculated | K208: =SUM(M208:AL208) -> 292361703.9 | M208: ='2.2 Model'!M257*M$68/M$69 -> 0 | N208: ='2.2 Model'!N257*N$68/N$69 -> 17022781.89 | O208: ='2.2 Model'!O257*O$68/O$69 -> 16458045.05 | P208: ='2.2 Model'!P257*P$68/P$69 -> 15912043.56 | Q208: ='2.2 Model'!Q257*Q$68/Q$69 -> 15384155.86 | R208: ='2.2 Model'!R257*R$68/R$69 -> 14873781.02 | S208: ='2.2 Model'!S257*S$68/S$69 -> 14380338.05 | T208: ='2.2 Model'!T257*T$68/T$69 -> 13903265.22 | U208: ='2.2 Model'!U257*U$68/U$69 -> 13442019.45 | V208: ='2.2 Model'!V257*V$68/V$69 -> 12996075.68 | W208: ='2.2 Model'!W257*W$68/W$69 -> 12564926.25 | X208: ='2.2 Model'!X257*X$68/X$69 -> 12148080.36 | Y208: ='2.2 Model'!Y257*Y$68/Y$69 -> 11745063.47 | Z208: ='2.2 Model'!Z257*Z$68/Z$69 -> 11355416.82 | AA208: ='2.2 Model'!AA257*AA$68/AA$69 -> 10978696.83 | AB208: ='2.2 Model'!AB257*AB$68/AB$69 -> 10614474.66 | AC208: ='2.2 Model'!AC257*AC$68/AC$69 -> 10262335.69 | AD208: ='2.2 Model'!AD257*AD$68/AD$69 -> 9921879.054 | AE208: ='2.2 Model'!AE257*AE$68/AE$69 -> 9592717.19 | AF208: ='2.2 Model'!AF257*AF$68/AF$69 -> 9274475.387 | AG208: ='2.2 Model'!AG257*AG$68/AG$69 -> 8966791.37 | AH208: ='2.2 Model'!AH257*AH$68/AH$69 -> 8669314.879 | AI208: ='2.2 Model'!AI257*AI$68/AI$69 -> 8381707.276 | AJ208: ='2.2 Model'!AJ257*AJ$68/AJ$69 -> 8103641.158 | AK208: ='2.2 Model'!AK257*AK$68/AK$69 -> 7834799.982 | AL208: ='2.2 Model'!AL257*AL$68/AL$69 -> 7574877.708
D209: ='2.2 Model'!D258 -> Ship loading pumps for export | E209: ='2.2 Model'!E258 -> DKK | G209: ='2.2 Model'!G258 -> Assumes 2,50% of CAPEX anually | I209: ='2.2 Model'!I258 -> Calculated | K209: =SUM(M209:AL209) -> 4077300.035 | M209: ='2.2 Model'!M258*M$68/M$69 -> 0 | N209: ='2.2 Model'!N258*N$68/N$69 -> 237401.097 | O209: ='2.2 Model'!O258*O$68/O$69 -> 229525.2312 | P209: ='2.2 Model'!P258*P$68/P$69 -> 221910.6501 | Q209: ='2.2 Model'!Q258*Q$68/Q$69 -> 214548.6854 | R209: ='2.2 Model'!R258*R$68/R$69 -> 207430.9565 | S209: ='2.2 Model'!S258*S$68/S$69 -> 200549.3608 | T209: ='2.2 Model'!T258*T$68/T$69 -> 193896.0644 | U209: ='2.2 Model'!U258*U$68/U$69 -> 187463.4936 | V209: ='2.2 Model'!V258*V$68/V$69 -> 181244.3255 | W209: ='2.2 Model'!W258*W$68/W$69 -> 175231.4806 | X209: ='2.2 Model'!X258*X$68/X$69 -> 169418.114 | Y209: ='2.2 Model'!Y258*Y$68/Y$69 -> 163797.6078 | Z209: ='2.2 Model'!Z258*Z$68/Z$69 -> 158363.564 | AA209: ='2.2 Model'!AA258*AA$68/AA$69 -> 153109.7964 | AB209: ='2.2 Model'!AB258*AB$68/AB$69 -> 148030.3245 | AC209: ='2.2 Model'!AC258*AC$68/AC$69 -> 143119.3659 | AD209: ='2.2 Model'!AD258*AD$68/AD$69 -> 138371.33 | AE209: ='2.2 Model'!AE258*AE$68/AE$69 -> 133780.812 | AF209: ='2.2 Model'!AF258*AF$68/AF$69 -> 129342.586 | AG209: ='2.2 Model'!AG258*AG$68/AG$69 -> 125051.5997 | AH209: ='2.2 Model'!AH258*AH$68/AH$69 -> 120902.9685 | AI209: ='2.2 Model'!AI258*AI$68/AI$69 -> 116891.9695 | AJ209: ='2.2 Model'!AJ258*AJ$68/AJ$69 -> 113014.0369 | AK209: ='2.2 Model'!AK258*AK$68/AK$69 -> 109264.756 | AL209: ='2.2 Model'!AL258*AL$68/AL$69 -> 105639.8589
D210: ='2.2 Model'!D259 -> Ship loading pumps for export electricity | E210: ='2.2 Model'!E259 -> DKK | G210: ='2.2 Model'!G259 -> Power consumption of 0,3 MW | I210: ='2.2 Model'!I259 -> Calculated | K210: =SUM(M210:AL210) -> 2644408.387 | M210: ='2.2 Model'!M259*M$68/M$69 -> 0 | N210: ='2.2 Model'!N259*N$68/N$69 -> 291284.0071 | O210: ='2.2 Model'!O259*O$68/O$69 -> 199366.5389 | P210: ='2.2 Model'!P259*P$68/P$69 -> 192752.4831 | Q210: ='2.2 Model'!Q259*Q$68/Q$69 -> 186357.8509 | R210: ='2.2 Model'!R259*R$68/R$69 -> 107241.4681 | S210: ='2.2 Model'!S259*S$68/S$69 -> 103683.6942 | T210: ='2.2 Model'!T259*T$68/T$69 -> 100243.9508 | U210: ='2.2 Model'!U259*U$68/U$69 -> 96918.32212 | V210: ='2.2 Model'!V259*V$68/V$69 -> 93703.02233 | W210: ='2.2 Model'!W259*W$68/W$69 -> 101230.6863 | X210: ='2.2 Model'!X259*X$68/X$69 -> 97872.32234 | Y210: ='2.2 Model'!Y259*Y$68/Y$69 -> 94625.37325 | Z210: ='2.2 Model'!Z259*Z$68/Z$69 -> 91486.14286 | AA210: ='2.2 Model'!AA259*AA$68/AA$69 -> 88451.05755 | AB210: ='2.2 Model'!AB259*AB$68/AB$69 -> 85516.66228 | AC210: ='2.2 Model'!AC259*AC$68/AC$69 -> 82679.61661 | AD210: ='2.2 Model'!AD259*AD$68/AD$69 -> 79936.69094 | AE210: ='2.2 Model'!AE259*AE$68/AE$69 -> 77284.76281 | AF210: ='2.2 Model'!AF259*AF$68/AF$69 -> 74720.81333 | AG210: ='2.2 Model'!AG259*AG$68/AG$69 -> 72241.92379 | AH210: ='2.2 Model'!AH259*AH$68/AH$69 -> 69845.27229 | AI210: ='2.2 Model'!AI259*AI$68/AI$69 -> 67528.13055 | AJ210: ='2.2 Model'!AJ259*AJ$68/AJ$69 -> 65287.86082 | AK210: ='2.2 Model'!AK259*AK$68/AK$69 -> 63121.91283 | AL210: ='2.2 Model'!AL259*AL$68/AL$69 -> 61027.82093
D211: ='2.2 Model'!D262 -> Storage tanks for import | E211: ='2.2 Model'!E262 ->  | G211: ='2.2 Model'!G262 -> No intermediate storage | I211: ='2.2 Model'!I262 ->  | K211: =SUM(M211:AL211) -> 0 | M211: ='2.2 Model'!M262*M$68/M$69 -> 0 | N211: ='2.2 Model'!N262*N$68/N$69 -> 0 | O211: ='2.2 Model'!O262*O$68/O$69 -> 0 | P211: ='2.2 Model'!P262*P$68/P$69 -> 0 | Q211: ='2.2 Model'!Q262*Q$68/Q$69 -> 0 | R211: ='2.2 Model'!R262*R$68/R$69 -> 0 | S211: ='2.2 Model'!S262*S$68/S$69 -> 0 | T211: ='2.2 Model'!T262*T$68/T$69 -> 0 | U211: ='2.2 Model'!U262*U$68/U$69 -> 0 | V211: ='2.2 Model'!V262*V$68/V$69 -> 0 | W211: ='2.2 Model'!W262*W$68/W$69 -> 0 | X211: ='2.2 Model'!X262*X$68/X$69 -> 0 | Y211: ='2.2 Model'!Y262*Y$68/Y$69 -> 0 | Z211: ='2.2 Model'!Z262*Z$68/Z$69 -> 0 | AA211: ='2.2 Model'!AA262*AA$68/AA$69 -> 0 | AB211: ='2.2 Model'!AB262*AB$68/AB$69 -> 0 | AC211: ='2.2 Model'!AC262*AC$68/AC$69 -> 0 | AD211: ='2.2 Model'!AD262*AD$68/AD$69 -> 0 | AE211: ='2.2 Model'!AE262*AE$68/AE$69 -> 0 | AF211: ='2.2 Model'!AF262*AF$68/AF$69 -> 0 | AG211: ='2.2 Model'!AG262*AG$68/AG$69 -> 0 | AH211: ='2.2 Model'!AH262*AH$68/AH$69 -> 0 | AI211: ='2.2 Model'!AI262*AI$68/AI$69 -> 0 | AJ211: ='2.2 Model'!AJ262*AJ$68/AJ$69 -> 0 | AK211: ='2.2 Model'!AK262*AK$68/AK$69 -> 0 | AL211: ='2.2 Model'!AL262*AL$68/AL$69 -> 0
D212: ='2.2 Model'!D265 ->  | E212: ='2.2 Model'!E265 ->  | G212: ='2.2 Model'!G265 ->  | I212: ='2.2 Model'!I265 ->  | K212: 0 | M212: ='2.2 Model'!M265*M$68/M$69 -> 0 | N212: ='2.2 Model'!N265*N$68/N$69 -> 0 | O212: ='2.2 Model'!O265*O$68/O$69 -> 0 | P212: ='2.2 Model'!P265*P$68/P$69 -> 0 | Q212: ='2.2 Model'!Q265*Q$68/Q$69 -> 0 | R212: ='2.2 Model'!R265*R$68/R$69 -> 0 | S212: ='2.2 Model'!S265*S$68/S$69 -> 0 | T212: ='2.2 Model'!T265*T$68/T$69 -> 0 | U212: ='2.2 Model'!U265*U$68/U$69 -> 0 | V212: ='2.2 Model'!V265*V$68/V$69 -> 0 | W212: ='2.2 Model'!W265*W$68/W$69 -> 0 | X212: ='2.2 Model'!X265*X$68/X$69 -> 0 | Y212: ='2.2 Model'!Y265*Y$68/Y$69 -> 0 | Z212: ='2.2 Model'!Z265*Z$68/Z$69 -> 0 | AA212: ='2.2 Model'!AA265*AA$68/AA$69 -> 0 | AB212: ='2.2 Model'!AB265*AB$68/AB$69 -> 0 | AC212: ='2.2 Model'!AC265*AC$68/AC$69 -> 0 | AD212: ='2.2 Model'!AD265*AD$68/AD$69 -> 0 | AE212: ='2.2 Model'!AE265*AE$68/AE$69 -> 0 | AF212: ='2.2 Model'!AF265*AF$68/AF$69 -> 0 | AG212: ='2.2 Model'!AG265*AG$68/AG$69 -> 0 | AH212: ='2.2 Model'!AH265*AH$68/AH$69 -> 0 | AI212: ='2.2 Model'!AI265*AI$68/AI$69 -> 0 | AJ212: ='2.2 Model'!AJ265*AJ$68/AJ$69 -> 0 | AK212: ='2.2 Model'!AK265*AK$68/AK$69 -> 0 | AL212: ='2.2 Model'!AL265*AL$68/AL$69 -> 0
D213: ='2.2 Model'!D266 ->  | E213: ='2.2 Model'!E266 ->  | G213: ='2.2 Model'!G266 ->  | I213: ='2.2 Model'!I266 ->  | K213: 0 | M213: ='2.2 Model'!M266*M$68/M$69 -> 0 | N213: ='2.2 Model'!N266*N$68/N$69 -> 0 | O213: ='2.2 Model'!O266*O$68/O$69 -> 0 | P213: ='2.2 Model'!P266*P$68/P$69 -> 0 | Q213: ='2.2 Model'!Q266*Q$68/Q$69 -> 0 | R213: ='2.2 Model'!R266*R$68/R$69 -> 0 | S213: ='2.2 Model'!S266*S$68/S$69 -> 0 | T213: ='2.2 Model'!T266*T$68/T$69 -> 0 | U213: ='2.2 Model'!U266*U$68/U$69 -> 0 | V213: ='2.2 Model'!V266*V$68/V$69 -> 0 | W213: ='2.2 Model'!W266*W$68/W$69 -> 0 | X213: ='2.2 Model'!X266*X$68/X$69 -> 0 | Y213: ='2.2 Model'!Y266*Y$68/Y$69 -> 0 | Z213: ='2.2 Model'!Z266*Z$68/Z$69 -> 0 | AA213: ='2.2 Model'!AA266*AA$68/AA$69 -> 0 | AB213: ='2.2 Model'!AB266*AB$68/AB$69 -> 0 | AC213: ='2.2 Model'!AC266*AC$68/AC$69 -> 0 | AD213: ='2.2 Model'!AD266*AD$68/AD$69 -> 0 | AE213: ='2.2 Model'!AE266*AE$68/AE$69 -> 0 | AF213: ='2.2 Model'!AF266*AF$68/AF$69 -> 0 | AG213: ='2.2 Model'!AG266*AG$68/AG$69 -> 0 | AH213: ='2.2 Model'!AH266*AH$68/AH$69 -> 0 | AI213: ='2.2 Model'!AI266*AI$68/AI$69 -> 0 | AJ213: ='2.2 Model'!AJ266*AJ$68/AJ$69 -> 0 | AK213: ='2.2 Model'!AK266*AK$68/AK$69 -> 0 | AL213: ='2.2 Model'!AL266*AL$68/AL$69 -> 0
D214: ='2.2 Model'!D267 ->  | E214: ='2.2 Model'!E267 ->  | G214: ='2.2 Model'!G267 ->  | I214: ='2.2 Model'!I267 ->  | K214: 0 | M214: ='2.2 Model'!M267*M$68/M$69 -> 0 | N214: ='2.2 Model'!N267*N$68/N$69 -> 0 | O214: ='2.2 Model'!O267*O$68/O$69 -> 0 | P214: ='2.2 Model'!P267*P$68/P$69 -> 0 | Q214: ='2.2 Model'!Q267*Q$68/Q$69 -> 0 | R214: ='2.2 Model'!R267*R$68/R$69 -> 0 | S214: ='2.2 Model'!S267*S$68/S$69 -> 0 | T214: ='2.2 Model'!T267*T$68/T$69 -> 0 | U214: ='2.2 Model'!U267*U$68/U$69 -> 0 | V214: ='2.2 Model'!V267*V$68/V$69 -> 0 | W214: ='2.2 Model'!W267*W$68/W$69 -> 0 | X214: ='2.2 Model'!X267*X$68/X$69 -> 0 | Y214: ='2.2 Model'!Y267*Y$68/Y$69 -> 0 | Z214: ='2.2 Model'!Z267*Z$68/Z$69 -> 0 | AA214: ='2.2 Model'!AA267*AA$68/AA$69 -> 0 | AB214: ='2.2 Model'!AB267*AB$68/AB$69 -> 0 | AC214: ='2.2 Model'!AC267*AC$68/AC$69 -> 0 | AD214: ='2.2 Model'!AD267*AD$68/AD$69 -> 0 | AE214: ='2.2 Model'!AE267*AE$68/AE$69 -> 0 | AF214: ='2.2 Model'!AF267*AF$68/AF$69 -> 0 | AG214: ='2.2 Model'!AG267*AG$68/AG$69 -> 0 | AH214: ='2.2 Model'!AH267*AH$68/AH$69 -> 0 | AI214: ='2.2 Model'!AI267*AI$68/AI$69 -> 0 | AJ214: ='2.2 Model'!AJ267*AJ$68/AJ$69 -> 0 | AK214: ='2.2 Model'!AK267*AK$68/AK$69 -> 0 | AL214: ='2.2 Model'!AL267*AL$68/AL$69 -> 0
D215: ='2.2 Model'!D268 ->  | E215: ='2.2 Model'!E268 ->  | G215: ='2.2 Model'!G268 ->  | I215: ='2.2 Model'!I268 ->  | K215: =SUM(M215:AL215) -> 0 | M215: ='2.2 Model'!M268*M$68/M$69 -> 0 | N215: ='2.2 Model'!N268*N$68/N$69 -> 0 | O215: ='2.2 Model'!O268*O$68/O$69 -> 0 | P215: ='2.2 Model'!P268*P$68/P$69 -> 0 | Q215: ='2.2 Model'!Q268*Q$68/Q$69 -> 0 | R215: ='2.2 Model'!R268*R$68/R$69 -> 0 | S215: ='2.2 Model'!S268*S$68/S$69 -> 0 | T215: ='2.2 Model'!T268*T$68/T$69 -> 0 | U215: ='2.2 Model'!U268*U$68/U$69 -> 0 | V215: ='2.2 Model'!V268*V$68/V$69 -> 0 | W215: ='2.2 Model'!W268*W$68/W$69 -> 0 | X215: ='2.2 Model'!X268*X$68/X$69 -> 0 | Y215: ='2.2 Model'!Y268*Y$68/Y$69 -> 0 | Z215: ='2.2 Model'!Z268*Z$68/Z$69 -> 0 | AA215: ='2.2 Model'!AA268*AA$68/AA$69 -> 0 | AB215: ='2.2 Model'!AB268*AB$68/AB$69 -> 0 | AC215: ='2.2 Model'!AC268*AC$68/AC$69 -> 0 | AD215: ='2.2 Model'!AD268*AD$68/AD$69 -> 0 | AE215: ='2.2 Model'!AE268*AE$68/AE$69 -> 0 | AF215: ='2.2 Model'!AF268*AF$68/AF$69 -> 0 | AG215: ='2.2 Model'!AG268*AG$68/AG$69 -> 0 | AH215: ='2.2 Model'!AH268*AH$68/AH$69 -> 0 | AI215: ='2.2 Model'!AI268*AI$68/AI$69 -> 0 | AJ215: ='2.2 Model'!AJ268*AJ$68/AJ$69 -> 0 | AK215: ='2.2 Model'!AK268*AK$68/AK$69 -> 0 | AL215: ='2.2 Model'!AL268*AL$68/AL$69 -> 0
C217: Trucking | E217: DKK | G217: Maintenance | I217: Calculated, sum of below | K217: =SUM(M217:AL217) -> 0 | M217: =SUM(M219:M228) -> 0 | N217: =SUM(N219:N228) -> 0 | O217: 0 | P217: 0 | Q217: 0 | R217: 0 | S217: 0 | T217: 0 | U217: 0 | V217: 0 | W217: 0 | X217: 0 | Y217: 0 | Z217: 0 | AA217: 0 | AB217: 0 | AC217: 0 | AD217: 0 | AE217: 0 | AF217: 0 | AG217: 0 | AH217: 0 | AI217: 0 | AJ217: 0 | AK217: 0 | AL217: 0
D219: ='2.2 Model'!D272 ->  | E219: ='2.2 Model'!E272 ->  | G219: ='2.2 Model'!G272 -> No trucking | I219: ='2.2 Model'!I272 ->  | K219: =SUM(M219:AL219) -> 0 | M219: ='2.2 Model'!M272*M$68/M$69 -> 0 | N219: ='2.2 Model'!N272*N$68/N$69 -> 0 | O219: ='2.2 Model'!O272*O$68/O$69 -> 0 | P219: ='2.2 Model'!P272*P$68/P$69 -> 0 | Q219: ='2.2 Model'!Q272*Q$68/Q$69 -> 0 | R219: ='2.2 Model'!R272*R$68/R$69 -> 0 | S219: ='2.2 Model'!S272*S$68/S$69 -> 0 | T219: ='2.2 Model'!T272*T$68/T$69 -> 0 | U219: ='2.2 Model'!U272*U$68/U$69 -> 0 | V219: ='2.2 Model'!V272*V$68/V$69 -> 0 | W219: ='2.2 Model'!W272*W$68/W$69 -> 0 | X219: ='2.2 Model'!X272*X$68/X$69 -> 0 | Y219: ='2.2 Model'!Y272*Y$68/Y$69 -> 0 | Z219: ='2.2 Model'!Z272*Z$68/Z$69 -> 0 | AA219: ='2.2 Model'!AA272*AA$68/AA$69 -> 0 | AB219: ='2.2 Model'!AB272*AB$68/AB$69 -> 0 | AC219: ='2.2 Model'!AC272*AC$68/AC$69 -> 0 | AD219: ='2.2 Model'!AD272*AD$68/AD$69 -> 0 | AE219: ='2.2 Model'!AE272*AE$68/AE$69 -> 0 | AF219: ='2.2 Model'!AF272*AF$68/AF$69 -> 0 | AG219: ='2.2 Model'!AG272*AG$68/AG$69 -> 0 | AH219: ='2.2 Model'!AH272*AH$68/AH$69 -> 0 | AI219: ='2.2 Model'!AI272*AI$68/AI$69 -> 0 | AJ219: ='2.2 Model'!AJ272*AJ$68/AJ$69 -> 0 | AK219: ='2.2 Model'!AK272*AK$68/AK$69 -> 0 | AL219: ='2.2 Model'!AL272*AL$68/AL$69 -> 0
D220: ='2.2 Model'!D273 ->  | E220: ='2.2 Model'!E273 ->  | G220: ='2.2 Model'!G273 ->  | I220: ='2.2 Model'!I273 ->  | K220: =SUM(M220:AL220) -> 0 | M220: ='2.2 Model'!M273*M$68/M$69 -> 0 | N220: ='2.2 Model'!N273*N$68/N$69 -> 0 | O220: ='2.2 Model'!O273*O$68/O$69 -> 0 | P220: ='2.2 Model'!P273*P$68/P$69 -> 0 | Q220: ='2.2 Model'!Q273*Q$68/Q$69 -> 0 | R220: ='2.2 Model'!R273*R$68/R$69 -> 0 | S220: ='2.2 Model'!S273*S$68/S$69 -> 0 | T220: ='2.2 Model'!T273*T$68/T$69 -> 0 | U220: ='2.2 Model'!U273*U$68/U$69 -> 0 | V220: ='2.2 Model'!V273*V$68/V$69 -> 0 | W220: ='2.2 Model'!W273*W$68/W$69 -> 0 | X220: ='2.2 Model'!X273*X$68/X$69 -> 0 | Y220: ='2.2 Model'!Y273*Y$68/Y$69 -> 0 | Z220: ='2.2 Model'!Z273*Z$68/Z$69 -> 0 | AA220: ='2.2 Model'!AA273*AA$68/AA$69 -> 0 | AB220: ='2.2 Model'!AB273*AB$68/AB$69 -> 0 | AC220: ='2.2 Model'!AC273*AC$68/AC$69 -> 0 | AD220: ='2.2 Model'!AD273*AD$68/AD$69 -> 0 | AE220: ='2.2 Model'!AE273*AE$68/AE$69 -> 0 | AF220: ='2.2 Model'!AF273*AF$68/AF$69 -> 0 | AG220: ='2.2 Model'!AG273*AG$68/AG$69 -> 0 | AH220: ='2.2 Model'!AH273*AH$68/AH$69 -> 0 | AI220: ='2.2 Model'!AI273*AI$68/AI$69 -> 0 | AJ220: ='2.2 Model'!AJ273*AJ$68/AJ$69 -> 0 | AK220: ='2.2 Model'!AK273*AK$68/AK$69 -> 0 | AL220: ='2.2 Model'!AL273*AL$68/AL$69 -> 0
D221: ='2.2 Model'!D274 ->  | E221: ='2.2 Model'!E274 ->  | G221: ='2.2 Model'!G274 ->  | I221: ='2.2 Model'!I274 ->  | K221: 0 | M221: ='2.2 Model'!M274*M$68/M$69 -> 0 | N221: ='2.2 Model'!N274*N$68/N$69 -> 0 | O221: ='2.2 Model'!O274*O$68/O$69 -> 0 | P221: ='2.2 Model'!P274*P$68/P$69 -> 0 | Q221: ='2.2 Model'!Q274*Q$68/Q$69 -> 0 | R221: ='2.2 Model'!R274*R$68/R$69 -> 0 | S221: ='2.2 Model'!S274*S$68/S$69 -> 0 | T221: ='2.2 Model'!T274*T$68/T$69 -> 0 | U221: ='2.2 Model'!U274*U$68/U$69 -> 0 | V221: ='2.2 Model'!V274*V$68/V$69 -> 0 | W221: ='2.2 Model'!W274*W$68/W$69 -> 0 | X221: ='2.2 Model'!X274*X$68/X$69 -> 0 | Y221: ='2.2 Model'!Y274*Y$68/Y$69 -> 0 | Z221: ='2.2 Model'!Z274*Z$68/Z$69 -> 0 | AA221: ='2.2 Model'!AA274*AA$68/AA$69 -> 0 | AB221: ='2.2 Model'!AB274*AB$68/AB$69 -> 0 | AC221: ='2.2 Model'!AC274*AC$68/AC$69 -> 0 | AD221: ='2.2 Model'!AD274*AD$68/AD$69 -> 0 | AE221: ='2.2 Model'!AE274*AE$68/AE$69 -> 0 | AF221: ='2.2 Model'!AF274*AF$68/AF$69 -> 0 | AG221: ='2.2 Model'!AG274*AG$68/AG$69 -> 0 | AH221: ='2.2 Model'!AH274*AH$68/AH$69 -> 0 | AI221: ='2.2 Model'!AI274*AI$68/AI$69 -> 0 | AJ221: ='2.2 Model'!AJ274*AJ$68/AJ$69 -> 0 | AK221: ='2.2 Model'!AK274*AK$68/AK$69 -> 0 | AL221: ='2.2 Model'!AL274*AL$68/AL$69 -> 0
D222: ='2.2 Model'!D275 ->  | E222: ='2.2 Model'!E275 ->  | G222: ='2.2 Model'!G275 ->  | I222: ='2.2 Model'!I275 ->  | K222: 0 | M222: ='2.2 Model'!M275*M$68/M$69 -> 0 | N222: ='2.2 Model'!N275*N$68/N$69 -> 0 | O222: ='2.2 Model'!O275*O$68/O$69 -> 0 | P222: ='2.2 Model'!P275*P$68/P$69 -> 0 | Q222: ='2.2 Model'!Q275*Q$68/Q$69 -> 0 | R222: ='2.2 Model'!R275*R$68/R$69 -> 0 | S222: ='2.2 Model'!S275*S$68/S$69 -> 0 | T222: ='2.2 Model'!T275*T$68/T$69 -> 0 | U222: ='2.2 Model'!U275*U$68/U$69 -> 0 | V222: ='2.2 Model'!V275*V$68/V$69 -> 0 | W222: ='2.2 Model'!W275*W$68/W$69 -> 0 | X222: ='2.2 Model'!X275*X$68/X$69 -> 0 | Y222: ='2.2 Model'!Y275*Y$68/Y$69 -> 0 | Z222: ='2.2 Model'!Z275*Z$68/Z$69 -> 0 | AA222: ='2.2 Model'!AA275*AA$68/AA$69 -> 0 | AB222: ='2.2 Model'!AB275*AB$68/AB$69 -> 0 | AC222: ='2.2 Model'!AC275*AC$68/AC$69 -> 0 | AD222: ='2.2 Model'!AD275*AD$68/AD$69 -> 0 | AE222: ='2.2 Model'!AE275*AE$68/AE$69 -> 0 | AF222: ='2.2 Model'!AF275*AF$68/AF$69 -> 0 | AG222: ='2.2 Model'!AG275*AG$68/AG$69 -> 0 | AH222: ='2.2 Model'!AH275*AH$68/AH$69 -> 0 | AI222: ='2.2 Model'!AI275*AI$68/AI$69 -> 0 | AJ222: ='2.2 Model'!AJ275*AJ$68/AJ$69 -> 0 | AK222: ='2.2 Model'!AK275*AK$68/AK$69 -> 0 | AL222: ='2.2 Model'!AL275*AL$68/AL$69 -> 0
D223: ='2.2 Model'!D276 ->  | E223: ='2.2 Model'!E276 ->  | G223: ='2.2 Model'!G276 ->  | I223: ='2.2 Model'!I276 ->  | K223: 0 | M223: ='2.2 Model'!M276*M$68/M$69 -> 0 | N223: ='2.2 Model'!N276*N$68/N$69 -> 0 | O223: ='2.2 Model'!O276*O$68/O$69 -> 0 | P223: ='2.2 Model'!P276*P$68/P$69 -> 0 | Q223: ='2.2 Model'!Q276*Q$68/Q$69 -> 0 | R223: ='2.2 Model'!R276*R$68/R$69 -> 0 | S223: ='2.2 Model'!S276*S$68/S$69 -> 0 | T223: ='2.2 Model'!T276*T$68/T$69 -> 0 | U223: ='2.2 Model'!U276*U$68/U$69 -> 0 | V223: ='2.2 Model'!V276*V$68/V$69 -> 0 | W223: ='2.2 Model'!W276*W$68/W$69 -> 0 | X223: ='2.2 Model'!X276*X$68/X$69 -> 0 | Y223: ='2.2 Model'!Y276*Y$68/Y$69 -> 0 | Z223: ='2.2 Model'!Z276*Z$68/Z$69 -> 0 | AA223: ='2.2 Model'!AA276*AA$68/AA$69 -> 0 | AB223: ='2.2 Model'!AB276*AB$68/AB$69 -> 0 | AC223: ='2.2 Model'!AC276*AC$68/AC$69 -> 0 | AD223: ='2.2 Model'!AD276*AD$68/AD$69 -> 0 | AE223: ='2.2 Model'!AE276*AE$68/AE$69 -> 0 | AF223: ='2.2 Model'!AF276*AF$68/AF$69 -> 0 | AG223: ='2.2 Model'!AG276*AG$68/AG$69 -> 0 | AH223: ='2.2 Model'!AH276*AH$68/AH$69 -> 0 | AI223: ='2.2 Model'!AI276*AI$68/AI$69 -> 0 | AJ223: ='2.2 Model'!AJ276*AJ$68/AJ$69 -> 0 | AK223: ='2.2 Model'!AK276*AK$68/AK$69 -> 0 | AL223: ='2.2 Model'!AL276*AL$68/AL$69 -> 0
D224: ='2.2 Model'!D277 ->  | E224: ='2.2 Model'!E277 ->  | G224: ='2.2 Model'!G277 ->  | I224: ='2.2 Model'!I277 ->  | K224: 0 | M224: ='2.2 Model'!M277*M$68/M$69 -> 0 | N224: ='2.2 Model'!N277*N$68/N$69 -> 0 | O224: ='2.2 Model'!O277*O$68/O$69 -> 0 | P224: ='2.2 Model'!P277*P$68/P$69 -> 0 | Q224: ='2.2 Model'!Q277*Q$68/Q$69 -> 0 | R224: ='2.2 Model'!R277*R$68/R$69 -> 0 | S224: ='2.2 Model'!S277*S$68/S$69 -> 0 | T224: ='2.2 Model'!T277*T$68/T$69 -> 0 | U224: ='2.2 Model'!U277*U$68/U$69 -> 0 | V224: ='2.2 Model'!V277*V$68/V$69 -> 0 | W224: ='2.2 Model'!W277*W$68/W$69 -> 0 | X224: ='2.2 Model'!X277*X$68/X$69 -> 0 | Y224: ='2.2 Model'!Y277*Y$68/Y$69 -> 0 | Z224: ='2.2 Model'!Z277*Z$68/Z$69 -> 0 | AA224: ='2.2 Model'!AA277*AA$68/AA$69 -> 0 | AB224: ='2.2 Model'!AB277*AB$68/AB$69 -> 0 | AC224: ='2.2 Model'!AC277*AC$68/AC$69 -> 0 | AD224: ='2.2 Model'!AD277*AD$68/AD$69 -> 0 | AE224: ='2.2 Model'!AE277*AE$68/AE$69 -> 0 | AF224: ='2.2 Model'!AF277*AF$68/AF$69 -> 0 | AG224: ='2.2 Model'!AG277*AG$68/AG$69 -> 0 | AH224: ='2.2 Model'!AH277*AH$68/AH$69 -> 0 | AI224: ='2.2 Model'!AI277*AI$68/AI$69 -> 0 | AJ224: ='2.2 Model'!AJ277*AJ$68/AJ$69 -> 0 | AK224: ='2.2 Model'!AK277*AK$68/AK$69 -> 0 | AL224: ='2.2 Model'!AL277*AL$68/AL$69 -> 0
D225: ='2.2 Model'!D278 ->  | E225: ='2.2 Model'!E278 ->  | G225: ='2.2 Model'!G278 ->  | I225: ='2.2 Model'!I278 ->  | K225: 0 | M225: ='2.2 Model'!M278*M$68/M$69 -> 0 | N225: ='2.2 Model'!N278*N$68/N$69 -> 0 | O225: ='2.2 Model'!O278*O$68/O$69 -> 0 | P225: ='2.2 Model'!P278*P$68/P$69 -> 0 | Q225: ='2.2 Model'!Q278*Q$68/Q$69 -> 0 | R225: ='2.2 Model'!R278*R$68/R$69 -> 0 | S225: ='2.2 Model'!S278*S$68/S$69 -> 0 | T225: ='2.2 Model'!T278*T$68/T$69 -> 0 | U225: ='2.2 Model'!U278*U$68/U$69 -> 0 | V225: ='2.2 Model'!V278*V$68/V$69 -> 0 | W225: ='2.2 Model'!W278*W$68/W$69 -> 0 | X225: ='2.2 Model'!X278*X$68/X$69 -> 0 | Y225: ='2.2 Model'!Y278*Y$68/Y$69 -> 0 | Z225: ='2.2 Model'!Z278*Z$68/Z$69 -> 0 | AA225: ='2.2 Model'!AA278*AA$68/AA$69 -> 0 | AB225: ='2.2 Model'!AB278*AB$68/AB$69 -> 0 | AC225: ='2.2 Model'!AC278*AC$68/AC$69 -> 0 | AD225: ='2.2 Model'!AD278*AD$68/AD$69 -> 0 | AE225: ='2.2 Model'!AE278*AE$68/AE$69 -> 0 | AF225: ='2.2 Model'!AF278*AF$68/AF$69 -> 0 | AG225: ='2.2 Model'!AG278*AG$68/AG$69 -> 0 | AH225: ='2.2 Model'!AH278*AH$68/AH$69 -> 0 | AI225: ='2.2 Model'!AI278*AI$68/AI$69 -> 0 | AJ225: ='2.2 Model'!AJ278*AJ$68/AJ$69 -> 0 | AK225: ='2.2 Model'!AK278*AK$68/AK$69 -> 0 | AL225: ='2.2 Model'!AL278*AL$68/AL$69 -> 0
D226: ='2.2 Model'!D279 ->  | E226: ='2.2 Model'!E279 ->  | G226: ='2.2 Model'!G279 ->  | I226: ='2.2 Model'!I279 ->  | K226: 0 | M226: ='2.2 Model'!M279*M$68/M$69 -> 0 | N226: ='2.2 Model'!N279*N$68/N$69 -> 0 | O226: ='2.2 Model'!O279*O$68/O$69 -> 0 | P226: ='2.2 Model'!P279*P$68/P$69 -> 0 | Q226: ='2.2 Model'!Q279*Q$68/Q$69 -> 0 | R226: ='2.2 Model'!R279*R$68/R$69 -> 0 | S226: ='2.2 Model'!S279*S$68/S$69 -> 0 | T226: ='2.2 Model'!T279*T$68/T$69 -> 0 | U226: ='2.2 Model'!U279*U$68/U$69 -> 0 | V226: ='2.2 Model'!V279*V$68/V$69 -> 0 | W226: ='2.2 Model'!W279*W$68/W$69 -> 0 | X226: ='2.2 Model'!X279*X$68/X$69 -> 0 | Y226: ='2.2 Model'!Y279*Y$68/Y$69 -> 0 | Z226: ='2.2 Model'!Z279*Z$68/Z$69 -> 0 | AA226: ='2.2 Model'!AA279*AA$68/AA$69 -> 0 | AB226: ='2.2 Model'!AB279*AB$68/AB$69 -> 0 | AC226: ='2.2 Model'!AC279*AC$68/AC$69 -> 0 | AD226: ='2.2 Model'!AD279*AD$68/AD$69 -> 0 | AE226: ='2.2 Model'!AE279*AE$68/AE$69 -> 0 | AF226: ='2.2 Model'!AF279*AF$68/AF$69 -> 0 | AG226: ='2.2 Model'!AG279*AG$68/AG$69 -> 0 | AH226: ='2.2 Model'!AH279*AH$68/AH$69 -> 0 | AI226: ='2.2 Model'!AI279*AI$68/AI$69 -> 0 | AJ226: ='2.2 Model'!AJ279*AJ$68/AJ$69 -> 0 | AK226: ='2.2 Model'!AK279*AK$68/AK$69 -> 0 | AL226: ='2.2 Model'!AL279*AL$68/AL$69 -> 0
D227: ='2.2 Model'!D280 ->  | E227: ='2.2 Model'!E280 ->  | G227: ='2.2 Model'!G280 ->  | I227: ='2.2 Model'!I280 ->  | K227: 0 | M227: ='2.2 Model'!M280*M$68/M$69 -> 0 | N227: ='2.2 Model'!N280*N$68/N$69 -> 0 | O227: ='2.2 Model'!O280*O$68/O$69 -> 0 | P227: ='2.2 Model'!P280*P$68/P$69 -> 0 | Q227: ='2.2 Model'!Q280*Q$68/Q$69 -> 0 | R227: ='2.2 Model'!R280*R$68/R$69 -> 0 | S227: ='2.2 Model'!S280*S$68/S$69 -> 0 | T227: ='2.2 Model'!T280*T$68/T$69 -> 0 | U227: ='2.2 Model'!U280*U$68/U$69 -> 0 | V227: ='2.2 Model'!V280*V$68/V$69 -> 0 | W227: ='2.2 Model'!W280*W$68/W$69 -> 0 | X227: ='2.2 Model'!X280*X$68/X$69 -> 0 | Y227: ='2.2 Model'!Y280*Y$68/Y$69 -> 0 | Z227: ='2.2 Model'!Z280*Z$68/Z$69 -> 0 | AA227: ='2.2 Model'!AA280*AA$68/AA$69 -> 0 | AB227: ='2.2 Model'!AB280*AB$68/AB$69 -> 0 | AC227: ='2.2 Model'!AC280*AC$68/AC$69 -> 0 | AD227: ='2.2 Model'!AD280*AD$68/AD$69 -> 0 | AE227: ='2.2 Model'!AE280*AE$68/AE$69 -> 0 | AF227: ='2.2 Model'!AF280*AF$68/AF$69 -> 0 | AG227: ='2.2 Model'!AG280*AG$68/AG$69 -> 0 | AH227: ='2.2 Model'!AH280*AH$68/AH$69 -> 0 | AI227: ='2.2 Model'!AI280*AI$68/AI$69 -> 0 | AJ227: ='2.2 Model'!AJ280*AJ$68/AJ$69 -> 0 | AK227: ='2.2 Model'!AK280*AK$68/AK$69 -> 0 | AL227: ='2.2 Model'!AL280*AL$68/AL$69 -> 0
D228: ='2.2 Model'!D281 ->  | E228: ='2.2 Model'!E281 ->  | G228: ='2.2 Model'!G281 ->  | I228: ='2.2 Model'!I281 ->  | K228: 0 | M228: ='2.2 Model'!M281*M$68/M$69 -> 0 | N228: ='2.2 Model'!N281*N$68/N$69 -> 0 | O228: ='2.2 Model'!O281*O$68/O$69 -> 0 | P228: ='2.2 Model'!P281*P$68/P$69 -> 0 | Q228: ='2.2 Model'!Q281*Q$68/Q$69 -> 0 | R228: ='2.2 Model'!R281*R$68/R$69 -> 0 | S228: ='2.2 Model'!S281*S$68/S$69 -> 0 | T228: ='2.2 Model'!T281*T$68/T$69 -> 0 | U228: ='2.2 Model'!U281*U$68/U$69 -> 0 | V228: ='2.2 Model'!V281*V$68/V$69 -> 0 | W228: ='2.2 Model'!W281*W$68/W$69 -> 0 | X228: ='2.2 Model'!X281*X$68/X$69 -> 0 | Y228: ='2.2 Model'!Y281*Y$68/Y$69 -> 0 | Z228: ='2.2 Model'!Z281*Z$68/Z$69 -> 0 | AA228: ='2.2 Model'!AA281*AA$68/AA$69 -> 0 | AB228: ='2.2 Model'!AB281*AB$68/AB$69 -> 0 | AC228: ='2.2 Model'!AC281*AC$68/AC$69 -> 0 | AD228: ='2.2 Model'!AD281*AD$68/AD$69 -> 0 | AE228: ='2.2 Model'!AE281*AE$68/AE$69 -> 0 | AF228: ='2.2 Model'!AF281*AF$68/AF$69 -> 0 | AG228: ='2.2 Model'!AG281*AG$68/AG$69 -> 0 | AH228: ='2.2 Model'!AH281*AH$68/AH$69 -> 0 | AI228: ='2.2 Model'!AI281*AI$68/AI$69 -> 0 | AJ228: ='2.2 Model'!AJ281*AJ$68/AJ$69 -> 0 | AK228: ='2.2 Model'!AK281*AK$68/AK$69 -> 0 | AL228: ='2.2 Model'!AL281*AL$68/AL$69 -> 0
C230: Conditioning | E230: DKK | G230: Maintenance and operation | I230: Calculated, sum of below | K230: =SUM(M230:AL230) -> 0 | M230: =SUM(M232:M241) -> 0 | N230: =SUM(N232:N241) -> 0 | O230: 0 | P230: 0 | Q230: 0 | R230: 0 | S230: 0 | T230: 0 | U230: 0 | V230: 0 | W230: 0 | X230: 0 | Y230: 0 | Z230: 0 | AA230: 0 | AB230: 0 | AC230: 0 | AD230: 0 | AE230: 0 | AF230: 0 | AG230: 0 | AH230: 0 | AI230: 0 | AJ230: 0 | AK230: 0 | AL230: 0
D232: ='2.2 Model'!D286 -> Conditioning facility O&M | E232: ='2.2 Model'!E286 ->  | G232: ='2.2 Model'!G286 -> No conditioning | I232: ='2.2 Model'!I286 ->  | K232: =SUM(M232:AL232) -> 0 | M232: ='2.2 Model'!M286*M$68/M$69 -> 0 | N232: ='2.2 Model'!N286*N$68/N$69 -> 0 | O232: ='2.2 Model'!O286*O$68/O$69 -> 0 | P232: ='2.2 Model'!P286*P$68/P$69 -> 0 | Q232: ='2.2 Model'!Q286*Q$68/Q$69 -> 0 | R232: ='2.2 Model'!R286*R$68/R$69 -> 0 | S232: ='2.2 Model'!S286*S$68/S$69 -> 0 | T232: ='2.2 Model'!T286*T$68/T$69 -> 0 | U232: ='2.2 Model'!U286*U$68/U$69 -> 0 | V232: ='2.2 Model'!V286*V$68/V$69 -> 0 | W232: ='2.2 Model'!W286*W$68/W$69 -> 0 | X232: ='2.2 Model'!X286*X$68/X$69 -> 0 | Y232: ='2.2 Model'!Y286*Y$68/Y$69 -> 0 | Z232: ='2.2 Model'!Z286*Z$68/Z$69 -> 0 | AA232: ='2.2 Model'!AA286*AA$68/AA$69 -> 0 | AB232: ='2.2 Model'!AB286*AB$68/AB$69 -> 0 | AC232: ='2.2 Model'!AC286*AC$68/AC$69 -> 0 | AD232: ='2.2 Model'!AD286*AD$68/AD$69 -> 0 | AE232: ='2.2 Model'!AE286*AE$68/AE$69 -> 0 | AF232: ='2.2 Model'!AF286*AF$68/AF$69 -> 0 | AG232: ='2.2 Model'!AG286*AG$68/AG$69 -> 0 | AH232: ='2.2 Model'!AH286*AH$68/AH$69 -> 0 | AI232: ='2.2 Model'!AI286*AI$68/AI$69 -> 0 | AJ232: ='2.2 Model'!AJ286*AJ$68/AJ$69 -> 0 | AK232: ='2.2 Model'!AK286*AK$68/AK$69 -> 0 | AL232: ='2.2 Model'!AL286*AL$68/AL$69 -> 0
D233: ='2.2 Model'!D287 -> Conditioning electricity | E233: ='2.2 Model'!E287 ->  | G233: ='2.2 Model'!G287 -> No conditioning | I233: ='2.2 Model'!I287 ->  | K233: =SUM(M233:AL233) -> 0 | M233: ='2.2 Model'!M287*M$68/M$69 -> 0 | N233: ='2.2 Model'!N287*N$68/N$69 -> 0 | O233: ='2.2 Model'!O287*O$68/O$69 -> 0 | P233: ='2.2 Model'!P287*P$68/P$69 -> 0 | Q233: ='2.2 Model'!Q287*Q$68/Q$69 -> 0 | R233: ='2.2 Model'!R287*R$68/R$69 -> 0 | S233: ='2.2 Model'!S287*S$68/S$69 -> 0 | T233: ='2.2 Model'!T287*T$68/T$69 -> 0 | U233: ='2.2 Model'!U287*U$68/U$69 -> 0 | V233: ='2.2 Model'!V287*V$68/V$69 -> 0 | W233: ='2.2 Model'!W287*W$68/W$69 -> 0 | X233: ='2.2 Model'!X287*X$68/X$69 -> 0 | Y233: ='2.2 Model'!Y287*Y$68/Y$69 -> 0 | Z233: ='2.2 Model'!Z287*Z$68/Z$69 -> 0 | AA233: ='2.2 Model'!AA287*AA$68/AA$69 -> 0 | AB233: ='2.2 Model'!AB287*AB$68/AB$69 -> 0 | AC233: ='2.2 Model'!AC287*AC$68/AC$69 -> 0 | AD233: ='2.2 Model'!AD287*AD$68/AD$69 -> 0 | AE233: ='2.2 Model'!AE287*AE$68/AE$69 -> 0 | AF233: ='2.2 Model'!AF287*AF$68/AF$69 -> 0 | AG233: ='2.2 Model'!AG287*AG$68/AG$69 -> 0 | AH233: ='2.2 Model'!AH287*AH$68/AH$69 -> 0 | AI233: ='2.2 Model'!AI287*AI$68/AI$69 -> 0 | AJ233: ='2.2 Model'!AJ287*AJ$68/AJ$69 -> 0 | AK233: ='2.2 Model'!AK287*AK$68/AK$69 -> 0 | AL233: ='2.2 Model'!AL287*AL$68/AL$69 -> 0
D234: ='2.2 Model'!D290 ->  | E234: ='2.2 Model'!E290 ->  | G234: ='2.2 Model'!G290 ->  | I234: ='2.2 Model'!I290 ->  | K234: =SUM(M234:AL234) -> 0 | M234: ='2.2 Model'!M290*M$68/M$69 -> 0 | N234: ='2.2 Model'!N290*N$68/N$69 -> 0 | O234: ='2.2 Model'!O290*O$68/O$69 -> 0 | P234: ='2.2 Model'!P290*P$68/P$69 -> 0 | Q234: ='2.2 Model'!Q290*Q$68/Q$69 -> 0 | R234: ='2.2 Model'!R290*R$68/R$69 -> 0 | S234: ='2.2 Model'!S290*S$68/S$69 -> 0 | T234: ='2.2 Model'!T290*T$68/T$69 -> 0 | U234: ='2.2 Model'!U290*U$68/U$69 -> 0 | V234: ='2.2 Model'!V290*V$68/V$69 -> 0 | W234: ='2.2 Model'!W290*W$68/W$69 -> 0 | X234: ='2.2 Model'!X290*X$68/X$69 -> 0 | Y234: ='2.2 Model'!Y290*Y$68/Y$69 -> 0 | Z234: ='2.2 Model'!Z290*Z$68/Z$69 -> 0 | AA234: ='2.2 Model'!AA290*AA$68/AA$69 -> 0 | AB234: ='2.2 Model'!AB290*AB$68/AB$69 -> 0 | AC234: ='2.2 Model'!AC290*AC$68/AC$69 -> 0 | AD234: ='2.2 Model'!AD290*AD$68/AD$69 -> 0 | AE234: ='2.2 Model'!AE290*AE$68/AE$69 -> 0 | AF234: ='2.2 Model'!AF290*AF$68/AF$69 -> 0 | AG234: ='2.2 Model'!AG290*AG$68/AG$69 -> 0 | AH234: ='2.2 Model'!AH290*AH$68/AH$69 -> 0 | AI234: ='2.2 Model'!AI290*AI$68/AI$69 -> 0 | AJ234: ='2.2 Model'!AJ290*AJ$68/AJ$69 -> 0 | AK234: ='2.2 Model'!AK290*AK$68/AK$69 -> 0 | AL234: ='2.2 Model'!AL290*AL$68/AL$69 -> 0
D235: ='2.2 Model'!D291 ->  | E235: ='2.2 Model'!E291 ->  | G235: ='2.2 Model'!G291 ->  | I235: ='2.2 Model'!I291 ->  | K235: =SUM(M235:AL235) -> 0 | M235: ='2.2 Model'!M291*M$68/M$69 -> 0 | N235: ='2.2 Model'!N291*N$68/N$69 -> 0 | O235: ='2.2 Model'!O291*O$68/O$69 -> 0 | P235: ='2.2 Model'!P291*P$68/P$69 -> 0 | Q235: ='2.2 Model'!Q291*Q$68/Q$69 -> 0 | R235: ='2.2 Model'!R291*R$68/R$69 -> 0 | S235: ='2.2 Model'!S291*S$68/S$69 -> 0 | T235: ='2.2 Model'!T291*T$68/T$69 -> 0 | U235: ='2.2 Model'!U291*U$68/U$69 -> 0 | V235: ='2.2 Model'!V291*V$68/V$69 -> 0 | W235: ='2.2 Model'!W291*W$68/W$69 -> 0 | X235: ='2.2 Model'!X291*X$68/X$69 -> 0 | Y235: ='2.2 Model'!Y291*Y$68/Y$69 -> 0 | Z235: ='2.2 Model'!Z291*Z$68/Z$69 -> 0 | AA235: ='2.2 Model'!AA291*AA$68/AA$69 -> 0 | AB235: ='2.2 Model'!AB291*AB$68/AB$69 -> 0 | AC235: ='2.2 Model'!AC291*AC$68/AC$69 -> 0 | AD235: ='2.2 Model'!AD291*AD$68/AD$69 -> 0 | AE235: ='2.2 Model'!AE291*AE$68/AE$69 -> 0 | AF235: ='2.2 Model'!AF291*AF$68/AF$69 -> 0 | AG235: ='2.2 Model'!AG291*AG$68/AG$69 -> 0 | AH235: ='2.2 Model'!AH291*AH$68/AH$69 -> 0 | AI235: ='2.2 Model'!AI291*AI$68/AI$69 -> 0 | AJ235: ='2.2 Model'!AJ291*AJ$68/AJ$69 -> 0 | AK235: ='2.2 Model'!AK291*AK$68/AK$69 -> 0 | AL235: ='2.2 Model'!AL291*AL$68/AL$69 -> 0
D236: ='2.2 Model'!D292 ->  | E236: ='2.2 Model'!E292 ->  | G236: ='2.2 Model'!G292 ->  | I236: ='2.2 Model'!I292 ->  | K236: 0 | M236: ='2.2 Model'!M292*M$68/M$69 -> 0 | N236: ='2.2 Model'!N292*N$68/N$69 -> 0 | O236: ='2.2 Model'!O292*O$68/O$69 -> 0 | P236: ='2.2 Model'!P292*P$68/P$69 -> 0 | Q236: ='2.2 Model'!Q292*Q$68/Q$69 -> 0 | R236: ='2.2 Model'!R292*R$68/R$69 -> 0 | S236: ='2.2 Model'!S292*S$68/S$69 -> 0 | T236: ='2.2 Model'!T292*T$68/T$69 -> 0 | U236: ='2.2 Model'!U292*U$68/U$69 -> 0 | V236: ='2.2 Model'!V292*V$68/V$69 -> 0 | W236: ='2.2 Model'!W292*W$68/W$69 -> 0 | X236: ='2.2 Model'!X292*X$68/X$69 -> 0 | Y236: ='2.2 Model'!Y292*Y$68/Y$69 -> 0 | Z236: ='2.2 Model'!Z292*Z$68/Z$69 -> 0 | AA236: ='2.2 Model'!AA292*AA$68/AA$69 -> 0 | AB236: ='2.2 Model'!AB292*AB$68/AB$69 -> 0 | AC236: ='2.2 Model'!AC292*AC$68/AC$69 -> 0 | AD236: ='2.2 Model'!AD292*AD$68/AD$69 -> 0 | AE236: ='2.2 Model'!AE292*AE$68/AE$69 -> 0 | AF236: ='2.2 Model'!AF292*AF$68/AF$69 -> 0 | AG236: ='2.2 Model'!AG292*AG$68/AG$69 -> 0 | AH236: ='2.2 Model'!AH292*AH$68/AH$69 -> 0 | AI236: ='2.2 Model'!AI292*AI$68/AI$69 -> 0 | AJ236: ='2.2 Model'!AJ292*AJ$68/AJ$69 -> 0 | AK236: ='2.2 Model'!AK292*AK$68/AK$69 -> 0 | AL236: ='2.2 Model'!AL292*AL$68/AL$69 -> 0
D237: ='2.2 Model'!D293 ->  | E237: ='2.2 Model'!E293 ->  | G237: ='2.2 Model'!G293 ->  | I237: ='2.2 Model'!I293 ->  | K237: 0 | M237: ='2.2 Model'!M293*M$68/M$69 -> 0 | N237: ='2.2 Model'!N293*N$68/N$69 -> 0 | O237: ='2.2 Model'!O293*O$68/O$69 -> 0 | P237: ='2.2 Model'!P293*P$68/P$69 -> 0 | Q237: ='2.2 Model'!Q293*Q$68/Q$69 -> 0 | R237: ='2.2 Model'!R293*R$68/R$69 -> 0 | S237: ='2.2 Model'!S293*S$68/S$69 -> 0 | T237: ='2.2 Model'!T293*T$68/T$69 -> 0 | U237: ='2.2 Model'!U293*U$68/U$69 -> 0 | V237: ='2.2 Model'!V293*V$68/V$69 -> 0 | W237: ='2.2 Model'!W293*W$68/W$69 -> 0 | X237: ='2.2 Model'!X293*X$68/X$69 -> 0 | Y237: ='2.2 Model'!Y293*Y$68/Y$69 -> 0 | Z237: ='2.2 Model'!Z293*Z$68/Z$69 -> 0 | AA237: ='2.2 Model'!AA293*AA$68/AA$69 -> 0 | AB237: ='2.2 Model'!AB293*AB$68/AB$69 -> 0 | AC237: ='2.2 Model'!AC293*AC$68/AC$69 -> 0 | AD237: ='2.2 Model'!AD293*AD$68/AD$69 -> 0 | AE237: ='2.2 Model'!AE293*AE$68/AE$69 -> 0 | AF237: ='2.2 Model'!AF293*AF$68/AF$69 -> 0 | AG237: ='2.2 Model'!AG293*AG$68/AG$69 -> 0 | AH237: ='2.2 Model'!AH293*AH$68/AH$69 -> 0 | AI237: ='2.2 Model'!AI293*AI$68/AI$69 -> 0 | AJ237: ='2.2 Model'!AJ293*AJ$68/AJ$69 -> 0 | AK237: ='2.2 Model'!AK293*AK$68/AK$69 -> 0 | AL237: ='2.2 Model'!AL293*AL$68/AL$69 -> 0
D238: ='2.2 Model'!D294 ->  | E238: ='2.2 Model'!E294 ->  | G238: ='2.2 Model'!G294 ->  | I238: ='2.2 Model'!I294 ->  | K238: 0 | M238: ='2.2 Model'!M294*M$68/M$69 -> 0 | N238: ='2.2 Model'!N294*N$68/N$69 -> 0 | O238: ='2.2 Model'!O294*O$68/O$69 -> 0 | P238: ='2.2 Model'!P294*P$68/P$69 -> 0 | Q238: ='2.2 Model'!Q294*Q$68/Q$69 -> 0 | R238: ='2.2 Model'!R294*R$68/R$69 -> 0 | S238: ='2.2 Model'!S294*S$68/S$69 -> 0 | T238: ='2.2 Model'!T294*T$68/T$69 -> 0 | U238: ='2.2 Model'!U294*U$68/U$69 -> 0 | V238: ='2.2 Model'!V294*V$68/V$69 -> 0 | W238: ='2.2 Model'!W294*W$68/W$69 -> 0 | X238: ='2.2 Model'!X294*X$68/X$69 -> 0 | Y238: ='2.2 Model'!Y294*Y$68/Y$69 -> 0 | Z238: ='2.2 Model'!Z294*Z$68/Z$69 -> 0 | AA238: ='2.2 Model'!AA294*AA$68/AA$69 -> 0 | AB238: ='2.2 Model'!AB294*AB$68/AB$69 -> 0 | AC238: ='2.2 Model'!AC294*AC$68/AC$69 -> 0 | AD238: ='2.2 Model'!AD294*AD$68/AD$69 -> 0 | AE238: ='2.2 Model'!AE294*AE$68/AE$69 -> 0 | AF238: ='2.2 Model'!AF294*AF$68/AF$69 -> 0 | AG238: ='2.2 Model'!AG294*AG$68/AG$69 -> 0 | AH238: ='2.2 Model'!AH294*AH$68/AH$69 -> 0 | AI238: ='2.2 Model'!AI294*AI$68/AI$69 -> 0 | AJ238: ='2.2 Model'!AJ294*AJ$68/AJ$69 -> 0 | AK238: ='2.2 Model'!AK294*AK$68/AK$69 -> 0 | AL238: ='2.2 Model'!AL294*AL$68/AL$69 -> 0
D239: ='2.2 Model'!D295 ->  | E239: ='2.2 Model'!E295 ->  | G239: ='2.2 Model'!G295 ->  | I239: ='2.2 Model'!I295 ->  | K239: 0 | M239: ='2.2 Model'!M295*M$68/M$69 -> 0 | N239: ='2.2 Model'!N295*N$68/N$69 -> 0 | O239: ='2.2 Model'!O295*O$68/O$69 -> 0 | P239: ='2.2 Model'!P295*P$68/P$69 -> 0 | Q239: ='2.2 Model'!Q295*Q$68/Q$69 -> 0 | R239: ='2.2 Model'!R295*R$68/R$69 -> 0 | S239: ='2.2 Model'!S295*S$68/S$69 -> 0 | T239: ='2.2 Model'!T295*T$68/T$69 -> 0 | U239: ='2.2 Model'!U295*U$68/U$69 -> 0 | V239: ='2.2 Model'!V295*V$68/V$69 -> 0 | W239: ='2.2 Model'!W295*W$68/W$69 -> 0 | X239: ='2.2 Model'!X295*X$68/X$69 -> 0 | Y239: ='2.2 Model'!Y295*Y$68/Y$69 -> 0 | Z239: ='2.2 Model'!Z295*Z$68/Z$69 -> 0 | AA239: ='2.2 Model'!AA295*AA$68/AA$69 -> 0 | AB239: ='2.2 Model'!AB295*AB$68/AB$69 -> 0 | AC239: ='2.2 Model'!AC295*AC$68/AC$69 -> 0 | AD239: ='2.2 Model'!AD295*AD$68/AD$69 -> 0 | AE239: ='2.2 Model'!AE295*AE$68/AE$69 -> 0 | AF239: ='2.2 Model'!AF295*AF$68/AF$69 -> 0 | AG239: ='2.2 Model'!AG295*AG$68/AG$69 -> 0 | AH239: ='2.2 Model'!AH295*AH$68/AH$69 -> 0 | AI239: ='2.2 Model'!AI295*AI$68/AI$69 -> 0 | AJ239: ='2.2 Model'!AJ295*AJ$68/AJ$69 -> 0 | AK239: ='2.2 Model'!AK295*AK$68/AK$69 -> 0 | AL239: ='2.2 Model'!AL295*AL$68/AL$69 -> 0
D240: ='2.2 Model'!D296 ->  | E240: ='2.2 Model'!E296 ->  | G240: ='2.2 Model'!G296 ->  | I240: ='2.2 Model'!I296 ->  | K240: 0 | M240: ='2.2 Model'!M296*M$68/M$69 -> 0 | N240: ='2.2 Model'!N296*N$68/N$69 -> 0 | O240: ='2.2 Model'!O296*O$68/O$69 -> 0 | P240: ='2.2 Model'!P296*P$68/P$69 -> 0 | Q240: ='2.2 Model'!Q296*Q$68/Q$69 -> 0 | R240: ='2.2 Model'!R296*R$68/R$69 -> 0 | S240: ='2.2 Model'!S296*S$68/S$69 -> 0 | T240: ='2.2 Model'!T296*T$68/T$69 -> 0 | U240: ='2.2 Model'!U296*U$68/U$69 -> 0 | V240: ='2.2 Model'!V296*V$68/V$69 -> 0 | W240: ='2.2 Model'!W296*W$68/W$69 -> 0 | X240: ='2.2 Model'!X296*X$68/X$69 -> 0 | Y240: ='2.2 Model'!Y296*Y$68/Y$69 -> 0 | Z240: ='2.2 Model'!Z296*Z$68/Z$69 -> 0 | AA240: ='2.2 Model'!AA296*AA$68/AA$69 -> 0 | AB240: ='2.2 Model'!AB296*AB$68/AB$69 -> 0 | AC240: ='2.2 Model'!AC296*AC$68/AC$69 -> 0 | AD240: ='2.2 Model'!AD296*AD$68/AD$69 -> 0 | AE240: ='2.2 Model'!AE296*AE$68/AE$69 -> 0 | AF240: ='2.2 Model'!AF296*AF$68/AF$69 -> 0 | AG240: ='2.2 Model'!AG296*AG$68/AG$69 -> 0 | AH240: ='2.2 Model'!AH296*AH$68/AH$69 -> 0 | AI240: ='2.2 Model'!AI296*AI$68/AI$69 -> 0 | AJ240: ='2.2 Model'!AJ296*AJ$68/AJ$69 -> 0 | AK240: ='2.2 Model'!AK296*AK$68/AK$69 -> 0 | AL240: ='2.2 Model'!AL296*AL$68/AL$69 -> 0
D241: ='2.2 Model'!D297 ->  | E241: ='2.2 Model'!E297 ->  | G241: ='2.2 Model'!G297 ->  | I241: ='2.2 Model'!I297 ->  | K241: 0 | M241: ='2.2 Model'!M297*M$68/M$69 -> 0 | N241: ='2.2 Model'!N297*N$68/N$69 -> 0 | O241: ='2.2 Model'!O297*O$68/O$69 -> 0 | P241: ='2.2 Model'!P297*P$68/P$69 -> 0 | Q241: ='2.2 Model'!Q297*Q$68/Q$69 -> 0 | R241: ='2.2 Model'!R297*R$68/R$69 -> 0 | S241: ='2.2 Model'!S297*S$68/S$69 -> 0 | T241: ='2.2 Model'!T297*T$68/T$69 -> 0 | U241: ='2.2 Model'!U297*U$68/U$69 -> 0 | V241: ='2.2 Model'!V297*V$68/V$69 -> 0 | W241: ='2.2 Model'!W297*W$68/W$69 -> 0 | X241: ='2.2 Model'!X297*X$68/X$69 -> 0 | Y241: ='2.2 Model'!Y297*Y$68/Y$69 -> 0 | Z241: ='2.2 Model'!Z297*Z$68/Z$69 -> 0 | AA241: ='2.2 Model'!AA297*AA$68/AA$69 -> 0 | AB241: ='2.2 Model'!AB297*AB$68/AB$69 -> 0 | AC241: ='2.2 Model'!AC297*AC$68/AC$69 -> 0 | AD241: ='2.2 Model'!AD297*AD$68/AD$69 -> 0 | AE241: ='2.2 Model'!AE297*AE$68/AE$69 -> 0 | AF241: ='2.2 Model'!AF297*AF$68/AF$69 -> 0 | AG241: ='2.2 Model'!AG297*AG$68/AG$69 -> 0 | AH241: ='2.2 Model'!AH297*AH$68/AH$69 -> 0 | AI241: ='2.2 Model'!AI297*AI$68/AI$69 -> 0 | AJ241: ='2.2 Model'!AJ297*AJ$68/AJ$69 -> 0 | AK241: ='2.2 Model'!AK297*AK$68/AK$69 -> 0 | AL241: ='2.2 Model'!AL297*AL$68/AL$69 -> 0
C243: Booster station | E243: DKK | G243: Maintenance and operation | K243: =SUM(M243:AL243) -> 0 | M243: =SUM(M245:M246) -> 0 | N243: =SUM(N245:N246) -> 0 | O243: =SUM(O245:O246) -> 0 | P243: 0 | Q243: 0 | R243: 0 | S243: 0 | T243: 0 | U243: 0 | V243: 0 | W243: 0 | X243: 0 | Y243: 0 | Z243: 0 | AA243: 0 | AB243: 0 | AC243: 0 | AD243: 0 | AE243: 0 | AF243: 0 | AG243: 0 | AH243: 0 | AI243: 0 | AJ243: 0 | AK243: 0 | AL243: 0
D245: ='2.2 Model'!D301 -> Booster station facility | E245: ='2.2 Model'!E301 ->  | G245: ='2.2 Model'!G301 -> No booster station | I245: ='2.2 Model'!I301 ->  | K245: =SUM(M245:AL245) -> 0 | M245: ='2.2 Model'!M301*M$68/M$69 -> 0 | N245: ='2.2 Model'!N301*N$68/N$69 -> 0 | O245: ='2.2 Model'!O301*O$68/O$69 -> 0 | P245: ='2.2 Model'!P301*P$68/P$69 -> 0 | Q245: ='2.2 Model'!Q301*Q$68/Q$69 -> 0 | R245: ='2.2 Model'!R301*R$68/R$69 -> 0 | S245: ='2.2 Model'!S301*S$68/S$69 -> 0 | T245: ='2.2 Model'!T301*T$68/T$69 -> 0 | U245: ='2.2 Model'!U301*U$68/U$69 -> 0 | V245: ='2.2 Model'!V301*V$68/V$69 -> 0 | W245: ='2.2 Model'!W301*W$68/W$69 -> 0 | X245: ='2.2 Model'!X301*X$68/X$69 -> 0 | Y245: ='2.2 Model'!Y301*Y$68/Y$69 -> 0 | Z245: ='2.2 Model'!Z301*Z$68/Z$69 -> 0 | AA245: ='2.2 Model'!AA301*AA$68/AA$69 -> 0 | AB245: ='2.2 Model'!AB301*AB$68/AB$69 -> 0 | AC245: ='2.2 Model'!AC301*AC$68/AC$69 -> 0 | AD245: ='2.2 Model'!AD301*AD$68/AD$69 -> 0 | AE245: ='2.2 Model'!AE301*AE$68/AE$69 -> 0 | AF245: ='2.2 Model'!AF301*AF$68/AF$69 -> 0 | AG245: ='2.2 Model'!AG301*AG$68/AG$69 -> 0 | AH245: ='2.2 Model'!AH301*AH$68/AH$69 -> 0 | AI245: ='2.2 Model'!AI301*AI$68/AI$69 -> 0 | AJ245: ='2.2 Model'!AJ301*AJ$68/AJ$69 -> 0 | AK245: ='2.2 Model'!AK301*AK$68/AK$69 -> 0 | AL245: ='2.2 Model'!AL301*AL$68/AL$69 -> 0
D246: ='2.2 Model'!D302 -> Booster station electricity | E246: ='2.2 Model'!E302 ->  | G246: ='2.2 Model'!G302 -> No booster station | I246: ='2.2 Model'!I302 ->  | K246: =SUM(M246:AL246) -> 0 | M246: ='2.2 Model'!M302*M$68/M$69 -> 0 | N246: ='2.2 Model'!N302*N$68/N$69 -> 0 | O246: ='2.2 Model'!O302*O$68/O$69 -> 0 | P246: ='2.2 Model'!P302*P$68/P$69 -> 0 | Q246: ='2.2 Model'!Q302*Q$68/Q$69 -> 0 | R246: ='2.2 Model'!R302*R$68/R$69 -> 0 | S246: ='2.2 Model'!S302*S$68/S$69 -> 0 | T246: ='2.2 Model'!T302*T$68/T$69 -> 0 | U246: ='2.2 Model'!U302*U$68/U$69 -> 0 | V246: ='2.2 Model'!V302*V$68/V$69 -> 0 | W246: ='2.2 Model'!W302*W$68/W$69 -> 0 | X246: ='2.2 Model'!X302*X$68/X$69 -> 0 | Y246: ='2.2 Model'!Y302*Y$68/Y$69 -> 0 | Z246: ='2.2 Model'!Z302*Z$68/Z$69 -> 0 | AA246: ='2.2 Model'!AA302*AA$68/AA$69 -> 0 | AB246: ='2.2 Model'!AB302*AB$68/AB$69 -> 0 | AC246: ='2.2 Model'!AC302*AC$68/AC$69 -> 0 | AD246: ='2.2 Model'!AD302*AD$68/AD$69 -> 0 | AE246: ='2.2 Model'!AE302*AE$68/AE$69 -> 0 | AF246: ='2.2 Model'!AF302*AF$68/AF$69 -> 0 | AG246: ='2.2 Model'!AG302*AG$68/AG$69 -> 0 | AH246: ='2.2 Model'!AH302*AH$68/AH$69 -> 0 | AI246: ='2.2 Model'!AI302*AI$68/AI$69 -> 0 | AJ246: ='2.2 Model'!AJ302*AJ$68/AJ$69 -> 0 | AK246: ='2.2 Model'!AK302*AK$68/AK$69 -> 0 | AL246: ='2.2 Model'!AL302*AL$68/AL$69 -> 0

Sheet 2.2 Model
B2: Model
D4: Item | E4: Unit | G4: Comment | I4: Source | K4: Total sum | M4: 2025 | N4: 2026 | O4: 2027 | P4: 2028 | Q4: 2029 | R4: 2030 | S4: 2031 | T4: 2032 | U4: 2033 | V4: 2034 | W4: 2035 | X4: 2036 | Y4: 2037 | Z4: 2038 | AA4: 2039 | AB4: 2040 | AC4: 2041 | AD4: 2042 | AE4: 2043 | AF4: 2044 | AG4: 2045 | AH4: 2046 | AI4: 2047 | AJ4: 2048 | AK4: 2049 | AL4: 2050
B6: A. | C6: Volume assumptions
B8: Total volume | E8: t/year | I8: Calculated, sum of below | K8: =SUM(M8:AL8) -> 58429250 | M8: =SUM(M10:M27) -> 0 | N8: =SUM(N10:N27) -> 2337170 | O8: 2337170 | P8: 2337170 | Q8: 2337170 | R8: 2337170 | S8: 2337170 | T8: 2337170 | U8: 2337170 | V8: 2337170 | W8: 2337170 | X8: 2337170 | Y8: 2337170 | Z8: 2337170 | AA8: 2337170 | AB8: 2337170 | AC8: 2337170 | AD8: 2337170 | AE8: 2337170 | AF8: 2337170 | AG8: 2337170 | AH8: 2337170 | AI8: 2337170 | AJ8: 2337170 | AK8: 2337170 | AL8: 2337170
C10: ='3.3 Emitters'!B31 -> I1 | D10: ='3.3 Emitters'!C31 -> Import by pipeline | E10: =IF(D10="","","t/year") -> t/year | I10: =IF(D10="","","Emitters") -> Emitters | K10: =SUM(M10:AL10) -> 0 | M10: ='3.3 Emitters'!H31 -> 0 | N10: ='3.3 Emitters'!I31 -> 0 | O10: ='3.3 Emitters'!J31 -> 0 | P10: ='3.3 Emitters'!K31 -> 0 | Q10: ='3.3 Emitters'!L31 -> 0 | R10: ='3.3 Emitters'!M31 -> 0 | S10: ='3.3 Emitters'!N31 -> 0 | T10: ='3.3 Emitters'!O31 -> 0 | U10: ='3.3 Emitters'!P31 -> 0 | V10: ='3.3 Emitters'!Q31 -> 0 | W10: ='3.3 Emitters'!R31 -> 0 | X10: ='3.3 Emitters'!S31 -> 0 | Y10: ='3.3 Emitters'!T31 -> 0 | Z10: ='3.3 Emitters'!U31 -> 0 | AA10: ='3.3 Emitters'!V31 -> 0 | AB10: ='3.3 Emitters'!W31 -> 0 | AC10: ='3.3 Emitters'!X31 -> 0 | AD10: ='3.3 Emitters'!Y31 -> 0 | AE10: ='3.3 Emitters'!Z31 -> 0 | AF10: ='3.3 Emitters'!AA31 -> 0 | AG10: ='3.3 Emitters'!AB31 -> 0 | AH10: ='3.3 Emitters'!AC31 -> 0 | AI10: ='3.3 Emitters'!AD31 -> 0 | AJ10: ='3.3 Emitters'!AE31 -> 0 | AK10: ='3.3 Emitters'!AF31 -> 0 | AL10: ='3.3 Emitters'!AG31 -> 0
C11: ='3.3 Emitters'!B32 -> I2 | D11: ='3.3 Emitters'!C32 -> Import by ship | E11: =IF(D11="","","t/year") -> t/year | I11: =IF(D11="","","Emitters") -> Emitters | K11: 0 | M11: ='3.3 Emitters'!H32 -> 0 | N11: ='3.3 Emitters'!I32 -> 0 | O11: ='3.3 Emitters'!J32 -> 0 | P11: ='3.3 Emitters'!K32 -> 0 | Q11: ='3.3 Emitters'!L32 -> 0 | R11: ='3.3 Emitters'!M32 -> 0 | S11: ='3.3 Emitters'!N32 -> 0 | T11: ='3.3 Emitters'!O32 -> 0 | U11: ='3.3 Emitters'!P32 -> 0 | V11: ='3.3 Emitters'!Q32 -> 0 | W11: ='3.3 Emitters'!R32 -> 0 | X11: ='3.3 Emitters'!S32 -> 0 | Y11: ='3.3 Emitters'!T32 -> 0 | Z11: ='3.3 Emitters'!U32 -> 0 | AA11: ='3.3 Emitters'!V32 -> 0 | AB11: ='3.3 Emitters'!W32 -> 0 | AC11: ='3.3 Emitters'!X32 -> 0 | AD11: ='3.3 Emitters'!Y32 -> 0 | AE11: ='3.3 Emitters'!Z32 -> 0 | AF11: ='3.3 Emitters'!AA32 -> 0 | AG11: ='3.3 Emitters'!AB32 -> 0 | AH11: ='3.3 Emitters'!AC32 -> 0 | AI11: ='3.3 Emitters'!AD32 -> 0 | AJ11: ='3.3 Emitters'!AE32 -> 0 | AK11: ='3.3 Emitters'!AF32 -> 0 | AL11: ='3.3 Emitters'!AG32 -> 0
C12: ='3.3 Emitters'!B33 -> E1 | D12: ='3.3 Emitters'!C33 -> Biofos | E12: =IF(D12="","","t/year") -> t/year | I12: =IF(D12="","","Emitters") -> Emitters | K12: 287850 | M12: ='3.3 Emitters'!H33 -> 0 | N12: ='3.3 Emitters'!I33 -> 11514 | O12: ='3.3 Emitters'!J33 -> 11514 | P12: ='3.3 Emitters'!K33 -> 11514 | Q12: ='3.3 Emitters'!L33 -> 11514 | R12: ='3.3 Emitters'!M33 -> 11514 | S12: ='3.3 Emitters'!N33 -> 11514 | T12: ='3.3 Emitters'!O33 -> 11514 | U12: ='3.3 Emitters'!P33 -> 11514 | V12: ='3.3 Emitters'!Q33 -> 11514 | W12: ='3.3 Emitters'!R33 -> 11514 | X12: ='3.3 Emitters'!S33 -> 11514 | Y12: ='3.3 Emitters'!T33 -> 11514 | Z12: ='3.3 Emitters'!U33 -> 11514 | AA12: ='3.3 Emitters'!V33 -> 11514 | AB12: ='3.3 Emitters'!W33 -> 11514 | AC12: ='3.3 Emitters'!X33 -> 11514 | AD12: ='3.3 Emitters'!Y33 -> 11514 | AE12: ='3.3 Emitters'!Z33 -> 11514 | AF12: ='3.3 Emitters'!AA33 -> 11514 | AG12: ='3.3 Emitters'!AB33 -> 11514 | AH12: ='3.3 Emitters'!AC33 -> 11514 | AI12: ='3.3 Emitters'!AD33 -> 11514 | AJ12: ='3.3 Emitters'!AE33 -> 11514 | AK12: ='3.3 Emitters'!AF33 -> 11514 | AL12: ='3.3 Emitters'!AG33 -> 11514
C13: ='3.3 Emitters'!B34 -> E2 | D13: ='3.3 Emitters'!C34 -> Amagerværket (HOFOR) | E13: t/year | I13: Emitters | K13: 20500000 | M13: ='3.3 Emitters'!H34 -> 0 | N13: ='3.3 Emitters'!I34 -> 820000 | O13: ='3.3 Emitters'!J34 -> 820000 | P13: ='3.3 Emitters'!K34 -> 820000 | Q13: ='3.3 Emitters'!L34 -> 820000 | R13: ='3.3 Emitters'!M34 -> 820000 | S13: ='3.3 Emitters'!N34 -> 820000 | T13: ='3.3 Emitters'!O34 -> 820000 | U13: ='3.3 Emitters'!P34 -> 820000 | V13: ='3.3 Emitters'!Q34 -> 820000 | W13: ='3.3 Emitters'!R34 -> 820000 | X13: ='3.3 Emitters'!S34 -> 820000 | Y13: ='3.3 Emitters'!T34 -> 820000 | Z13: ='3.3 Emitters'!U34 -> 820000 | AA13: ='3.3 Emitters'!V34 -> 820000 | AB13: ='3.3 Emitters'!W34 -> 820000 | AC13: ='3.3 Emitters'!X34 -> 820000 | AD13: ='3.3 Emitters'!Y34 -> 820000 | AE13: ='3.3 Emitters'!Z34 -> 820000 | AF13: ='3.3 Emitters'!AA34 -> 820000 | AG13: ='3.3 Emitters'!AB34 -> 820000 | AH13: ='3.3 Emitters'!AC34 -> 820000 | AI13: ='3.3 Emitters'!AD34 -> 820000 | AJ13: ='3.3 Emitters'!AE34 -> 820000 | AK13: ='3.3 Emitters'!AF34 -> 820000 | AL13: ='3.3 Emitters'!AG34 -> 820000
C14: ='3.3 Emitters'!B35 -> E3 | D14: ='3.3 Emitters'!C35 -> Amager Bakke (ARC) | E14: t/year | I14: Emitters | K14: 12500000 | M14: ='3.3 Emitters'!H35 -> 0 | N14: ='3.3 Emitters'!I35 -> 500000 | O14: ='3.3 Emitters'!J35 -> 500000 | P14: ='3.3 Emitters'!K35 -> 500000 | Q14: ='3.3 Emitters'!L35 -> 500000 | R14: ='3.3 Emitters'!M35 -> 500000 | S14: ='3.3 Emitters'!N35 -> 500000 | T14: ='3.3 Emitters'!O35 -> 500000 | U14: ='3.3 Emitters'!P35 -> 500000 | V14: ='3.3 Emitters'!Q35 -> 500000 | W14: ='3.3 Emitters'!R35 -> 500000 | X14: ='3.3 Emitters'!S35 -> 500000 | Y14: ='3.3 Emitters'!T35 -> 500000 | Z14: ='3.3 Emitters'!U35 -> 500000 | AA14: ='3.3 Emitters'!V35 -> 500000 | AB14: ='3.3 Emitters'!W35 -> 500000 | AC14: ='3.3 Emitters'!X35 -> 500000 | AD14: ='3.3 Emitters'!Y35 -> 500000 | AE14: ='3.3 Emitters'!Z35 -> 500000 | AF14: ='3.3 Emitters'!AA35 -> 500000 | AG14: ='3.3 Emitters'!AB35 -> 500000 | AH14: ='3.3 Emitters'!AC35 -> 500000 | AI14: ='3.3 Emitters'!AD35 -> 500000 | AJ14: ='3.3 Emitters'!AE35 -> 500000 | AK14: ='3.3 Emitters'!AF35 -> 500000 | AL14: ='3.3 Emitters'!AG35 -> 500000
C15: ='3.3 Emitters'!B36 -> E4 | D15: ='3.3 Emitters'!C36 -> Avedøre (Ørsted) | E15: t/year | I15: Emitters | K15: 3750000 | M15: ='3.3 Emitters'!H36 -> 0 | N15: ='3.3 Emitters'!I36 -> 150000 | O15: ='3.3 Emitters'!J36 -> 150000 | P15: ='3.3 Emitters'!K36 -> 150000 | Q15: ='3.3 Emitters'!L36 -> 150000 | R15: ='3.3 Emitters'!M36 -> 150000 | S15: ='3.3 Emitters'!N36 -> 150000 | T15: ='3.3 Emitters'!O36 -> 150000 | U15: ='3.3 Emitters'!P36 -> 150000 | V15: ='3.3 Emitters'!Q36 -> 150000 | W15: ='3.3 Emitters'!R36 -> 150000 | X15: ='3.3 Emitters'!S36 -> 150000 | Y15: ='3.3 Emitters'!T36 -> 150000 | Z15: ='3.3 Emitters'!U36 -> 150000 | AA15: ='3.3 Emitters'!V36 -> 150000 | AB15: ='3.3 Emitters'!W36 -> 150000 | AC15: ='3.3 Emitters'!X36 -> 150000 | AD15: ='3.3 Emitters'!Y36 -> 150000 | AE15: ='3.3 Emitters'!Z36 -> 150000 | AF15: ='3.3 Emitters'!AA36 -> 150000 | AG15: ='3.3 Emitters'!AB36 -> 150000 | AH15: ='3.3 Emitters'!AC36 -> 150000 | AI15: ='3.3 Emitters'!AD36 -> 150000 | AJ15: ='3.3 Emitters'!AE36 -> 150000 | AK15: ='3.3 Emitters'!AF36 -> 150000 | AL15: ='3.3 Emitters'!AG36 -> 150000
C16: ='3.3 Emitters'!B37 -> E5 | D16: ='3.3 Emitters'!C37 -> Vestforbrænding | E16: t/year | I16: Emitters | K16: 12641400 | M16: ='3.3 Emitters'!H37 -> 0 | N16: ='3.3 Emitters'!I37 -> 505656 | O16: ='3.3 Emitters'!J37 -> 505656 | P16: ='3.3 Emitters'!K37 -> 505656 | Q16: ='3.3 Emitters'!L37 -> 505656 | R16: ='3.3 Emitters'!M37 -> 505656 | S16: ='3.3 Emitters'!N37 -> 505656 | T16: ='3.3 Emitters'!O37 -> 505656 | U16: ='3.3 Emitters'!P37 -> 505656 | V16: ='3.3 Emitters'!Q37 -> 505656 | W16: ='3.3 Emitters'!R37 -> 505656 | X16: ='3.3 Emitters'!S37 -> 505656 | Y16: ='3.3 Emitters'!T37 -> 505656 | Z16: ='3.3 Emitters'!U37 -> 505656 | AA16: ='3.3 Emitters'!V37 -> 505656 | AB16: ='3.3 Emitters'!W37 -> 505656 | AC16: ='3.3 Emitters'!X37 -> 505656 | AD16: ='3.3 Emitters'!Y37 -> 505656 | AE16: ='3.3 Emitters'!Z37 -> 505656 | AF16: ='3.3 Emitters'!AA37 -> 505656 | AG16: ='3.3 Emitters'!AB37 -> 505656 | AH16: ='3.3 Emitters'!AC37 -> 505656 | AI16: ='3.3 Emitters'!AD37 -> 505656 | AJ16: ='3.3 Emitters'!AE37 -> 505656 | AK16: ='3.3 Emitters'!AF37 -> 505656 | AL16: ='3.3 Emitters'!AG37 -> 505656
C17: ='3.3 Emitters'!B38 -> E6 | D17: ='3.3 Emitters'!C38 -> ARGO | E17: t/year | I17: Emitters | K17: 8750000 | M17: ='3.3 Emitters'!H38 -> 0 | N17: ='3.3 Emitters'!I38 -> 350000 | O17: ='3.3 Emitters'!J38 -> 350000 | P17: ='3.3 Emitters'!K38 -> 350000 | Q17: ='3.3 Emitters'!L38 -> 350000 | R17: ='3.3 Emitters'!M38 -> 350000 | S17: ='3.3 Emitters'!N38 -> 350000 | T17: ='3.3 Emitters'!O38 -> 350000 | U17: ='3.3 Emitters'!P38 -> 350000 | V17: ='3.3 Emitters'!Q38 -> 350000 | W17: ='3.3 Emitters'!R38 -> 350000 | X17: ='3.3 Emitters'!S38 -> 350000 | Y17: ='3.3 Emitters'!T38 -> 350000 | Z17: ='3.3 Emitters'!U38 -> 350000 | AA17: ='3.3 Emitters'!V38 -> 350000 | AB17: ='3.3 Emitters'!W38 -> 350000 | AC17: ='3.3 Emitters'!X38 -> 350000 | AD17: ='3.3 Emitters'!Y38 -> 350000 | AE17: ='3.3 Emitters'!Z38 -> 350000 | AF17: ='3.3 Emitters'!AA38 -> 350000 | AG17: ='3.3 Emitters'!AB38 -> 350000 | AH17: ='3.3 Emitters'!AC38 -> 350000 | AI17: ='3.3 Emitters'!AD38 -> 350000 | AJ17: ='3.3 Emitters'!AE38 -> 350000 | AK17: ='3.3 Emitters'!AF38 -> 350000 | AL17: ='3.3 Emitters'!AG38 -> 350000
C18: ='3.3 Emitters'!B39 ->  | D18: ='3.3 Emitters'!C39 ->  | K18: =IF(D18="","",SUM(M18:AL18)) ->  | M18: =IF($D18="","",'3.3 Emitters'!H39) ->  | N18: =IF($D18="","",'3.3 Emitters'!I39) ->  | O18: =IF($D18="","",'3.3 Emitters'!J39) ->  | P18: =IF($D18="","",'3.3 Emitters'!K39) ->  | Q18: =IF($D18="","",'3.3 Emitters'!L39) ->  | R18: =IF($D18="","",'3.3 Emitters'!M39) ->  | S18: =IF($D18="","",'3.3 Emitters'!N39) ->  | T18: =IF($D18="","",'3.3 Emitters'!O39) ->  | U18: =IF($D18="","",'3.3 Emitters'!P39) ->  | V18: =IF($D18="","",'3.3 Emitters'!Q39) ->  | W18: =IF($D18="","",'3.3 Emitters'!R39) ->  | X18: =IF($D18="","",'3.3 Emitters'!S39) ->  | Y18: =IF($D18="","",'3.3 Emitters'!T39) ->  | Z18: =IF($D18="","",'3.3 Emitters'!U39) ->  | AA18: =IF($D18="","",'3.3 Emitters'!V39) ->  | AB18: =IF($D18="","",'3.3 Emitters'!W39) ->  | AC18: =IF($D18="","",'3.3 Emitters'!X39) ->  | AD18: =IF($D18="","",'3.3 Emitters'!Y39) ->  | AE18: =IF($D18="","",'3.3 Emitters'!Z39) ->  | AF18: =IF($D18="","",'3.3 Emitters'!AA39) ->  | AG18: =IF($D18="","",'3.3 Emitters'!AB39) ->  | AH18: =IF($D18="","",'3.3 Emitters'!AC39) ->  | AI18: =IF($D18="","",'3.3 Emitters'!AD39) ->  | AJ18: =IF($D18="","",'3.3 Emitters'!AE39) ->  | AK18: =IF($D18="","",'3.3 Emitters'!AF39) ->  | AL18: =IF($D18="","",'3.3 Emitters'!AG39) -> 
C19: ='3.3 Emitters'!B40 ->  | D19: ='3.3 Emitters'!C40 ->  | K19: =IF(D19="","",SUM(M19:AL19)) ->  | M19: =IF($D19="","",'3.3 Emitters'!H40) ->  | N19: =IF($D19="","",'3.3 Emitters'!I40) ->  | O19: =IF($D19="","",'3.3 Emitters'!J40) ->  | P19: =IF($D19="","",'3.3 Emitters'!K40) ->  | Q19: =IF($D19="","",'3.3 Emitters'!L40) ->  | R19: =IF($D19="","",'3.3 Emitters'!M40) ->  | S19: =IF($D19="","",'3.3 Emitters'!N40) ->  | T19: =IF($D19="","",'3.3 Emitters'!O40) ->  | U19: =IF($D19="","",'3.3 Emitters'!P40) ->  | V19: =IF($D19="","",'3.3 Emitters'!Q40) ->  | W19: =IF($D19="","",'3.3 Emitters'!R40) ->  | X19: =IF($D19="","",'3.3 Emitters'!S40) ->  | Y19: =IF($D19="","",'3.3 Emitters'!T40) ->  | Z19: =IF($D19="","",'3.3 Emitters'!U40) ->  | AA19: =IF($D19="","",'3.3 Emitters'!V40) ->  | AB19: =IF($D19="","",'3.3 Emitters'!W40) ->  | AC19: =IF($D19="","",'3.3 Emitters'!X40) ->  | AD19: =IF($D19="","",'3.3 Emitters'!Y40) ->  | AE19: =IF($D19="","",'3.3 Emitters'!Z40) ->  | AF19: =IF($D19="","",'3.3 Emitters'!AA40) ->  | AG19: =IF($D19="","",'3.3 Emitters'!AB40) ->  | AH19: =IF($D19="","",'3.3 Emitters'!AC40) ->  | AI19: =IF($D19="","",'3.3 Emitters'!AD40) ->  | AJ19: =IF($D19="","",'3.3 Emitters'!AE40) ->  | AK19: =IF($D19="","",'3.3 Emitters'!AF40) ->  | AL19: =IF($D19="","",'3.3 Emitters'!AG40) -> 
C20: ='3.3 Emitters'!B41 ->  | D20: ='3.3 Emitters'!C41 ->  | M20: =IF($D20="","",'3.3 Emitters'!H41) ->  | N20: =IF($D20="","",'3.3 Emitters'!I41) ->  | O20: =IF($D20="","",'3.3 Emitters'!J41) ->  | P20: =IF($D20="","",'3.3 Emitters'!K41) ->  | Q20: =IF($D20="","",'3.3 Emitters'!L41) ->  | R20: =IF($D20="","",'3.3 Emitters'!M41) ->  | S20: =IF($D20="","",'3.3 Emitters'!N41) ->  | T20: =IF($D20="","",'3.3 Emitters'!O41) ->  | U20: =IF($D20="","",'3.3 Emitters'!P41) ->  | V20: =IF($D20="","",'3.3 Emitters'!Q41) ->  | W20: =IF($D20="","",'3.3 Emitters'!R41) ->  | X20: =IF($D20="","",'3.3 Emitters'!S41) ->  | Y20: =IF($D20="","",'3.3 Emitters'!T41) ->  | Z20: =IF($D20="","",'3.3 Emitters'!U41) ->  | AA20: =IF($D20="","",'3.3 Emitters'!V41) ->  | AB20: =IF($D20="","",'3.3 Emitters'!W41) ->  | AC20: =IF($D20="","",'3.3 Emitters'!X41) ->  | AD20: =IF($D20="","",'3.3 Emitters'!Y41) ->  | AE20: =IF($D20="","",'3.3 Emitters'!Z41) ->  | AF20: =IF($D20="","",'3.3 Emitters'!AA41) ->  | AG20: =IF($D20="","",'3.3 Emitters'!AB41) ->  | AH20: =IF($D20="","",'3.3 Emitters'!AC41) ->  | AI20: =IF($D20="","",'3.3 Emitters'!AD41) ->  | AJ20: =IF($D20="","",'3.3 Emitters'!AE41) ->  | AK20: =IF($D20="","",'3.3 Emitters'!AF41) ->  | AL20: =IF($D20="","",'3.3 Emitters'!AG41) -> 
C21: ='3.3 Emitters'!B42 ->  | D21: ='3.3 Emitters'!C42 ->  | M21: =IF($D21="","",'3.3 Emitters'!H42) ->  | N21: =IF($D21="","",'3.3 Emitters'!I42) ->  | O21: =IF($D21="","",'3.3 Emitters'!J42) ->  | P21: =IF($D21="","",'3.3 Emitters'!K42) ->  | Q21: =IF($D21="","",'3.3 Emitters'!L42) ->  | R21: =IF($D21="","",'3.3 Emitters'!M42) ->  | S21: =IF($D21="","",'3.3 Emitters'!N42) ->  | T21: =IF($D21="","",'3.3 Emitters'!O42) ->  | U21: =IF($D21="","",'3.3 Emitters'!P42) ->  | V21: =IF($D21="","",'3.3 Emitters'!Q42) ->  | W21: =IF($D21="","",'3.3 Emitters'!R42) ->  | X21: =IF($D21="","",'3.3 Emitters'!S42) ->  | Y21: =IF($D21="","",'3.3 Emitters'!T42) ->  | Z21: =IF($D21="","",'3.3 Emitters'!U42) ->  | AA21: =IF($D21="","",'3.3 Emitters'!V42) ->  | AB21: =IF($D21="","",'3.3 Emitters'!W42) ->  | AC21: =IF($D21="","",'3.3 Emitters'!X42) ->  | AD21: =IF($D21="","",'3.3 Emitters'!Y42) ->  | AE21: =IF($D21="","",'3.3 Emitters'!Z42) ->  | AF21: =IF($D21="","",'3.3 Emitters'!AA42) ->  | AG21: =IF($D21="","",'3.3 Emitters'!AB42) ->  | AH21: =IF($D21="","",'3.3 Emitters'!AC42) ->  | AI21: =IF($D21="","",'3.3 Emitters'!AD42) ->  | AJ21: =IF($D21="","",'3.3 Emitters'!AE42) ->  | AK21: =IF($D21="","",'3.3 Emitters'!AF42) ->  | AL21: =IF($D21="","",'3.3 Emitters'!AG42) -> 
C22: ='3.3 Emitters'!B43 ->  | D22: ='3.3 Emitters'!C43 ->  | M22: =IF($D22="","",'3.3 Emitters'!H43) ->  | N22: =IF($D22="","",'3.3 Emitters'!I43) ->  | O22: =IF($D22="","",'3.3 Emitters'!J43) ->  | P22: =IF($D22="","",'3.3 Emitters'!K43) ->  | Q22: =IF($D22="","",'3.3 Emitters'!L43) ->  | R22: =IF($D22="","",'3.3 Emitters'!M43) ->  | S22: =IF($D22="","",'3.3 Emitters'!N43) ->  | T22: =IF($D22="","",'3.3 Emitters'!O43) ->  | U22: =IF($D22="","",'3.3 Emitters'!P43) ->  | V22: =IF($D22="","",'3.3 Emitters'!Q43) ->  | W22: =IF($D22="","",'3.3 Emitters'!R43) ->  | X22: =IF($D22="","",'3.3 Emitters'!S43) ->  | Y22: =IF($D22="","",'3.3 Emitters'!T43) ->  | Z22: =IF($D22="","",'3.3 Emitters'!U43) ->  | AA22: =IF($D22="","",'3.3 Emitters'!V43) ->  | AB22: =IF($D22="","",'3.3 Emitters'!W43) ->  | AC22: =IF($D22="","",'3.3 Emitters'!X43) ->  | AD22: =IF($D22="","",'3.3 Emitters'!Y43) ->  | AE22: =IF($D22="","",'3.3 Emitters'!Z43) ->  | AF22: =IF($D22="","",'3.3 Emitters'!AA43) ->  | AG22: =IF($D22="","",'3.3 Emitters'!AB43) ->  | AH22: =IF($D22="","",'3.3 Emitters'!AC43) ->  | AI22: =IF($D22="","",'3.3 Emitters'!AD43) ->  | AJ22: =IF($D22="","",'3.3 Emitters'!AE43) ->  | AK22: =IF($D22="","",'3.3 Emitters'!AF43) ->  | AL22: =IF($D22="","",'3.3 Emitters'!AG43) -> 
C23: ='3.3 Emitters'!B44 ->  | D23: ='3.3 Emitters'!C44 ->  | M23: =IF($D23="","",'3.3 Emitters'!H44) ->  | N23: =IF($D23="","",'3.3 Emitters'!I44) ->  | O23: =IF($D23="","",'3.3 Emitters'!J44) ->  | P23: =IF($D23="","",'3.3 Emitters'!K44) ->  | Q23: =IF($D23="","",'3.3 Emitters'!L44) ->  | R23: =IF($D23="","",'3.3 Emitters'!M44) ->  | S23: =IF($D23="","",'3.3 Emitters'!N44) ->  | T23: =IF($D23="","",'3.3 Emitters'!O44) ->  | U23: =IF($D23="","",'3.3 Emitters'!P44) ->  | V23: =IF($D23="","",'3.3 Emitters'!Q44) ->  | W23: =IF($D23="","",'3.3 Emitters'!R44) ->  | X23: =IF($D23="","",'3.3 Emitters'!S44) ->  | Y23: =IF($D23="","",'3.3 Emitters'!T44) ->  | Z23: =IF($D23="","",'3.3 Emitters'!U44) ->  | AA23: =IF($D23="","",'3.3 Emitters'!V44) ->  | AB23: =IF($D23="","",'3.3 Emitters'!W44) ->  | AC23: =IF($D23="","",'3.3 Emitters'!X44) ->  | AD23: =IF($D23="","",'3.3 Emitters'!Y44) ->  | AE23: =IF($D23="","",'3.3 Emitters'!Z44) ->  | AF23: =IF($D23="","",'3.3 Emitters'!AA44) ->  | AG23: =IF($D23="","",'3.3 Emitters'!AB44) ->  | AH23: =IF($D23="","",'3.3 Emitters'!AC44) ->  | AI23: =IF($D23="","",'3.3 Emitters'!AD44) ->  | AJ23: =IF($D23="","",'3.3 Emitters'!AE44) ->  | AK23: =IF($D23="","",'3.3 Emitters'!AF44) ->  | AL23: =IF($D23="","",'3.3 Emitters'!AG44) -> 
C24: ='3.3 Emitters'!B45 ->  | D24: ='3.3 Emitters'!C45 ->  | M24: =IF($D24="","",'3.3 Emitters'!H45) ->  | N24: =IF($D24="","",'3.3 Emitters'!I45) ->  | O24: =IF($D24="","",'3.3 Emitters'!J45) ->  | P24: =IF($D24="","",'3.3 Emitters'!K45) ->  | Q24: =IF($D24="","",'3.3 Emitters'!L45) ->  | R24: =IF($D24="","",'3.3 Emitters'!M45) ->  | S24: =IF($D24="","",'3.3 Emitters'!N45) ->  | T24: =IF($D24="","",'3.3 Emitters'!O45) ->  | U24: =IF($D24="","",'3.3 Emitters'!P45) ->  | V24: =IF($D24="","",'3.3 Emitters'!Q45) ->  | W24: =IF($D24="","",'3.3 Emitters'!R45) ->  | X24: =IF($D24="","",'3.3 Emitters'!S45) ->  | Y24: =IF($D24="","",'3.3 Emitters'!T45) ->  | Z24: =IF($D24="","",'3.3 Emitters'!U45) ->  | AA24: =IF($D24="","",'3.3 Emitters'!V45) ->  | AB24: =IF($D24="","",'3.3 Emitters'!W45) ->  | AC24: =IF($D24="","",'3.3 Emitters'!X45) ->  | AD24: =IF($D24="","",'3.3 Emitters'!Y45) ->  | AE24: =IF($D24="","",'3.3 Emitters'!Z45) ->  | AF24: =IF($D24="","",'3.3 Emitters'!AA45) ->  | AG24: =IF($D24="","",'3.3 Emitters'!AB45) ->  | AH24: =IF($D24="","",'3.3 Emitters'!AC45) ->  | AI24: =IF($D24="","",'3.3 Emitters'!AD45) ->  | AJ24: =IF($D24="","",'3.3 Emitters'!AE45) ->  | AK24: =IF($D24="","",'3.3 Emitters'!AF45) ->  | AL24: =IF($D24="","",'3.3 Emitters'!AG45) -> 
C25: ='3.3 Emitters'!B46 ->  | D25: ='3.3 Emitters'!C46 ->  | M25: =IF($D25="","",'3.3 Emitters'!H46) ->  | N25: =IF($D25="","",'3.3 Emitters'!I46) ->  | O25: =IF($D25="","",'3.3 Emitters'!J46) ->  | P25: =IF($D25="","",'3.3 Emitters'!K46) ->  | Q25: =IF($D25="","",'3.3 Emitters'!L46) ->  | R25: =IF($D25="","",'3.3 Emitters'!M46) ->  | S25: =IF($D25="","",'3.3 Emitters'!N46) ->  | T25: =IF($D25="","",'3.3 Emitters'!O46) ->  | U25: =IF($D25="","",'3.3 Emitters'!P46) ->  | V25: =IF($D25="","",'3.3 Emitters'!Q46) ->  | W25: =IF($D25="","",'3.3 Emitters'!R46) ->  | X25: =IF($D25="","",'3.3 Emitters'!S46) ->  | Y25: =IF($D25="","",'3.3 Emitters'!T46) ->  | Z25: =IF($D25="","",'3.3 Emitters'!U46) ->  | AA25: =IF($D25="","",'3.3 Emitters'!V46) ->  | AB25: =IF($D25="","",'3.3 Emitters'!W46) ->  | AC25: =IF($D25="","",'3.3 Emitters'!X46) ->  | AD25: =IF($D25="","",'3.3 Emitters'!Y46) ->  | AE25: =IF($D25="","",'3.3 Emitters'!Z46) ->  | AF25: =IF($D25="","",'3.3 Emitters'!AA46) ->  | AG25: =IF($D25="","",'3.3 Emitters'!AB46) ->  | AH25: =IF($D25="","",'3.3 Emitters'!AC46) ->  | AI25: =IF($D25="","",'3.3 Emitters'!AD46) ->  | AJ25: =IF($D25="","",'3.3 Emitters'!AE46) ->  | AK25: =IF($D25="","",'3.3 Emitters'!AF46) ->  | AL25: =IF($D25="","",'3.3 Emitters'!AG46) -> 
C26: ='3.3 Emitters'!B47 ->  | D26: ='3.3 Emitters'!C47 ->  | M26: =IF($D26="","",'3.3 Emitters'!H47) ->  | N26: =IF($D26="","",'3.3 Emitters'!I47) ->  | O26: =IF($D26="","",'3.3 Emitters'!J47) ->  | P26: =IF($D26="","",'3.3 Emitters'!K47) ->  | Q26: =IF($D26="","",'3.3 Emitters'!L47) ->  | R26: =IF($D26="","",'3.3 Emitters'!M47) ->  | S26: =IF($D26="","",'3.3 Emitters'!N47) ->  | T26: =IF($D26="","",'3.3 Emitters'!O47) ->  | U26: =IF($D26="","",'3.3 Emitters'!P47) ->  | V26: =IF($D26="","",'3.3 Emitters'!Q47) ->  | W26: =IF($D26="","",'3.3 Emitters'!R47) ->  | X26: =IF($D26="","",'3.3 Emitters'!S47) ->  | Y26: =IF($D26="","",'3.3 Emitters'!T47) ->  | Z26: =IF($D26="","",'3.3 Emitters'!U47) ->  | AA26: =IF($D26="","",'3.3 Emitters'!V47) ->  | AB26: =IF($D26="","",'3.3 Emitters'!W47) ->  | AC26: =IF($D26="","",'3.3 Emitters'!X47) ->  | AD26: =IF($D26="","",'3.3 Emitters'!Y47) ->  | AE26: =IF($D26="","",'3.3 Emitters'!Z47) ->  | AF26: =IF($D26="","",'3.3 Emitters'!AA47) ->  | AG26: =IF($D26="","",'3.3 Emitters'!AB47) ->  | AH26: =IF($D26="","",'3.3 Emitters'!AC47) ->  | AI26: =IF($D26="","",'3.3 Emitters'!AD47) ->  | AJ26: =IF($D26="","",'3.3 Emitters'!AE47) ->  | AK26: =IF($D26="","",'3.3 Emitters'!AF47) ->  | AL26: =IF($D26="","",'3.3 Emitters'!AG47) -> 
C27: ='3.3 Emitters'!B48 ->  | D27: ='3.3 Emitters'!C48 ->  | K27: =IF(D27="","",SUM(M27:AL27)) ->  | M27: =IF($D27="","",'3.3 Emitters'!H48) ->  | N27: =IF($D27="","",'3.3 Emitters'!I48) ->  | O27: =IF($D27="","",'3.3 Emitters'!J48) ->  | P27: =IF($D27="","",'3.3 Emitters'!K48) ->  | Q27: =IF($D27="","",'3.3 Emitters'!L48) ->  | R27: =IF($D27="","",'3.3 Emitters'!M48) ->  | S27: =IF($D27="","",'3.3 Emitters'!N48) ->  | T27: =IF($D27="","",'3.3 Emitters'!O48) ->  | U27: =IF($D27="","",'3.3 Emitters'!P48) ->  | V27: =IF($D27="","",'3.3 Emitters'!Q48) ->  | W27: =IF($D27="","",'3.3 Emitters'!R48) ->  | X27: =IF($D27="","",'3.3 Emitters'!S48) ->  | Y27: =IF($D27="","",'3.3 Emitters'!T48) ->  | Z27: =IF($D27="","",'3.3 Emitters'!U48) ->  | AA27: =IF($D27="","",'3.3 Emitters'!V48) ->  | AB27: =IF($D27="","",'3.3 Emitters'!W48) ->  | AC27: =IF($D27="","",'3.3 Emitters'!X48) ->  | AD27: =IF($D27="","",'3.3 Emitters'!Y48) ->  | AE27: =IF($D27="","",'3.3 Emitters'!Z48) ->  | AF27: =IF($D27="","",'3.3 Emitters'!AA48) ->  | AG27: =IF($D27="","",'3.3 Emitters'!AB48) ->  | AH27: =IF($D27="","",'3.3 Emitters'!AC48) ->  | AI27: =IF($D27="","",'3.3 Emitters'!AD48) ->  | AJ27: =IF($D27="","",'3.3 Emitters'!AE48) ->  | AK27: =IF($D27="","",'3.3 Emitters'!AF48) ->  | AL27: =IF($D27="","",'3.3 Emitters'!AG48) -> 
B30: B. | C30: Consolidated
B32: 1. | C32: NPV analysis
C34: Revenue | E34: DKK | G34: Present value of total revenue (2024 value) | K34: =SUM(M34:AL34) -> -980730973.4 | M34: =M55/((1+'1.2 Assumptions'!$E$9)^(M$4-$M$4+1)) -> 0 | N34: =N55/((1+'1.2 Assumptions'!$E$9)^(N$4-$M$4+1)) -> -57103133.67 | O34: =O55/((1+'1.2 Assumptions'!$E$9)^(O$4-$M$4+1)) -> -55208716.92 | P34: =P55/((1+'1.2 Assumptions'!$E$9)^(P$4-$M$4+1)) -> -53377148.11 | Q34: =Q55/((1+'1.2 Assumptions'!$E$9)^(Q$4-$M$4+1)) -> -51606342.25 | R34: =R55/((1+'1.2 Assumptions'!$E$9)^(R$4-$M$4+1)) -> -49894283.5 | S34: =S55/((1+'1.2 Assumptions'!$E$9)^(S$4-$M$4+1)) -> -48239022.91 | T34: =T55/((1+'1.2 Assumptions'!$E$9)^(T$4-$M$4+1)) -> -46638676.18 | U34: =U55/((1+'1.2 Assumptions'!$E$9)^(U$4-$M$4+1)) -> -45091421.52 | V34: =V55/((1+'1.2 Assumptions'!$E$9)^(V$4-$M$4+1)) -> -43595497.58 | W34: =W55/((1+'1.2 Assumptions'!$E$9)^(W$4-$M$4+1)) -> -42149201.45 | X34: =X55/((1+'1.2 Assumptions'!$E$9)^(X$4-$M$4+1)) -> -40750886.71 | Y34: =Y55/((1+'1.2 Assumptions'!$E$9)^(Y$4-$M$4+1)) -> -39398961.56 | Z34: =Z55/((1+'1.2 Assumptions'!$E$9)^(Z$4-$M$4+1)) -> -38091887.01 | AA34: =AA55/((1+'1.2 Assumptions'!$E$9)^(AA$4-$M$4+1)) -> -36828175.12 | AB34: =AB55/((1+'1.2 Assumptions'!$E$9)^(AB$4-$M$4+1)) -> -35606387.32 | AC34: =AC55/((1+'1.2 Assumptions'!$E$9)^(AC$4-$M$4+1)) -> -34425132.76 | AD34: =AD55/((1+'1.2 Assumptions'!$E$9)^(AD$4-$M$4+1)) -> -33283066.74 | AE34: =AE55/((1+'1.2 Assumptions'!$E$9)^(AE$4-$M$4+1)) -> -32178889.17 | AF34: =AF55/((1+'1.2 Assumptions'!$E$9)^(AF$4-$M$4+1)) -> -31111343.09 | AG34: =AG55/((1+'1.2 Assumptions'!$E$9)^(AG$4-$M$4+1)) -> -30079213.22 | AH34: =AH55/((1+'1.2 Assumptions'!$E$9)^(AH$4-$M$4+1)) -> -29081324.63 | AI34: =AI55/((1+'1.2 Assumptions'!$E$9)^(AI$4-$M$4+1)) -> -28116541.35 | AJ34: =AJ55/((1+'1.2 Assumptions'!$E$9)^(AJ$4-$M$4+1)) -> -27183765.1 | AK34: =AK55/((1+'1.2 Assumptions'!$E$9)^(AK$4-$M$4+1)) -> -26281934.03 | AL34: =AL55/((1+'1.2 Assumptions'!$E$9)^(AL$4-$M$4+1)) -> -25410021.52
C35: CAPEX | E35: DKK | G35: Present value of total CAPEX (2024 value) | K35: =SUM(M35:AL35) -> 2472364409 | M35: =M70/((1+'1.2 Assumptions'!$E$9)^(M$4-$M$4+1)) -> 2472364409 | N35: =N70/((1+'1.2 Assumptions'!$E$9)^(N$4-$M$4+1)) -> 0 | O35: =O70/((1+'1.2 Assumptions'!$E$9)^(O$4-$M$4+1)) -> 0 | P35: =P70/((1+'1.2 Assumptions'!$E$9)^(P$4-$M$4+1)) -> 0 | Q35: =Q70/((1+'1.2 Assumptions'!$E$9)^(Q$4-$M$4+1)) -> 0 | R35: =R70/((1+'1.2 Assumptions'!$E$9)^(R$4-$M$4+1)) -> 0 | S35: =S70/((1+'1.2 Assumptions'!$E$9)^(S$4-$M$4+1)) -> 0 | T35: =T70/((1+'1.2 Assumptions'!$E$9)^(T$4-$M$4+1)) -> 0 | U35: =U70/((1+'1.2 Assumptions'!$E$9)^(U$4-$M$4+1)) -> 0 | V35: =V70/((1+'1.2 Assumptions'!$E$9)^(V$4-$M$4+1)) -> 0 | W35: =W70/((1+'1.2 Assumptions'!$E$9)^(W$4-$M$4+1)) -> 0 | X35: =X70/((1+'1.2 Assumptions'!$E$9)^(X$4-$M$4+1)) -> 0 | Y35: =Y70/((1+'1.2 Assumptions'!$E$9)^(Y$4-$M$4+1)) -> 0 | Z35: =Z70/((1+'1.2 Assumptions'!$E$9)^(Z$4-$M$4+1)) -> 0 | AA35: =AA70/((1+'1.2 Assumptions'!$E$9)^(AA$4-$M$4+1)) -> 0 | AB35: =AB70/((1+'1.2 Assumptions'!$E$9)^(AB$4-$M$4+1)) -> 0 | AC35: =AC70/((1+'1.2 Assumptions'!$E$9)^(AC$4-$M$4+1)) -> 0 | AD35: =AD70/((1+'1.2 Assumptions'!$E$9)^(AD$4-$M$4+1)) -> 0 | AE35: =AE70/((1+'1.2 Assumptions'!$E$9)^(AE$4-$M$4+1)) -> 0 | AF35: =AF70/((1+'1.2 Assumptions'!$E$9)^(AF$4-$M$4+1)) -> 0 | AG35: =AG70/((1+'1.2 Assumptions'!$E$9)^(AG$4-$M$4+1)) -> 0 | AH35: =AH70/((1+'1.2 Assumptions'!$E$9)^(AH$4-$M$4+1)) -> 0 | AI35: =AI70/((1+'1.2 Assumptions'!$E$9)^(AI$4-$M$4+1)) -> 0 | AJ35: =AJ70/((1+'1.2 Assumptions'!$E$9)^(AJ$4-$M$4+1)) -> 0 | AK35: =AK70/((1+'1.2 Assumptions'!$E$9)^(AK$4-$M$4+1)) -> 0 | AL35: =AL70/((1+'1.2 Assumptions'!$E$9)^(AL$4-$M$4+1)) -> 0
C36: OPEX | E36: DKK | G36: Present value of total OPEX (2024 value) | K36: =SUM(M36:AL36) -> 1.274238906e+10 | M36: =M97/((1+'1.2 Assumptions'!$E$9)^(M$4-$M$4+1)) -> 0 | N36: =N97/((1+'1.2 Assumptions'!$E$9)^(N$4-$M$4+1)) -> 777272728.3 | O36: =O97/((1+'1.2 Assumptions'!$E$9)^(O$4-$M$4+1)) -> 728841921.3 | P36: =P97/((1+'1.2 Assumptions'!$E$9)^(P$4-$M$4+1)) -> 704662331.5 | Q36: =Q97/((1+'1.2 Assumptions'!$E$9)^(Q$4-$M$4+1)) -> 681284908.2 | R36: =R97/((1+'1.2 Assumptions'!$E$9)^(R$4-$M$4+1)) -> 638604358.5 | S36: =S97/((1+'1.2 Assumptions'!$E$9)^(S$4-$M$4+1)) -> 617418431.9 | T36: =T97/((1+'1.2 Assumptions'!$E$9)^(T$4-$M$4+1)) -> 596935356 | U36: =U97/((1+'1.2 Assumptions'!$E$9)^(U$4-$M$4+1)) -> 577131813.4 | V36: =V97/((1+'1.2 Assumptions'!$E$9)^(V$4-$M$4+1)) -> 557985260.3 | W36: =W97/((1+'1.2 Assumptions'!$E$9)^(W$4-$M$4+1)) -> 542402070 | X36: =X97/((1+'1.2 Assumptions'!$E$9)^(X$4-$M$4+1)) -> 527852674.6 | Y36: =Y97/((1+'1.2 Assumptions'!$E$9)^(Y$4-$M$4+1)) -> 510340974.5 | Z36: =Z97/((1+'1.2 Assumptions'!$E$9)^(Z$4-$M$4+1)) -> 493410231.3 | AA36: =AA97/((1+'1.2 Assumptions'!$E$9)^(AA$4-$M$4+1)) -> 477041171.5 | AB36: =AB97/((1+'1.2 Assumptions'!$E$9)^(AB$4-$M$4+1)) -> 461215161.1 | AC36: =AC97/((1+'1.2 Assumptions'!$E$9)^(AC$4-$M$4+1)) -> 445914184.1 | AD36: =AD97/((1+'1.2 Assumptions'!$E$9)^(AD$4-$M$4+1)) -> 431120822.6 | AE36: =AE97/((1+'1.2 Assumptions'!$E$9)^(AE$4-$M$4+1)) -> 416818236.1 | AF36: =AF97/((1+'1.2 Assumptions'!$E$9)^(AF$4-$M$4+1)) -> 402990142.9 | AG36: =AG97/((1+'1.2 Assumptions'!$E$9)^(AG$4-$M$4+1)) -> 389620801.7 | AH36: =AH97/((1+'1.2 Assumptions'!$E$9)^(AH$4-$M$4+1)) -> 376896489 | AI36: =AI97/((1+'1.2 Assumptions'!$E$9)^(AI$4-$M$4+1)) -> 364392814 | AJ36: =AJ97/((1+'1.2 Assumptions'!$E$9)^(AJ$4-$M$4+1)) -> 352303952.8 | AK36: =AK97/((1+'1.2 Assumptions'!$E$9)^(AK$4-$M$4+1)) -> 340616144 | AL36: =AL97/((1+'1.2 Assumptions'!$E$9)^(AL$4-$M$4+1)) -> 329316082.3
C38: Net present value of total costs | E38: DKK | G38: Present value of total costs (2024 value) | K38: =SUM(K34:K36) -> 1.42340225e+10
B40: 2. | C40: Levelized cost analysis
C42: Present value of total costs | E42: DKK | G42: Present value of total costs (2024 value) | K42: =SUM(M42:AL42) -> 1.42340225e+10 | M42: =SUM(M34:M36) -> 2472364409 | N42: =SUM(N34:N36) -> 720169594.6 | O42: =SUM(O34:O36) -> 673633204.4 | P42: 651285183.4 | Q42: 629678566 | R42: 588710075 | S42: 569179409 | T42: 550296679.8 | U42: 532040391.8 | V42: 514389762.7 | W42: 500252868.6 | X42: 487101787.9 | Y42: 470942013 | Z42: 455318344.3 | AA42: 440212996.4 | AB42: 425608773.7 | AC42: 411489051.4 | AD42: 397837755.8 | AE42: 384639346.9 | AF42: 371878799.8 | AG42: 359541588.5 | AH42: 347815164.3 | AI42: 336276272.6 | AJ42: 325120187.7 | AK42: 314334209.9 | AL42: 303906060.8
C43: Discounted CO2 volumes | E43: t/year | G43: Present value of CO2 volumes | K43: =SUM(M43:AL43) -> 29716247.38 | M43: =M8/((1+'1.2 Assumptions'!$E$9)^(M$4-$M$4+1)) -> 0 | N43: =N8/((1+'1.2 Assumptions'!$E$9)^(N$4-$M$4+1)) -> 2099836.032 | O43: =O8/((1+'1.2 Assumptions'!$E$9)^(O$4-$M$4+1)) -> 1990365.908 | P43: =P8/((1+'1.2 Assumptions'!$E$9)^(P$4-$M$4+1)) -> 1886602.756 | Q43: =Q8/((1+'1.2 Assumptions'!$E$9)^(Q$4-$M$4+1)) -> 1788249.058 | R43: =R8/((1+'1.2 Assumptions'!$E$9)^(R$4-$M$4+1)) -> 1695022.804 | S43: =S8/((1+'1.2 Assumptions'!$E$9)^(S$4-$M$4+1)) -> 1606656.686 | T43: =T8/((1+'1.2 Assumptions'!$E$9)^(T$4-$M$4+1)) -> 1522897.333 | U43: =U8/((1+'1.2 Assumptions'!$E$9)^(U$4-$M$4+1)) -> 1443504.581 | V43: =V8/((1+'1.2 Assumptions'!$E$9)^(V$4-$M$4+1)) -> 1368250.787 | W43: =W8/((1+'1.2 Assumptions'!$E$9)^(W$4-$M$4+1)) -> 1296920.178 | X43: =X8/((1+'1.2 Assumptions'!$E$9)^(X$4-$M$4+1)) -> 1229308.225 | Y43: =Y8/((1+'1.2 Assumptions'!$E$9)^(Y$4-$M$4+1)) -> 1165221.067 | Z43: =Z8/((1+'1.2 Assumptions'!$E$9)^(Z$4-$M$4+1)) -> 1104474.945 | AA43: =AA8/((1+'1.2 Assumptions'!$E$9)^(AA$4-$M$4+1)) -> 1046895.682 | AB43: =AB8/((1+'1.2 Assumptions'!$E$9)^(AB$4-$M$4+1)) -> 992318.182 | AC43: =AC8/((1+'1.2 Assumptions'!$E$9)^(AC$4-$M$4+1)) -> 940585.9545 | AD43: =AD8/((1+'1.2 Assumptions'!$E$9)^(AD$4-$M$4+1)) -> 891550.6678 | AE43: =AE8/((1+'1.2 Assumptions'!$E$9)^(AE$4-$M$4+1)) -> 845071.723 | AF43: =AF8/((1+'1.2 Assumptions'!$E$9)^(AF$4-$M$4+1)) -> 801015.8512 | AG43: =AG8/((1+'1.2 Assumptions'!$E$9)^(AG$4-$M$4+1)) -> 759256.731 | AH43: =AH8/((1+'1.2 Assumptions'!$E$9)^(AH$4-$M$4+1)) -> 719674.6266 | AI43: =AI8/((1+'1.2 Assumptions'!$E$9)^(AI$4-$M$4+1)) -> 682156.0441 | AJ43: =AJ8/((1+'1.2 Assumptions'!$E$9)^(AJ$4-$M$4+1)) -> 646593.4068 | AK43: =AK8/((1+'1.2 Assumptions'!$E$9)^(AK$4-$M$4+1)) -> 612884.7457 | AL43: =AL8/((1+'1.2 Assumptions'!$E$9)^(AL$4-$M$4+1)) -> 580933.4083
C45: Levelized cost of CO2 | E45: DKK/ton | G45: Levelized cost of CO2 | K45: =K42/K43 -> 478.997981
B47: 3. | C47: Revenue
C49: District heating from compression | E49: DKK | K49: =SUM(M49:AL49) -> 0 | M49: =M116 -> 0 | N49: =N116 -> 0 | O49: 0 | P49: 0 | Q49: 0 | R49: 0 | S49: 0 | T49: 0 | U49: 0 | V49: 0 | W49: 0 | X49: 0 | Y49: 0 | Z49: 0 | AA49: 0 | AB49: 0 | AC49: 0 | AD49: 0 | AE49: 0 | AF49: 0 | AG49: 0 | AH49: 0 | AI49: 0 | AJ49: 0 | AK49: 0 | AL49: 0
C50: District heating from liquefaction | E50: DKK | K50: =SUM(M50:AL50) -> -1527230281 | M50: =M123 -> 0 | N50: =N123 -> -61089211.22 | O50: -61089211.22 | P50: -61089211.22 | Q50: -61089211.22 | R50: -61089211.22 | S50: -61089211.22 | T50: -61089211.22 | U50: -61089211.22 | V50: -61089211.22 | W50: -61089211.22 | X50: -61089211.22 | Y50: -61089211.22 | Z50: -61089211.22 | AA50: -61089211.22 | AB50: -61089211.22 | AC50: -61089211.22 | AD50: -61089211.22 | AE50: -61089211.22 | AF50: -61089211.22 | AG50: -61089211.22 | AH50: -61089211.22 | AI50: -61089211.22 | AJ50: -61089211.22 | AK50: -61089211.22 | AL50: -61089211.22
C52: Total revenue | E52: DKK | G52: Sum of above | K52: =SUM(M52:AL52) -> -1527230281 | M52: =SUM(M49:M50) -> 0 | N52: =SUM(N49:N50) -> -61089211.22 | O52: -61089211.22 | P52: -61089211.22 | Q52: -61089211.22 | R52: -61089211.22 | S52: -61089211.22 | T52: -61089211.22 | U52: -61089211.22 | V52: -61089211.22 | W52: -61089211.22 | X52: -61089211.22 | Y52: -61089211.22 | Z52: -61089211.22 | AA52: -61089211.22 | AB52: -61089211.22 | AC52: -61089211.22 | AD52: -61089211.22 | AE52: -61089211.22 | AF52: -61089211.22 | AG52: -61089211.22 | AH52: -61089211.22 | AI52: -61089211.22 | AJ52: -61089211.22 | AK52: -61089211.22 | AL52: -61089211.22
C55: Total revenue (inflation adj.) | E55: DKK | G55: Inflation adjusted revenue | K55: =SUM(M55:AL55) -> -2035756657 | M55: =M52*((1+'1.2 Assumptions'!$E$11)^(M$4-$M$4+1)) -> 0 | N55: =N52*((1+'1.2 Assumptions'!$E$11)^(N$4-$M$4+1)) -> -63557215.36 | O55: =O52*((1+'1.2 Assumptions'!$E$11)^(O$4-$M$4+1)) -> -64828359.66 | P55: =P52*((1+'1.2 Assumptions'!$E$11)^(P$4-$M$4+1)) -> -66124926.86 | Q55: =Q52*((1+'1.2 Assumptions'!$E$11)^(Q$4-$M$4+1)) -> -67447425.39 | R55: =R52*((1+'1.2 Assumptions'!$E$11)^(R$4-$M$4+1)) -> -68796373.9 | S55: =S52*((1+'1.2 Assumptions'!$E$11)^(S$4-$M$4+1)) -> -70172301.38 | T55: =T52*((1+'1.2 Assumptions'!$E$11)^(T$4-$M$4+1)) -> -71575747.41 | U55: =U52*((1+'1.2 Assumptions'!$E$11)^(U$4-$M$4+1)) -> -73007262.36 | V55: =V52*((1+'1.2 Assumptions'!$E$11)^(V$4-$M$4+1)) -> -74467407.6 | W55: =W52*((1+'1.2 Assumptions'!$E$11)^(W$4-$M$4+1)) -> -75956755.75 | X55: =X52*((1+'1.2 Assumptions'!$E$11)^(X$4-$M$4+1)) -> -77475890.87 | Y55: =Y52*((1+'1.2 Assumptions'!$E$11)^(Y$4-$M$4+1)) -> -79025408.69 | Z55: =Z52*((1+'1.2 Assumptions'!$E$11)^(Z$4-$M$4+1)) -> -80605916.86 | AA55: =AA52*((1+'1.2 Assumptions'!$E$11)^(AA$4-$M$4+1)) -> -82218035.2 | AB55: =AB52*((1+'1.2 Assumptions'!$E$11)^(AB$4-$M$4+1)) -> -83862395.9 | AC55: =AC52*((1+'1.2 Assumptions'!$E$11)^(AC$4-$M$4+1)) -> -85539643.82 | AD55: =AD52*((1+'1.2 Assumptions'!$E$11)^(AD$4-$M$4+1)) -> -87250436.7 | AE55: =AE52*((1+'1.2 Assumptions'!$E$11)^(AE$4-$M$4+1)) -> -88995445.43 | AF55: =AF52*((1+'1.2 Assumptions'!$E$11)^(AF$4-$M$4+1)) -> -90775354.34 | AG55: =AG52*((1+'1.2 Assumptions'!$E$11)^(AG$4-$M$4+1)) -> -92590861.43 | AH55: =AH52*((1+'1.2 Assumptions'!$E$11)^(AH$4-$M$4+1)) -> -94442678.65 | AI55: =AI52*((1+'1.2 Assumptions'!$E$11)^(AI$4-$M$4+1)) -> -96331532.23 | AJ55: =AJ52*((1+'1.2 Assumptions'!$E$11)^(AJ$4-$M$4+1)) -> -98258162.87 | AK55: =AK52*((1+'1.2 Assumptions'!$E$11)^(AK$4-$M$4+1)) -> -100223326.1 | AL55: =AL52*((1+'1.2 Assumptions'!$E$11)^(AL$4-$M$4+1)) -> -102227792.7
B57: 4. | C57: CAPEX
C59: Pipeline | E59: DKK | K59: =SUM(M59:AL59) -> 764826568.5 | M59: =M132 -> 764826568.5 | N59: =N132 -> 0 | O59: 0 | P59: 0 | Q59: 0 | R59: 0 | S59: 0 | T59: 0 | U59: 0 | V59: 0 | W59: 0 | X59: 0 | Y59: 0 | Z59: 0 | AA59: 0 | AB59: 0 | AC59: 0 | AD59: 0 | AE59: 0 | AF59: 0 | AG59: 0 | AH59: 0 | AI59: 0 | AJ59: 0 | AK59: 0 | AL59: 0
C60: Compression | E60: DKK | K60: =SUM(M60:AL60) -> 0 | M60: =M142 -> 0 | N60: =N142 -> 0 | O60: 0 | P60: 0 | Q60: 0 | R60: 0 | S60: 0 | T60: 0 | U60: 0 | V60: 0 | W60: 0 | X60: 0 | Y60: 0 | Z60: 0 | AA60: 0 | AB60: 0 | AC60: 0 | AD60: 0 | AE60: 0 | AF60: 0 | AG60: 0 | AH60: 0 | AI60: 0 | AJ60: 0 | AK60: 0 | AL60: 0
C61: Liquefaction | E61: DKK | K61: 1009288612 | M61: =M149 -> 1009288612 | N61: =N149 -> 0 | O61: 0 | P61: 0 | Q61: 0 | R61: 0 | S61: 0 | T61: 0 | U61: 0 | V61: 0 | W61: 0 | X61: 0 | Y61: 0 | Z61: 0 | AA61: 0 | AB61: 0 | AC61: 0 | AD61: 0 | AE61: 0 | AF61: 0 | AG61: 0 | AH61: 0 | AI61: 0 | AJ61: 0 | AK61: 0 | AL61: 0
C62: Harbour facilities | E62: DKK | K62: 44484140.42 | M62: =M153 -> 44484140.42 | N62: =N153 -> 0 | O62: 0 | P62: 0 | Q62: 0 | R62: 0 | S62: 0 | T62: 0 | U62: 0 | V62: 0 | W62: 0 | X62: 0 | Y62: 0 | Z62: 0 | AA62: 0 | AB62: 0 | AC62: 0 | AD62: 0 | AE62: 0 | AF62: 0 | AG62: 0 | AH62: 0 | AI62: 0 | AJ62: 0 | AK62: 0 | AL62: 0
C63: Intermediate storage | E63: DKK | K63: 738601121.6 | M63: =M157 -> 738601121.6 | N63: =N157 -> 0 | O63: 0 | P63: 0 | Q63: 0 | R63: 0 | S63: 0 | T63: 0 | U63: 0 | V63: 0 | W63: 0 | X63: 0 | Y63: 0 | Z63: 0 | AA63: 0 | AB63: 0 | AC63: 0 | AD63: 0 | AE63: 0 | AF63: 0 | AG63: 0 | AH63: 0 | AI63: 0 | AJ63: 0 | AK63: 0 | AL63: 0
C64: Conditioning | E64: DKK | K64: =SUM(M64:AL64) -> 0 | M64: =M172 -> 0 | N64: 0 | O64: 0 | P64: 0 | Q64: 0 | R64: 0 | S64: 0 | T64: 0 | U64: 0 | V64: 0 | W64: 0 | X64: 0 | Y64: 0 | Z64: 0 | AA64: 0 | AB64: 0 | AC64: 0 | AD64: 0 | AE64: 0 | AF64: 0 | AG64: 0 | AH64: 0 | AI64: 0 | AJ64: 0 | AK64: 0 | AL64: 0
C65: Booster station | E65: DKK | K65: =SUM(M65:AL65) -> 0 | M65: =M183 -> 0 | N65: =N183 -> 0 | O65: 0 | P65: 0 | Q65: 0 | R65: 0 | S65: 0 | T65: 0 | U65: 0 | V65: 0 | W65: 0 | X65: 0 | Y65: 0 | Z65: 0 | AA65: 0 | AB65: 0 | AC65: 0 | AD65: 0 | AE65: 0 | AF65: 0 | AG65: 0 | AH65: 0 | AI65: 0 | AJ65: 0 | AK65: 0 | AL65: 0
C67: Total CAPEX | E67: DKK | G67: Sum of above | K67: =SUM(M67:AL67) -> 2557200443 | M67: =SUM(M59:M65) -> 2557200443 | N67: =SUM(N59:N65) -> 0 | O67: 0 | P67: 0 | Q67: 0 | R67: 0 | S67: 0 | T67: 0 | U67: 0 | V67: 0 | W67: 0 | X67: 0 | Y67: 0 | Z67: 0 | AA67: 0 | AB67: 0 | AC67: 0 | AD67: 0 | AE67: 0 | AF67: 0 | AG67: 0 | AH67: 0 | AI67: 0 | AJ67: 0 | AK67: 0 | AL67: 0
C70: Total CAPEX (inflation adj.) | E70: DKK | G70: Inflation adjusted CAPEX | K70: =SUM(M70:AL70) -> 2608344451 | M70: =M67*((1+'1.2 Assumptions'!$E$11)^(M$4-$M$4+1)) -> 2608344451 | N70: =N67*((1+'1.2 Assumptions'!$E$11)^(N$4-$M$4+1)) -> 0 | O70: =O67*((1+'1.2 Assumptions'!$E$11)^(O$4-$M$4+1)) -> 0 | P70: =P67*((1+'1.2 Assumptions'!$E$11)^(P$4-$M$4+1)) -> 0 | Q70: =Q67*((1+'1.2 Assumptions'!$E$11)^(Q$4-$M$4+1)) -> 0 | R70: =R67*((1+'1.2 Assumptions'!$E$11)^(R$4-$M$4+1)) -> 0 | S70: =S67*((1+'1.2 Assumptions'!$E$11)^(S$4-$M$4+1)) -> 0 | T70: =T67*((1+'1.2 Assumptions'!$E$11)^(T$4-$M$4+1)) -> 0 | U70: =U67*((1+'1.2 Assumptions'!$E$11)^(U$4-$M$4+1)) -> 0 | V70: =V67*((1+'1.2 Assumptions'!$E$11)^(V$4-$M$4+1)) -> 0 | W70: =W67*((1+'1.2 Assumptions'!$E$11)^(W$4-$M$4+1)) -> 0 | X70: =X67*((1+'1.2 Assumptions'!$E$11)^(X$4-$M$4+1)) -> 0 | Y70: =Y67*((1+'1.2 Assumptions'!$E$11)^(Y$4-$M$4+1)) -> 0 | Z70: =Z67*((1+'1.2 Assumptions'!$E$11)^(Z$4-$M$4+1)) -> 0 | AA70: =AA67*((1+'1.2 Assumptions'!$E$11)^(AA$4-$M$4+1)) -> 0 | AB70: =AB67*((1+'1.2 Assumptions'!$E$11)^(AB$4-$M$4+1)) -> 0 | AC70: =AC67*((1+'1.2 Assumptions'!$E$11)^(AC$4-$M$4+1)) -> 0 | AD70: =AD67*((1+'1.2 Assumptions'!$E$11)^(AD$4-$M$4+1)) -> 0 | AE70: =AE67*((1+'1.2 Assumptions'!$E$11)^(AE$4-$M$4+1)) -> 0 | AF70: =AF67*((1+'1.2 Assumptions'!$E$11)^(AF$4-$M$4+1)) -> 0 | AG70: =AG67*((1+'1.2 Assumptions'!$E$11)^(AG$4-$M$4+1)) -> 0 | AH70: =AH67*((1+'1.2 Assumptions'!$E$11)^(AH$4-$M$4+1)) -> 0 | AI70: =AI67*((1+'1.2 Assumptions'!$E$11)^(AI$4-$M$4+1)) -> 0 | AJ70: =AJ67*((1+'1.2 Assumptions'!$E$11)^(AJ$4-$M$4+1)) -> 0 | AK70: =AK67*((1+'1.2 Assumptions'!$E$11)^(AK$4-$M$4+1)) -> 0 | AL70: =AL67*((1+'1.2 Assumptions'!$E$11)^(AL$4-$M$4+1)) -> 0
C72: =C59 -> Pipeline | E72: DKK | G72: Inflation adjusted CAPEX | K72: =SUM(M72:AL72) -> 780123099.8 | M72: =M59*((1+'1.2 Assumptions'!$E$11)^(M$4-$M$4+1)) -> 780123099.8 | N72: =N59*((1+'1.2 Assumptions'!$E$11)^(N$4-$M$4+1)) -> 0 | O72: =O59*((1+'1.2 Assumptions'!$E$11)^(O$4-$M$4+1)) -> 0 | P72: =P59*((1+'1.2 Assumptions'!$E$11)^(P$4-$M$4+1)) -> 0 | Q72: =Q59*((1+'1.2 Assumptions'!$E$11)^(Q$4-$M$4+1)) -> 0 | R72: =R59*((1+'1.2 Assumptions'!$E$11)^(R$4-$M$4+1)) -> 0 | S72: =S59*((1+'1.2 Assumptions'!$E$11)^(S$4-$M$4+1)) -> 0 | T72: =T59*((1+'1.2 Assumptions'!$E$11)^(T$4-$M$4+1)) -> 0 | U72: =U59*((1+'1.2 Assumptions'!$E$11)^(U$4-$M$4+1)) -> 0 | V72: =V59*((1+'1.2 Assumptions'!$E$11)^(V$4-$M$4+1)) -> 0 | W72: =W59*((1+'1.2 Assumptions'!$E$11)^(W$4-$M$4+1)) -> 0 | X72: =X59*((1+'1.2 Assumptions'!$E$11)^(X$4-$M$4+1)) -> 0 | Y72: =Y59*((1+'1.2 Assumptions'!$E$11)^(Y$4-$M$4+1)) -> 0 | Z72: =Z59*((1+'1.2 Assumptions'!$E$11)^(Z$4-$M$4+1)) -> 0 | AA72: =AA59*((1+'1.2 Assumptions'!$E$11)^(AA$4-$M$4+1)) -> 0 | AB72: =AB59*((1+'1.2 Assumptions'!$E$11)^(AB$4-$M$4+1)) -> 0 | AC72: =AC59*((1+'1.2 Assumptions'!$E$11)^(AC$4-$M$4+1)) -> 0 | AD72: =AD59*((1+'1.2 Assumptions'!$E$11)^(AD$4-$M$4+1)) -> 0 | AE72: =AE59*((1+'1.2 Assumptions'!$E$11)^(AE$4-$M$4+1)) -> 0 | AF72: =AF59*((1+'1.2 Assumptions'!$E$11)^(AF$4-$M$4+1)) -> 0 | AG72: =AG59*((1+'1.2 Assumptions'!$E$11)^(AG$4-$M$4+1)) -> 0 | AH72: =AH59*((1+'1.2 Assumptions'!$E$11)^(AH$4-$M$4+1)) -> 0 | AI72: =AI59*((1+'1.2 Assumptions'!$E$11)^(AI$4-$M$4+1)) -> 0 | AJ72: =AJ59*((1+'1.2 Assumptions'!$E$11)^(AJ$4-$M$4+1)) -> 0 | AK72: =AK59*((1+'1.2 Assumptions'!$E$11)^(AK$4-$M$4+1)) -> 0 | AL72: =AL59*((1+'1.2 Assumptions'!$E$11)^(AL$4-$M$4+1)) -> 0
C73: =C60 -> Compression | E73: DKK | G73: Inflation adjusted CAPEX | K73: =SUM(M73:AL73) -> 0 | M73: =M60*((1+'1.2 Assumptions'!$E$11)^(M$4-$M$4+1)) -> 0 | N73: =N60*((1+'1.2 Assumptions'!$E$11)^(N$4-$M$4+1)) -> 0 | O73: =O60*((1+'1.2 Assumptions'!$E$11)^(O$4-$M$4+1)) -> 0 | P73: =P60*((1+'1.2 Assumptions'!$E$11)^(P$4-$M$4+1)) -> 0 | Q73: =Q60*((1+'1.2 Assumptions'!$E$11)^(Q$4-$M$4+1)) -> 0 | R73: =R60*((1+'1.2 Assumptions'!$E$11)^(R$4-$M$4+1)) -> 0 | S73: =S60*((1+'1.2 Assumptions'!$E$11)^(S$4-$M$4+1)) -> 0 | T73: =T60*((1+'1.2 Assumptions'!$E$11)^(T$4-$M$4+1)) -> 0 | U73: =U60*((1+'1.2 Assumptions'!$E$11)^(U$4-$M$4+1)) -> 0 | V73: =V60*((1+'1.2 Assumptions'!$E$11)^(V$4-$M$4+1)) -> 0 | W73: =W60*((1+'1.2 Assumptions'!$E$11)^(W$4-$M$4+1)) -> 0 | X73: =X60*((1+'1.2 Assumptions'!$E$11)^(X$4-$M$4+1)) -> 0 | Y73: =Y60*((1+'1.2 Assumptions'!$E$11)^(Y$4-$M$4+1)) -> 0 | Z73: =Z60*((1+'1.2 Assumptions'!$E$11)^(Z$4-$M$4+1)) -> 0 | AA73: =AA60*((1+'1.2 Assumptions'!$E$11)^(AA$4-$M$4+1)) -> 0 | AB73: =AB60*((1+'1.2 Assumptions'!$E$11)^(AB$4-$M$4+1)) -> 0 | AC73: =AC60*((1+'1.2 Assumptions'!$E$11)^(AC$4-$M$4+1)) -> 0 | AD73: =AD60*((1+'1.2 Assumptions'!$E$11)^(AD$4-$M$4+1)) -> 0 | AE73: =AE60*((1+'1.2 Assumptions'!$E$11)^(AE$4-$M$4+1)) -> 0 | AF73: =AF60*((1+'1.2 Assumptions'!$E$11)^(AF$4-$M$4+1)) -> 0 | AG73: =AG60*((1+'1.2 Assumptions'!$E$11)^(AG$4-$M$4+1)) -> 0 | AH73: =AH60*((1+'1.2 Assumptions'!$E$11)^(AH$4-$M$4+1)) -> 0 | AI73: =AI60*((1+'1.2 Assumptions'!$E$11)^(AI$4-$M$4+1)) -> 0 | AJ73: =AJ60*((1+'1.2 Assumptions'!$E$11)^(AJ$4-$M$4+1)) -> 0 | AK73: =AK60*((1+'1.2 Assumptions'!$E$11)^(AK$4-$M$4+1)) -> 0 | AL73: =AL60*((1+'1.2 Assumptions'!$E$11)^(AL$4-$M$4+1)) -> 0
C74: Liquefaction | E74: DKK | G74: Inflation adjusted CAPEX | K74: 1029474384 | M74: =M61*((1+'1.2 Assumptions'!$E$11)^(M$4-$M$4+1)) -> 1029474384 | N74: =N61*((1+'1.2 Assumptions'!$E$11)^(N$4-$M$4+1)) -> 0 | O74: =O61*((1+'1.2 Assumptions'!$E$11)^(O$4-$M$4+1)) -> 0 | P74: =P61*((1+'1.2 Assumptions'!$E$11)^(P$4-$M$4+1)) -> 0 | Q74: =Q61*((1+'1.2 Assumptions'!$E$11)^(Q$4-$M$4+1)) -> 0 | R74: =R61*((1+'1.2 Assumptions'!$E$11)^(R$4-$M$4+1)) -> 0 | S74: =S61*((1+'1.2 Assumptions'!$E$11)^(S$4-$M$4+1)) -> 0 | T74: =T61*((1+'1.2 Assumptions'!$E$11)^(T$4-$M$4+1)) -> 0 | U74: =U61*((1+'1.2 Assumptions'!$E$11)^(U$4-$M$4+1)) -> 0 | V74: =V61*((1+'1.2 Assumptions'!$E$11)^(V$4-$M$4+1)) -> 0 | W74: =W61*((1+'1.2 Assumptions'!$E$11)^(W$4-$M$4+1)) -> 0 | X74: =X61*((1+'1.2 Assumptions'!$E$11)^(X$4-$M$4+1)) -> 0 | Y74: =Y61*((1+'1.2 Assumptions'!$E$11)^(Y$4-$M$4+1)) -> 0 | Z74: =Z61*((1+'1.2 Assumptions'!$E$11)^(Z$4-$M$4+1)) -> 0 | AA74: =AA61*((1+'1.2 Assumptions'!$E$11)^(AA$4-$M$4+1)) -> 0 | AB74: =AB61*((1+'1.2 Assumptions'!$E$11)^(AB$4-$M$4+1)) -> 0 | AC74: =AC61*((1+'1.2 Assumptions'!$E$11)^(AC$4-$M$4+1)) -> 0 | AD74: =AD61*((1+'1.2 Assumptions'!$E$11)^(AD$4-$M$4+1)) -> 0 | AE74: =AE61*((1+'1.2 Assumptions'!$E$11)^(AE$4-$M$4+1)) -> 0 | AF74: =AF61*((1+'1.2 Assumptions'!$E$11)^(AF$4-$M$4+1)) -> 0 | AG74: =AG61*((1+'1.2 Assumptions'!$E$11)^(AG$4-$M$4+1)) -> 0 | AH74: =AH61*((1+'1.2 Assumptions'!$E$11)^(AH$4-$M$4+1)) -> 0 | AI74: =AI61*((1+'1.2 Assumptions'!$E$11)^(AI$4-$M$4+1)) -> 0 | AJ74: =AJ61*((1+'1.2 Assumptions'!$E$11)^(AJ$4-$M$4+1)) -> 0 | AK74: =AK61*((1+'1.2 Assumptions'!$E$11)^(AK$4-$M$4+1)) -> 0 | AL74: =AL61*((1+'1.2 Assumptions'!$E$11)^(AL$4-$M$4+1)) -> 0
C75: Harbour facilities | E75: DKK | G75: Inflation adjusted CAPEX | K75: 45373823.23 | M75: =M62*((1+'1.2 Assumptions'!$E$11)^(M$4-$M$4+1)) -> 45373823.23 | N75: =N62*((1+'1.2 Assumptions'!$E$11)^(N$4-$M$4+1)) -> 0 | O75: =O62*((1+'1.2 Assumptions'!$E$11)^(O$4-$M$4+1)) -> 0 | P75: =P62*((1+'1.2 Assumptions'!$E$11)^(P$4-$M$4+1)) -> 0 | Q75: =Q62*((1+'1.2 Assumptions'!$E$11)^(Q$4-$M$4+1)) -> 0 | R75: =R62*((1+'1.2 Assumptions'!$E$11)^(R$4-$M$4+1)) -> 0 | S75: =S62*((1+'1.2 Assumptions'!$E$11)^(S$4-$M$4+1)) -> 0 | T75: =T62*((1+'1.2 Assumptions'!$E$11)^(T$4-$M$4+1)) -> 0 | U75: =U62*((1+'1.2 Assumptions'!$E$11)^(U$4-$M$4+1)) -> 0 | V75: =V62*((1+'1.2 Assumptions'!$E$11)^(V$4-$M$4+1)) -> 0 | W75: =W62*((1+'1.2 Assumptions'!$E$11)^(W$4-$M$4+1)) -> 0 | X75: =X62*((1+'1.2 Assumptions'!$E$11)^(X$4-$M$4+1)) -> 0 | Y75: =Y62*((1+'1.2 Assumptions'!$E$11)^(Y$4-$M$4+1)) -> 0 | Z75: =Z62*((1+'1.2 Assumptions'!$E$11)^(Z$4-$M$4+1)) -> 0 | AA75: =AA62*((1+'1.2 Assumptions'!$E$11)^(AA$4-$M$4+1)) -> 0 | AB75: =AB62*((1+'1.2 Assumptions'!$E$11)^(AB$4-$M$4+1)) -> 0 | AC75: =AC62*((1+'1.2 Assumptions'!$E$11)^(AC$4-$M$4+1)) -> 0 | AD75: =AD62*((1+'1.2 Assumptions'!$E$11)^(AD$4-$M$4+1)) -> 0 | AE75: =AE62*((1+'1.2 Assumptions'!$E$11)^(AE$4-$M$4+1)) -> 0 | AF75: =AF62*((1+'1.2 Assumptions'!$E$11)^(AF$4-$M$4+1)) -> 0 | AG75: =AG62*((1+'1.2 Assumptions'!$E$11)^(AG$4-$M$4+1)) -> 0 | AH75: =AH62*((1+'1.2 Assumptions'!$E$11)^(AH$4-$M$4+1)) -> 0 | AI75: =AI62*((1+'1.2 Assumptions'!$E$11)^(AI$4-$M$4+1)) -> 0 | AJ75: =AJ62*((1+'1.2 Assumptions'!$E$11)^(AJ$4-$M$4+1)) -> 0 | AK75: =AK62*((1+'1.2 Assumptions'!$E$11)^(AK$4-$M$4+1)) -> 0 | AL75: =AL62*((1+'1.2 Assumptions'!$E$11)^(AL$4-$M$4+1)) -> 0
C76: Intermediate storage | E76: DKK | G76: Inflation adjusted CAPEX | K76: 753373144 | M76: =M63*((1+'1.2 Assumptions'!$E$11)^(M$4-$M$4+1)) -> 753373144 | N76: =N63*((1+'1.2 Assumptions'!$E$11)^(N$4-$M$4+1)) -> 0 | O76: =O63*((1+'1.2 Assumptions'!$E$11)^(O$4-$M$4+1)) -> 0 | P76: =P63*((1+'1.2 Assumptions'!$E$11)^(P$4-$M$4+1)) -> 0 | Q76: =Q63*((1+'1.2 Assumptions'!$E$11)^(Q$4-$M$4+1)) -> 0 | R76: =R63*((1+'1.2 Assumptions'!$E$11)^(R$4-$M$4+1)) -> 0 | S76: =S63*((1+'1.2 Assumptions'!$E$11)^(S$4-$M$4+1)) -> 0 | T76: =T63*((1+'1.2 Assumptions'!$E$11)^(T$4-$M$4+1)) -> 0 | U76: =U63*((1+'1.2 Assumptions'!$E$11)^(U$4-$M$4+1)) -> 0 | V76: =V63*((1+'1.2 Assumptions'!$E$11)^(V$4-$M$4+1)) -> 0 | W76: =W63*((1+'1.2 Assumptions'!$E$11)^(W$4-$M$4+1)) -> 0 | X76: =X63*((1+'1.2 Assumptions'!$E$11)^(X$4-$M$4+1)) -> 0 | Y76: =Y63*((1+'1.2 Assumptions'!$E$11)^(Y$4-$M$4+1)) -> 0 | Z76: =Z63*((1+'1.2 Assumptions'!$E$11)^(Z$4-$M$4+1)) -> 0 | AA76: =AA63*((1+'1.2 Assumptions'!$E$11)^(AA$4-$M$4+1)) -> 0 | AB76: =AB63*((1+'1.2 Assumptions'!$E$11)^(AB$4-$M$4+1)) -> 0 | AC76: =AC63*((1+'1.2 Assumptions'!$E$11)^(AC$4-$M$4+1)) -> 0 | AD76: =AD63*((1+'1.2 Assumptions'!$E$11)^(AD$4-$M$4+1)) -> 0 | AE76: =AE63*((1+'1.2 Assumptions'!$E$11)^(AE$4-$M$4+1)) -> 0 | AF76: =AF63*((1+'1.2 Assumptions'!$E$11)^(AF$4-$M$4+1)) -> 0 | AG76: =AG63*((1+'1.2 Assumptions'!$E$11)^(AG$4-$M$4+1)) -> 0 | AH76: =AH63*((1+'1.2 Assumptions'!$E$11)^(AH$4-$M$4+1)) -> 0 | AI76: =AI63*((1+'1.2 Assumptions'!$E$11)^(AI$4-$M$4+1)) -> 0 | AJ76: =AJ63*((1+'1.2 Assumptions'!$E$11)^(AJ$4-$M$4+1)) -> 0 | AK76: =AK63*((1+'1.2 Assumptions'!$E$11)^(AK$4-$M$4+1)) -> 0 | AL76: =AL63*((1+'1.2 Assumptions'!$E$11)^(AL$4-$M$4+1)) -> 0
C77: Conditioning | E77: DKK | G77: Inflation adjusted CAPEX | K77: 0 | M77: =M64*((1+'1.2 Assumptions'!$E$11)^(M$4-$M$4+1)) -> 0 | N77: =N64*((1+'1.2 Assumptions'!$E$11)^(N$4-$M$4+1)) -> 0 | O77: =O64*((1+'1.2 Assumptions'!$E$11)^(O$4-$M$4+1)) -> 0 | P77: =P64*((1+'1.2 Assumptions'!$E$11)^(P$4-$M$4+1)) -> 0 | Q77: =Q64*((1+'1.2 Assumptions'!$E$11)^(Q$4-$M$4+1)) -> 0 | R77: =R64*((1+'1.2 Assumptions'!$E$11)^(R$4-$M$4+1)) -> 0 | S77: =S64*((1+'1.2 Assumptions'!$E$11)^(S$4-$M$4+1)) -> 0 | T77: =T64*((1+'1.2 Assumptions'!$E$11)^(T$4-$M$4+1)) -> 0 | U77: =U64*((1+'1.2 Assumptions'!$E$11)^(U$4-$M$4+1)) -> 0 | V77: =V64*((1+'1.2 Assumptions'!$E$11)^(V$4-$M$4+1)) -> 0 | W77: =W64*((1+'1.2 Assumptions'!$E$11)^(W$4-$M$4+1)) -> 0 | X77: =X64*((1+'1.2 Assumptions'!$E$11)^(X$4-$M$4+1)) -> 0 | Y77: =Y64*((1+'1.2 Assumptions'!$E$11)^(Y$4-$M$4+1)) -> 0 | Z77: =Z64*((1+'1.2 Assumptions'!$E$11)^(Z$4-$M$4+1)) -> 0 | AA77: =AA64*((1+'1.2 Assumptions'!$E$11)^(AA$4-$M$4+1)) -> 0 | AB77: =AB64*((1+'1.2 Assumptions'!$E$11)^(AB$4-$M$4+1)) -> 0 | AC77: =AC64*((1+'1.2 Assumptions'!$E$11)^(AC$4-$M$4+1)) -> 0 | AD77: =AD64*((1+'1.2 Assumptions'!$E$11)^(AD$4-$M$4+1)) -> 0 | AE77: =AE64*((1+'1.2 Assumptions'!$E$11)^(AE$4-$M$4+1)) -> 0 | AF77: =AF64*((1+'1.2 Assumptions'!$E$11)^(AF$4-$M$4+1)) -> 0 | AG77: =AG64*((1+'1.2 Assumptions'!$E$11)^(AG$4-$M$4+1)) -> 0 | AH77: =AH64*((1+'1.2 Assumptions'!$E$11)^(AH$4-$M$4+1)) -> 0 | AI77: =AI64*((1+'1.2 Assumptions'!$E$11)^(AI$4-$M$4+1)) -> 0 | AJ77: =AJ64*((1+'1.2 Assumptions'!$E$11)^(AJ$4-$M$4+1)) -> 0 | AK77: =AK64*((1+'1.2 Assumptions'!$E$11)^(AK$4-$M$4+1)) -> 0 | AL77: =AL64*((1+'1.2 Assumptions'!$E$11)^(AL$4-$M$4+1)) -> 0
C78: Booster station | E78: DKK | G78: Inflation adjusted CAPEX | K78: 0 | M78: =M65*((1+'1.2 Assumptions'!$E$11)^(M$4-$M$4+1)) -> 0 | N78: =N65*((1+'1.2 Assumptions'!$E$11)^(N$4-$M$4+1)) -> 0 | O78: =O65*((1+'1.2 Assumptions'!$E$11)^(O$4-$M$4+1)) -> 0 | P78: =P65*((1+'1.2 Assumptions'!$E$11)^(P$4-$M$4+1)) -> 0 | Q78: =Q65*((1+'1.2 Assumptions'!$E$11)^(Q$4-$M$4+1)) -> 0 | R78: =R65*((1+'1.2 Assumptions'!$E$11)^(R$4-$M$4+1)) -> 0 | S78: =S65*((1+'1.2 Assumptions'!$E$11)^(S$4-$M$4+1)) -> 0 | T78: =T65*((1+'1.2 Assumptions'!$E$11)^(T$4-$M$4+1)) -> 0 | U78: =U65*((1+'1.2 Assumptions'!$E$11)^(U$4-$M$4+1)) -> 0 | V78: =V65*((1+'1.2 Assumptions'!$E$11)^(V$4-$M$4+1)) -> 0 | W78: =W65*((1+'1.2 Assumptions'!$E$11)^(W$4-$M$4+1)) -> 0 | X78: =X65*((1+'1.2 Assumptions'!$E$11)^(X$4-$M$4+1)) -> 0 | Y78: =Y65*((1+'1.2 Assumptions'!$E$11)^(Y$4-$M$4+1)) -> 0 | Z78: =Z65*((1+'1.2 Assumptions'!$E$11)^(Z$4-$M$4+1)) -> 0 | AA78: =AA65*((1+'1.2 Assumptions'!$E$11)^(AA$4-$M$4+1)) -> 0 | AB78: =AB65*((1+'1.2 Assumptions'!$E$11)^(AB$4-$M$4+1)) -> 0 | AC78: =AC65*((1+'1.2 Assumptions'!$E$11)^(AC$4-$M$4+1)) -> 0 | AD78: =AD65*((1+'1.2 Assumptions'!$E$11)^(AD$4-$M$4+1)) -> 0 | AE78: =AE65*((1+'1.2 Assumptions'!$E$11)^(AE$4-$M$4+1)) -> 0 | AF78: =AF65*((1+'1.2 Assumptions'!$E$11)^(AF$4-$M$4+1)) -> 0 | AG78: =AG65*((1+'1.2 Assumptions'!$E$11)^(AG$4-$M$4+1)) -> 0 | AH78: =AH65*((1+'1.2 Assumptions'!$E$11)^(AH$4-$M$4+1)) -> 0 | AI78: =AI65*((1+'1.2 Assumptions'!$E$11)^(AI$4-$M$4+1)) -> 0 | AJ78: =AJ65*((1+'1.2 Assumptions'!$E$11)^(AJ$4-$M$4+1)) -> 0 | AK78: =AK65*((1+'1.2 Assumptions'!$E$11)^(AK$4-$M$4+1)) -> 0 | AL78: =AL65*((1+'1.2 Assumptions'!$E$11)^(AL$4-$M$4+1)) -> 0
K79: =IF(SUM(K72:K78)=K70,"","FEJL! - tjek summer af adjusted CAPEX") -> 
B81: 5. | C81: OPEX
C83: Pipeline | E83: DKK | K83: =SUM(M83:AL83) -> 382413284.2 | M83: =M192 -> 0 | N83: =N192 -> 15296531.37 | O83: 15296531.37 | P83: 15296531.37 | Q83: 15296531.37 | R83: 15296531.37 | S83: 15296531.37 | T83: 15296531.37 | U83: 15296531.37 | V83: 15296531.37 | W83: 15296531.37 | X83: 15296531.37 | Y83: 15296531.37 | Z83: 15296531.37 | AA83: 15296531.37 | AB83: 15296531.37 | AC83: 15296531.37 | AD83: 15296531.37 | AE83: 15296531.37 | AF83: 15296531.37 | AG83: 15296531.37 | AH83: 15296531.37 | AI83: 15296531.37 | AJ83: 15296531.37 | AK83: 15296531.37 | AL83: 15296531.37
C84: Compression | E84: DKK | K84: =SUM(M84:AL84) -> 0 | M84: =M203 -> 0 | N84: =N203 -> 0 | O84: 0 | P84: 0 | Q84: 0 | R84: 0 | S84: 0 | T84: 0 | U84: 0 | V84: 0 | W84: 0 | X84: 0 | Y84: 0 | Z84: 0 | AA84: 0 | AB84: 0 | AC84: 0 | AD84: 0 | AE84: 0 | AF84: 0 | AG84: 0 | AH84: 0 | AI84: 0 | AJ84: 0 | AK84: 0 | AL84: 0
C85: Liquefaction | E85: DKK | K85: 2352624094 | M85: =M217 -> 0 | N85: =N217 -> 135940900.4 | O85: 110975453.5 | P85: 110975453.5 | Q85: 110975453.5 | R85: 86480958.15 | S85: 86480958.15 | T85: 86480958.15 | U85: 86480958.15 | V85: 86480958.15 | W85: 90709502.65 | X85: 90709502.65 | Y85: 90709502.65 | Z85: 90709502.65 | AA85: 90709502.65 | AB85: 90709502.65 | AC85: 90709502.65 | AD85: 90709502.65 | AE85: 90709502.65 | AF85: 90709502.65 | AG85: 90709502.65 | AH85: 90709502.65 | AI85: 90709502.65 | AJ85: 90709502.65 | AK85: 90709502.65 | AL85: 90709502.65
C86: Permanent storage | E86: DKK | K86: 8965748579 | M86: =M222 -> 0 | N86: =N222 -> 358629943.1 | O86: 358629943.1 | P86: 358629943.1 | Q86: 358629943.1 | R86: 358629943.1 | S86: 358629943.1 | T86: 358629943.1 | U86: 358629943.1 | V86: 358629943.1 | W86: 358629943.1 | X86: 358629943.1 | Y86: 358629943.1 | Z86: 358629943.1 | AA86: 358629943.1 | AB86: 358629943.1 | AC86: 358629943.1 | AD86: 358629943.1 | AE86: 358629943.1 | AF86: 358629943.1 | AG86: 358629943.1 | AH86: 358629943.1 | AI86: 358629943.1 | AJ86: 358629943.1 | AK86: 358629943.1 | AL86: 358629943.1
C87: Harbour facilities | E87: DKK | K87: 563078288.3 | M87: =M244 -> 0 | N87: =N244 -> 19339873.02 | O87: 19339873.02 | P87: 19339873.02 | Q87: 19339873.02 | R87: 19339873.02 | S87: 19339873.02 | T87: 19339873.02 | U87: 19339873.02 | V87: 19339873.02 | W87: 19339873.02 | X87: 24504214.21 | Y87: 24504214.21 | Z87: 24504214.21 | AA87: 24504214.21 | AB87: 24504214.21 | AC87: 24504214.21 | AD87: 24504214.21 | AE87: 24504214.21 | AF87: 24504214.21 | AG87: 24504214.21 | AH87: 24927483.2 | AI87: 24927483.2 | AJ87: 24927483.2 | AK87: 24927483.2 | AL87: 24927483.2
C88: Shipping | E88: DKK | K88: 7088656673 | M88: =M248 -> 0 | N88: =N248 -> 283546266.9 | O88: 283546266.9 | P88: 283546266.9 | Q88: 283546266.9 | R88: 283546266.9 | S88: 283546266.9 | T88: 283546266.9 | U88: 283546266.9 | V88: 283546266.9 | W88: 283546266.9 | X88: 283546266.9 | Y88: 283546266.9 | Z88: 283546266.9 | AA88: 283546266.9 | AB88: 283546266.9 | AC88: 283546266.9 | AD88: 283546266.9 | AE88: 283546266.9 | AF88: 283546266.9 | AG88: 283546266.9 | AH88: 283546266.9 | AI88: 283546266.9 | AJ88: 283546266.9 | AK88: 283546266.9 | AL88: 283546266.9
C89: Intermediate storage | E89: DKK | K89: 465603150.7 | M89: =M254 -> 0 | N89: =N254 -> 18776645.09 | O89: 18685629.88 | P89: 18685629.88 | Q89: 18685629.88 | R89: 18596331.59 | S89: 18596331.59 | T89: 18596331.59 | U89: 18596331.59 | V89: 18596331.59 | W89: 18611747.37 | X89: 18611747.37 | Y89: 18611747.37 | Z89: 18611747.37 | AA89: 18611747.37 | AB89: 18611747.37 | AC89: 18611747.37 | AD89: 18611747.37 | AE89: 18611747.37 | AF89: 18611747.37 | AG89: 18611747.37 | AH89: 18611747.37 | AI89: 18611747.37 | AJ89: 18611747.37 | AK89: 18611747.37 | AL89: 18611747.37
C90: Trucking | E90: DKK | K90: 0 | M90: =M270 -> 0 | N90: =N270 -> 0 | O90: 0 | P90: 0 | Q90: 0 | R90: 0 | S90: 0 | T90: 0 | U90: 0 | V90: 0 | W90: 0 | X90: 0 | Y90: 0 | Z90: 0 | AA90: 0 | AB90: 0 | AC90: 0 | AD90: 0 | AE90: 0 | AF90: 0 | AG90: 0 | AH90: 0 | AI90: 0 | AJ90: 0 | AK90: 0 | AL90: 0
C91: Conditioning | E91: DKK | K91: 0 | M91: =M283 -> 0 | N91: =N283 -> 0 | O91: =O283 -> 0 | P91: 0 | Q91: 0 | R91: 0 | S91: 0 | T91: 0 | U91: 0 | V91: 0 | W91: 0 | X91: 0 | Y91: 0 | Z91: 0 | AA91: 0 | AB91: 0 | AC91: 0 | AD91: 0 | AE91: 0 | AF91: 0 | AG91: 0 | AH91: 0 | AI91: 0 | AJ91: 0 | AK91: 0 | AL91: 0
C92: Booster station | E92: DKK | K92: =SUM(M92:AL92) -> 0 | M92: =M299 -> 0 | N92: =N299 -> 0 | O92: =O299 -> 0 | P92: 0 | Q92: 0 | R92: 0 | S92: 0 | T92: 0 | U92: 0 | V92: 0 | W92: 0 | X92: 0 | Y92: 0 | Z92: 0 | AA92: 0 | AB92: 0 | AC92: 0 | AD92: 0 | AE92: 0 | AF92: 0 | AG92: 0 | AH92: 0 | AI92: 0 | AJ92: 0 | AK92: 0 | AL92: 0
C94: Total OPEX | E94: DKK | G94: Sum of above | K94: =SUM(M94:AL94) -> 1.981812407e+10 | M94: =SUM(M83:M92) -> 0 | N94: =SUM(N83:N92) -> 831530159.9 | O94: =SUM(O83:O92) -> 806473697.8 | P94: 806473697.8 | Q94: 806473697.8 | R94: 781889904.2 | S94: 781889904.2 | T94: 781889904.2 | U94: 781889904.2 | V94: 781889904.2 | W94: 786133864.5 | X94: 791298205.7 | Y94: 791298205.7 | Z94: 791298205.7 | AA94: 791298205.7 | AB94: 791298205.7 | AC94: 791298205.7 | AD94: 791298205.7 | AE94: 791298205.7 | AF94: 791298205.7 | AG94: 791298205.7 | AH94: 791721474.6 | AI94: 791721474.6 | AJ94: 791721474.6 | AK94: 791721474.6 | AL94: 791721474.6
C97: Total OPEX (inflation adj.) | E97: DKK | G97: Inflation adjusted OPEX | K97: =SUM(M97:AL97) -> 2.640246664e+10 | M97: =M94*((1+'1.2 Assumptions'!$E$11)^(M$4-$M$4+1)) -> 0 | N97: =N94*((1+'1.2 Assumptions'!$E$11)^(N$4-$M$4+1)) -> 865123978.4 | O97: =O94*((1+'1.2 Assumptions'!$E$11)^(O$4-$M$4+1)) -> 855836339.9 | P97: =P94*((1+'1.2 Assumptions'!$E$11)^(P$4-$M$4+1)) -> 872953066.7 | Q97: =Q94*((1+'1.2 Assumptions'!$E$11)^(Q$4-$M$4+1)) -> 890412128 | R97: =R94*((1+'1.2 Assumptions'!$E$11)^(R$4-$M$4+1)) -> 880535026.1 | S97: =S94*((1+'1.2 Assumptions'!$E$11)^(S$4-$M$4+1)) -> 898145726.6 | T97: =T94*((1+'1.2 Assumptions'!$E$11)^(T$4-$M$4+1)) -> 916108641.1 | U97: =U94*((1+'1.2 Assumptions'!$E$11)^(U$4-$M$4+1)) -> 934430814 | V97: =V94*((1+'1.2 Assumptions'!$E$11)^(V$4-$M$4+1)) -> 953119430.3 | W97: =W94*((1+'1.2 Assumptions'!$E$11)^(W$4-$M$4+1)) -> 977458650 | X97: =X94*((1+'1.2 Assumptions'!$E$11)^(X$4-$M$4+1)) -> 1003557456 | Y97: =Y94*((1+'1.2 Assumptions'!$E$11)^(Y$4-$M$4+1)) -> 1023628606 | Z97: =Z94*((1+'1.2 Assumptions'!$E$11)^(Z$4-$M$4+1)) -> 1044101178 | AA97: =AA94*((1+'1.2 Assumptions'!$E$11)^(AA$4-$M$4+1)) -> 1064983201 | AB97: =AB94*((1+'1.2 Assumptions'!$E$11)^(AB$4-$M$4+1)) -> 1086282865 | AC97: =AC94*((1+'1.2 Assumptions'!$E$11)^(AC$4-$M$4+1)) -> 1108008522 | AD97: =AD94*((1+'1.2 Assumptions'!$E$11)^(AD$4-$M$4+1)) -> 1130168693 | AE97: =AE94*((1+'1.2 Assumptions'!$E$11)^(AE$4-$M$4+1)) -> 1152772067 | AF97: =AF94*((1+'1.2 Assumptions'!$E$11)^(AF$4-$M$4+1)) -> 1175827508 | AG97: =AG94*((1+'1.2 Assumptions'!$E$11)^(AG$4-$M$4+1)) -> 1199344058 | AH97: =AH94*((1+'1.2 Assumptions'!$E$11)^(AH$4-$M$4+1)) -> 1223985305 | AI97: =AI94*((1+'1.2 Assumptions'!$E$11)^(AI$4-$M$4+1)) -> 1248465011 | AJ97: =AJ94*((1+'1.2 Assumptions'!$E$11)^(AJ$4-$M$4+1)) -> 1273434311 | AK97: =AK94*((1+'1.2 Assumptions'!$E$11)^(AK$4-$M$4+1)) -> 1298902997 | AL97: =AL94*((1+'1.2 Assumptions'!$E$11)^(AL$4-$M$4+1)) -> 1324881057
C99: =C83 -> Pipeline | E99: DKK | G99: Inflation adjusted OPEX | K99: =SUM(M99:AL99) -> 509746564.9 | M99: =M83*((1+'1.2 Assumptions'!$E$11)^(M$4-$M$4+1)) -> 0 | N99: =N83*((1+'1.2 Assumptions'!$E$11)^(N$4-$M$4+1)) -> 15914511.24 | O99: =O83*((1+'1.2 Assumptions'!$E$11)^(O$4-$M$4+1)) -> 16232801.46 | P99: =P83*((1+'1.2 Assumptions'!$E$11)^(P$4-$M$4+1)) -> 16557457.49 | Q99: =Q83*((1+'1.2 Assumptions'!$E$11)^(Q$4-$M$4+1)) -> 16888606.64 | R99: =R83*((1+'1.2 Assumptions'!$E$11)^(R$4-$M$4+1)) -> 17226378.77 | S99: =S83*((1+'1.2 Assumptions'!$E$11)^(S$4-$M$4+1)) -> 17570906.35 | T99: =T83*((1+'1.2 Assumptions'!$E$11)^(T$4-$M$4+1)) -> 17922324.48 | U99: =U83*((1+'1.2 Assumptions'!$E$11)^(U$4-$M$4+1)) -> 18280770.96 | V99: =V83*((1+'1.2 Assumptions'!$E$11)^(V$4-$M$4+1)) -> 18646386.38 | W99: =W83*((1+'1.2 Assumptions'!$E$11)^(W$4-$M$4+1)) -> 19019314.11 | X99: =X83*((1+'1.2 Assumptions'!$E$11)^(X$4-$M$4+1)) -> 19399700.39 | Y99: =Y83*((1+'1.2 Assumptions'!$E$11)^(Y$4-$M$4+1)) -> 19787694.4 | Z99: =Z83*((1+'1.2 Assumptions'!$E$11)^(Z$4-$M$4+1)) -> 20183448.29 | AA99: =AA83*((1+'1.2 Assumptions'!$E$11)^(AA$4-$M$4+1)) -> 20587117.26 | AB99: =AB83*((1+'1.2 Assumptions'!$E$11)^(AB$4-$M$4+1)) -> 20998859.6 | AC99: =AC83*((1+'1.2 Assumptions'!$E$11)^(AC$4-$M$4+1)) -> 21418836.79 | AD99: =AD83*((1+'1.2 Assumptions'!$E$11)^(AD$4-$M$4+1)) -> 21847213.53 | AE99: =AE83*((1+'1.2 Assumptions'!$E$11)^(AE$4-$M$4+1)) -> 22284157.8 | AF99: =AF83*((1+'1.2 Assumptions'!$E$11)^(AF$4-$M$4+1)) -> 22729840.96 | AG99: =AG83*((1+'1.2 Assumptions'!$E$11)^(AG$4-$M$4+1)) -> 23184437.77 | AH99: =AH83*((1+'1.2 Assumptions'!$E$11)^(AH$4-$M$4+1)) -> 23648126.53 | AI99: =AI83*((1+'1.2 Assumptions'!$E$11)^(AI$4-$M$4+1)) -> 24121089.06 | AJ99: =AJ83*((1+'1.2 Assumptions'!$E$11)^(AJ$4-$M$4+1)) -> 24603510.84 | AK99: =AK83*((1+'1.2 Assumptions'!$E$11)^(AK$4-$M$4+1)) -> 25095581.06 | AL99: =AL83*((1+'1.2 Assumptions'!$E$11)^(AL$4-$M$4+1)) -> 25597492.68
